Workbook

Sheet Print
A2: Cost of Service Model Printing
A4: This worksheet has the Page Setup properties used by the print macros which are triggered by the buttons on the other worksheets.
A5: For example, when Rate Base button is hit, macro will print RB1 and RB2 below.
A6: There are 5 print buttons on Detail tab, 1 on Summary tab, 1 on Factors tab.
B9: RATE BASE | G9: REVENUE REQUIREMENTS | M9: SUMMARY PAGES
C11: Total $ By Schedule | D11: Classification %'s | E11: Classif. $'s/Commodity $ | F11: Demand $/Customer $ | G11: Total $ By Schedule | H11: Classification %'s | I11: Classif. $'s/Commodity $ | J11: Demand $/Customer $ | K11: Labor $ and Classif. %'s | L11: Labor $ by Schedule | M11: General Summary | N11: Allocation Factors
C12: GoTo | D12: GoTo | E12: GoTo | F12: GoTo | G12: GoTo | H12: GoTo | I12: GoTo | J12: GoTo | K12: GoTo | L12: GoTo | M12: GoTo | N12: GoTo
A14: Scenario Title | B14: Base Case
C15: RB1 | D15: RB2 | E15: RB3 | F15: RB4 | G15: RR1 | H15: RR2 | I15: RR3 | J15: RR4 | K15: RR5 | L15: RR6 | M15: SUM1 | N15: SUM2
C16: 1 print button | E16: 1 print button | G16: 1 print button | I16: 1 print button | K16: 1 print button | M16: 1 print button | N16: 1 print button
A18: Print Area | B18: 0 | C18: $E$7:$P$148 | D18: $Q$7:$AH$148 | E18: $AK$7:$AY$148 | F18: $BA$7:$BO$148 | G18: $E$165:$P$433 | H18: $Q$165:$AH$433 | I18: $AK$165:$AY$433 | J18: $BA$165:$BO$433 | K18: $BQ$165:$CK$333 | L18: $CK$165:$CR$333 | M18: $A$5:$K$52,$A$105:$K$179,$A$183:$K$257 | N18: $A$4:$Q$51,$A$67:$J$107
A19: Print Title Rows | B19: 1 | C19: $1:$6 | D19: =C19 -> $1:$6 | E19: =C19 -> $1:$6 | F19: =C19 -> $1:$6 | G19: $159:$164 | H19: =G19 -> $159:$164 | I19: =G19 -> $159:$164 | J19: =G19 -> $159:$164 | K19: =H19 -> $159:$164 | L19: =I19 -> $159:$164 | M19: $1:$4 | N19: $1:$3
A20: Print Title Columns | B20: 2 | C20: $A:$D | D20: =$C20 -> $A:$D | E20: =$C20 -> $A:$D | F20: =$C20 -> $A:$D | G20: $A:$D | H20: =$G20 -> $A:$D | I20: =$G20 -> $A:$D | J20: =$G20 -> $A:$D | L20: $BQ:$BR
A21: Fit Pgs Wide | B21: 3 | C21: 1 | D21: =C21 -> 1 | E21: =C21 -> 1 | F21: =C21 -> 1 | G21: 1 | H21: =G21 -> 1 | I21: =G21 -> 1 | J21: =G21 -> 1 | K21: =H21 -> 1 | L21: =I21 -> 1 | M21: =J21 -> 1 | N21: =K21 -> 1
A22: Fit Pgs Tall | B22: 4 | C22: 2 | D22: =C22 -> 2 | E22: =C22 -> 2 | F22: =C22 -> 2 | G22: 4 | H22: =G22 -> 4 | I22: =G22 -> 4 | J22: =G22 -> 4 | K22: 3 | L22: 3 | M22: 1 | N22: 1
A23: Zoom | B23: 5 | C23: FALSE | D23: =C23 -> FALSE | E23: =C23 -> FALSE | F23: =C23 -> FALSE | G23: FALSE | H23: =G23 -> FALSE | I23: =G23 -> FALSE | J23: =G23 -> FALSE | K23: =H23 -> FALSE | L23: =I23 -> FALSE | M23: =J23 -> FALSE | N23: =K23 -> FALSE
A24: Orientation | B24: 6 | C24: Landscape | D24: =C24 -> Landscape | E24: =C24 -> Landscape | F24: =C24 -> Landscape | G24: Landscape | H24: =G24 -> Landscape | I24: =G24 -> Landscape | J24: =G24 -> Landscape | K24: =H24 -> Landscape | L24: =I24 -> Landscape | M24: Portrait | N24: Landscape
A25: Left Header | B25: 7 | C25: ="AVISTA UTILITIES -- "&Scen&CHAR(10)&"Pro-Forma Rate Base Dollars" -> AVISTA UTILITIES -- Base Case Pro-Forma Rate Base Dollars | D25: ="AVISTA UTILITIES -- "&Scen&CHAR(10)&"Rate Base Classification %'s" -> AVISTA UTILITIES -- Base Case Rate Base Classification %'s | E25: ="AVISTA UTILITIES -- "&Scen&CHAR(10)&"Classification Dollars" -> AVISTA UTILITIES -- Base Case Classification Dollars | F25: =E25 -> AVISTA UTILITIES -- Base Case Classification Dollars | G25: ="AVISTA UTILITIES -- "&Scen&CHAR(10)&"Pro-Forma Revenue Requirement Dollars" -> AVISTA UTILITIES -- Base Case Pro-Forma Revenue Requirement Dollars | H25: ="AVISTA UTILITIES -- "&Scen&CHAR(10)&"Revenue Requirement Classification %'s" -> AVISTA UTILITIES -- Base Case Revenue Requirement Classification %'s | I25: ="AVISTA UTILITIES -- "&Scen&CHAR(10)&"Classification Dollars" -> AVISTA UTILITIES -- Base Case Classification Dollars | J25: =I25 -> AVISTA UTILITIES -- Base Case Classification Dollars | K25: ="AVISTA UTILITIES -- "&Scen&CHAR(10)&"Pro-Forma Labor Expense" -> AVISTA UTILITIES -- Base Case Pro-Forma Labor Expense | L25: ="AVISTA UTILITIES -- "&Scen&CHAR(10)&"Pro-Forma Labor Expense" -> AVISTA UTILITIES -- Base Case Pro-Forma Labor Expense | M25: ="AVISTA UTILITIES -- "&Scen&CHAR(10)&"Cost of Service General Summary" -> AVISTA UTILITIES -- Base Case Cost of Service General Summary | N25: ="AVISTA UTILITIES -- "&Scen&CHAR(10)&"Allocation Percentages" -> AVISTA UTILITIES -- Base Case Allocation Percentages
A26: Center Header | B26: 8
A27: Right Header | B27: 9 | C27: WA Gas | D27: =$C27 -> WA Gas | E27: =$C27 -> WA Gas | F27: =$C27 -> WA Gas | G27: WA Gas | H27: =$G27 -> WA Gas | I27: WA Gas | J27: WA Gas | K27: WA Gas | L27: WA Gas | M27: WA Gas | N27: WA Gas
A28: Left Footer | B28: 10 | C28: =MID(C42,C44+1,C46-1)&" "&C47 -> Avista - WA Cost of Service (NG) - Base Case.xlsm Detail | D28: =MID(D42,D44+1,D46-1)&" "&D47 -> Avista - WA Cost of Service (NG) - Base Case.xlsm Detail | E28: Avista - WA Cost of Service (NG) - Base Case.xlsm Detail | F28: Avista - WA Cost of Service (NG) - Base Case.xlsm Detail | G28: Avista - WA Cost of Service (NG) - Base Case.xlsm Detail | H28: Avista - WA Cost of Service (NG) - Base Case.xlsm Detail | I28: Avista - WA Cost of Service (NG) - Base Case.xlsm Detail | J28: Avista - WA Cost of Service (NG) - Base Case.xlsm Detail | K28: Avista - WA Cost of Service (NG) - Base Case.xlsm Detail | L28: Avista - WA Cost of Service (NG) - Base Case.xlsm Detail | M28: Avista - WA Cost of Service (NG) - Base Case.xlsm Summary | N28: Avista - WA Cost of Service (NG) - Base Case.xlsm Factors
A29: Center Footer | B29: 11 | C29: =TODAY() -> 2019-04-25 | D29: =$C$29 -> 2019-04-25 | E29: =$C$29 -> 2019-04-25 | F29: 2019-04-25 | G29: 2019-04-25 | H29: 2019-04-25 | I29: 2019-04-25 | J29: 2019-04-25 | K29: 2019-04-25 | L29: 2019-04-25 | M29: 2019-04-25 | N29: 2019-04-25
A30: Right Footer | B30: 12 | C30: ="Page &P of "&$P$35 -> Page &P of 35 | D30: Page &P of 35 | E30: Page &P of 35 | F30: Page &P of 35 | G30: Page &P of 35 | H30: Page &P of 35 | I30: Page &P of 35 | J30: Page &P of 35 | K30: Page &P of 35 | L30: Page &P of 35 | M30: Page &P of 35 | N30: Page &P of 35
A31: 1st Pg # | B31: 13 | C31: =M35+1 -> 4 | D31: =C31+C35 -> 6 | E31: =H31+H35 -> 16 | F31: =E31+E35 -> 18 | G31: =D31+D35 -> 8 | H31: =G31+G35 -> 12 | I31: =F31+F35 -> 20 | J31: =I31+I35 -> 24 | K31: =J31+J35 -> 28 | L31: =K31+K35 -> 31 | M31: 1 | N31: =L31+L35 -> 34
A32: Preview (False=Print) | B32: 14 | C32: TRUE | D32: =$C$32 -> TRUE | E32: TRUE | F32: TRUE | G32: TRUE | H32: TRUE | I32: TRUE | J32: TRUE | K32: TRUE | L32: TRUE | M32: TRUE | N32: TRUE
A33: Zoom % w/print to fit | B33: 15
A35: Total Pages | C35: =C21*C22 -> 2 | D35: =D21*D22 -> 2 | E35: 2 | F35: 2 | G35: 4 | H35: 4 | I35: 4 | J35: 4 | K35: 3 | L35: 3 | M35: 3 | N35: 2 | P35: =SUM(C35:O35) -> 35
A37: H/F examples: | C37: "&F" & Chr(10) & "&A" | D37: would print FileName on one line and TabName on next
C38: "Page &P of &N" | D38: would print: Page 1 of 3
C39: "&D , &T" | D39: would print: 1/31/08, 18:00 in whatever format
A42: Path of Filename | C42: =CELL("filename",$A$1) -> M:\2019\2019_ WA Elec and Gas General Rate Case\Direct Testimony & Exhibits-FILING 190___\I. UE_AVA Dir Evidence-(Apr19)\3. UE_AVA WP's (Apr19)\12. UG__Miller WP(AVA-Apr19)\Electronic\COS\[Avista - WA Cost of Service (NG) - Base Case.xlsm]Print | D42: =CELL("filename",$A$1) -> M:\2019\2019_ WA Elec and Gas General Rate Case\Direct Testimony & Exhibits-FILING 190___\I. UE_AVA Dir Evidence-(Apr19)\3. UE_AVA WP's (Apr19)\12. UG__Miller WP(AVA-Apr19)\Electronic\COS\[Avista - WA Cost of Service (NG) - Base Case.xlsm]Print | E42: M:\2019\2019_ WA Elec and Gas General Rate Case\Direct Testimony & Exhibits-FILING 190___\I. UE_AVA Dir Evidence-(Apr19)\3. UE_AVA WP's (Apr19)\12. UG__Miller WP(AVA-Apr19)\Electronic\COS\[Avista - WA Cost of Service (NG) - Base Case.xlsm]Print | F42: M:\2019\2019_ WA Elec and Gas General Rate Case\Direct Testimony & Exhibits-FILING 190___\I. UE_AVA Dir Evidence-(Apr19)\3. UE_AVA WP's (Apr19)\12. UG__Miller WP(AVA-Apr19)\Electronic\COS\[Avista - WA Cost of Service (NG) - Base Case.xlsm]Print | G42: M:\2019\2019_ WA Elec and Gas General Rate Case\Direct Testimony & Exhibits-FILING 190___\I. UE_AVA Dir Evidence-(Apr19)\3. UE_AVA WP's (Apr19)\12. UG__Miller WP(AVA-Apr19)\Electronic\COS\[Avista - WA Cost of Service (NG) - Base Case.xlsm]Print | H42: M:\2019\2019_ WA Elec and Gas General Rate Case\Direct Testimony & Exhibits-FILING 190___\I. UE_AVA Dir Evidence-(Apr19)\3. UE_AVA WP's (Apr19)\12. UG__Miller WP(AVA-Apr19)\Electronic\COS\[Avista - WA Cost of Service (NG) - Base Case.xlsm]Print | I42: M:\2019\2019_ WA Elec and Gas General Rate Case\Direct Testimony & Exhibits-FILING 190___\I. UE_AVA Dir Evidence-(Apr19)\3. UE_AVA WP's (Apr19)\12. UG__Miller WP(AVA-Apr19)\Electronic\COS\[Avista - WA Cost of Service (NG) - Base Case.xlsm]Print | J42: M:\2019\2019_ WA Elec and Gas General Rate Case\Direct Testimony & Exhibits-FILING 190___\I. UE_AVA Dir Evidence-(Apr19)\3. UE_AVA WP's (Apr19)\12. UG__Miller WP(AVA-Apr19)\Electronic\COS\[Avista - WA Cost of Service (NG) - Base Case.xlsm]Print | K42: M:\2019\2019_ WA Elec and Gas General Rate Case\Direct Testimony & Exhibits-FILING 190___\I. UE_AVA Dir Evidence-(Apr19)\3. UE_AVA WP's (Apr19)\12. UG__Miller WP(AVA-Apr19)\Electronic\COS\[Avista - WA Cost of Service (NG) - Base Case.xlsm]Print | L42: M:\2019\2019_ WA Elec and Gas General Rate Case\Direct Testimony & Exhibits-FILING 190___\I. UE_AVA Dir Evidence-(Apr19)\3. UE_AVA WP's (Apr19)\12. UG__Miller WP(AVA-Apr19)\Electronic\COS\[Avista - WA Cost of Service (NG) - Base Case.xlsm]Print | M42: M:\2019\2019_ WA Elec and Gas General Rate Case\Direct Testimony & Exhibits-FILING 190___\I. UE_AVA Dir Evidence-(Apr19)\3. UE_AVA WP's (Apr19)\12. UG__Miller WP(AVA-Apr19)\Electronic\COS\[Avista - WA Cost of Service (NG) - Base Case.xlsm]Print | N42: M:\2019\2019_ WA Elec and Gas General Rate Case\Direct Testimony & Exhibits-FILING 190___\I. UE_AVA Dir Evidence-(Apr19)\3. UE_AVA WP's (Apr19)\12. UG__Miller WP(AVA-Apr19)\Electronic\COS\[Avista - WA Cost of Service (NG) - Base Case.xlsm]Print
A43: Length of Path | C43: =LEN(C42) -> 244 | D43: =$C43 -> 244 | E43: =$C43 -> 244 | F43: 244 | G43: 244 | H43: 244 | I43: 244 | J43: 244 | K43: 244 | L43: 244 | M43: 244 | N43: 244
A44: Filename start pt | C44: =FIND("[",C42,1) -> 189 | D44: =$C44 -> 189 | E44: 189 | F44: 189 | G44: 189 | H44: 189 | I44: 189 | J44: 189 | K44: 189 | L44: 189 | M44: 189 | N44: 189
A45: Filename end pt | C45: =FIND("]",C42,1) -> 239 | D45: 239 | E45: 239 | F45: 239 | G45: 239 | H45: 239 | I45: 239 | J45: 239 | K45: 239 | L45: 239 | M45: 239 | N45: 239
A46: Filename length | C46: =C45-C44 -> 50 | D46: 50 | E46: 50 | F46: 50 | G46: 50 | H46: 50 | I46: 50 | J46: 50 | K46: 50 | L46: 50 | M46: 50 | N46: 50
A47: Tab Name | C47: Detail | D47: Detail | E47: Detail | F47: Detail | G47: Detail | H47: Detail | I47: Detail | J47: Detail | K47: Detail | L47: Detail | M47: Summary | N47: Factors

Sheet Detail
A1: =ColHdr -> A | B1: =ColHdr -> B | C1: C | D1: D | E1: E | F1: F | G1: G | H1: H | I1: I | J1: J | K1: K | L1: L | M1: M | N1: N | O1: O | P1: P | Q1: Q | R1: R | S1: S | T1: T | U1: U | V1: V | W1: W | X1: X | Y1: Y | Z1: Z | AA1: AA | AB1: AB | AC1: AC | AD1: AD | AE1: AE | AF1: AF | AG1: AG | AH1: AH | AI1: AI | AJ1: AJ | AK1: AK | AL1: AL | AM1: AM | AN1: AN | AO1: AO | AP1: AP | AQ1: AQ | AR1: AR | AS1: AS | AT1: AT | AU1: AU | AV1: AV | AW1: AW | AX1: AX | AY1: AY | AZ1: AZ | BA1: BA | BB1: BB | BC1: BC | BD1: BD | BE1: BE | BF1: BF | BG1: BG | BH1: BH | BI1: BI | BJ1: BJ | BK1: BK | BL1: BL | BM1: BM | BN1: BN | BO1: =ColHdr -> BO | BP1: BP | BQ1: BQ | BR1: BR | BS1: BS | BT1: BT | BU1: BU | BV1: BV | BW1: BW | BX1: BX | BY1: BY | BZ1: BZ | CA1: CA | CB1: CB | CC1: CC | CD1: CD | CE1: CE | CF1: CF | CG1: CG | CH1: CH | CI1: CI | CJ1: CJ | CK1: CK | CL1: CL | CM1: CM | CN1: CN | CO1: CO | CP1: CP | CQ1: CQ | CR1: CR
A2: =RowHdr -> 2
A3: 3 | E3: Pro Forma | AS3: COMMODITY | BA3: DEMAND | BI3: CUSTOMER | CM3: Pro Forma
A4: 4 | E4: Cross Check | I4: =MATCH(I5,Factors!$C$58:$C$64,0) -> 1 | J4: =MATCH(J5,Factors!$C$58:$C$64,0) -> 2 | K4: =MATCH(K5,Factors!$C$58:$C$64,0) -> 3 | L4: =MATCH(L5,Factors!$C$58:$C$64,0) -> 4 | M4: =MATCH(M5,Factors!$C$58:$C$64,0) -> 5 | N4: =MATCH(N5,Factors!$C$58:$C$64,0) -> 6 | R4: COMMODITY | S4: COMMODITY | T4: COMMODITY | U4: COMMODITY | V4: COMMODITY | W4: DEMAND | X4: DEMAND | Y4: DEMAND | Z4: DEMAND | AA4: DEMAND | AB4: CUSTOMER | AC4: CUSTOMER | AD4: CUSTOMER | AE4: CUSTOMER | AF4: CUSTOMER | AG4: CUSTOMER | AH4: REVENUE | AT4: =MATCH(AT5,Factors!$C$58:$C$64,0) -> 1 | AU4: =MATCH(AU5,Factors!$C$58:$C$64,0) -> 2 | AV4: =MATCH(AV5,Factors!$C$58:$C$64,0) -> 3 | AW4: =MATCH(AW5,Factors!$C$58:$C$64,0) -> 4 | AX4: =MATCH(AX5,Factors!$C$58:$C$64,0) -> 5 | AY4: =MATCH(AY5,Factors!$C$58:$C$64,0) -> 6 | BB4: =MATCH(BB5,Factors!$C$58:$C$64,0) -> 1 | BC4: =MATCH(BC5,Factors!$C$58:$C$64,0) -> 2 | BD4: =MATCH(BD5,Factors!$C$58:$C$64,0) -> 3 | BE4: =MATCH(BE5,Factors!$C$58:$C$64,0) -> 4 | BF4: =MATCH(BF5,Factors!$C$58:$C$64,0) -> 5 | BG4: =MATCH(BG5,Factors!$C$58:$C$64,0) -> 6 | BJ4: =MATCH(BJ5,Factors!$C$58:$C$64,0) -> 1 | BK4: =MATCH(BK5,Factors!$C$58:$C$64,0) -> 2 | BL4: =MATCH(BL5,Factors!$C$58:$C$64,0) -> 3 | BM4: =MATCH(BM5,Factors!$C$58:$C$64,0) -> 4 | BN4: =MATCH(BN5,Factors!$C$58:$C$64,0) -> 5 | BO4: =MATCH(BO5,Factors!$C$58:$C$64,0) -> 6 | BR4: Proforma | CM4: Cross Check
A5: 5 | B5: Acct | C5: Func | D5: Description | E5: Totals | F5: classif. basis (line) | G5: derived classif. | H5: Total | I5: Sch 101 | J5: Sch 111 | K5: Sch 121 | L5: Sch 131 | M5: Sch 146 | N5: Open | P5: source | R5: Throughput | S5: Sales | T5: Therms - Small Mains | U5: Purchased Gas - Commodity | V5: GTI Expense | W5: Coincident Peak - All | X5: Coincident Peak - Small Mains | Y5: Purchased Gas - Demand | Z5: DA 101 | AA5: DA 146 | AB5: All Customers | AC5: Service Cost | AD5: Meter Cost | AE5: 4-Factor | AF5: Ind Meas & Reg Cost | AG5: DA 101 | AH5: Revenues From Retail Rates | AK5: Total | AL5: Commodity | AM5: Demand | AN5: Customer | AO5: Revenue | AQ5: source | AS5: Total | AT5: Sch 101 | AU5: Sch 111 | AV5: Sch 121 | AW5: Sch 131 | AX5: Sch 146 | AY5: Open | BA5: Total | BB5: Sch 101 | BC5: Sch 111 | BD5: Sch 121 | BE5: Sch 131 | BF5: Sch 146 | BG5: Open | BI5: Total | BJ5: Sch 101 | BK5: Sch 111 | BL5: Sch 121 | BM5: Sch 131 | BN5: Sch 146 | BO5: Open | BR5: Labor Totals | CM5: Labor Totals
A6: 6 | R6: E01 | S6: E04 | T6: E06 | U6: E07 | V6: E08 | W6: D01 | X6: D02 | Y6: D05 | Z6: D06 | AA6: D07 | AB6: C01 | AC6: C02 | AD6: C03 | AE6: C04 | AF6: C06 | AG6: C10 | AH6: R01 | BR6: (see below) | CM6: (see below)
A7: 7 | D7: Rate Base | AI7: =IF(SUM(R7:AH7)<>0,(ROUND(SUM(R7:AH7),8)<>1)+0,0) -> 0
A8: 8 | D8: Plant In Service | AI8: 0
A9: 9 | D9: Intangible Plant | AI9: 0
A10: 10 | B10: 303 | C10: D | D10: Intangible Gas Plant | E10: =PROFORMA!AP250 -> 2451000 | F10: ="as Distrib Plant ("&A$40&")" -> as Distrib Plant (40) | H10: =SUM(I10:N10) -> 2451000 | I10: =$E10*SUMPRODUCT($R10:$AH10,INDEX(AllocFactors,I$4,0)) -> 1944420.934 | J10: 374518.3236 | K10: 0.001761085511 | L10: 4647.064462 | M10: 127413.6767 | N10: 0 | P10: =E$1&$A10&"* Sum["&$R$1&$A10&":"&$AH$1&$A10&"* "&Factors!D$1&Factors!$A$58&":"&Factors!S$1&Factors!$A$64&"]" -> E10* Sum[R10:AH10* D1037:S1043] | R10: =R$40 -> 0.1119878704 | S10: =S$40 -> 0 | T10: 0.0862752692 | U10: 0 | V10: 0 | W10: 0.3194613195 | X10: 0 | Y10: 0 | Z10: 0 | AA10: 0 | AB10: 0 | AC10: 0.3756369252 | AD10: 0.1009331436 | AE10: 0 | AF10: 0.005705471983 | AG10: 0 | AH10: 0 | AI10: =IF(SUM(R10:AH10)<>0,(ROUND(SUM(R10:AH10),8)<>1)+0,0) -> 0 | AK10: =SUM(AL10:AO10) -> 2451000 | AL10: =SUMIF($R$4:$AH$4,AL$5,$R10:$AH10)*$E10 -> 485942.9553 | AM10: 782999.6941 | AN10: 1182057.351 | AO10: 0 | AQ10: =E$1&$A10&"*["&R$1&$A10&":"&$AH$1&$A10&" when "&R$1&$A$4&":"&$AH$1&$A$4&" = E,D,C,or R]" -> E10*[R10:AH10 when R4:AH4 = E,D,C,or R] | AS10: =SUM(AT10:AY10) -> 485942.9553 | AT10: =$E10*SUMPRODUCT($R10:$V10,INDEX(AllocFactors_E,AT$4,0)) -> 307402.9879 | AU10: 133186.3988 | AV10: 0 | AW10: 1221.13865 | AX10: 44132.42997 | AY10: 0 | BA10: =SUM(BB10:BG10) -> 782999.6941 | BB10: =$E10*SUMPRODUCT($W10:$AA10,INDEX(AllocFactors_D,BB$4,0)) -> 521043.9305 | BC10: 184173.6829 | BD10: 0 | BE10: 2868.983654 | BF10: 74913.0971 | BG10: 0 | BI10: =SUM(BJ10:BO10) -> 1182057.351 | BJ10: =$E10*SUMPRODUCT($AB10:$AG10,INDEX(AllocFactors_C,BJ$4,0)) -> 1115974.015 | BK10: 57158.24194 | BL10: 0.001761085511 | BM10: 556.942158 | BN10: 8368.149633 | BO10: 0
A11: 11 | B11: 303.1 | C11: O | D11: Miscellaneous - Computer Software | E11: =PROFORMA!AP251 -> 30684000 | F11: 4-Factor | H11: =SUM(I11:N11) -> 30684000 | I11: 26855349.79 | J11: 3009616.045 | K11: 0.009828212761 | L11: 37221.2238 | M11: 781812.935 | N11: 0 | P11: Corporate Cost Allocator (4-Factor) | R11: =(R$114*0.25)+(R$251*0.25)+(BS$250*0.25) -> 0.06097571685 | S11: =(S$114*0.25)+(S$251*0.25)+(BT$250*0.25) -> 0.05034792024 | T11: 0.03676669478 | U11: 0 | V11: 0 | W11: 0.1420553834 | X11: 0 | Y11: 0 | Z11: 0 | AA11: 0 | AB11: =(AB$114*0.25)+(AB$251*0.25)+(CC$250*0.25)+0.25 -> 0.463399122 | AC11: 0.1674533035 | AD11: 0.07589476099 | AE11: 0 | AF11: 0.00310709825 | AG11: 0 | AH11: 0 | AI11: 0 | AK11: =SUM(AL11:AO11) -> 30684000 | AL11: 4544003.743 | AM11: 4358827.385 | AN11: 21781168.87 | AO11: 0 | AQ11: =E$1&$A11&"* """ -> E11* " | AS11: =SUM(AT11:AY11) -> 4544003.743 | AT11: 2948981.249 | AU11: 1277685.02 | AV11: 0 | AW11: 16513.50897 | AX11: 300823.9657 | AY11: 0 | BA11: =SUM(BB11:BG11) -> 4358827.385 | BB11: 2900563.781 | BC11: 1025263.865 | BD11: 0 | BE11: 15971.14867 | BF11: 417028.591 | BG11: 0 | BI11: =SUM(BJ11:BO11) -> 21781168.87 | BJ11: 21005804.76 | BK11: 706667.1611 | BL11: 0.009828212761 | BM11: 4736.566168 | BN11: 63960.37839 | BO11: 0
A12: 12 | D12: Total Intangible Plant | E12: =SUM(E9:E11) -> 33135000 | H12: =IF(ROUND(SUM(H10:H11),3)<>ROUND(SUM(I12:N12),3),#VALUE!,SUM(H10:H11)) -> 33135000 | I12: =SUM(I10:I11) -> 28799770.72 | J12: 3384134.369 | K12: 0.01158929827 | L12: 41868.28826 | M12: 909226.6117 | N12: 0 | P12: =A10&":"&A11 -> 10:11 | R12: =SUMPRODUCT($E10:$E11,R$10:R$11)/$E12 -> 0.06474909209 | S12: =SUMPRODUCT($E10:$E11,S$10:S$11)/$E12 -> 0.04662367843 | T12: 0.04042885008 | U12: 0 | V12: 0 | W12: 0.1551781222 | X12: 0 | Y12: 0 | Z12: 0 | AA12: 0 | AB12: 0.4291214323 | AC12: 0.1828526714 | AD12: 0.07774685322 | AE12: 0 | AF12: 0.003299300272 | AG12: 0 | AH12: 0 | AI12: 0 | AK12: =IF(ROUND(SUM(AK10:AK11),3)<>ROUND(SUM(AL12:AO12),3),#VALUE!,SUM(AK10:AK11)) -> 33135000 | AL12: =SUM(AL10:AL11) -> 5029946.698 | AM12: =SUM(AM10:AM11) -> 5141827.079 | AN12: =SUM(AN10:AN11) -> 22963226.22 | AO12: =SUM(AO10:AO11) -> 0 | AQ12: =$A10&":"&$A11 -> 10:11 | AS12: =IF(ROUND(SUM(AS10:AS11),3)<>ROUND(SUM(AT12:AY12),3),#VALUE!,SUM(AS10:AS11)) -> 5029946.698 | AT12: =SUM(AT10:AT11) -> 3256384.237 | AU12: 1410871.418 | AV12: 0 | AW12: 17734.64762 | AX12: 344956.3956 | AY12: 0 | BA12: =IF(ROUND(SUM(BA10:BA11),3)<>ROUND(SUM(BB12:BG12),3),#VALUE!,SUM(BA10:BA11)) -> 5141827.079 | BB12: =SUM(BB10:BB11) -> 3421607.711 | BC12: 1209437.548 | BD12: 0 | BE12: 18840.13232 | BF12: 491941.6881 | BG12: 0 | BI12: =IF(ROUND(SUM(BI10:BI11),3)<>ROUND(SUM(BJ12:BO12),3),#VALUE!,SUM(BI10:BI11)) -> 22963226.22 | BJ12: =SUM(BJ10:BJ11) -> 22121778.77 | BK12: 763825.403 | BL12: 0.01158929827 | BM12: 5293.508326 | BN12: 72328.52802 | BO12: 0
A13: 13 | AI13: 0
A14: 14 | D14: Underground Storage Plant | AI14: 0
A15: 15 | B15: 350 | C15: U | D15: Land & Land Rights | E15: =PROFORMA!AP255 -> 910000 | F15: Input - Settlement | H15: =SUM(I15:N15) -> 910000 | I15: =$E15*SUMPRODUCT($R15:$AH15,INDEX(AllocFactors,I$4,0)) -> 618348.3523 | J15: =$E15*SUMPRODUCT($R15:$AH15,INDEX(AllocFactors,J$4,0)) -> 267907.5789 | K15: =$E15*SUMPRODUCT($R15:$AH15,INDEX(AllocFactors,K$4,0)) -> 0 | L15: =$E15*SUMPRODUCT($R15:$AH15,INDEX(AllocFactors,L$4,0)) -> 4723.290284 | M15: =$E15*SUMPRODUCT($R15:$AH15,INDEX(AllocFactors,M$4,0)) -> 19020.77849 | N15: =$E15*SUMPRODUCT($R15:$AH15,INDEX(AllocFactors,N$4,0)) -> 0 | P15: =E$1&$A15&"* Sum["&$R$1&$A15&":"&$AH$1&$A15&"* "&Factors!D$1&Factors!$A$58&":"&Factors!S$1&Factors!$A$64&"]" -> E15* Sum[R15:AH15* D1037:S1043] | R15: 0.13 | S15: 0.87 | T15: 0 | U15: 0 | V15: 0 | W15: 0 | X15: 0 | Y15: 0 | Z15: 0 | AA15: 0 | AB15: 0 | AC15: 0 | AD15: 0 | AE15: 0 | AF15: 0 | AG15: 0 | AH15: 0 | AI15: 0 | AK15: =SUM(AL15:AO15) -> 910000 | AL15: =SUMIF($R$4:$AH$4,AL$5,$R15:$AH15)*$E15 -> 910000 | AM15: 0 | AN15: 0 | AO15: 0 | AQ15: =E$1&$A15&"*["&R$1&$A15&":"&$AH$1&$A15&" when "&R$1&$A$4&":"&$AH$1&$A$4&" = E,D,C,or R]" -> E15*[R15:AH15 when R4:AH4 = E,D,C,or R] | AS15: =SUM(AT15:AY15) -> 910000 | AT15: =$E15*SUMPRODUCT($R15:$V15,INDEX(AllocFactors_E,AT$4,0)) -> 618348.3523 | AU15: 267907.5789 | AV15: 0 | AW15: 4723.290284 | AX15: 19020.77849 | AY15: 0 | BA15: =SUM(BB15:BG15) -> 0 | BB15: =$E15*SUMPRODUCT($W15:$AA15,INDEX(AllocFactors_D,BB$4,0)) -> 0 | BC15: 0 | BD15: 0 | BE15: 0 | BF15: 0 | BG15: 0 | BI15: =SUM(BJ15:BO15) -> 0 | BJ15: =$E15*SUMPRODUCT($AB15:$AG15,INDEX(AllocFactors_C,BJ$4,0)) -> 0 | BK15: 0 | BL15: 0 | BM15: 0 | BN15: 0 | BO15: 0
A16: 16 | B16: 351 | C16: U | D16: Structures & Improvements | E16: =PROFORMA!AP256 -> 1876000 | F16: Input - Settlement | H16: 1876000 | I16: =$E16*SUMPRODUCT($R16:$AH16,INDEX(AllocFactors,I$4,0)) -> 1274748.911 | J16: 552301.778 | K16: 0 | L16: 9737.244585 | M16: 39212.06643 | N16: 0 | P16: =E$1&$A16&"* """ -> E16* " | R16: 0.13 | S16: 0.87 | T16: 0 | U16: 0 | V16: 0 | W16: 0 | X16: 0 | Y16: 0 | Z16: 0 | AA16: 0 | AB16: 0 | AC16: 0 | AD16: 0 | AE16: 0 | AF16: 0 | AG16: 0 | AH16: 0 | AI16: 0 | AK16: 1876000 | AL16: 1876000 | AM16: 0 | AN16: 0 | AO16: 0 | AQ16: =E$1&$A16&"* """ -> E16* " | AS16: 1876000 | AT16: 1274748.911 | AU16: 552301.778 | AV16: 0 | AW16: 9737.244585 | AX16: 39212.06643 | AY16: 0 | BA16: 0 | BB16: 0 | BC16: 0 | BD16: 0 | BE16: 0 | BF16: 0 | BG16: 0 | BI16: 0 | BJ16: 0 | BK16: 0 | BL16: 0 | BM16: 0 | BN16: 0 | BO16: 0
A17: 17 | B17: 352 | C17: U | D17: Wells | E17: =PROFORMA!AP257 -> 13416000 | F17: Input - Settlement | H17: 13416000 | I17: 9116221.423 | J17: 3949723.163 | K17: 0 | L17: 69634.7939 | M17: 280420.62 | N17: 0 | P17: E17* " | R17: 0.13 | S17: 0.87 | T17: 0 | U17: 0 | V17: 0 | W17: 0 | X17: 0 | Y17: 0 | Z17: 0 | AA17: 0 | AB17: 0 | AC17: 0 | AD17: 0 | AE17: 0 | AF17: 0 | AG17: 0 | AH17: 0 | AI17: 0 | AK17: 13416000 | AL17: 13416000 | AM17: 0 | AN17: 0 | AO17: 0 | AQ17: =E$1&$A17&"* """ -> E17* " | AS17: 13416000 | AT17: 9116221.423 | AU17: 3949723.163 | AV17: 0 | AW17: 69634.7939 | AX17: 280420.62 | AY17: 0 | BA17: 0 | BB17: 0 | BC17: 0 | BD17: 0 | BE17: 0 | BF17: 0 | BG17: 0 | BI17: 0 | BJ17: 0 | BK17: 0 | BL17: 0 | BM17: 0 | BN17: 0 | BO17: 0
A18: 18 | B18: 353 | C18: U | D18: Lines | E18: =PROFORMA!AP258 -> 722000 | F18: Input - Settlement | H18: 722000 | I18: 490601.6598 | J18: 212559.6395 | K18: 0 | L18: 3747.489654 | M18: 15091.21107 | N18: 0 | P18: E18* " | R18: 0.13 | S18: 0.87 | T18: 0 | U18: 0 | V18: 0 | W18: 0 | X18: 0 | Y18: 0 | Z18: 0 | AA18: 0 | AB18: 0 | AC18: 0 | AD18: 0 | AE18: 0 | AF18: 0 | AG18: 0 | AH18: 0 | AI18: 0 | AK18: 722000 | AL18: 722000 | AM18: 0 | AN18: 0 | AO18: 0 | AQ18: E18* " | AS18: 722000 | AT18: 490601.6598 | AU18: 212559.6395 | AV18: 0 | AW18: 3747.489654 | AX18: 15091.21107 | AY18: 0 | BA18: 0 | BB18: 0 | BC18: 0 | BD18: 0 | BE18: 0 | BF18: 0 | BG18: 0 | BI18: 0 | BJ18: 0 | BK18: 0 | BL18: 0 | BM18: 0 | BN18: 0 | BO18: 0
A19: 19 | B19: 354 | C19: U | D19: Compressor Station Equipment | E19: =PROFORMA!AP259 -> 8872000 | F19: Input - Settlement | H19: 8872000 | I19: 6028556.683 | J19: 2611951.692 | K19: 0 | L19: 46049.48505 | M19: 185442.1393 | N19: 0 | P19: E19* " | R19: 0.13 | S19: 0.87 | T19: 0 | U19: 0 | V19: 0 | W19: 0 | X19: 0 | Y19: 0 | Z19: 0 | AA19: 0 | AB19: 0 | AC19: 0 | AD19: 0 | AE19: 0 | AF19: 0 | AG19: 0 | AH19: 0 | AI19: 0 | AK19: 8872000 | AL19: 8872000 | AM19: 0 | AN19: 0 | AO19: 0 | AQ19: E19* " | AS19: 8872000 | AT19: 6028556.683 | AU19: 2611951.692 | AV19: 0 | AW19: 46049.48505 | AX19: 185442.1393 | AY19: 0 | BA19: 0 | BB19: 0 | BC19: 0 | BD19: 0 | BE19: 0 | BF19: 0 | BG19: 0 | BI19: 0 | BJ19: 0 | BK19: 0 | BL19: 0 | BM19: 0 | BN19: 0 | BO19: 0
A20: 20 | B20: 355 | C20: U | D20: Measuring & Regulating Equipment | E20: =PROFORMA!AP260 -> 1043000 | F20: Input - Settlement | H20: 1043000 | I20: 708722.3423 | J20: 307063.302 | K20: 0 | L20: 5413.617325 | M20: 21800.73842 | N20: 0 | P20: E20* " | R20: 0.13 | S20: 0.87 | T20: 0 | U20: 0 | V20: 0 | W20: 0 | X20: 0 | Y20: 0 | Z20: 0 | AA20: 0 | AB20: 0 | AC20: 0 | AD20: 0 | AE20: 0 | AF20: 0 | AG20: 0 | AH20: 0 | AI20: 0 | AK20: 1043000 | AL20: 1043000 | AM20: 0 | AN20: 0 | AO20: 0 | AQ20: E20* " | AS20: 1043000 | AT20: 708722.3423 | AU20: 307063.302 | AV20: 0 | AW20: 5413.617325 | AX20: 21800.73842 | AY20: 0 | BA20: 0 | BB20: 0 | BC20: 0 | BD20: 0 | BE20: 0 | BF20: 0 | BG20: 0 | BI20: 0 | BJ20: 0 | BK20: 0 | BL20: 0 | BM20: 0 | BN20: 0 | BO20: 0
A21: 21 | B21: 356 | C21: U | D21: Purification Equipment | E21: =PROFORMA!AP261 -> 279000 | F21: Input - Settlement | H21: 279000 | I21: 189581.5278 | J21: 82138.69727 | K21: 0 | L21: 1448.129658 | M21: 5831.645273 | N21: 0 | P21: E21* " | R21: 0.13 | S21: 0.87 | T21: 0 | U21: 0 | V21: 0 | W21: 0 | X21: 0 | Y21: 0 | Z21: 0 | AA21: 0 | AB21: 0 | AC21: 0 | AD21: 0 | AE21: 0 | AF21: 0 | AG21: 0 | AH21: 0 | AI21: 0 | AK21: 279000 | AL21: 279000 | AM21: 0 | AN21: 0 | AO21: 0 | AQ21: E21* " | AS21: 279000 | AT21: 189581.5278 | AU21: 82138.69727 | AV21: 0 | AW21: 1448.129658 | AX21: 5831.645273 | AY21: 0 | BA21: 0 | BB21: 0 | BC21: 0 | BD21: 0 | BE21: 0 | BF21: 0 | BG21: 0 | BI21: 0 | BJ21: 0 | BK21: 0 | BL21: 0 | BM21: 0 | BN21: 0 | BO21: 0
A22: 22 | B22: 357 | C22: U | D22: Other Equipment | E22: =PROFORMA!AP262 -> 1924000 | F22: Input - Settlement | H22: 1924000 | I22: 1307365.088 | J22: 566433.1668 | K22: 0 | L22: 9986.385171 | M22: 40215.36024 | N22: 0 | P22: E22* " | R22: 0.13 | S22: 0.87 | T22: 0 | U22: 0 | V22: 0 | W22: 0 | X22: 0 | Y22: 0 | Z22: 0 | AA22: 0 | AB22: 0 | AC22: 0 | AD22: 0 | AE22: 0 | AF22: 0 | AG22: 0 | AH22: 0 | AI22: 0 | AK22: 1924000 | AL22: 1924000 | AM22: 0 | AN22: 0 | AO22: 0 | AQ22: E22* " | AS22: 1924000 | AT22: 1307365.088 | AU22: 566433.1668 | AV22: 0 | AW22: 9986.385171 | AX22: 40215.36024 | AY22: 0 | BA22: 0 | BB22: 0 | BC22: 0 | BD22: 0 | BE22: 0 | BF22: 0 | BG22: 0 | BI22: 0 | BJ22: 0 | BK22: 0 | BL22: 0 | BM22: 0 | BN22: 0 | BO22: 0
A23: 23 | D23: Total Underground Storage Plant | E23: =SUM(E15:E22) -> 29042000 | G23: UG Storage Plant (S14) | H23: =IF(ROUND(SUM(H14:H22),3)<>ROUND(SUM(I23:N23),3),#VALUE!,SUM(H14:H22)) -> 29042000 | I23: =SUM(I14:I22) -> 19734145.99 | J23: 8550079.018 | K23: 0 | L23: 150740.4356 | M23: 607034.5592 | N23: 0 | P23: =$A14&":"&A22 -> 14:22 | R23: =SUMPRODUCT($E15:$E22,R$15:R$22)/$E23 -> 0.13 | S23: 0.87 | T23: 0 | U23: 0 | V23: 0 | W23: 0 | X23: 0 | Y23: 0 | Z23: 0 | AA23: 0 | AB23: 0 | AC23: 0 | AD23: 0 | AE23: 0 | AF23: 0 | AG23: 0 | AH23: 0 | AI23: 0 | AK23: =IF(ROUND(SUM(AK14:AK22),3)<>ROUND(SUM(AL23:AO23),3),#VALUE!,SUM(AK14:AK22)) -> 29042000 | AL23: =SUM(AL14:AL22) -> 29042000 | AM23: =SUM(AM14:AM22) -> 0 | AN23: =SUM(AN14:AN22) -> 0 | AO23: =SUM(AO14:AO22) -> 0 | AQ23: =$A14&":"&$A22 -> 14:22 | AS23: =IF(ROUND(SUM(AS14:AS22),3)<>ROUND(SUM(AT23:AY23),3),#VALUE!,SUM(AS14:AS22)) -> 29042000 | AT23: =SUM(AT14:AT22) -> 19734145.99 | AU23: 8550079.018 | AV23: 0 | AW23: 150740.4356 | AX23: 607034.5592 | AY23: 0 | BA23: =IF(ROUND(SUM(BA14:BA22),3)<>ROUND(SUM(BB23:BG23),3),#VALUE!,SUM(BA14:BA22)) -> 0 | BB23: =SUM(BB14:BB22) -> 0 | BC23: 0 | BD23: 0 | BE23: 0 | BF23: 0 | BG23: 0 | BI23: =IF(ROUND(SUM(BI14:BI22),3)<>ROUND(SUM(BJ23:BO23),3),#VALUE!,SUM(BI14:BI22)) -> 0 | BJ23: =SUM(BJ14:BJ22) -> 0 | BK23: 0 | BL23: 0 | BM23: 0 | BN23: 0 | BO23: 0
A24: 24 | AI24: 0
A25: 25 | D25: Distribution Plant | AI25: 0
A26: 26 | B26: 374 | C26: D | D26: Land & Land Rights | E26: =PROFORMA!AP266 -> 385000 | F26: ="as other Dist Plt ("&A$28&"-"&A$38&")" -> as other Dist Plt (28-38) | H26: =SUM(I26:N26) -> 385000 | I26: =$E26*SUMPRODUCT($R26:$AH26,INDEX(AllocFactors,I$4,0)) -> 305427.1968 | J26: 58828.86763 | K26: 0.0002766290991 | L26: 729.955046 | M26: 20013.98023 | N26: 0 | P26: =E$1&$A26&"* Sum["&$R$1&$A26&":"&$AH$1&$A26&"* "&Factors!D$1&Factors!$A$58&":"&Factors!S$1&Factors!$A$64&"]" -> E26* Sum[R26:AH26* D1037:S1043] | R26: =SUMPRODUCT($E$28:$E$38,R$28:R$38)/SUM($E$28:$E$38) -> 0.1119878704 | S26: 0 | T26: =SUMPRODUCT($E$28:$E$38,T$28:T$38)/SUM($E$28:$E$38) -> 0.0862752692 | U26: 0 | V26: 0 | W26: 0.3194613195 | X26: 0 | Y26: 0 | Z26: 0 | AA26: 0 | AB26: =SUMPRODUCT($E$28:$E$38,AB$28:AB$38)/SUM($E$28:$E$38) -> 0 | AC26: 0.3756369252 | AD26: 0.1009331436 | AE26: 0 | AF26: 0.005705471983 | AG26: 0 | AH26: 0 | AI26: 0 | AK26: =SUM(AL26:AO26) -> 385000 | AL26: =SUMIF($R$4:$AH$4,AL$5,$R26:$AH26)*$E26 -> 76331.30876 | AM26: 122992.608 | AN26: 185676.0832 | AO26: 0 | AQ26: =E$1&$A26&"*["&R$1&$A26&":"&$AH$1&$A26&" when "&R$1&$A$4&":"&$AH$1&$A$4&" = E,D,C,or R]" -> E26*[R26:AH26 when R4:AH4 = E,D,C,or R] | AS26: =SUM(AT26:AY26) -> 76331.30876 | AT26: =$E26*SUMPRODUCT($R26:$V26,INDEX(AllocFactors_E,AT$4,0)) -> 48286.47504 | AU26: 20920.75215 | AV26: 0 | AW26: 191.8149246 | AX26: 6932.266642 | AY26: 0 | BA26: =SUM(BB26:BG26) -> 122992.608 | BB26: =$E26*SUMPRODUCT($W26:$AA26,INDEX(AllocFactors_D,BB$4,0)) -> 81844.92584 | BC26: 28929.77066 | BD26: 0 | BE26: 450.6563471 | BF26: 11767.25515 | BG26: 0 | BI26: =SUM(BJ26:BO26) -> 185676.0832 | BJ26: =$E26*SUMPRODUCT($AB26:$AG26,INDEX(AllocFactors_C,BJ$4,0)) -> 175295.7959 | BK26: 8978.344817 | BL26: 0.0002766290991 | BM26: 87.48377431 | BN26: 1314.458429 | BO26: 0
A27: 27 | B27: 375 | C27: D | D27: Structures & Improvements | E27: =PROFORMA!AP267 -> 825000 | F27: ="as other Dist Plt ("&A$28&"-"&A$38&")" -> as other Dist Plt (28-38) | H27: 825000 | I27: 654486.8503 | J27: 126061.8592 | K27: 0.0005927766409 | L27: 1564.189384 | M27: 42887.10048 | N27: 0 | P27: =E$1&$A27&"* """ -> E27* " | R27: =SUMPRODUCT($E$28:$E$38,R$28:R$38)/SUM($E$28:$E$38) -> 0.1119878704 | S27: 0 | T27: =SUMPRODUCT($E$28:$E$38,T$28:T$38)/SUM($E$28:$E$38) -> 0.0862752692 | U27: 0 | V27: 0 | W27: 0.3194613195 | X27: 0 | Y27: 0 | Z27: 0 | AA27: 0 | AB27: 0 | AC27: 0.3756369252 | AD27: 0.1009331436 | AE27: 0 | AF27: 0.005705471983 | AG27: 0 | AH27: 0 | AI27: 0 | AK27: 825000 | AL27: 163567.0902 | AM27: 263555.5886 | AN27: 397877.3212 | AO27: 0 | AQ27: =E$1&$A27&"* """ -> E27* " | AS27: 163567.0902 | AT27: 103471.018 | AU27: 44830.18318 | AV27: 0 | AW27: 411.0319812 | AX27: 14854.85709 | AY27: 0 | BA27: 263555.5886 | BB27: 175381.9839 | BC27: 61992.36571 | BD27: 0 | BE27: 965.6921725 | BF27: 25215.54676 | BG27: 0 | BI27: 397877.3212 | BJ27: 375633.8484 | BK27: 19239.31032 | BL27: 0.0005927766409 | BM27: 187.4652307 | BN27: 2816.696633 | BO27: 0
A28: 28 | B28: 376-All | C28: D | D28: Mains | E28: =PROFORMA!AP268+PROFORMA!AP269 -> 249354000 | F28: Input - Peak & Avg Calc | G28: oth Dist Plt (S05); (S06); (S21) | H28: 249354000 | I28: =$E28*SUMPRODUCT($R28:$AH28,INDEX(AllocFactors,I$4,0)) -> 162911121.1 | J28: 62413589.77 | K28: 0 | L28: 799220.3227 | M28: 23230068.83 | N28: 0 | P28: E28* " | R28: ='Mains Allocator'!E15+'Mains Allocator'!E16 -> 0.2122419255 | T28: ='Mains Allocator'!E17+'Mains Allocator'!E18 -> 0.1707091523 | W28: ='Mains Allocator'!E9 -> 0.6170489222 | Z28: 0 | AB28: 0 | AC28: 0 | AD28: 0 | AE28: 0 | AF28: 0 | AG28: 0 | AH28: 0 | AI28: 0 | AK28: 249354000 | AL28: =SUMIF($R$4:$AH$4,AL$5,$R28:$AH28)*$E28 -> 95490383.06 | AM28: 153863616.9 | AN28: 0 | AO28: 0 | AQ28: =E$1&$A28&"* """ -> E28* " | AS28: 95490383.06 | AT28: =$E28*SUMPRODUCT($R28:$V28,INDEX(AllocFactors_E,AT$4,0)) -> 60523209.13 | AU28: =$E28*SUMPRODUCT($R28:$V28,INDEX(AllocFactors_E,AU$4,0)) -> 26222478.58 | AV28: 0 | AW28: 235449.7295 | AX28: 8509245.617 | AY28: 0 | BA28: 153863616.9 | BB28: 102387911.9 | BC28: 36191111.19 | BD28: 0 | BE28: 563770.5931 | BF28: 14720823.22 | BG28: 0 | BI28: 0 | BJ28: 0 | BK28: 0 | BL28: 0 | BM28: 0 | BN28: 0 | BO28: 0
A29: 29 | B29: 376 | C29: D | D29: Mains | F29: Input - Peak & Avg w/131&146 | G29: oth Dist Plt (S05); (S06); (S21) | H29: =SUM(I29:N29) -> 0 | I29: 0 | J29: 0 | K29: 0 | L29: 0 | M29: =$E29*SUMPRODUCT($R29:$AH29,INDEX(AllocFactors,M$4,0)) -> 0 | N29: 0 | P29: =E$1&$A29&"* """ -> E29* " | AI29: =IF(SUM(R29:AH29)<>0,(ROUND(SUM(R29:AH29),8)<>1)+0,0) -> 0 | AK29: =SUM(AL29:AO29) -> 0 | AL29: 0 | AM29: 0 | AN29: 0 | AO29: 0 | AQ29: =E$1&$A29&"* """ -> E29* " | AS29: =SUM(AT29:AY29) -> 0 | AT29: 0 | AU29: 0 | AV29: 0 | AW29: 0 | AX29: 0 | AY29: 0 | BA29: =SUM(BB29:BG29) -> 0 | BB29: =$E29*SUMPRODUCT($W29:$AA29,INDEX(AllocFactors_D,BB$4,0)) -> 0 | BC29: 0 | BD29: 0 | BE29: 0 | BF29: 0 | BG29: 0 | BI29: =SUM(BJ29:BO29) -> 0 | BJ29: 0 | BK29: 0 | BL29: 0 | BM29: 0 | BN29: 0 | BO29: 0
A30: 30 | B30: 376 | C30: D | D30: Mains | F30: Input - Peak & Avg w/131&146 | G30: oth Dist Plt (S05); (S06); (S21) | H30: 0 | I30: 0 | J30: 0 | K30: 0 | L30: 0 | M30: =$E30*SUMPRODUCT($R30:$AH30,INDEX(AllocFactors,M$4,0)) -> 0 | N30: 0 | P30: E30* " | AI30: =IF(SUM(R30:AH30)<>0,(ROUND(SUM(R30:AH30),8)<>1)+0,0) -> 0 | AK30: 0 | AL30: =SUMIF($R$4:$AH$4,AL$5,$R30:$AH30)*$E30 -> 0 | AM30: 0 | AN30: 0 | AO30: 0 | AQ30: E30* " | AS30: 0 | AT30: 0 | AU30: 0 | AV30: 0 | AW30: 0 | AX30: 0 | AY30: 0 | BA30: 0 | BB30: 0 | BC30: 0 | BD30: 0 | BE30: 0 | BF30: 0 | BG30: 0 | BI30: 0 | BJ30: 0 | BK30: 0 | BL30: 0 | BM30: 0 | BN30: 0 | BO30: 0
A31: 31 | B31: 378 | C31: D | D31: Meas & Reg Station Equip-General | E31: =PROFORMA!AP270 -> 4130000 | F31: Input - Peak & Avg Calc | G31: oth Dist Plt (S05); (S08) | H31: 4130000 | I31: 2616985.086 | J31: 998528.5202 | K31: 0 | L31: 16373.91342 | M31: 498112.4808 | N31: 0 | P31: E31* " | R31: =PkAvg_E -> 0.3829510778 | W31: =PkAvg_D -> 0.6170489222 | AI31: 0 | AK31: 4130000 | AL31: 1581587.951 | AM31: 2548412.049 | AN31: 0 | AO31: 0 | AQ31: E31* " | AS31: 1581587.951 | AT31: 921154.7547 | AU31: 399102.4464 | AV31: 0 | AW31: 7036.29481 | AX31: 254294.4555 | AY31: 0 | BA31: 2548412.049 | BB31: 1695830.331 | BC31: 599426.0738 | BD31: 0 | BE31: 9337.618605 | BF31: 243818.0253 | BG31: 0 | BI31: 0 | BJ31: 0 | BK31: 0 | BL31: 0 | BM31: 0 | BN31: 0 | BO31: 0
A32: 32 | B32: 379 | C32: D | D32: Meas & Reg Station Equip-City Gate | E32: =PROFORMA!AP271 -> 1954000 | F32: Input - Peak & Avg Calc | G32: oth Dist Plt (S05); (S09) | H32: 1954000 | I32: 1238157.108 | J32: 472427.295 | K32: 0 | L32: 7746.883006 | M32: 235668.7137 | N32: 0 | P32: E32* " | R32: =PkAvg_E -> 0.3829510778 | W32: =PkAvg_D -> 0.6170489222 | AI32: 0 | AK32: 1954000 | AL32: 748286.406 | AM32: 1205713.594 | AN32: 0 | AO32: 0 | AQ32: E32* " | AS32: 748286.406 | AT32: 435819.9493 | AU32: 188824.741 | AV32: 0 | AW32: 3329.036334 | AX32: 120312.6794 | AY32: 0 | BA32: 1205713.594 | BB32: 802337.159 | BC32: 283602.554 | BD32: 0 | BE32: 4417.846672 | BF32: 115356.0343 | BG32: 0 | BI32: 0 | BJ32: 0 | BK32: 0 | BL32: 0 | BM32: 0 | BN32: 0 | BO32: 0
A33: 33 | B33: 380 | C33: D | D33: Services | E33: =PROFORMA!AP272 -> 185334000 | F33: Input - 100% Svcs cost | G33: oth Dist Plt (S05); (S06); (S20) | H33: 185334000 | I33: 181185028.6 | J33: 3441357.879 | K33: 0.3545062979 | L33: 8222.947128 | M33: 699390.213 | N33: 0 | P33: E33* " | AC33: 1 | AI33: 0 | AK33: 185334000 | AL33: 0 | AM33: 0 | AN33: 185334000 | AO33: 0 | AQ33: E33* " | AS33: 0 | AT33: 0 | AU33: 0 | AV33: 0 | AW33: 0 | AX33: 0 | AY33: 0 | BA33: 0 | BB33: 0 | BC33: 0 | BD33: 0 | BE33: 0 | BF33: 0 | BG33: 0 | BI33: 185334000 | BJ33: =$E33*SUMPRODUCT($AB33:$AG33,INDEX(AllocFactors_C,BJ$4,0)) -> 181185028.6 | BK33: 3441357.879 | BL33: 0.3545062979 | BM33: 8222.947128 | BN33: 699390.213 | BO33: 0
A34: 34 | B34: 381 | C34: D | D34: Meters | E34: =PROFORMA!AP273 -> 49799000 | F34: Input - 100% Mtrs cost | G34: oth Dist Plt (S05); (S07) | H34: 49799000 | I34: 43460404.05 | J34: 5673579.322 | K34: 0 | L34: 63405.76829 | M34: 601610.8617 | N34: 0 | P34: E34* " | AD34: 1 | AI34: 0 | AK34: 49799000 | AL34: 0 | AM34: 0 | AN34: 49799000 | AO34: 0 | AQ34: E34* " | AS34: 0 | AT34: 0 | AU34: 0 | AV34: 0 | AW34: 0 | AX34: 0 | AY34: 0 | BA34: 0 | BB34: 0 | BC34: 0 | BD34: 0 | BE34: 0 | BF34: 0 | BG34: 0 | BI34: 49799000 | BJ34: 43460404.05 | BK34: 5673579.322 | BL34: 0 | BM34: 63405.76829 | BN34: 601610.8617 | BO34: 0
A35: 35 | B35: 382 | C35: D | D35: Meter Installations | E35: =PROFORMA!AP274 -> 0 | F35: Input - 100% Install cost | G35: oth Dist Plt (S05); (S07) | H35: 0 | I35: 0 | J35: 0 | K35: 0 | L35: 0 | M35: 0 | N35: 0 | P35: E35* " | AB35: 1 | AI35: 0 | AK35: 0 | AL35: 0 | AM35: 0 | AN35: 0 | AO35: 0 | AQ35: E35* " | AS35: 0 | AT35: 0 | AU35: 0 | AV35: 0 | AW35: 0 | AX35: 0 | AY35: 0 | BA35: 0 | BB35: 0 | BC35: 0 | BD35: 0 | BE35: 0 | BF35: 0 | BG35: 0 | BI35: 0 | BJ35: 0 | BK35: 0 | BL35: 0 | BM35: 0 | BN35: 0 | BO35: 0
A36: 36 | B36: 383 | C36: D | D36: House Regulators | E36: =PROFORMA!AP275 -> 0 | F36: Input - 100% Reg. cost | G36: oth Dist Plt (S05); (S07) | H36: 0 | I36: 0 | J36: 0 | K36: 0 | L36: 0 | M36: 0 | N36: 0 | P36: E36* " | AI36: 0 | AK36: 0 | AL36: 0 | AM36: 0 | AN36: 0 | AO36: 0 | AQ36: E36* " | AS36: 0 | AT36: 0 | AU36: 0 | AV36: 0 | AW36: 0 | AX36: 0 | AY36: 0 | BA36: 0 | BB36: 0 | BC36: 0 | BD36: 0 | BE36: 0 | BF36: 0 | BG36: 0 | BI36: 0 | BJ36: 0 | BK36: 0 | BL36: 0 | BM36: 0 | BN36: 0 | BO36: 0
A37: 37 | B37: 384 | C37: D | D37: House Regulator Installations | E37: =PROFORMA!AP276 -> 0 | F37: Input - 100% Install cost | G37: oth Dist Plt (S05); (S07) | H37: 0 | I37: 0 | J37: 0 | K37: 0 | L37: 0 | M37: 0 | N37: 0 | P37: E37* " | AB37: 1 | AI37: 0 | AK37: 0 | AL37: 0 | AM37: 0 | AN37: 0 | AO37: 0 | AQ37: E37* " | AS37: 0 | AT37: 0 | AU37: 0 | AV37: 0 | AW37: 0 | AX37: 0 | AY37: 0 | BA37: 0 | BB37: 0 | BC37: 0 | BD37: 0 | BE37: 0 | BF37: 0 | BG37: 0 | BI37: 0 | BJ37: 0 | BK37: 0 | BL37: 0 | BM37: 0 | BN37: 0 | BO37: 0
A38: 38 | B38: 385 | C38: D | D38: Industrial Meas & Reg Station Equip | E38: =PROFORMA!AP277 -> 2815000 | F38: Input - 100% Ind Meas cost | G38: oth Dist Plt (S05); (S19) | H38: 2815000 | I38: 0 | J38: 2391009.905 | K38: 0 | L38: 40483.67282 | M38: 383506.4222 | N38: 0 | P38: E38* " | AF38: 1 | AI38: 0 | AK38: 2815000 | AL38: 0 | AM38: 0 | AN38: 2815000 | AO38: 0 | AQ38: E38* " | AS38: 0 | AT38: 0 | AU38: 0 | AV38: 0 | AW38: 0 | AX38: 0 | AY38: 0 | BA38: 0 | BB38: 0 | BC38: 0 | BD38: 0 | BE38: 0 | BF38: 0 | BG38: 0 | BI38: 2815000 | BJ38: 0 | BK38: 2391009.905 | BL38: 0 | BM38: 40483.67282 | BN38: 383506.4222 | BO38: 0
A39: 39 | B39: 387 | C39: D | D39: Other Equipment | E39: =PROFORMA!AP278 -> 0 | F39: ="as other Dist Plt ("&A$28&"-"&A$38&")" -> as other Dist Plt (28-38) | H39: 0 | I39: 0 | J39: 0 | K39: 0 | L39: 0 | M39: 0 | N39: 0 | P39: E39* " | R39: =SUMPRODUCT($E$28:$E$38,R$28:R$38)/SUM($E$28:$E$38) -> 0.1119878704 | S39: =SUMPRODUCT($E$28:$E$38,S$28:S$38)/SUM($E$28:$E$38) -> 0 | T39: 0.0862752692 | U39: 0 | V39: 0 | W39: 0.3194613195 | X39: 0 | Y39: 0 | Z39: 0 | AA39: 0 | AB39: 0 | AC39: 0.3756369252 | AD39: 0.1009331436 | AE39: 0 | AF39: 0.005705471983 | AG39: 0 | AH39: 0 | AI39: 0 | AK39: 0 | AL39: 0 | AM39: 0 | AN39: 0 | AO39: 0 | AQ39: E39* " | AS39: 0 | AT39: 0 | AU39: 0 | AV39: 0 | AW39: 0 | AX39: 0 | AY39: 0 | BA39: 0 | BB39: 0 | BC39: 0 | BD39: 0 | BE39: 0 | BF39: 0 | BG39: 0 | BI39: 0 | BJ39: 0 | BK39: 0 | BL39: 0 | BM39: 0 | BN39: 0 | BO39: 0
A40: 40 | D40: Total Distribution Plant | E40: =SUM(E26:E39) -> 494596000 | G40: Distrib Plant (S15) | H40: =IF(ROUND(SUM(H25:H39),3)<>ROUND(SUM(I40:N40),3),#VALUE!,SUM(H25:H39)) -> 494596000 | I40: =SUM(I25:I39) -> 392371610 | J40: 75575383.42 | K40: 0.3553757036 | L40: 937747.6518 | M40: 25711258.61 | N40: 0 | P40: =$A25&":"&A39 -> 25:39 | R40: =SUMPRODUCT($E26:$E39,R$26:R$39)/$E40 -> 0.1119878704 | S40: =SUMPRODUCT($E26:$E39,S$26:S$39)/$E40 -> 0 | T40: =SUMPRODUCT($E26:$E39,T$26:T$39)/$E40 -> 0.0862752692 | U40: 0 | V40: 0 | W40: 0.3194613195 | X40: 0 | Y40: 0 | Z40: =SUMPRODUCT($E26:$E39,Z$26:Z$39)/$E40 -> 0 | AA40: 0 | AB40: 0 | AC40: 0.3756369252 | AD40: 0.1009331436 | AE40: 0 | AF40: 0.005705471983 | AG40: 0 | AH40: 0 | AI40: =IF(SUM(R40:AH40)<>0,(ROUND(SUM(R40:AH40),8)<>1)+0,0) -> 0 | AK40: =IF(ROUND(SUM(AK25:AK39),3)<>ROUND(SUM(AL40:AO40),3),#VALUE!,SUM(AK25:AK39)) -> 494596000 | AL40: =SUM(AL25:AL39) -> 98060155.81 | AM40: =SUM(AM25:AM39) -> 158004290.8 | AN40: =SUM(AN25:AN39) -> 238531553.4 | AO40: =SUM(AO25:AO39) -> 0 | AQ40: =$A25&":"&$A39 -> 25:39 | AS40: =IF(ROUND(SUM(AS25:AS39),3)<>ROUND(SUM(AT40:AY40),3),#VALUE!,SUM(AS25:AS39)) -> 98060155.81 | AT40: =SUM(AT25:AT39) -> 62031941.33 | AU40: 26876156.7 | AV40: 0 | AW40: 246417.9076 | AX40: 8905639.875 | AY40: 0 | BA40: =IF(ROUND(SUM(BA25:BA39),3)<>ROUND(SUM(BB40:BG40),3),#VALUE!,SUM(BA25:BA39)) -> 158004290.8 | BB40: =SUM(BB25:BB39) -> 105143306.3 | BC40: 37165061.95 | BD40: 0 | BE40: 578942.4069 | BF40: 15116980.08 | BG40: 0 | BI40: =IF(ROUND(SUM(BI25:BI39),3)<>ROUND(SUM(BJ40:BO40),3),#VALUE!,SUM(BI25:BI39)) -> 238531553.4 | BJ40: =SUM(BJ25:BJ39) -> 225196362.3 | BK40: 11534164.76 | BL40: 0.3553757036 | BM40: 112387.3372 | BN40: 1688638.652 | BO40: 0
A41: 41 | H41: =H40/$H40 -> 1 | I41: 0.7933173943 | J41: 0.1528022536 | K41: 7.185171405e-10 | L41: 0.001895987132 | M41: 0.05198436422 | N41: 0 | AI41: =IF(SUM(R41:AH41)<>0,(ROUND(SUM(R41:AH41),8)<>1)+0,0) -> 0 | AT41: =IF(I40,AT40/I40,0) -> 0.1580948768 | AU41: 0.3556205141 | AV41: 0 | AW41: 0.2627763526 | AX41: 0.3463712147 | AY41: 0 | BB41: =IF(I40,BB40/I40,0) -> 0.2679686901 | BC41: 0.4917614741 | BD41: 0 | BE41: 0.6173754803 | BF41: 0.5879517728 | BG41: 0 | BJ41: =IF(I40,BJ40/I40,0) -> 0.5739364332 | BK41: 0.1526180118 | BL41: 1 | BM41: 0.1198481671 | BN41: 0.06567701246 | BO41: 0
A42: 42 | D42: UG/D Plant | E42: =E23+E40 -> 523638000 | F42: ="("&A$23&"+"&A$40&")" -> (23+40) | G42: UG/D Plant (S03) | H42: =H23+H40 -> 523638000 | I42: =I23+I40 -> 412105756 | J42: 84125462.44 | K42: 0.3553757036 | L42: 1088488.087 | M42: 26318293.17 | N42: 0 | R42: =($E23*R23+$E40*R40)/$E42 -> 0.1129868588 | S42: =($E23*S23+$E40*S40)/$E42 -> 0.04825192213 | T42: =($E23*T23+$E40*T40)/$E42 -> 0.08149027199 | U42: =($E23*U23+$E40*U40)/$E42 -> 0 | V42: =($E23*V23+$E40*V40)/$E42 -> 0 | W42: 0.3017433624 | X42: 0 | Y42: =($E23*Y23+$E40*Y40)/$E42 -> 0 | Z42: 0 | AA42: 0 | AB42: 0 | AC42: 0.3548033578 | AD42: 0.09533519169 | AE42: 0 | AF42: 0.005389035213 | AG42: =($E23*AG23+$E40*AG40)/$E42 -> 0 | AH42: 0 | AI42: 0
A43: 43 | AI43: 0
A44: 44 | D44: General Plant | AI44: 0
A45: 45 | B45: 389 | C45: O | D45: Land & Land Rights | E45: =PROFORMA!AP282 -> 5230000 | F45: 4-Factor | H45: =SUM(I45:N45) -> 5230000 | I45: =$E45*SUMPRODUCT($R45:$AH45,INDEX(AllocFactors,I$4,0)) -> 4577417.526 | J45: 512980.4431 | K45: 0.001675190742 | L45: 6344.251091 | M45: 133257.7777 | N45: 0 | P45: Corporate Cost Allocator (4-Factor) | R45: =(R$114*0.25)+(R$251*0.25)+(BS$250*0.25) -> 0.06097571685 | S45: =(S$114*0.25)+(S$251*0.25)+(BT$250*0.25) -> 0.05034792024 | T45: 0.03676669478 | U45: 0 | V45: 0 | W45: 0.1420553834 | X45: 0 | Y45: 0 | Z45: 0 | AA45: 0 | AB45: =(AB$114*0.25)+(AB$251*0.25)+(CC$250*0.25)+0.25 -> 0.463399122 | AC45: 0.1674533035 | AD45: 0.07589476099 | AE45: 0 | AF45: 0.00310709825 | AG45: 0 | AH45: 0 | AI45: 0 | AK45: =SUM(AL45:AO45) -> 5230000 | AL45: =SUMIF($R$4:$AH$4,AL$5,$R45:$AH45)*$E45 -> 774512.4357 | AM45: 742949.6554 | AN45: 3712537.909 | AO45: 0 | AQ45: =E$1&$A45&"*["&R$1&$A45&":"&$AH$1&$A45&" when "&R$1&$A$4&":"&$AH$1&$A$4&" = E,D,C,or R]" -> E45*[R45:AH45 when R4:AH4 = E,D,C,or R] | AS45: =SUM(AT45:AY45) -> 774512.4357 | AT45: =$E45*SUMPRODUCT($R45:$V45,INDEX(AllocFactors_E,AT$4,0)) -> 502645.4156 | AU45: 217777.7556 | AV45: 0 | AW45: 2814.680351 | AX45: 51274.58416 | AY45: 0 | BA45: =SUM(BB45:BG45) -> 742949.6554 | BB45: =$E45*SUMPRODUCT($W45:$AA45,INDEX(AllocFactors_D,BB$4,0)) -> 494392.7967 | BC45: 174753.292 | BD45: 0 | BE45: 2722.23659 | BF45: 71081.33004 | BG45: 0 | BI45: =SUM(BJ45:BO45) -> 3712537.909 | BJ45: =$E45*SUMPRODUCT($AB45:$AG45,INDEX(AllocFactors_C,BJ$4,0)) -> 3580379.314 | BK45: 120449.3955 | BL45: 0.001675190742 | BM45: 807.33415 | BN45: 10901.86348 | BO45: 0
A46: 46 | B46: 390 | C46: O | D46: Structures & Improvements | E46: =PROFORMA!AP283 -> 43371000 | F46: 4-Factor | H46: 43371000 | I46: 37959306.99 | J46: 4254010.478 | K46: 0.0138919116 | L46: 52611.18816 | M46: 1105071.334 | N46: 0 | P46: Corporate Cost Allocator (4-Factor) | R46: =(R$114*0.25)+(R$251*0.25)+(BS$250*0.25) -> 0.06097571685 | S46: 0.05034792024 | T46: 0.03676669478 | U46: 0 | V46: 0 | W46: 0.1420553834 | X46: 0 | Y46: 0 | Z46: 0 | AA46: 0 | AB46: =(AB$114*0.25)+(AB$251*0.25)+(CC$250*0.25)+0.25 -> 0.463399122 | AC46: 0.1674533035 | AD46: 0.07589476099 | AE46: 0 | AF46: 0.00310709825 | AG46: 0 | AH46: 0 | AI46: 0 | AK46: 43371000 | AL46: 6422825.784 | AM46: 6161084.035 | AN46: 30787090.18 | AO46: 0 | AQ46: =E$1&$A46&"* """ -> E46* " | AS46: 6422825.784 | AT46: 4168304.841 | AU46: 1805973.047 | AV46: 0 | AW46: 23341.39608 | AX46: 425206.499 | AY46: 0 | BA46: 6161084.035 | BB46: 4099868.066 | BC46: 1449182.606 | BD46: 0 | BE46: 22574.78454 | BF46: 589458.5784 | BG46: 0 | BI46: 30787090.18 | BJ46: 29691134.08 | BK46: 998854.8248 | BL46: 0.0138919116 | BM46: 6695.007537 | BN46: 90406.25639 | BO46: 0
A47: 47 | B47: 391 | C47: O | D47: Office Furniture & Equipment | E47: =PROFORMA!AP284 -> 15172000 | F47: 4-Factor | H47: 15172000 | I47: 13278886.94 | J47: 1488133.706 | K47: 0.004859654674 | L47: 18404.39341 | M47: 386574.9528 | N47: 0 | P47: Corporate Cost Allocator (4-Factor) | R47: 0.06097571685 | S47: 0.05034792024 | T47: 0.03676669478 | U47: 0 | V47: 0 | W47: 0.1420553834 | X47: 0 | Y47: 0 | Z47: 0 | AA47: 0 | AB47: 0.463399122 | AC47: 0.1674533035 | AD47: 0.07589476099 | AE47: 0 | AF47: 0.00310709825 | AG47: 0 | AH47: 0 | AI47: 0 | AK47: 15172000 | AL47: 2246826.515 | AM47: 2155264.277 | AN47: 10769909.21 | AO47: 0 | AQ47: =E$1&$A47&"* """ -> E47* " | AS47: 2246826.515 | AT47: 1458152.246 | AU47: 631763.6917 | AV47: 0 | AW47: 8165.263918 | AX47: 148745.3137 | AY47: 0 | BA47: 2155264.277 | BB47: 1434211.761 | BC47: 506951.615 | BD47: 0 | BE47: 7897.088631 | BF47: 206203.8125 | BG47: 0 | BI47: 10769909.21 | BJ47: 10386522.94 | BK47: 349418.3994 | BL47: 0.004859654674 | BM47: 2342.040865 | BN47: 31625.82652 | BO47: 0
A48: 48 | B48: 392 | C48: O | D48: Transportation Equipment | E48: =PROFORMA!AP285 -> 14654000 | F48: 4-Factor | H48: 14654000 | I48: 12825521.31 | J48: 1437326.083 | K48: 0.004693737121 | L48: 17776.03355 | M48: 373376.5725 | N48: 0 | P48: Corporate Cost Allocator (4-Factor) | R48: 0.06097571685 | S48: 0.05034792024 | T48: 0.03676669478 | U48: 0 | V48: 0 | W48: 0.1420553834 | X48: 0 | Y48: 0 | Z48: 0 | AA48: 0 | AB48: 0.463399122 | AC48: 0.1674533035 | AD48: 0.07589476099 | AE48: 0 | AF48: 0.00310709825 | AG48: 0 | AH48: 0 | AI48: 0 | AK48: 14654000 | AL48: 2170115.723 | AM48: 2081679.589 | AN48: 10402204.69 | AO48: 0 | AQ48: E48* " | AS48: 2170115.723 | AT48: 1408368.245 | AU48: 610194.1167 | AV48: 0 | AW48: 7886.486782 | AX48: 143666.875 | AY48: 0 | BA48: 2081679.589 | BB48: 1385245.132 | BC48: 489643.354 | BD48: 0 | BE48: 7627.467493 | BF48: 199163.6349 | BG48: 0 | BI48: 10402204.69 | BJ48: 10031907.93 | BK48: 337488.6123 | BL48: 0.004693737121 | BM48: 2262.07928 | BN48: 30546.0626 | BO48: 0
A49: 49 | B49: 393 | C49: O | D49: Stores Equipment | E49: =PROFORMA!AP286 -> 1004000 | F49: 4-Factor | H49: 1004000 | I49: 878724.1294 | J49: 98476.55161 | K49: 0.0003215853739 | L49: 1217.902121 | M49: 25581.41659 | N49: 0 | P49: Corporate Cost Allocator (4-Factor) | R49: 0.06097571685 | S49: 0.05034792024 | T49: 0.03676669478 | U49: 0 | V49: 0 | W49: 0.1420553834 | X49: 0 | Y49: 0 | Z49: 0 | AA49: 0 | AB49: 0.463399122 | AC49: 0.1674533035 | AD49: 0.07589476099 | AE49: 0 | AF49: 0.00310709825 | AG49: 0 | AH49: 0 | AI49: 0 | AK49: 1004000 | AL49: 148682.6932 | AM49: 142623.605 | AN49: 712693.7018 | AO49: 0 | AQ49: E49* " | AS49: 148682.6932 | AT49: 96492.5425 | AU49: 41806.66665 | AV49: 0 | AW49: 540.3325187 | AX49: 9843.151529 | AY49: 0 | BA49: 142623.605 | BB49: 94908.29214 | BC49: 33547.28589 | BD49: 0 | BE49: 522.5861446 | BF49: 13645.44079 | BG49: 0 | BI49: 712693.7018 | BJ49: 687323.2947 | BK49: 23122.59907 | BL49: 0.0003215853739 | BM49: 154.9834582 | BN49: 2092.82427 | BO49: 0
A50: 50 | B50: 394 | C50: O | D50: Tools, Shop & Garage Equipment | E50: =PROFORMA!AP287 -> 7487000 | F50: 4-Factor | H50: 7487000 | I50: 6552796.371 | J50: 734356.5158 | K50: 0.002398117225 | L50: 9082.104765 | M50: 190765.006 | N50: 0 | P50: Corporate Cost Allocator (4-Factor) | R50: 0.06097571685 | S50: 0.05034792024 | T50: 0.03676669478 | U50: 0 | V50: 0 | W50: 0.1420553834 | X50: 0 | Y50: 0 | Z50: 0 | AA50: 0 | AB50: 0.463399122 | AC50: 0.1674533035 | AD50: 0.07589476099 | AE50: 0 | AF50: 0.00310709825 | AG50: 0 | AH50: 0 | AI50: 0 | AK50: 7487000 | AL50: 1108752.315 | AM50: 1063568.656 | AN50: 5314679.03 | AO50: 0 | AQ50: E50* " | AS50: 1108752.315 | AT50: 719561.42 | AU50: 311759.4753 | AV50: 0 | AW50: 4029.352159 | AX50: 73402.06723 | AY50: 0 | BA50: 1063568.656 | BB50: 707747.3937 | BC50: 250167.858 | BD50: 0 | BE50: 3897.014407 | BF50: 101756.3897 | BG50: 0 | BI50: 5314679.03 | BJ50: 5125487.557 | BK50: 172429.1825 | BL50: 0.002398117225 | BM50: 1155.738199 | BN50: 15606.54911 | BO50: 0
A51: 51 | B51: 395 | C51: O | D51: Laboratory Equipment | E51: =PROFORMA!AP288 -> 417000 | F51: 4-Factor | H51: 417000 | I51: 364968.0896 | J51: 40901.11755 | K51: 0.0001335668336 | L51: 505.8418174 | M51: 10624.95092 | N51: 0 | P51: Corporate Cost Allocator (4-Factor) | R51: 0.06097571685 | S51: 0.05034792024 | T51: 0.03676669478 | U51: 0 | V51: 0 | W51: 0.1420553834 | X51: 0 | Y51: 0 | Z51: 0 | AA51: 0 | AB51: 0.463399122 | AC51: 0.1674533035 | AD51: 0.07589476099 | AE51: 0 | AF51: 0.00310709825 | AG51: 0 | AH51: 0 | AI51: 0 | AK51: 417000 | AL51: 61753.66839 | AM51: 59237.09489 | AN51: 296009.2367 | AO51: 0 | AQ51: E51* " | AS51: 61753.66839 | AT51: 40077.08189 | AU51: 17363.9243 | AV51: 0 | AW51: 224.4209764 | AX51: 4088.241223 | AY51: 0 | BA51: 59237.09489 | BB51: 39419.0815 | BC51: 13933.48428 | BD51: 0 | BE51: 217.0502214 | BF51: 5667.478896 | BG51: 0 | BI51: 296009.2367 | BJ51: 285471.9262 | BK51: 9603.708975 | BL51: 0.0001335668336 | BM51: 64.37061961 | BN51: 869.2307974 | BO51: 0
A52: 52 | B52: 396 | C52: O | D52: Power Operated Equipment | E52: =PROFORMA!AP289 -> 3722000 | F52: 4-Factor | H52: 3722000 | I52: 3257580.886 | J52: 365069.4473 | K52: 0.001192172073 | L52: 4514.971809 | M52: 94834.69379 | N52: 0 | P52: Corporate Cost Allocator (4-Factor) | R52: 0.06097571685 | S52: 0.05034792024 | T52: 0.03676669478 | U52: 0 | V52: 0 | W52: 0.1420553834 | X52: 0 | Y52: 0 | Z52: 0 | AA52: 0 | AB52: 0.463399122 | AC52: 0.1674533035 | AD52: 0.07589476099 | AE52: 0 | AF52: 0.00310709825 | AG52: 0 | AH52: 0 | AI52: 0 | AK52: 3722000 | AL52: 551192.2152 | AM52: 528730.1371 | AN52: 2642077.648 | AO52: 0 | AQ52: E52* " | AS52: 551192.2152 | AT52: 357714.3856 | AU52: 154984.4754 | AV52: 0 | AW52: 2003.105214 | AX52: 36490.249 | AY52: 0 | BA52: 528730.1371 | BB52: 351841.2982 | BC52: 124365.5359 | BD52: 0 | BE52: 1937.316365 | BF52: 50585.98669 | BG52: 0 | BI52: 2642077.648 | BJ52: 2548025.202 | BK52: 85719.43598 | BL52: 0.001192172073 | BM52: 574.5502307 | BN52: 7758.458101 | BO52: 0
A53: 53 | B53: 397 | C53: O | D53: Communication Equipment | E53: =PROFORMA!AP290 -> 14638000 | F53: 4-Factor | H53: 14638000 | I53: 12811517.73 | J53: 1435756.736 | K53: 0.004688612254 | L53: 17756.62476 | M53: 372968.9005 | N53: 0 | P53: Corporate Cost Allocator (4-Factor) | R53: 0.06097571685 | S53: 0.05034792024 | T53: 0.03676669478 | U53: 0 | V53: 0 | W53: 0.1420553834 | X53: 0 | Y53: 0 | Z53: 0 | AA53: 0 | AB53: 0.463399122 | AC53: 0.1674533035 | AD53: 0.07589476099 | AE53: 0 | AF53: 0.00310709825 | AG53: 0 | AH53: 0 | AI53: 0 | AK53: 14638000 | AL53: 2167746.278 | AM53: 2079406.703 | AN53: 10390847.02 | AO53: 0 | AQ53: E53* " | AS53: 2167746.278 | AT53: 1406830.515 | AU53: 609527.875 | AV53: 0 | AW53: 7877.875905 | AX53: 143510.012 | AY53: 0 | BA53: 2079406.703 | BB53: 1383732.65 | BC53: 489108.7359 | BD53: 0 | BE53: 7619.139427 | BF53: 198946.1776 | BG53: 0 | BI53: 10390847.02 | BJ53: 10020954.57 | BK53: 337120.1246 | BL53: 0.004688612254 | BM53: 2259.609424 | BN53: 30512.71082 | BO53: 0
A54: 54 | B54: 398 | C54: O | D54: Miscellaneous Equipment | E54: =PROFORMA!AP291 -> 85000 | F54: 4-Factor | H54: 85000 | I54: 74393.97509 | J54: 8337.158254 | K54: 2.722585337e-05 | L54: 103.1092434 | M54: 2165.757381 | N54: 0 | P54: Corporate Cost Allocator (4-Factor) | R54: 0.06097571685 | S54: 0.05034792024 | T54: 0.03676669478 | U54: 0 | V54: 0 | W54: 0.1420553834 | X54: 0 | Y54: 0 | Z54: 0 | AA54: 0 | AB54: 0.463399122 | AC54: 0.1674533035 | AD54: 0.07589476099 | AE54: 0 | AF54: 0.00310709825 | AG54: 0 | AH54: 0 | AI54: 0 | AK54: 85000 | AL54: 12587.67821 | AM54: 12074.70759 | AN54: 60337.6142 | AO54: 0 | AQ54: E54* " | AS54: 12587.67821 | AT54: 8169.189355 | AU54: 3539.409029 | AV54: 0 | AW54: 45.74528296 | AX54: 833.3345418 | AY54: 0 | BA54: 12074.70759 | BB54: 8035.064574 | BC54: 2840.158666 | BD54: 0 | BE54: 44.24285089 | BF54: 1155.241502 | BG54: 0 | BI54: 60337.6142 | BJ54: 58189.72117 | BK54: 1957.590558 | BL54: 2.722585337e-05 | BM54: 13.12110951 | BN54: 177.1813376 | BO54: 0
A55: 55 | D55: Total General Plant | E55: =SUM(E45:E54) -> 105780000 | G55: Genl Plant | H55: =IF(ROUND(SUM(H44:H54),3)<>ROUND(SUM(I55:N55),3),#VALUE!,SUM(H44:H54)) -> 105780000 | I55: =SUM(I44:I54) -> 92581113.95 | J55: 10375348.24 | K55: 0.03388177376 | L55: 128316.4207 | M55: 2695221.362 | N55: 0 | P55: Corporate Cost Allocator (4-Factor) | R55: =SUMPRODUCT($E45:$E54,R$45:R$54)/$E55 -> 0.06097571685 | S55: =SUMPRODUCT($E45:$E54,S$45:S$54)/$E55 -> 0.05034792024 | T55: =SUMPRODUCT($E45:$E54,T$45:T$54)/$E55 -> 0.03676669478 | U55: =SUMPRODUCT($E45:$E54,U$45:U$54)/$E55 -> 0 | V55: =SUMPRODUCT($E45:$E54,V$45:V$54)/$E55 -> 0 | W55: 0.1420553834 | X55: 0 | Y55: =SUMPRODUCT($E45:$E54,Y$45:Y$54)/$E55 -> 0 | Z55: =SUMPRODUCT($E45:$E54,Z$45:Z$54)/$E55 -> 0 | AA55: 0 | AB55: =SUMPRODUCT($E45:$E54,AB$45:AB$54)/$E55 -> 0.463399122 | AC55: 0.1674533035 | AD55: 0.07589476099 | AE55: =SUMPRODUCT($E45:$E54,AE$45:AE$54)/$E55 -> 0 | AF55: 0.00310709825 | AG55: =SUMPRODUCT($E45:$E54,AG$45:AG$54)/$E55 -> 0 | AH55: =SUMPRODUCT($E45:$E54,AH$45:AH$54)/$E55 -> 0 | AI55: 0 | AK55: =SUM(AK44:AK54) -> 105780000 | AL55: =SUM(AL44:AL54) -> 15664995.31 | AM55: =SUM(AM44:AM54) -> 15026618.46 | AN55: =SUM(AN44:AN54) -> 75088386.24 | AO55: =SUM(AO44:AO54) -> 0 | AQ55: =$A44&":"&$A54 -> 44:54 | AS55: =IF(ROUND(SUM(AS44:AS54),3)<>ROUND(SUM(AT55:AY55),3),#VALUE!,SUM(AS44:AS54)) -> 15664995.31 | AT55: =SUM(AT44:AT54) -> 10166315.88 | AU55: 4404690.437 | AV55: 0 | AW55: 56928.65919 | AX55: 1037060.327 | AY55: 0 | BA55: =IF(ROUND(SUM(BA44:BA54),3)<>ROUND(SUM(BB55:BG55),3),#VALUE!,SUM(BA44:BA54)) -> 15026618.46 | BB55: =SUM(BB44:BB54) -> 9999401.536 | BC55: 3534493.926 | BD55: 0 | BE55: 55058.92667 | BF55: 1437664.071 | BG55: 0 | BI55: =IF(ROUND(SUM(BI44:BI54),3)<>ROUND(SUM(BJ55:BO55),3),#VALUE!,SUM(BI44:BI54)) -> 75088386.24 | BJ55: =SUM(BJ44:BJ54) -> 72415396.53 | BK55: 2436163.874 | BL55: 0.03388177376 | BM55: 16328.83487 | BN55: 220496.9634 | BO55: 0
A56: 56 | AI56: 0
A57: 57 | D57: Total Plant In Service | E57: =E12+E23+E40+E55 -> 662553000 | F57: ="("&A$12&"+"&A$23&"+"&A$40&"+"&A$55&")" -> (12+23+40+55) | G57: Plant in Service (S17) | H57: =H12+H23+H40+H55 -> 662553000 | I57: =I12+I23+I40+I55 -> 533486640.6 | J57: 97884945.04 | K57: 0.4008467757 | L57: 1258672.796 | M57: 29922741.14 | N57: 0 | P57: ="Sum("&$A12&","&$A23&","&$A40&","&$A55&")" -> Sum(12,23,40,55) | R57: =($E12*R12+$E23*R23+$E40*R40+$E55*R55)/$E57 -> 0.1022705886 | S57: =($E12*S12+$E23*S23+$E40*S40+$E55*S55)/$E57 -> 0.04850512878 | T57: 0.07229639586 | U57: =($E12*U12+$E23*U23+$E40*U40+$E55*U55)/$E57 -> 0 | V57: =($E12*V12+$E23*V23+$E40*V40+$E55*V55)/$E57 -> 0 | W57: 0.2689184659 | X57: 0 | Y57: =($E12*Y12+$E23*Y23+$E40*Y40+$E55*Y55)/$E57 -> 0 | Z57: 0 | AA57: 0 | AB57: 0.09544488936 | AC57: 0.3162925145 | AD57: 0.09135181473 | AE57: 0 | AF57: 0.004920202291 | AG57: =($E12*AG12+$E23*AG23+$E40*AG40+$E55*AG55)/$E57 -> 0 | AH57: 0 | AI57: 0 | AK57: =AK12+AK23+AK40+AK55 -> 662553000 | AL57: =AL12+AL23+AL40+AL55 -> 147797097.8 | AM57: =AM12+AM23+AM40+AM55 -> 178172736.3 | AN57: =AN12+AN23+AN40+AN55 -> 336583165.9 | AO57: =AO12+AO23+AO40+AO55 -> 0 | AQ57: ="Sum("&$A12&","&$A23&","&$A40&","&$A55&")" -> Sum(12,23,40,55) | AS57: =AS12+AS23+AS40+AS55 -> 147797097.8 | AT57: =AT12+AT23+AT40+AT55 -> 95188787.43 | AU57: 41241797.58 | AV57: 0 | AW57: 471821.65 | AX57: 10894691.16 | AY57: 0 | BA57: =BA12+BA23+BA40+BA55 -> 178172736.3 | BB57: =BB12+BB23+BB40+BB55 -> 118564315.6 | BC57: 41908993.43 | BD57: 0 | BE57: 652841.4659 | BF57: 17046585.84 | BG57: 0 | BI57: =BI12+BI23+BI40+BI55 -> 336583165.9 | BJ57: =BJ12+BJ23+BJ40+BJ55 -> 319733537.6 | BK57: 14734154.04 | BL57: 0.4008467757 | BM57: 134009.6804 | BN57: 1981464.143 | BO57: 0
A58: 58 | E58: =(E57/1000)-PROFORMA!AP294 -> 0 | AI58: 0
A59: 59 | AI59: 0
A60: 60 | D60: Accumulated Reserve For Depreciation | AI60: 0
A61: 61 | D61: Underground Storage Plant Accumulated Depreciation | AI61: 0
A62: 62 | B62: 350 | C62: U | D62: Land & Land Rights Accum. Depr. | E62: =PROFORMA!AP308 -> -19000 | F62: ="as 350 Plant ("&A$15&")" -> as 350 Plant (15) | H62: =SUM(I62:N62) -> -19000 | I62: =$E62*SUMPRODUCT($R62:$AH62,INDEX(AllocFactors,I$4,0)) -> -12910.56999 | J62: -5593.674724 | K62: 0 | L62: -98.61814878 | M62: -397.1371333 | N62: 0 | P62: =E$1&$A62&"* Sum["&$R$1&$A62&":"&$AH$1&$A62&"* "&Factors!D$1&Factors!$A$58&":"&Factors!S$1&Factors!$A$64&"]" -> E62* Sum[R62:AH62* D1037:S1043] | R62: =R$15 -> 0.13 | S62: =S$15 -> 0.87 | T62: 0 | U62: 0 | V62: 0 | W62: 0 | X62: 0 | Y62: 0 | Z62: 0 | AA62: 0 | AB62: 0 | AC62: 0 | AD62: 0 | AE62: 0 | AF62: 0 | AG62: 0 | AH62: 0 | AI62: 0 | AK62: =SUM(AL62:AO62) -> -19000 | AL62: =SUMIF($R$4:$AH$4,AL$5,$R62:$AH62)*$E62 -> -19000 | AM62: 0 | AN62: 0 | AO62: 0 | AQ62: =E$1&$A62&"*["&R$1&$A62&":"&$AH$1&$A62&" when "&R$1&$A$4&":"&$AH$1&$A$4&" = E,D,C,or R]" -> E62*[R62:AH62 when R4:AH4 = E,D,C,or R] | AS62: =SUM(AT62:AY62) -> -19000 | AT62: =$E62*SUMPRODUCT($R62:$V62,INDEX(AllocFactors_E,AT$4,0)) -> -12910.56999 | AU62: -5593.674724 | AV62: 0 | AW62: -98.61814878 | AX62: -397.1371333 | AY62: 0 | BA62: =SUM(BB62:BG62) -> 0 | BB62: =$E62*SUMPRODUCT($W62:$AA62,INDEX(AllocFactors_D,BB$4,0)) -> 0 | BC62: 0 | BD62: 0 | BE62: 0 | BF62: 0 | BG62: 0 | BI62: =SUM(BJ62:BO62) -> 0 | BJ62: =$E62*SUMPRODUCT($AB62:$AG62,INDEX(AllocFactors_C,BJ$4,0)) -> 0 | BK62: 0 | BL62: 0 | BM62: 0 | BN62: 0 | BO62: 0
A63: 63 | B63: 351 | C63: U | D63: Structures & Improvements Accum. Depr. | E63: =PROFORMA!AP309 -> -613000 | F63: ="as 351 Plant ("&A$16&")" -> as 351 Plant (16) | H63: -613000 | I63: -416535.7582 | J63: -180469.6108 | K63: 0 | L63: -3181.732905 | M63: -12812.89804 | N63: 0 | P63: =E$1&$A63&"* """ -> E63* " | R63: =R$16 -> 0.13 | S63: =S$16 -> 0.87 | T63: 0 | U63: 0 | V63: 0 | W63: 0 | X63: 0 | Y63: 0 | Z63: 0 | AA63: 0 | AB63: 0 | AC63: 0 | AD63: 0 | AE63: 0 | AF63: 0 | AG63: 0 | AH63: 0 | AI63: 0 | AK63: -613000 | AL63: -613000 | AM63: 0 | AN63: 0 | AO63: 0 | AQ63: =E$1&$A63&"* """ -> E63* " | AS63: -613000 | AT63: -416535.7582 | AU63: -180469.6108 | AV63: 0 | AW63: -3181.732905 | AX63: -12812.89804 | AY63: 0 | BA63: 0 | BB63: 0 | BC63: 0 | BD63: 0 | BE63: 0 | BF63: 0 | BG63: 0 | BI63: 0 | BJ63: 0 | BK63: 0 | BL63: 0 | BM63: 0 | BN63: 0 | BO63: 0
A64: 64 | B64: 352 | C64: U | D64: Wells Accum. Depr. | E64: =PROFORMA!AP310 -> -6736000 | F64: ="as 352 Plant ("&A$17&")" -> as 352 Plant (17) | H64: -6736000 | I64: -4577136.815 | J64: -1983104.892 | K64: 0 | L64: -34962.72896 | M64: -140795.5647 | N64: 0 | P64: E64* " | R64: =R$17 -> 0.13 | S64: =S$17 -> 0.87 | T64: 0 | U64: 0 | V64: 0 | W64: 0 | X64: 0 | Y64: 0 | Z64: 0 | AA64: 0 | AB64: 0 | AC64: 0 | AD64: 0 | AE64: 0 | AF64: 0 | AG64: 0 | AH64: 0 | AI64: 0 | AK64: -6736000 | AL64: -6736000 | AM64: 0 | AN64: 0 | AO64: 0 | AQ64: =E$1&$A64&"* """ -> E64* " | AS64: -6736000 | AT64: -4577136.815 | AU64: -1983104.892 | AV64: 0 | AW64: -34962.72896 | AX64: -140795.5647 | AY64: 0 | BA64: 0 | BB64: 0 | BC64: 0 | BD64: 0 | BE64: 0 | BF64: 0 | BG64: 0 | BI64: 0 | BJ64: 0 | BK64: 0 | BL64: 0 | BM64: 0 | BN64: 0 | BO64: 0
A65: 65 | B65: 353 | C65: U | D65: Lines Accum. Depr. | E65: =PROFORMA!AP311 -> -409000 | F65: ="as 353 Plant ("&A$18&")" -> as 353 Plant (18) | H65: -409000 | I65: -277917.0067 | J65: -120411.2085 | K65: 0 | L65: -2122.885413 | M65: -8548.899343 | N65: 0 | P65: E65* " | R65: =R$18 -> 0.13 | S65: =S$18 -> 0.87 | T65: 0 | U65: 0 | V65: 0 | W65: 0 | X65: 0 | Y65: 0 | Z65: 0 | AA65: 0 | AB65: 0 | AC65: 0 | AD65: 0 | AE65: 0 | AF65: 0 | AG65: 0 | AH65: 0 | AI65: 0 | AK65: -409000 | AL65: -409000 | AM65: 0 | AN65: 0 | AO65: 0 | AQ65: E65* " | AS65: -409000 | AT65: -277917.0067 | AU65: -120411.2085 | AV65: 0 | AW65: -2122.885413 | AX65: -8548.899343 | AY65: 0 | BA65: 0 | BB65: 0 | BC65: 0 | BD65: 0 | BE65: 0 | BF65: 0 | BG65: 0 | BI65: 0 | BJ65: 0 | BK65: 0 | BL65: 0 | BM65: 0 | BN65: 0 | BO65: 0
A66: =RowHdr -> 66 | B66: 354 | C66: U | D66: Compressor Station Equip. Accum. Depr. | E66: =PROFORMA!AP312 -> -2335000 | F66: ="as 354 Plant ("&A$19&")" -> as 354 Plant (19) | H66: -2335000 | I66: -1586641.102 | J66: -687433.1832 | K66: 0 | L66: -12119.65144 | M66: -48806.06349 | N66: 0 | P66: E66* " | R66: =R$19 -> 0.13 | S66: =S$19 -> 0.87 | T66: 0 | U66: 0 | V66: 0 | W66: 0 | X66: 0 | Y66: 0 | Z66: 0 | AA66: 0 | AB66: 0 | AC66: 0 | AD66: 0 | AE66: 0 | AF66: 0 | AG66: 0 | AH66: 0 | AI66: 0 | AK66: -2335000 | AL66: -2335000 | AM66: 0 | AN66: 0 | AO66: 0 | AQ66: E66* " | AS66: -2335000 | AT66: -1586641.102 | AU66: -687433.1832 | AV66: 0 | AW66: -12119.65144 | AX66: -48806.06349 | AY66: 0 | BA66: 0 | BB66: 0 | BC66: 0 | BD66: 0 | BE66: 0 | BF66: 0 | BG66: 0 | BI66: 0 | BJ66: 0 | BK66: 0 | BL66: 0 | BM66: 0 | BN66: 0 | BO66: 0
A67: 67 | B67: 355 | C67: U | D67: Measuring & Regulating Equip. Accum. Depr. | E67: =PROFORMA!AP313 -> -468000 | F67: ="as 355 Plant ("&A$20&")" -> as 355 Plant (20) | H67: -468000 | I67: -318007.7241 | J67: -137781.0406 | K67: 0 | L67: -2429.120717 | M67: -9782.114652 | N67: 0 | P67: E67* " | R67: =R$20 -> 0.13 | S67: =S$20 -> 0.87 | T67: 0 | U67: 0 | V67: 0 | W67: 0 | X67: 0 | Y67: 0 | Z67: 0 | AA67: 0 | AB67: 0 | AC67: 0 | AD67: 0 | AE67: 0 | AF67: 0 | AG67: 0 | AH67: 0 | AI67: 0 | AK67: -468000 | AL67: -468000 | AM67: 0 | AN67: 0 | AO67: 0 | AQ67: E67* " | AS67: -468000 | AT67: -318007.7241 | AU67: -137781.0406 | AV67: 0 | AW67: -2429.120717 | AX67: -9782.114652 | AY67: 0 | BA67: 0 | BB67: 0 | BC67: 0 | BD67: 0 | BE67: 0 | BF67: 0 | BG67: 0 | BI67: 0 | BJ67: 0 | BK67: 0 | BL67: 0 | BM67: 0 | BN67: 0 | BO67: 0
A68: 68 | B68: 356 | C68: U | D68: Purification Equipment Accum. Depr. | E68: =PROFORMA!AP314 -> -274000 | F68: ="as 356 Plant ("&A$21&")" -> as 356 Plant (21) | H68: -274000 | I68: -186184.0094 | J68: -80666.6776 | K68: 0 | L68: -1422.177514 | M68: -5727.135501 | N68: 0 | P68: E68* " | R68: =R$21 -> 0.13 | S68: =S$21 -> 0.87 | T68: 0 | U68: 0 | V68: 0 | W68: 0 | X68: 0 | Y68: 0 | Z68: 0 | AA68: 0 | AB68: 0 | AC68: 0 | AD68: 0 | AE68: 0 | AF68: 0 | AG68: 0 | AH68: 0 | AI68: 0 | AK68: -274000 | AL68: -274000 | AM68: 0 | AN68: 0 | AO68: 0 | AQ68: E68* " | AS68: -274000 | AT68: -186184.0094 | AU68: -80666.6776 | AV68: 0 | AW68: -1422.177514 | AX68: -5727.135501 | AY68: 0 | BA68: 0 | BB68: 0 | BC68: 0 | BD68: 0 | BE68: 0 | BF68: 0 | BG68: 0 | BI68: 0 | BJ68: 0 | BK68: 0 | BL68: 0 | BM68: 0 | BN68: 0 | BO68: 0
A69: 69 | B69: 357 | C69: U | D69: Other Equipment Accum. Depr. | E69: =PROFORMA!AP315 -> -628000 | F69: ="as 357 Plant ("&A$22&")" -> as 357 Plant (22) | H69: -628000 | I69: -426728.3135 | J69: -184885.6698 | K69: 0 | L69: -3259.589339 | M69: -13126.42735 | N69: 0 | P69: E69* " | R69: =R$22 -> 0.13 | S69: =S$22 -> 0.87 | T69: 0 | U69: 0 | V69: 0 | W69: 0 | X69: 0 | Y69: 0 | Z69: 0 | AA69: 0 | AB69: 0 | AC69: 0 | AD69: 0 | AE69: 0 | AF69: 0 | AG69: 0 | AH69: 0 | AI69: 0 | AK69: -628000 | AL69: -628000 | AM69: 0 | AN69: 0 | AO69: 0 | AQ69: E69* " | AS69: -628000 | AT69: -426728.3135 | AU69: -184885.6698 | AV69: 0 | AW69: -3259.589339 | AX69: -13126.42735 | AY69: 0 | BA69: 0 | BB69: 0 | BC69: 0 | BD69: 0 | BE69: 0 | BF69: 0 | BG69: 0 | BI69: 0 | BJ69: 0 | BK69: 0 | BL69: 0 | BM69: 0 | BN69: 0 | BO69: 0
A70: 70 | D70: Total Transmission Plant Accum Depr | E70: =SUM(E62:E69) -> -11482000 | H70: =IF(ROUND(SUM(H61:H69),3)<>ROUND(SUM(I70:N70),3),#VALUE!,SUM(H61:H69)) -> -11482000 | I70: =SUM(I61:I69) -> -7802061.298 | J70: -3380345.957 | K70: 0 | L70: -59596.50444 | M70: -239996.2402 | N70: 0 | P70: =$A61&":"&A69 -> 61:69 | R70: =SUMPRODUCT($E62:$E69,R$62:R$69)/$E70 -> 0.13 | S70: 0.87 | T70: 0 | U70: 0 | V70: 0 | W70: 0 | X70: 0 | Y70: 0 | Z70: 0 | AA70: 0 | AB70: 0 | AC70: 0 | AD70: 0 | AE70: 0 | AF70: 0 | AG70: 0 | AH70: 0 | AI70: 0 | AK70: =IF(ROUND(SUM(AK61:AK69),3)<>ROUND(SUM(AL70:AO70),3),#VALUE!,SUM(AK61:AK69)) -> -11482000 | AL70: =SUM(AL61:AL69) -> -11482000 | AM70: =SUM(AM61:AM69) -> 0 | AN70: =SUM(AN61:AN69) -> 0 | AO70: =SUM(AO61:AO69) -> 0 | AQ70: =$A61&":"&$A69 -> 61:69 | AS70: =IF(ROUND(SUM(AS61:AS69),3)<>ROUND(SUM(AT70:AY70),3),#VALUE!,SUM(AS61:AS69)) -> -11482000 | AT70: =SUM(AT61:AT69) -> -7802061.298 | AU70: -3380345.957 | AV70: 0 | AW70: -59596.50444 | AX70: -239996.2402 | AY70: 0 | BA70: =IF(ROUND(SUM(BA61:BA69),3)<>ROUND(SUM(BB70:BG70),3),#VALUE!,SUM(BA61:BA69)) -> 0 | BB70: =SUM(BB61:BB69) -> 0 | BC70: 0 | BD70: 0 | BE70: 0 | BF70: 0 | BG70: 0 | BI70: =IF(ROUND(SUM(BI61:BI69),3)<>ROUND(SUM(BJ70:BO70),3),#VALUE!,SUM(BI61:BI69)) -> 0 | BJ70: =SUM(BJ61:BJ69) -> 0 | BK70: 0 | BL70: 0 | BM70: 0 | BN70: 0 | BO70: 0
A71: 71 | AI71: 0
A72: 72 | D72: Distribution Plant Accumulated Depreciation | AI72: =IF(SUM(R72:AH72)<>0,(ROUND(SUM(R72:AH72),8)<>1)+0,0) -> 0
A73: 73 | B73: 374 | C73: D | D73: Land & Land Rights Accum. Depr. | E73: =PROFORMA!AP319 -> -15000 | F73: ="as 374 Plant ("&A$26&")" -> as 374 Plant (26) | H73: =SUM(I73:N73) -> -15000 | I73: =$E73*SUMPRODUCT($R73:$AH73,INDEX(AllocFactors,I$4,0)) -> -11899.76092 | J73: -2292.033804 | K73: -1.077775711e-05 | L73: -28.43980699 | M73: -779.7654633 | N73: 0 | P73: =E$1&$A73&"* Sum["&$R$1&$A73&":"&$AH$1&$A73&"* "&Factors!D$1&Factors!$A$58&":"&Factors!S$1&Factors!$A$64&"]" -> E73* Sum[R73:AH73* D1037:S1043] | R73: =R$26 -> 0.1119878704 | S73: =S$26 -> 0 | T73: 0.0862752692 | U73: 0 | V73: 0 | W73: 0.3194613195 | X73: 0 | Y73: 0 | Z73: 0 | AA73: 0 | AB73: 0 | AC73: 0.3756369252 | AD73: 0.1009331436 | AE73: 0 | AF73: 0.005705471983 | AG73: 0 | AH73: 0 | AI73: 0 | AK73: =SUM(AL73:AO73) -> -15000 | AL73: =SUMIF($R$4:$AH$4,AL$5,$R73:$AH73)*$E73 -> -2973.947095 | AM73: -4791.919793 | AN73: -7234.133113 | AO73: 0 | AQ73: =E$1&$A73&"*["&R$1&$A73&":"&$AH$1&$A73&" when "&R$1&$A$4&":"&$AH$1&$A$4&" = E,D,C,or R]" -> E73*[R73:AH73 when R4:AH4 = E,D,C,or R] | AS73: =SUM(AT73:AY73) -> -2973.947095 | AT73: =$E73*SUMPRODUCT($R73:$V73,INDEX(AllocFactors_E,AT$4,0)) -> -1881.291235 | AU73: -815.0942397 | AV73: 0 | AW73: -7.473308749 | AX73: -270.0883107 | AY73: 0 | BA73: =SUM(BB73:BG73) -> -4791.919793 | BB73: =$E73*SUMPRODUCT($W73:$AA73,INDEX(AllocFactors_D,BB$4,0)) -> -3188.763345 | BC73: -1127.133922 | BD73: 0 | BE73: -17.5580395 | BF73: -458.4644866 | BG73: 0 | BI73: =SUM(BJ73:BO73) -> -7234.133113 | BJ73: =$E73*SUMPRODUCT($AB73:$AG73,INDEX(AllocFactors_C,BJ$4,0)) -> -6829.706335 | BK73: -349.8056422 | BL73: -1.077775711e-05 | BM73: -3.408458739 | BN73: -51.21266605 | BO73: 0
A74: 74 | B74: 375 | C74: D | D74: Structures & Improvements Accum. Depr. | E74: =PROFORMA!AP320 -> -147000 | F74: ="as 375 Plant ("&A$27&")" -> as 375 Plant (27) | H74: -147000 | I74: -116617.657 | J74: -22461.93128 | K74: -0.0001056220197 | L74: -278.7101085 | M74: -7641.701541 | N74: 0 | P74: =E$1&$A74&"* """ -> E74* " | R74: =R$27 -> 0.1119878704 | S74: =S$27 -> 0 | T74: 0.0862752692 | U74: 0 | V74: 0 | W74: 0.3194613195 | X74: 0 | Y74: 0 | Z74: 0 | AA74: 0 | AB74: 0 | AC74: 0.3756369252 | AD74: 0.1009331436 | AE74: 0 | AF74: 0.005705471983 | AG74: 0 | AH74: 0 | AI74: 0 | AK74: -147000 | AL74: -29144.68153 | AM74: -46960.81397 | AN74: -70894.50451 | AO74: 0 | AQ74: =E$1&$A74&"* """ -> E74* " | AS74: -29144.68153 | AT74: -18436.65411 | AU74: -7987.923549 | AV74: 0 | AW74: -73.23842574 | AX74: -2646.865445 | AY74: 0 | BA74: -46960.81397 | BB74: -31249.88078 | BC74: -11045.91244 | BD74: 0 | BE74: -172.0687871 | BF74: -4492.951968 | BG74: 0 | BI74: -70894.50451 | BJ74: -66931.12208 | BK74: -3428.095294 | BL74: -0.0001056220197 | BM74: -33.40289565 | BN74: -501.8841273 | BO74: 0
A75: 75 | B75: 376-All | C75: D | D75: Mains Accum. Depr. | E75: =PROFORMA!AP321+PROFORMA!AP322 -> -72679000 | F75: ="as 376-SM Plant ("&A$30&")" -> as 376-SM Plant (30) | H75: =SUM(I75:N75) -> -72679000 | I75: -47483567.01 | J75: -18191636.35 | K75: 0 | L75: -232948.0732 | M75: -6770848.564 | N75: 0 | P75: =E$1&$A75&"* """ -> E75* " | R75: =R$28 -> 0.2122419255 | S75: =S$28 -> 0 | T75: 0.1707091523 | U75: 0 | V75: 0 | W75: 0.6170489222 | X75: 0 | Y75: 0 | Z75: 0 | AA75: 0 | AB75: 0 | AC75: 0 | AD75: 0 | AE75: 0 | AF75: 0 | AG75: 0 | AH75: 0 | AI75: =IF(SUM(R75:AH75)<>0,(ROUND(SUM(R75:AH75),8)<>1)+0,0) -> 0 | AK75: =SUM(AL75:AO75) -> -72679000 | AL75: -27832501.38 | AM75: -44846498.62 | AN75: 0 | AO75: 0 | AQ75: =E$1&$A75&"* """ -> E75* " | AS75: =SUM(AT75:AY75) -> -27832501.38 | AT75: -17640648.7 | AU75: -7643043.708 | AV75: 0 | AW75: -68626.33402 | AX75: -2480182.641 | AY75: 0 | BA75: =SUM(BB75:BG75) -> -44846498.62 | BB75: -29842918.31 | BC75: -10548592.64 | BD75: 0 | BE75: -164321.7391 | BF75: -4290665.923 | BG75: 0 | BI75: =SUM(BJ75:BO75) -> 0 | BJ75: 0 | BK75: 0 | BL75: 0 | BM75: 0 | BN75: 0 | BO75: 0
A76: 76 | B76: 376 | C76: D | D76: Mains Accum. Depr. | F76: ="as 376-SM Plant ("&A$30&")" -> as 376-SM Plant (30) | H76: 0 | I76: 0 | J76: 0 | K76: 0 | L76: 0 | M76: 0 | N76: 0 | P76: E76* " | R76: =R$29 -> 0 | S76: =S$29 -> 0 | T76: 0 | U76: 0 | V76: 0 | W76: 0 | X76: 0 | Y76: 0 | Z76: 0 | AA76: 0 | AB76: 0 | AC76: 0 | AD76: 0 | AE76: 0 | AF76: 0 | AG76: 0 | AH76: 0 | AI76: 0 | AK76: 0 | AL76: 0 | AM76: 0 | AN76: 0 | AO76: 0 | AQ76: =E$1&$A76&"* """ -> E76* " | AS76: 0 | AT76: 0 | AU76: 0 | AV76: 0 | AW76: 0 | AX76: 0 | AY76: 0 | BA76: 0 | BB76: 0 | BC76: 0 | BD76: 0 | BE76: 0 | BF76: 0 | BG76: 0 | BI76: 0 | BJ76: 0 | BK76: 0 | BL76: 0 | BM76: 0 | BN76: 0 | BO76: 0
A77: 77 | B77: 378 | C77: D | D77: Meas & Reg Station Equip-Gen. Accum. Depr. | E77: =PROFORMA!AP323 -> -963000 | F77: ="as 378 Plant ("&A$31&")" -> as 378 Plant (31) | H77: -963000 | I77: -610207.4183 | J77: -232828.8051 | K77: 0 | L77: -3817.936712 | M77: -116145.84 | N77: 0 | P77: E77* " | R77: =R$31 -> 0.3829510778 | S77: =S$31 -> 0 | T77: 0 | U77: 0 | V77: 0 | W77: 0.6170489222 | X77: 0 | Y77: 0 | Z77: 0 | AA77: 0 | AB77: 0 | AC77: 0 | AD77: 0 | AE77: 0 | AF77: 0 | AG77: 0 | AH77: 0 | AI77: 0 | AK77: -963000 | AL77: -368781.8879 | AM77: -594218.1121 | AN77: 0 | AO77: 0 | AQ77: E77* " | AS77: -368781.8879 | AT77: -214787.4162 | AU77: -93059.48083 | AV77: 0 | AW77: -1640.66632 | AX77: -59294.32461 | AY77: 0 | BA77: -594218.1121 | BB77: -395420.0021 | BC77: -139769.3242 | BD77: 0 | BE77: -2177.270391 | BF77: -56851.51535 | BG77: 0 | BI77: 0 | BJ77: 0 | BK77: 0 | BL77: 0 | BM77: 0 | BN77: 0 | BO77: 0
A78: 78 | B78: 379 | C78: D | D78: Meas & Reg Station Equip-City Gate Accum. Depr. | E78: =PROFORMA!AP324 -> -403000 | F78: ="as 379 Plant ("&A$32&")" -> as 379 Plant (32) | H78: -403000 | I78: -255361.9829 | J78: -97435.10742 | K78: 0 | L78: -1597.745062 | M78: -48605.1646 | N78: 0 | P78: E78* " | R78: =R$32 -> 0.3829510778 | S78: =S$32 -> 0 | T78: 0 | U78: 0 | V78: 0 | W78: 0.6170489222 | X78: 0 | Y78: 0 | Z78: 0 | AA78: 0 | AB78: 0 | AC78: 0 | AD78: 0 | AE78: 0 | AF78: 0 | AG78: 0 | AH78: 0 | AI78: 0 | AK78: -403000 | AL78: -154329.2844 | AM78: -248670.7156 | AN78: 0 | AO78: 0 | AQ78: E78* " | AS78: -154329.2844 | AT78: -89885.07655 | AU78: -38943.89489 | AV78: 0 | AW78: -686.5924476 | AX78: -24813.72048 | AY78: 0 | BA78: -248670.7156 | BB78: -165476.9064 | BC78: -58491.21253 | BD78: 0 | BE78: -911.1526145 | BF78: -23791.44412 | BG78: 0 | BI78: 0 | BJ78: 0 | BK78: 0 | BL78: 0 | BM78: 0 | BN78: 0 | BO78: 0
A79: 79 | B79: 380 | C79: D | D79: Services Accum. Depr. | E79: =PROFORMA!AP325 -> -61747000 | F79: ="as 380 Plant ("&A$33&")" -> as 380 Plant (33) | H79: -61747000 | I79: -60364703.52 | J79: -1146543.672 | K79: -0.1181094693 | L79: -2739.60696 | M79: -233013.0871 | N79: 0 | P79: E79* " | R79: =R$33 -> 0 | S79: =S$33 -> 0 | T79: 0 | U79: 0 | V79: 0 | W79: 0 | X79: 0 | Y79: 0 | Z79: 0 | AA79: 0 | AB79: 0 | AC79: 1 | AD79: 0 | AE79: 0 | AF79: 0 | AG79: 0 | AH79: 0 | AI79: 0 | AK79: -61747000 | AL79: 0 | AM79: 0 | AN79: -61747000 | AO79: 0 | AQ79: E79* " | AS79: 0 | AT79: 0 | AU79: 0 | AV79: 0 | AW79: 0 | AX79: 0 | AY79: 0 | BA79: 0 | BB79: 0 | BC79: 0 | BD79: 0 | BE79: 0 | BF79: 0 | BG79: 0 | BI79: -61747000 | BJ79: -60364703.52 | BK79: -1146543.672 | BL79: -0.1181094693 | BM79: -2739.60696 | BN79: -233013.0871 | BO79: 0
A80: 80 | B80: 381 | C80: D | D80: Meters Accum. Depr. | E80: =PROFORMA!AP326 -> -11217000 | F80: ="as 381 Plant ("&A$34&")" -> as 381 Plant (34) | H80: -11217000 | I80: -9789259.869 | J80: -1277948.137 | K80: 0 | L80: -14281.86315 | M80: -135510.1314 | N80: 0 | P80: E80* " | R80: =R$34 -> 0 | S80: =S$34 -> 0 | T80: 0 | U80: 0 | V80: 0 | W80: 0 | X80: 0 | Y80: 0 | Z80: 0 | AA80: 0 | AB80: 0 | AC80: 0 | AD80: 1 | AE80: 0 | AF80: 0 | AG80: 0 | AH80: 0 | AI80: 0 | AK80: -11217000 | AL80: 0 | AM80: 0 | AN80: -11217000 | AO80: 0 | AQ80: E80* " | AS80: 0 | AT80: 0 | AU80: 0 | AV80: 0 | AW80: 0 | AX80: 0 | AY80: 0 | BA80: 0 | BB80: 0 | BC80: 0 | BD80: 0 | BE80: 0 | BF80: 0 | BG80: 0 | BI80: -11217000 | BJ80: -9789259.869 | BK80: -1277948.137 | BL80: 0 | BM80: -14281.86315 | BN80: -135510.1314 | BO80: 0
A81: 81 | B81: 382 | C81: D | D81: Meter Installations Accum. Depr. | E81: =PROFORMA!AP327 -> 0 | F81: ="as 382 Plant ("&A$35&")" -> as 382 Plant (35) | H81: 0 | I81: 0 | J81: 0 | K81: 0 | L81: 0 | M81: 0 | N81: 0 | P81: E81* " | R81: =R$35 -> 0 | S81: =S$35 -> 0 | T81: 0 | U81: 0 | V81: 0 | W81: 0 | X81: 0 | Y81: 0 | Z81: 0 | AA81: 0 | AB81: 1 | AC81: 0 | AD81: 0 | AE81: 0 | AF81: 0 | AG81: 0 | AH81: 0 | AI81: 0 | AK81: 0 | AL81: 0 | AM81: 0 | AN81: 0 | AO81: 0 | AQ81: E81* " | AS81: 0 | AT81: 0 | AU81: 0 | AV81: 0 | AW81: 0 | AX81: 0 | AY81: 0 | BA81: 0 | BB81: 0 | BC81: 0 | BD81: 0 | BE81: 0 | BF81: 0 | BG81: 0 | BI81: 0 | BJ81: 0 | BK81: 0 | BL81: 0 | BM81: 0 | BN81: 0 | BO81: 0
A82: 82 | B82: 383 | C82: D | D82: House Regulators Accum. Depr. | E82: =PROFORMA!AP328 -> 0 | F82: ="as 383 Plant ("&A$36&")" -> as 383 Plant (36) | H82: 0 | I82: 0 | J82: 0 | K82: 0 | L82: 0 | M82: 0 | N82: 0 | P82: E82* " | R82: =R$36 -> 0 | S82: =S$36 -> 0 | T82: 0 | U82: 0 | V82: 0 | W82: 0 | X82: 0 | Y82: 0 | Z82: 0 | AA82: 0 | AB82: 0 | AC82: 0 | AD82: 0 | AE82: 0 | AF82: 0 | AG82: 0 | AH82: 0 | AI82: 0 | AK82: 0 | AL82: 0 | AM82: 0 | AN82: 0 | AO82: 0 | AQ82: E82* " | AS82: 0 | AT82: 0 | AU82: 0 | AV82: 0 | AW82: 0 | AX82: 0 | AY82: 0 | BA82: 0 | BB82: 0 | BC82: 0 | BD82: 0 | BE82: 0 | BF82: 0 | BG82: 0 | BI82: 0 | BJ82: 0 | BK82: 0 | BL82: 0 | BM82: 0 | BN82: 0 | BO82: 0
A83: 83 | B83: 384 | C83: D | D83: House Regulator Installations Accum. Depr. | E83: =PROFORMA!AP329 -> 0 | F83: ="as 384 Plant ("&A$37&")" -> as 384 Plant (37) | H83: 0 | I83: 0 | J83: 0 | K83: 0 | L83: 0 | M83: 0 | N83: 0 | P83: E83* " | R83: =R$37 -> 0 | S83: =S$37 -> 0 | T83: 0 | U83: 0 | V83: 0 | W83: 0 | X83: 0 | Y83: 0 | Z83: 0 | AA83: 0 | AB83: 1 | AC83: 0 | AD83: 0 | AE83: 0 | AF83: 0 | AG83: 0 | AH83: 0 | AI83: 0 | AK83: 0 | AL83: 0 | AM83: 0 | AN83: 0 | AO83: 0 | AQ83: E83* " | AS83: 0 | AT83: 0 | AU83: 0 | AV83: 0 | AW83: 0 | AX83: 0 | AY83: 0 | BA83: 0 | BB83: 0 | BC83: 0 | BD83: 0 | BE83: 0 | BF83: 0 | BG83: 0 | BI83: 0 | BJ83: 0 | BK83: 0 | BL83: 0 | BM83: 0 | BN83: 0 | BO83: 0
A84: 84 | B84: 385 | C84: D | D84: Industrial Meas & Reg Station Equip Accum. Depr. | E84: =PROFORMA!AP330 -> -1162000 | F84: ="as 385 Plant ("&A$38&")" -> as 385 Plant (38) | H84: -1162000 | I84: 0 | J84: -986981.7086 | K84: 0 | L84: -16711.19993 | M84: -158307.0915 | N84: 0 | P84: E84* " | R84: =R$38 -> 0 | S84: =S$38 -> 0 | T84: 0 | U84: 0 | V84: 0 | W84: 0 | X84: 0 | Y84: 0 | Z84: 0 | AA84: 0 | AB84: 0 | AC84: 0 | AD84: 0 | AE84: 0 | AF84: 1 | AG84: 0 | AH84: 0 | AI84: 0 | AK84: -1162000 | AL84: 0 | AM84: 0 | AN84: -1162000 | AO84: 0 | AQ84: E84* " | AS84: 0 | AT84: 0 | AU84: 0 | AV84: 0 | AW84: 0 | AX84: 0 | AY84: 0 | BA84: 0 | BB84: 0 | BC84: 0 | BD84: 0 | BE84: 0 | BF84: 0 | BG84: 0 | BI84: -1162000 | BJ84: 0 | BK84: -986981.7086 | BL84: 0 | BM84: -16711.19993 | BN84: -158307.0915 | BO84: 0
A85: 85 | B85: 387 | C85: D | D85: Other Equipment Accum. Depr. | E85: =PROFORMA!AP331 -> 0 | F85: ="as 387 Plant ("&A$39&")" -> as 387 Plant (39) | H85: 0 | I85: 0 | J85: 0 | K85: 0 | L85: 0 | M85: 0 | N85: 0 | P85: E85* " | R85: =R$39 -> 0.1119878704 | S85: =S$39 -> 0 | T85: 0.0862752692 | U85: 0 | V85: 0 | W85: 0.3194613195 | X85: 0 | Y85: 0 | Z85: 0 | AA85: 0 | AB85: 0 | AC85: 0.3756369252 | AD85: 0.1009331436 | AE85: 0 | AF85: 0.005705471983 | AG85: 0 | AH85: 0 | AI85: 0 | AK85: 0 | AL85: 0 | AM85: 0 | AN85: 0 | AO85: 0 | AQ85: E85* " | AS85: 0 | AT85: 0 | AU85: 0 | AV85: 0 | AW85: 0 | AX85: 0 | AY85: 0 | BA85: 0 | BB85: 0 | BC85: 0 | BD85: 0 | BE85: 0 | BF85: 0 | BG85: 0 | BI85: 0 | BJ85: 0 | BK85: 0 | BL85: 0 | BM85: 0 | BN85: 0 | BO85: 0
A86: 86 | D86: Total Distribution Plant Accum Depr | E86: =SUM(E73:E85) -> -148333000 | H86: =IF(ROUND(SUM(H72:H85),3)<>ROUND(SUM(I86:N86),3),#VALUE!,SUM(H72:H85)) -> -148333000 | I86: =SUM(I72:I85) -> -118631617.2 | J86: -21958127.75 | K86: -0.118225869 | L86: -272403.5749 | M86: -7470851.346 | N86: 0 | P86: =$A72&":"&A85 -> 72:85 | R86: =SUMPRODUCT($E73:$E85,R$73:R$85)/$E86 -> 0.1076414831 | S86: 0 | T86: 0.08373691003 | U86: 0 | V86: 0 | W86: 0.3083679301 | X86: 0 | Y86: 0 | Z86: 0 | AA86: 0 | AB86: 0 | AC86: 0.4166830926 | AD86: 0.0757306275 | AE86: 0 | AF86: 0.007839956628 | AG86: 0 | AH86: 0 | AI86: 0 | AK86: =IF(ROUND(SUM(AK72:AK85),3)<>ROUND(SUM(AL86:AO86),3),#VALUE!,SUM(AK72:AK85)) -> -148333000 | AL86: =SUM(AL72:AL85) -> -28387731.19 | AM86: =SUM(AM72:AM85) -> -45741140.18 | AN86: =SUM(AN72:AN85) -> -74204128.64 | AO86: =SUM(AO72:AO85) -> 0 | AQ86: =$A72&":"&$A85 -> 72:85 | AS86: =IF(ROUND(SUM(AS72:AS85),3)<>ROUND(SUM(AT86:AY86),3),#VALUE!,SUM(AS72:AS85)) -> -28387731.19 | AT86: =SUM(AT72:AT85) -> -17965639.14 | AU86: -7783850.102 | AV86: 0 | AW86: -71034.30453 | AX86: -2567207.639 | AY86: 0 | BA86: =IF(ROUND(SUM(BA72:BA85),3)<>ROUND(SUM(BB86:BG86),3),#VALUE!,SUM(BA72:BA85)) -> -45741140.18 | BB86: =SUM(BB72:BB85) -> -30438253.86 | BC86: -10759026.23 | BD86: 0 | BE86: -167599.789 | BF86: -4376260.299 | BG86: 0 | BI86: =IF(ROUND(SUM(BI72:BI85),3)<>ROUND(SUM(BJ86:BO86),3),#VALUE!,SUM(BI72:BI85)) -> -74204128.64 | BJ86: =SUM(BJ72:BJ85) -> -70227724.21 | BK86: -3415251.418 | BL86: -0.118225869 | BM86: -33769.4814 | BN86: -527383.4068 | BO86: 0
A88: =RowHdr -> 88 | D88: UG/D Plant | E88: =E70+E86 -> -159815000 | F88: ="("&A$23&"+"&A$40&")" -> (23+40) | G88: UG/D Plant (S03) | H88: =H70+H86 -> -159815000 | I88: -126433678.5 | J88: -25338473.7 | K88: -0.118225869 | L88: -332000.0793 | M88: -7710847.586 | N88: =N69+N86 -> 0 | R88: =($E70*R70+$E86*R86)/$E88 -> 0.1092478435 | S88: =($E70*S70+$E86*S86)/$E88 -> 0.06250564715 | T88: =($E70*T70+$E86*T86)/$E88 -> 0.07772078388 | U88: =($E70*U70+$E86*U86)/$E88 -> 0 | V88: 0 | W88: =($E70*W70+$E86*W86)/$E88 -> 0.28621306 | X88: 0 | Y88: 0 | Z88: 0 | AA88: 0 | AB88: 0 | AC88: 0.3867462577 | AD88: 0.07028971729 | AE88: 0 | AF88: 0.007276690464 | AG88: 0 | AH88: 0 | AI88: =IF(SUM(R88:AH88)<>0,(ROUND(SUM(R88:AH88),8)<>1)+0,0) -> 0
A89: 89 | AI89: 0
A90: 90 | D90: General Plant Accumulated Depreciation | AI90: 0
A91: 91 | B91: 389 | C91: O | D91: Land & Land Rights Accum. Depr. | E91: =PROFORMA!AP335 -> -22000 | F91: ="as 389 Plant ("&A$45&")" -> as 389 Plant (45) | H91: =SUM(I91:N91) -> -22000 | I91: =$E91*SUMPRODUCT($R91:$AH91,INDEX(AllocFactors,I$4,0)) -> -19254.9112 | J91: -2157.852724 | K91: -7.04669146e-06 | L91: -26.68709828 | M91: -560.5489692 | N91: 0 | P91: Corporate Cost Allocator (4-Factor) | R91: =(R$114*0.25)+(R$251*0.25)+(BS$250*0.25) -> 0.06097571685 | S91: =(S$114*0.25)+(S$251*0.25)+(BT$250*0.25) -> 0.05034792024 | T91: 0.03676669478 | U91: 0 | V91: 0 | W91: 0.1420553834 | X91: 0 | Y91: 0 | Z91: 0 | AA91: 0 | AB91: =(AB$114*0.25)+(AB$251*0.25)+(CC$250*0.25)+0.25 -> 0.463399122 | AC91: 0.1674533035 | AD91: 0.07589476099 | AE91: 0 | AF91: 0.00310709825 | AG91: 0 | AH91: 0 | AI91: 0 | AK91: =SUM(AL91:AO91) -> -22000 | AL91: =SUMIF($R$4:$AH$4,AL$5,$R91:$AH91)*$E91 -> -3257.987301 | AM91: -3125.218436 | AN91: -15616.79426 | AO91: 0 | AQ91: =E$1&$A91&"*["&R$1&$A91&":"&$AH$1&$A91&" when "&R$1&$A$4&":"&$AH$1&$A$4&" = E,D,C,or R]" -> E91*[R91:AH91 when R4:AH4 = E,D,C,or R] | AS91: =SUM(AT91:AY91) -> -3257.987301 | AT91: =$E91*SUMPRODUCT($R91:$V91,INDEX(AllocFactors_E,AT$4,0)) -> -2114.378421 | AU91: -916.082337 | AV91: 0 | AW91: -11.83995559 | AX91: -215.6865873 | AY91: 0 | BA91: =SUM(BB91:BG91) -> -3125.218436 | BB91: =$E91*SUMPRODUCT($W91:$AA91,INDEX(AllocFactors_D,BB$4,0)) -> -2079.663772 | BC91: -735.09989 | BD91: 0 | BE91: -11.45109082 | BF91: -299.0036828 | BG91: 0 | BI91: =SUM(BJ91:BO91) -> -15616.79426 | BJ91: =$E91*SUMPRODUCT($AB91:$AG91,INDEX(AllocFactors_C,BJ$4,0)) -> -15060.86901 | BK91: -506.6704975 | BL91: -7.04669146e-06 | BM91: -3.396051874 | BN91: -45.85869915 | BO91: 0
A92: 92 | B92: 390 | C92: O | D92: Structures & Improvements Accum. Depr. | E92: =PROFORMA!AP336 -> -1762000 | F92: ="as 390 Plant ("&A$46&")" -> as 390 Plant (46) | H92: -1762000 | I92: -1542143.343 | J92: -172824.3864 | K92: -0.0005643759251 | L92: -2137.393962 | M92: -44894.87653 | N92: 0 | P92: Corporate Cost Allocator (4-Factor) | R92: =(R$114*0.25)+(R$251*0.25)+(BS$250*0.25) -> 0.06097571685 | S92: 0.05034792024 | T92: 0.03676669478 | U92: 0 | V92: 0 | W92: 0.1420553834 | X92: 0 | Y92: 0 | Z92: 0 | AA92: 0 | AB92: =(AB$114*0.25)+(AB$251*0.25)+(CC$250*0.25)+0.25 -> 0.463399122 | AC92: 0.1674533035 | AD92: 0.07589476099 | AE92: 0 | AF92: 0.00310709825 | AG92: 0 | AH92: 0 | AI92: 0 | AK92: -1762000 | AL92: -260935.1648 | AM92: -250301.5856 | AN92: -1250763.25 | AO92: 0 | AQ92: =E$1&$A92&"* """ -> E92* " | AS92: -260935.1648 | AT92: -169342.4899 | AU92: -73369.86717 | AV92: 0 | AW92: -948.2728067 | AX92: -17274.53486 | AY92: 0 | BA92: -250301.5856 | BB92: -166562.1621 | BC92: -58874.81846 | BD92: 0 | BE92: -917.1282736 | BF92: -23947.47677 | BG92: 0 | BI92: -1250763.25 | BJ92: -1206238.691 | BK92: -40579.70075 | BL92: -0.0005643759251 | BM92: -271.9928819 | BN92: -3672.864904 | BO92: 0
A93: 93 | B93: 391 | C93: O | D93: Office Furniture & Equipment Accum. Depr. | E93: =PROFORMA!AP337 -> -6902000 | F93: ="as 391 Plant ("&A$47&")" -> as 391 Plant (47) | H93: -6902000 | I93: -6040790.778 | J93: -676977.2502 | K93: -0.002210739293 | L93: -8372.47056 | M93: -175859.4993 | N93: 0 | P93: Corporate Cost Allocator (4-Factor) | R93: 0.06097571685 | S93: 0.05034792024 | T93: 0.03676669478 | U93: 0 | V93: 0 | W93: 0.1420553834 | X93: 0 | Y93: 0 | Z93: 0 | AA93: 0 | AB93: 0.463399122 | AC93: 0.1674533035 | AD93: 0.07589476099 | AE93: 0 | AF93: 0.00310709825 | AG93: 0 | AH93: 0 | AI93: 0 | AK93: -6902000 | AL93: -1022119.471 | AM93: -980466.2565 | AN93: -4899414.273 | AO93: 0 | AQ93: =E$1&$A93&"* """ -> E93* " | AS93: -1022119.471 | AT93: -663338.1756 | AU93: -287400.0132 | AV93: 0 | AW93: -3714.516976 | AX93: -67666.7648 | AY93: 0 | BA93: -980466.2565 | BB93: -652447.2434 | BC93: -230620.8837 | BD93: 0 | BE93: -3592.519492 | BF93: -93805.60992 | BG93: 0 | BI93: -4899414.273 | BJ93: -4725005.359 | BK93: -158956.3533 | BL93: -0.002210739293 | BM93: -1065.434092 | BN93: -14387.12461 | BO93: 0
A94: 94 | B94: 392 | C94: O | D94: Transportation Equipment Accum. Depr. | E94: =PROFORMA!AP338 -> -7112000 | F94: ="as 392 Plant ("&A$48&")" -> as 392 Plant (48) | H94: -7112000 | I94: -6224587.657 | J94: -697574.9353 | K94: -0.002278003166 | L94: -8627.211044 | M94: -181210.194 | N94: 0 | P94: Corporate Cost Allocator (4-Factor) | R94: 0.06097571685 | S94: 0.05034792024 | T94: 0.03676669478 | U94: 0 | V94: 0 | W94: 0.1420553834 | X94: 0 | Y94: 0 | Z94: 0 | AA94: 0 | AB94: 0.463399122 | AC94: 0.1674533035 | AD94: 0.07589476099 | AE94: 0 | AF94: 0.00310709825 | AG94: 0 | AH94: 0 | AI94: 0 | AK94: -7112000 | AL94: -1053218.44 | AM94: -1010297.887 | AN94: -5048483.673 | AO94: 0 | AQ94: E94* " | AS94: -1053218.44 | AT94: -683520.8787 | AU94: -296144.4355 | AV94: 0 | AW94: -3827.534734 | AX94: -69725.59131 | AY94: 0 | BA94: -1010297.887 | BB94: -672298.5794 | BC94: -237637.7463 | BD94: 0 | BE94: -3701.825359 | BF94: -96659.73599 | BG94: 0 | BI94: -5048483.673 | BJ94: -4868768.199 | BK94: -163792.7535 | BL94: -0.002278003166 | BM94: -1097.850951 | BN94: -14824.86674 | BO94: 0
A95: 95 | B95: 393 | C95: O | D95: Stores Equipment Accum. Depr. | E95: =PROFORMA!AP339 -> -242000 | F95: ="as 393 Plant ("&A$49&")" -> as 393 Plant (49) | H95: -242000 | I95: -211804.0232 | J95: -23736.37997 | K95: -7.751360606e-05 | L95: -293.5580811 | M95: -6166.038661 | N95: 0 | P95: Corporate Cost Allocator (4-Factor) | R95: 0.06097571685 | S95: 0.05034792024 | T95: 0.03676669478 | U95: 0 | V95: 0 | W95: 0.1420553834 | X95: 0 | Y95: 0 | Z95: 0 | AA95: 0 | AB95: 0.463399122 | AC95: 0.1674533035 | AD95: 0.07589476099 | AE95: 0 | AF95: 0.00310709825 | AG95: 0 | AH95: 0 | AI95: 0 | AK95: -242000 | AL95: -35837.86031 | AM95: -34377.40279 | AN95: -171784.7369 | AO95: 0 | AQ95: E95* " | AS95: -35837.86031 | AT95: -23258.16263 | AU95: -10076.90571 | AV95: 0 | AW95: -130.2395115 | AX95: -2372.55246 | AY95: 0 | BA95: -34377.40279 | BB95: -22876.30149 | BC95: -8086.09879 | BD95: 0 | BE95: -125.961999 | BF95: -3289.04051 | BG95: 0 | BI95: -171784.7369 | BJ95: -165669.5591 | BK95: -5573.375472 | BL95: -7.751360606e-05 | BM95: -37.35657061 | BN95: -504.4456906 | BO95: 0
A96: 96 | B96: 394 | C96: O | D96: Tools, Shop & Garage Equip. Accum. Depr. | E96: =PROFORMA!AP340 -> -2144000 | F96: ="as 394 Plant ("&A$50&")" -> as 394 Plant (50) | H96: -2144000 | I96: -1876478.619 | J96: -210292.5564 | K96: -0.0006867321132 | L96: -2600.779032 | M96: -54628.045 | N96: 0 | P96: Corporate Cost Allocator (4-Factor) | R96: 0.06097571685 | S96: 0.05034792024 | T96: 0.03676669478 | U96: 0 | V96: 0 | W96: 0.1420553834 | X96: 0 | Y96: 0 | Z96: 0 | AA96: 0 | AB96: 0.463399122 | AC96: 0.1674533035 | AD96: 0.07589476099 | AE96: 0 | AF96: 0.00310709825 | AG96: 0 | AH96: 0 | AI96: 0 | AK96: -2144000 | AL96: -317505.6715 | AM96: -304566.7421 | AN96: -1521927.586 | AO96: 0 | AQ96: E96* " | AS96: -317505.6715 | AT96: -206055.788 | AU96: -89276.38775 | AV96: 0 | AW96: -1153.85749 | AX96: -21019.63833 | AY96: 0 | BA96: -304566.7421 | BB96: -202672.6876 | BC96: -71638.82564 | BD96: 0 | BE96: -1115.960851 | BF96: -29139.26799 | BG96: 0 | BI96: -1521927.586 | BJ96: -1467750.143 | BK96: -49377.34303 | BL96: -0.0006867321132 | BM96: -330.9606917 | BN96: -4469.13868 | BO96: 0
A97: 97 | B97: 395 | C97: O | D97: Laboratory Equipment Accum. Depr. | E97: =PROFORMA!AP341 -> -150000 | F97: ="as 395 Plant ("&A$51&")" -> as 395 Plant (51) | H97: -150000 | I97: -131283.4855 | J97: -14712.63221 | K97: -4.804562359e-05 | L97: -181.9574883 | M97: -3821.92479 | N97: 0 | P97: Corporate Cost Allocator (4-Factor) | R97: 0.06097571685 | S97: 0.05034792024 | T97: 0.03676669478 | U97: 0 | V97: 0 | W97: 0.1420553834 | X97: 0 | Y97: 0 | Z97: 0 | AA97: 0 | AB97: 0.463399122 | AC97: 0.1674533035 | AD97: 0.07589476099 | AE97: 0 | AF97: 0.00310709825 | AG97: 0 | AH97: 0 | AI97: 0 | AK97: -150000 | AL97: -22213.54978 | AM97: -21308.30752 | AN97: -106478.1427 | AO97: 0 | AQ97: E97* " | AS97: -22213.54978 | AT97: -14416.21651 | AU97: -6246.015934 | AV97: 0 | AW97: -80.72696992 | AX97: -1470.590368 | AY97: 0 | BA97: -21308.30752 | BB97: -14179.52572 | BC97: -5012.044704 | BD97: 0 | BE97: -78.07561921 | BF97: -2038.661473 | BG97: 0 | BI97: -106478.1427 | BJ97: -102687.7432 | BK97: -3454.571574 | BL97: -4.804562359e-05 | BM97: -23.15489914 | BN97: -312.6729487 | BO97: 0
A98: 98 | B98: 396 | C98: O | D98: Power Operated Equipment Accum. Depr. | E98: =PROFORMA!AP342 -> -2021000 | F98: ="as 396 Plant ("&A$52&")" -> as 396 Plant (52) | H98: -2021000 | I98: -1768826.161 | J98: -198228.198 | K98: -0.0006473347018 | L98: -2451.573892 | M98: -51494.06667 | N98: 0 | P98: Corporate Cost Allocator (4-Factor) | R98: 0.06097571685 | S98: 0.05034792024 | T98: 0.03676669478 | U98: 0 | V98: 0 | W98: 0.1420553834 | X98: 0 | Y98: 0 | Z98: 0 | AA98: 0 | AB98: 0.463399122 | AC98: 0.1674533035 | AD98: 0.07589476099 | AE98: 0 | AF98: 0.00310709825 | AG98: 0 | AH98: 0 | AI98: 0 | AK98: -2021000 | AL98: -299290.5607 | AM98: -287093.9299 | AN98: -1434615.509 | AO98: 0 | AQ98: E98* " | AS98: -299290.5607 | AT98: -194234.4904 | AU98: -84154.65469 | AV98: 0 | AW98: -1087.661375 | AX98: -19813.75422 | AY98: 0 | BA98: -287093.9299 | BB98: -191045.4765 | BC98: -67528.94899 | BD98: 0 | BE98: -1051.938843 | BF98: -27467.56558 | BG98: 0 | BI98: -1434615.509 | BJ98: -1383546.194 | BK98: -46544.59434 | BL98: -0.0006473347018 | BM98: -311.9736744 | BN98: -4212.746862 | BO98: 0
A99: 99 | B99: 397 | C99: O | D99: Communication Equipment Accum. Depr. | E99: =PROFORMA!AP343 -> -4299000 | F99: ="as 397 Plant ("&A$53&")" -> as 397 Plant (53) | H99: -4299000 | I99: -3762584.693 | J99: -421664.0392 | K99: -0.001376987572 | L99: -5214.901614 | M99: -109536.3645 | N99: 0 | P99: Corporate Cost Allocator (4-Factor) | R99: 0.06097571685 | S99: 0.05034792024 | T99: 0.03676669478 | U99: 0 | V99: 0 | W99: 0.1420553834 | X99: 0 | Y99: 0 | Z99: 0 | AA99: 0 | AB99: 0.463399122 | AC99: 0.1674533035 | AD99: 0.07589476099 | AE99: 0 | AF99: 0.00310709825 | AG99: 0 | AH99: 0 | AI99: 0 | AK99: -4299000 | AL99: -636640.3367 | AM99: -610696.0934 | AN99: -3051663.57 | AO99: 0 | AQ99: E99* " | AS99: -636640.3367 | AT99: -413168.7651 | AU99: -179010.8167 | AV99: 0 | AW99: -2313.634958 | AX99: -42147.11994 | AY99: 0 | BA99: -610696.0934 | BB99: -406385.2071 | BC99: -143645.2012 | BD99: 0 | BE99: -2237.647247 | BF99: -58428.03782 | BG99: 0 | BI99: -3051663.57 | BJ99: -2943030.721 | BK99: -99008.0213 | BL99: -0.001376987572 | BM99: -663.6194093 | BN99: -8961.20671 | BO99: 0
A100: 100 | B100: 398 | C100: O | D100: Miscellaneous Equipment Accum. Depr. | E100: =PROFORMA!AP344 -> -74000 | F100: ="as 398 Plant ("&A$54&")" -> as 398 Plant (54) | H100: -74000 | I100: -64766.51949 | J100: -7258.231891 | K100: -2.370250764e-05 | L100: -89.76569421 | M100: -1885.482896 | N100: 0 | P100: Corporate Cost Allocator (4-Factor) | R100: =(R$114*0.25)+(R$251*0.25)+(BS$250*0.25) -> 0.06097571685 | S100: 0.05034792024 | T100: 0.03676669478 | U100: 0 | V100: 0 | W100: 0.1420553834 | X100: 0 | Y100: 0 | Z100: 0 | AA100: 0 | AB100: 0.463399122 | AC100: 0.1674533035 | AD100: 0.07589476099 | AE100: 0 | AF100: 0.00310709825 | AG100: 0 | AH100: 0 | AI100: 0 | AK100: -74000 | AL100: -10958.68456 | AM100: -10512.09837 | AN100: -52529.21707 | AO100: 0 | AQ100: E100* " | AS100: -10958.68456 | AT100: -7112.000144 | AU100: -3081.367861 | AV100: 0 | AW100: -39.82530516 | AX100: -725.4912482 | AY100: 0 | BA100: -10512.09837 | BB100: -6995.232688 | BC100: -2472.608721 | BD100: 0 | BE100: -38.51730548 | BF100: -1005.73966 | BG100: 0 | BI100: -52529.21707 | BJ100: -50659.28666 | BK100: -1704.25531 | BL100: -2.370250764e-05 | BM100: -11.42308358 | BN100: -154.251988 | BO100: 0
A101: 101 | D101: Total General Plant Accum Depreciation | E101: =SUM(E91:E100) -> -24728000 | H101: =IF(ROUND(SUM(H90:H100),3)<>ROUND(SUM(I101:N101),3),#VALUE!,SUM(H90:H100)) -> -24728000 | I101: =SUM(I90:I100) -> -21642520.19 | J101: -2425426.462 | K101: -0.007920481201 | L101: -29996.29847 | M101: -630057.0414 | N101: 0 | P101: =$A90&":"&$A100 -> 90:100 | R101: =SUMPRODUCT($E91:$E100,R$91:R$100)/$E101 -> 0.06097571685 | S101: 0.05034792024 | T101: 0.03676669478 | U101: =SUMPRODUCT($E91:$E100,U$91:U$100)/$E101 -> 0 | V101: =SUMPRODUCT($E91:$E100,V$91:V$100)/$E101 -> 0 | W101: 0.1420553834 | X101: 0 | Y101: =SUMPRODUCT($E91:$E100,Y$91:Y$100)/$E101 -> 0 | Z101: 0 | AA101: 0 | AB101: 0.463399122 | AC101: 0.1674533035 | AD101: 0.07589476099 | AE101: 0 | AF101: 0.00310709825 | AG101: =SUMPRODUCT($E91:$E100,AG$91:AG$100)/$E101 -> 0 | AH101: 0 | AI101: 0 | AK101: =IF(ROUND(SUM(AK90:AK100),3)<>ROUND(SUM(AL101:AO101),3),#VALUE!,SUM(AK90:AK100)) -> -24728000 | AL101: =SUM(AL90:AL100) -> -3661977.726 | AM101: =SUM(AM90:AM100) -> -3512745.522 | AN101: =SUM(AN90:AN100) -> -17553276.75 | AO101: =SUM(AO90:AO100) -> 0 | AQ101: =$A90&":"&$A100 -> 90:100 | AS101: =IF(ROUND(SUM(AS90:AS100),3)<>ROUND(SUM(AT101:AY101),3),#VALUE!,SUM(AS90:AS100)) -> -3661977.726 | AT101: =SUM(AT90:AT100) -> -2376561.345 | AU101: -1029676.547 | AV101: 0 | AW101: -13308.11008 | AX101: -242431.7241 | AY101: 0 | BA101: =IF(ROUND(SUM(BA90:BA100),3)<>ROUND(SUM(BB101:BG101),3),#VALUE!,SUM(BA90:BA100)) -> -3512745.522 | BB101: =SUM(BB90:BB100) -> -2337542.08 | BC101: -826252.2764 | BD101: 0 | BE101: -12871.02608 | BF101: -336080.1394 | BG101: 0 | BI101: =IF(ROUND(SUM(BI90:BI100),3)<>ROUND(SUM(BJ101:BO101),3),#VALUE!,SUM(BI90:BI100)) -> -17553276.75 | BJ101: =SUM(BJ90:BJ100) -> -16928416.76 | BK101: -569497.6391 | BL101: -0.007920481201 | BM101: -3817.162306 | BN101: -51545.17784 | BO101: 0
A102: 102 | AI102: 0
A103: 103 | D103: Total Accumulated Reserve for Depreciation | E103: =E70+E86+E101 -> -184543000 | F103: ="("&A$70&"+"&A$86&"+"&A$101&")" -> (70+86+101) | H103: =H70+H86+H101 -> -184543000 | I103: -148076198.7 | J103: -27763900.17 | K103: -0.1261463502 | L103: -361996.3778 | M103: -8340904.627 | N103: 0 | P103: ="Sum("&$A70&","&$A86&","&$A101&")" -> Sum(70,86,101) | R103: =($E70*R70+$E86*R86+$E101*R101)/$E103 -> 0.1027795779 | S103: 0.06087656195 | T103: 0.07223310504 | U103: 0 | V103: 0 | W103: 0.2668965265 | X103: 0 | Y103: 0 | Z103: 0 | AA103: 0 | AB103: 0.06209356892 | AC103: 0.3573619074 | AD103: 0.07104077001 | AE103: 0 | AF103: 0.006717982324 | AG103: 0 | AH103: 0 | AI103: 0 | AK103: =AK70+AK86+AK101 -> -184543000 | AL103: =AL70+AL86+AL101 -> -43531708.91 | AM103: =AM70+AM86+AM101 -> -49253885.7 | AN103: =AN70+AN86+AN101 -> -91757405.39 | AO103: =AO70+AO86+AO101 -> 0 | AQ103: ="Sum("&$A70&","&$A86&","&$A101&")" -> Sum(70,86,101) | AS103: =AS70+AS86+AS101 -> -43531708.91 | AT103: -28144261.78 | AU103: -12193872.61 | AV103: 0 | AW103: -143938.919 | AX103: -3049635.604 | AY103: 0 | BA103: =BA70+BA86+BA101 -> -49253885.7 | BB103: -32775795.94 | BC103: -11585278.5 | BD103: 0 | BE103: -180470.815 | BF103: -4712340.439 | BG103: 0 | BI103: =BI70+BI86+BI101 -> -91757405.39 | BJ103: -87156140.98 | BK103: -3984749.058 | BL103: -0.1261463502 | BM103: -37586.6437 | BN103: -578928.5847 | BO103: 0
A104: 104 | AI104: 0
A105: 105 | D105: Amortization | AI105: 0
A106: 106 | B106: 303.1 | C106: O | D106: Accum Amort of Intangible Plant-Software | E106: =PROFORMA!AP350 -> -9824000 | F106: 4-Factor | H106: =SUM(I106:N106) -> -9824000 | I106: =$E106*SUMPRODUCT($R106:$AH106,INDEX(AllocFactors,I$4,0)) -> -8598193.074 | J106: -963579.3257 | K106: -0.003146668041 | L106: -11917.00243 | M106: -250310.5942 | N106: 0 | P106: Corporate Cost Allocator (4-Factor) | R106: =(R$114*0.25)+(R$251*0.25)+(BS$250*0.25) -> 0.06097571685 | S106: =(S$114*0.25)+(S$251*0.25)+(BT$250*0.25) -> 0.05034792024 | T106: 0.03676669478 | U106: 0 | V106: 0 | W106: 0.1420553834 | X106: 0 | Y106: 0 | Z106: 0 | AA106: 0 | AB106: =(AB$114*0.25)+(AB$251*0.25)+(CC$250*0.25)+0.25 -> 0.463399122 | AC106: 0.1674533035 | AD106: 0.07589476099 | AE106: 0 | AF106: 0.00310709825 | AG106: 0 | AH106: =AH$42 -> 0 | AI106: =IF(SUM(R106:AH106)<>0,(ROUND(SUM(R106:AH106),8)<>1)+0,0) -> 0 | AK106: =SUM(AL106:AO106) -> -9824000 | AL106: =SUMIF($R$4:$AH$4,AL$5,$R106:$AH106)*$E106 -> -1454839.42 | AM106: -1395552.087 | AN106: -6973608.493 | AO106: 0 | AQ106: =E$1&$A106&"* """ -> E106* " | AS106: =SUM(AT106:AY106) -> -1454839.42 | AT106: =$E106*SUMPRODUCT($R106:$V106,INDEX(AllocFactors_E,AT$4,0)) -> -944166.0732 | AU106: -409072.4036 | AV106: 0 | AW106: -5287.07835 | AX106: -96313.86516 | AY106: 0 | BA106: =SUM(BB106:BG106) -> -1395552.087 | BB106: =$E106*SUMPRODUCT($W106:$AA106,INDEX(AllocFactors_D,BB$4,0)) -> -928664.4044 | BC106: -328255.5145 | BD106: 0 | BE106: -5113.432554 | BF106: -133518.7354 | BG106: 0 | BI106: =SUM(BJ106:BO106) -> -6973608.493 | BJ106: =$E106*SUMPRODUCT($AB106:$AG106,INDEX(AllocFactors_C,BJ$4,0)) -> -6725362.597 | BK106: -226251.4076 | BL106: -0.003146668041 | BM106: -1516.491528 | BN106: -20477.99365 | BO106: 0
A107: 107 | B107: 303 | C107: D | D107: Intangible Distribution Plant | E107: =PROFORMA!AP351 -> -637000 | F107: as Distrib Plant (40) | H107: =SUM(I107:N107) -> -637000 | I107: -505343.1802 | J107: -97335.03554 | K107: -0.0004576954185 | L107: -1207.743803 | M107: -33114.04001 | N107: 0 | P107: =E$1&$A107&"* """ -> E107* " | R107: =R$40 -> 0.1119878704 | S107: =S$40 -> 0 | T107: 0.0862752692 | U107: 0 | V107: 0 | W107: 0.3194613195 | X107: 0 | Y107: 0 | Z107: 0 | AA107: 0 | AB107: 0 | AC107: 0.3756369252 | AD107: 0.1009331436 | AE107: 0 | AF107: 0.005705471983 | AG107: 0 | AH107: 0 | AI107: 0 | AK107: =SUM(AL107:AO107) -> -637000 | AL107: -126293.62 | AM107: -203496.8605 | AN107: -307209.5195 | AO107: 0 | AQ107: =E$1&$A107&"* """ -> E107* " | AS107: =SUM(AT107:AY107) -> -126293.62 | AT107: -79892.1678 | AU107: -34614.33538 | AV107: 0 | AW107: -317.3665115 | AX107: -11469.75026 | AY107: 0 | BA107: =SUM(BB107:BG107) -> -203496.8605 | BB107: -135416.15 | BC107: -47865.62055 | BD107: 0 | BE107: -745.6314107 | BF107: -19469.45853 | BG107: 0 | BI107: =SUM(BJ107:BO107) -> -307209.5195 | BJ107: -290034.8624 | BK107: -14855.07961 | BL107: -0.0004576954185 | BM107: -144.7458811 | BN107: -2174.831218 | BO107: 0
A108: 108 | D108: Total Amortization | E108: =SUM(E105:E107) -> -10461000 | H108: =IF(ROUND(SUM(H105:H107),3)<>ROUND(SUM(I108:N108),3),#VALUE!,SUM(H105:H107)) -> -10461000 | I108: =SUM(I105:I107) -> -9103536.255 | J108: -1060914.361 | K108: -0.003604363459 | L108: -13124.74624 | M108: -283424.6343 | N108: 0 | P108: =$A105&":"&$A107 -> 105:107 | R108: =SUMPRODUCT($E106:$E107,R106:R107)/$E108 -> 0.06408199176 | S108: =SUMPRODUCT($E106:$E107,S106:S107)/$E108 -> 0.04728209239 | T108: 0.03978141248 | U108: 0 | V108: 0 | W108: 0.1528581347 | X108: 0 | Y108: 0 | Z108: 0 | AA108: 0 | AB108: 0.4351814334 | AC108: 0.1801301955 | AD108: 0.07741941922 | AE108: 0 | AF108: 0.003265320606 | AG108: 0 | AH108: 0 | AI108: 0 | AK108: =IF(ROUND(SUM(AK105:AK107),3)<>ROUND(SUM(AL108:AO108),3),#VALUE!,SUM(AK105:AK107)) -> -10461000 | AL108: =SUM(AL105:AL107) -> -1581133.04 | AM108: =SUM(AM105:AM107) -> -1599048.947 | AN108: =SUM(AN105:AN107) -> -7280818.012 | AO108: =SUM(AO105:AO107) -> 0 | AQ108: =$A105&":"&$A107 -> 105:107 | AS108: =IF(ROUND(SUM(AS105:AS107),3)<>ROUND(SUM(AT108:AY108),3),#VALUE!,SUM(AS105:AS107)) -> -1581133.04 | AT108: =SUM(AT105:AT107) -> -1024058.241 | AU108: -443686.739 | AV108: 0 | AW108: -5604.444862 | AX108: -107783.6154 | AY108: 0 | BA108: =IF(ROUND(SUM(BA105:BA107),3)<>ROUND(SUM(BB108:BG108),3),#VALUE!,SUM(BA105:BA107)) -> -1599048.947 | BB108: =SUM(BB105:BB107) -> -1064080.554 | BC108: -376121.1351 | BD108: 0 | BE108: -5859.063965 | BF108: -152988.194 | BG108: 0 | BI108: =IF(ROUND(SUM(BI105:BI107),3)<>ROUND(SUM(BJ108:BO108),3),#VALUE!,SUM(BI105:BI107)) -> -7280818.012 | BJ108: =SUM(BJ105:BJ107) -> -7015397.459 | BK108: -241106.4872 | BL108: -0.003604363459 | BM108: -1661.237409 | BN108: -22652.82487 | BO108: 0
A109: 109 | AI109: 0
A110: 110 | D110: Total Accum Reserve for Depr & Amort | E110: =E103+E108 -> -195004000 | F110: ="("&A$103&"+"&A$108&")" -> (103+108) | H110: =H103+H108 -> -195004000 | I110: -157179735 | J110: -28824814.53 | K110: -0.1297507137 | L110: -375121.124 | M110: -8624329.261 | N110: 0 | P110: =$A103&"+"&$A108 -> 103+108 | R110: =($E103*R103+$E108*R108)/$E110 -> 0.1007036438 | S110: =($E103*S103+$E108*S108)/$E110 -> 0.0601472859 | T110: 0.07049223226 | U110: 0 | V110: 0 | W110: 0.2607789309 | X110: 0 | Y110: 0 | Z110: 0 | AA110: 0 | AB110: 0.08210788734 | AC110: 0.3478543027 | AD110: 0.07138295298 | AE110: 0 | AF110: 0.006532764101 | AG110: 0 | AH110: 0 | AI110: 0 | AK110: =AK103+AK108 -> -195004000 | AL110: =AL103+AL108 -> -45112841.95 | AM110: =AM103+AM108 -> -50852934.65 | AN110: =AN103+AN108 -> -99038223.4 | AO110: =AO103+AO108 -> 0 | AQ110: =$A103&"+"&$A108 -> 103+108 | AS110: =AS103+AS108 -> -45112841.95 | AT110: -29168320.02 | AU110: -12637559.34 | AV110: 0 | AW110: -149543.3639 | AX110: -3157419.219 | AY110: 0 | BA110: =BA103+BA108 -> -50852934.65 | BB110: -33839876.5 | BC110: -11961399.64 | BD110: 0 | BE110: -186329.879 | BF110: -4865328.633 | BG110: 0 | BI110: =BI103+BI108 -> -99038223.4 | BJ110: -94171538.44 | BK110: -4225855.545 | BL110: -0.1297507137 | BM110: -39247.88111 | BN110: -601581.4095 | BO110: 0
A111: 111 | AI111: 0
A112: 112 | D112: Total Net Plant | E112: =E57+E110 -> 467549000 | F112: ="("&A$57&"+"&A$110&")" -> (57+110) | G112: Net Plant (S18) | H112: =H57+H110 -> 467549000 | I112: =I57+I110 -> 376306905.7 | J112: 69060130.51 | K112: 0.271096062 | L112: 883551.6724 | M112: 21298411.88 | N112: 0 | P112: =$A57&"+"&$A110 -> 57+110 | R112: =($E57*R57+$E110*R110)/$E112 -> 0.1029241254 | S112: =($E57*S57+$E110*S110)/$E112 -> 0.04364945118 | T112: 0.07304887125 | U112: 0 | V112: 0 | W112: 0.2723132798 | X112: 0 | Y112: 0 | Z112: 0 | AA112: 0 | AB112: 0.101007448 | AC112: 0.3031288142 | AD112: 0.09968037048 | AE112: 0 | AF112: 0.004247639622 | AG112: 0 | AH112: 0 | AI112: 0 | AK112: =AK57+AK110 -> 467549000 | AL112: =AL57+AL110 -> 102684255.9 | AM112: =AM57+AM110 -> 127319801.7 | AN112: =AN57+AN110 -> 237544942.5 | AO112: =AO57+AO110 -> 0 | AQ112: =$A57&"+"&$A110 -> 57+110 | AS112: =AS57+AS110 -> 102684255.9 | AT112: 66020467.41 | AU112: 28604238.23 | AV112: 0 | AW112: 322278.2861 | AX112: 7737271.938 | AY112: 0 | BA112: =BA57+BA110 -> 127319801.7 | BB112: 84724439.09 | BC112: 29947593.79 | BD112: 0 | BE112: 466511.5869 | BF112: 12181257.21 | BG112: 0 | BI112: =BI57+BI110 -> 237544942.5 | BJ112: 225561999.2 | BK112: 10508298.49 | BL112: 0.271096062 | BM112: 94761.79933 | BN112: 1379882.734 | BO112: 0
A114: =RowHdr -> 114 | D114: Net UG/D Plant | E114: =E42+E88 -> 363823000 | F114: ="("&A$23&"+"&A$40&")" -> (23+40) | G114: UG/D Plant (S03) | H114: =H42+H88 -> 363823000 | I114: 285672077.4 | J114: 58786988.73 | K114: 0.2371498346 | L114: 756488.0081 | M114: 18607445.58 | N114: 0 | R114: =($E42*R42+$E88*R88)/$E114 -> 0.1146292803 | S114: =($E42*S42+$E88*S88)/$E114 -> 0.04199074825 | T114: 0.08314607919 | U114: 0 | V114: 0 | W114: 0.308565293 | X114: 0 | Y114: 0 | Z114: 0 | AA114: 0 | AB114: 0 | AC114: 0.3407719344 | AD114: 0.106336812 | AE114: 0 | AF114: 0.004559852826 | AG114: 0 | AH114: 0 | AI114: =(AI42+AI88)/2 -> 0
A116: 116 | E116: =(E112/1000)-PROFORMA!AP354 -> 0 | AI116: 0
A117: 117 | C117: A | D117: Accumulated Deferred Income Taxes | E117: =PROFORMA!AP365*1000 -> -89888000 | F117: ="as Plant in Service ("&A$57&")" -> as Plant in Service (57) | H117: =SUM(I117:N117) -> -89888000 | I117: =$E117*SUMPRODUCT($R117:$AH117,INDEX(AllocFactors,I$4,0)) -> -72377677.19 | J117: -13279966.95 | K117: -0.05438253992 | L117: -170763.064 | M117: -4059592.75 | N117: 0 | P117: =E$1&$A117&"* Sum["&$R$1&$A117&":"&$AH$1&$A117&"* "&Factors!D$1&Factors!$A$58&":"&Factors!S$1&Factors!$A$64&"]" -> E117* Sum[R117:AH117* D1037:S1043] | R117: =R$57 -> 0.1022705886 | S117: =S$57 -> 0.04850512878 | T117: 0.07229639586 | U117: 0 | V117: 0 | W117: 0.2689184659 | X117: 0 | Y117: 0 | Z117: 0 | AA117: 0 | AB117: 0.09544488936 | AC117: 0.3162925145 | AD117: 0.09135181473 | AE117: 0 | AF117: 0.004920202291 | AG117: 0 | AH117: 0 | AI117: 0 | AK117: =SUM(AL117:AO117) -> -89888000 | AL117: =SUMIF($R$4:$AH$4,AL$5,$R117:$AH117)*$E117 -> -20051506.11 | AM117: =SUMIF($R$4:$AH$4,AM$5,$R117:$AH117)*$E117 -> -24172543.06 | AN117: =SUMIF($R$4:$AH$4,AN$5,$R117:$AH117)*$E117 -> -45663950.83 | AO117: =SUMIF($R$4:$AH$4,AO$5,$R117:$AH117)*$E117 -> 0 | AQ117: =E$1&$A117&"*["&R$1&$A117&":"&$AH$1&$A117&" when "&R$1&$A$4&":"&$AH$1&$A$4&" = E,D,C,or R]" -> E117*[R117:AH117 when R4:AH4 = E,D,C,or R] | AS117: =SUM(AT117:AY117) -> -20051506.11 | AT117: =$E117*SUMPRODUCT($R117:$V117,INDEX(AllocFactors_E,AT$4,0)) -> -12914181.54 | AU117: -5595239.476 | AV117: 0 | AW117: -64011.64054 | AX117: -1478073.45 | AY117: 0 | BA117: =SUM(BB117:BG117) -> -24172543.06 | BB117: =$E117*SUMPRODUCT($W117:$AA117,INDEX(AllocFactors_D,BB$4,0)) -> -16085519.5 | BC117: -5685757.367 | BD117: 0 | BE117: -88570.44446 | BF117: -2312695.751 | BG117: 0 | BI117: =SUM(BJ117:BO117) -> -45663950.83 | BJ117: =$E117*SUMPRODUCT($AB117:$AG117,INDEX(AllocFactors_C,BJ$4,0)) -> -43377976.14 | BK117: -1998970.102 | BL117: -0.05438253992 | BM117: -18180.97896 | BN117: -268823.5491 | BO117: 0
A118: 118 | AI118: 0
A119: 119 | D119: Miscellaneous Rate Base Items | AI119: 0
A120: 120 | C120: D | D120: Customer Advances and Deposits | E120: =(PROFORMA!AP368+PROFORMA!AP369)*1000 -> -566000 | F120: input - DA 101 | H120: =SUM(I120:N120) -> -566000 | I120: =$E120*SUMPRODUCT($R120:$AH120,INDEX(AllocFactors,I$4,0)) -> -566000 | J120: 0 | K120: 0 | L120: 0 | M120: 0 | N120: 0 | P120: =E$1&$A120&"* Sum["&$R$1&$A120&":"&$AH$1&$A120&"* "&Factors!D$1&Factors!$A$58&":"&Factors!S$1&Factors!$A$64&"]" -> E120* Sum[R120:AH120* D1037:S1043] | S120: 0 | T120: 0 | U120: 0 | V120: 0 | W120: 0 | X120: 0 | Y120: 0 | Z120: 0 | AA120: 0 | AB120: 0 | AC120: 0 | AD120: 0 | AE120: 0 | AF120: 0 | AG120: 1 | AH120: 0 | AI120: 0 | AK120: =SUM(AL120:AO120) -> -566000 | AL120: =SUMIF($R$4:$AH$4,AL$5,$R120:$AH120)*$E120 -> 0 | AM120: 0 | AN120: -566000 | AO120: 0 | AQ120: =E$1&$A120&"*["&R$1&$A120&":"&$AH$1&$A120&" when "&R$1&$A$4&":"&$AH$1&$A$4&" = E,D,C,or R]" -> E120*[R120:AH120 when R4:AH4 = E,D,C,or R] | AS120: =SUM(AT120:AY120) -> 0 | AT120: =$E120*SUMPRODUCT($R120:$V120,INDEX(AllocFactors_E,AT$4,0)) -> 0 | AU120: 0 | AV120: 0 | AW120: 0 | AX120: 0 | AY120: 0 | BA120: =SUM(BB120:BG120) -> 0 | BB120: =$E120*SUMPRODUCT($W120:$AA120,INDEX(AllocFactors_D,BB$4,0)) -> 0 | BC120: 0 | BD120: 0 | BE120: 0 | BF120: 0 | BG120: 0 | BI120: =SUM(BJ120:BO120) -> -566000 | BJ120: =$E120*SUMPRODUCT($AB120:$AG120,INDEX(AllocFactors_C,BJ$4,0)) -> -566000 | BK120: 0 | BL120: 0 | BM120: 0 | BN120: 0 | BO120: 0
A121: 121 | C121: U | D121: Gas Inventory | E121: =PROFORMA!AP370*1000 -> 8355000 | F121: ="as UG Storage Plant ("&A$23&")" -> as UG Storage Plant (23) | H121: =SUM(I121:N121) -> 8355000 | I121: 5677253.279 | J121: 2459744.859 | K121: 0 | L121: 43366.03332 | M121: 174635.8289 | N121: 0 | P121: =E$1&$A121&"* """ -> E121* " | R121: =R$23 -> 0.13 | S121: =S$23 -> 0.87 | T121: 0 | U121: 0 | V121: 0 | W121: 0 | X121: 0 | Y121: 0 | Z121: 0 | AA121: 0 | AB121: 0 | AC121: 0 | AD121: 0 | AE121: 0 | AF121: 0 | AG121: 0 | AH121: 0 | AI121: 0 | AK121: =SUM(AL121:AO121) -> 8355000 | AL121: 8355000 | AM121: 0 | AN121: 0 | AO121: 0 | AQ121: =E$1&$A121&"* """ -> E121* " | AS121: =SUM(AT121:AY121) -> 8355000 | AT121: 5677253.279 | AU121: 2459744.859 | AV121: 0 | AW121: 43366.03332 | AX121: 174635.8289 | AY121: 0 | BA121: =SUM(BB121:BG121) -> 0 | BB121: 0 | BC121: 0 | BD121: 0 | BE121: 0 | BF121: 0 | BG121: 0 | BI121: =SUM(BJ121:BO121) -> 0 | BJ121: 0 | BK121: 0 | BL121: 0 | BM121: 0 | BN121: 0 | BO121: 0
A122: 122 | C122: O | D122: Working Capital | E122: =PROFORMA!AP371*1000 -> 7549000 | F122: as Plant in Service (56) | H122: =SUM(I122:N122) -> 7549000 | I122: =$E122*SUMPRODUCT($R122:$AH122,INDEX(AllocFactors,I$4,0)) -> 6078443.008 | J122: 1115282.023 | K122: 0.004567170188 | L122: 14341.073 | M122: 340933.8919 | N122: 0 | P122: =E$1&$A122&"* """ -> E122* " | R122: =R$57 -> 0.1022705886 | S122: =S$57 -> 0.04850512878 | T122: 0.07229639586 | U122: 0 | V122: 0 | W122: 0.2689184659 | X122: 0 | Y122: 0 | Z122: 0 | AA122: 0 | AB122: 0.09544488936 | AC122: 0.3162925145 | AD122: 0.09135181473 | AE122: 0 | AF122: 0.004920202291 | AG122: =AG$55 -> 0 | AH122: =AH$55 -> 0 | AI122: 0 | AK122: =SUM(AL122:AO122) -> 7549000 | AL122: 1683971.383 | AM122: 2030065.499 | AN122: 3834963.119 | AO122: 0 | AQ122: =E$1&$A122&"* """ -> E122* " | AS122: =SUM(AT122:AY122) -> 1683971.383 | AT122: 1084562.528 | AU122: 469901.0191 | AV122: 0 | AW122: 5375.8441 | AX122: 124131.9918 | AY122: 0 | BA122: =SUM(BB122:BG122) -> 2030065.499 | BB122: 1350898.748 | BC122: 477502.9188 | BD122: 0 | BE122: 7438.34867 | BF122: 194225.4831 | BG122: 0 | BI122: =SUM(BJ122:BO122) -> 3834963.119 | BJ122: 3642981.732 | BK122: 167878.085 | BL122: 0.004567170188 | BM122: 1526.880231 | BN122: 22576.41701 | BO122: 0
A123: 123 | C123: O | D123: Miscellaneous Rate Base Items | E123: =PROFORMA!AP373*1000 -> -751000 | F123: as Plant in Service (56) | H123: =SUM(I123:N123) -> -751000 | I123: =$E123*SUMPRODUCT($R123:$AH123,INDEX(AllocFactors,I$4,0)) -> -604704.0269 | J123: =$E123*SUMPRODUCT($R123:$AH123,INDEX(AllocFactors,J$4,0)) -> -110952.02 | K123: -0.0004543575058 | L123: -1426.698347 | M123: -33917.25431 | N123: 0 | P123: =E$1&$A123&"* """ -> E123* " | R123: =R$57 -> 0.1022705886 | S123: 0.04850512878 | T123: 0.07229639586 | U123: 0 | V123: 0 | W123: 0.2689184659 | X123: 0 | Y123: 0 | Z123: 0 | AA123: 0 | AB123: 0.09544488936 | AC123: 0.3162925145 | AD123: 0.09135181473 | AE123: 0 | AF123: 0.004920202291 | AG123: =AG$55 -> 0 | AH123: =AH$55 -> 0 | AI123: =IF(SUM(R123:AH123)<>0,(ROUND(SUM(R123:AH123),8)<>1)+0,0) -> 0 | AK123: =SUM(AL123:AO123) -> -751000 | AL123: =SUMIF($R$4:$AH$4,AL$5,$R123:$AH123)*$E123 -> -167527.157 | AM123: -201957.7679 | AN123: -381515.0751 | AO123: 0 | AQ123: =E$1&$A123&"* """ -> E123* " | AS123: =SUM(AT123:AY123) -> -167527.157 | AT123: =$E123*SUMPRODUCT($R123:$V123,INDEX(AllocFactors_E,AT$4,0)) -> -107895.9409 | AU123: -46747.33943 | AV123: 0 | AW123: -534.8071161 | AX123: -12349.06952 | AY123: 0 | BA123: =SUM(BB123:BG123) -> -201957.7679 | BB123: =$E123*SUMPRODUCT($W123:$AA123,INDEX(AllocFactors_D,BB$4,0)) -> -134391.9671 | BC123: -47503.60207 | BD123: 0 | BE123: -739.9920322 | BF123: -19322.20662 | BG123: 0 | BI123: =SUM(BJ123:BO123) -> -381515.0751 | BJ123: =$E123*SUMPRODUCT($AB123:$AG123,INDEX(AllocFactors_C,BJ$4,0)) -> -362416.1188 | BK123: -16701.07853 | BL123: -0.0004543575058 | BM123: -151.899199 | BN123: -2245.978166 | BO123: 0
A124: 124 | C124: O | D124: Other (LEAP Program - Sch 101 only) | E124: =PROFORMA!AP372*1000 -> 6743000 | F124: input - DA 101 | H124: =SUM(I124:N124) -> 6743000 | I124: =$E124*SUMPRODUCT($R124:$AH124,INDEX(AllocFactors,I$4,0)) -> 6743000 | J124: 0 | K124: 0 | L124: 0 | M124: 0 | N124: 0 | P124: =E$1&$A124&"* """ -> E124* " | AG124: 1 | AI124: 0 | AK124: =SUM(AL124:AO124) -> 6743000 | AL124: 0 | AM124: 0 | AN124: 6743000 | AO124: 0 | AQ124: =E$1&$A124&"* """ -> E124* " | AS124: =SUM(AT124:AY124) -> 0 | AT124: 0 | AU124: 0 | AV124: 0 | AW124: 0 | AX124: 0 | AY124: 0 | BA124: =SUM(BB124:BG124) -> 0 | BB124: 0 | BC124: 0 | BD124: 0 | BE124: 0 | BF124: 0 | BG124: 0 | BI124: =SUM(BJ124:BO124) -> 6743000 | BJ124: 6743000 | BK124: 0 | BL124: 0 | BM124: 0 | BN124: 0 | BO124: 0
A125: 125 | AI125: 0
A126: 126 | D126: Total Other Rate Base Items | E126: =SUM(E117:E124) -> -68558000 | H126: =IF(ROUND(SUM(H117:H125),3)<>ROUND(SUM(I126:N126),3),#VALUE!,SUM(H117:H125)) -> -68558000 | I126: =SUM(I117:I125) -> -55049684.93 | J126: -9815892.084 | K126: -0.05026972724 | L126: -114482.656 | M126: -3577940.284 | N126: 0 | P126: =$A117&":"&$A125 -> 117:125 | R126: =SUMPRODUCT($E117:$E125,R117:R125)/$E126 -> 0.1081057383 | S126: -0.04723823405 | T126: 0.08762081058 | U126: 0 | V126: 0 | W126: 0.3259201746 | X126: 0 | Y126: 0 | Z126: 0 | AA126: 0 | AB126: 0.1156760095 | AC126: 0.383335935 | AD126: 0.1107153401 | AE126: 0 | AF126: 0.0059631204 | AG126: -0.09009889437 | AH126: 0 | AI126: 0 | AK126: =IF(ROUND(SUM(AK117:AK125),3)<>ROUND(SUM(AL126:AO126),3),#VALUE!,SUM(AK117:AK125)) -> -68558000 | AL126: =SUM(AL117:AL125) -> -10180061.89 | AM126: =SUM(AM117:AM125) -> -22344435.33 | AN126: =SUM(AN117:AN125) -> -36033502.78 | AO126: =SUM(AO117:AO125) -> 0 | AQ126: =$A117&":"&$A125 -> 117:125 | AS126: =IF(ROUND(SUM(AS117:AS125),3)<>ROUND(SUM(AT126:AY126),3),#VALUE!,SUM(AS117:AS125)) -> -10180061.89 | AT126: =SUM(AT117:AT125) -> -6260261.679 | AU126: -2712340.937 | AV126: 0 | AW126: -15804.57024 | AX126: -1191654.699 | AY126: 0 | BA126: =IF(ROUND(SUM(BA117:BA125),3)<>ROUND(SUM(BB126:BG126),3),#VALUE!,SUM(BA117:BA125)) -> -22344435.33 | BB126: =SUM(BB117:BB125) -> -14869012.72 | BC126: -5255758.051 | BD126: 0 | BE126: -81872.08782 | BF126: -2137792.474 | BG126: 0 | BI126: =IF(ROUND(SUM(BI117:BI125),3)<>ROUND(SUM(BJ126:BO126),3),#VALUE!,SUM(BI117:BI125)) -> -36033502.78 | BJ126: =SUM(BJ117:BJ125) -> -33920410.53 | BK126: -1847793.096 | BL126: -0.05026972724 | BM126: -16805.99793 | BN126: -248493.1102 | BO126: 0
A127: 127 | AI127: 0
A128: 128 | D128: Total Rate Base | E128: =E112+E126 -> 398991000 | F128: ="("&A$112&"+"&A$126&")" -> (112+126) | G128: Total Rate Base (S01) | H128: =H112+H126 -> 398991000 | I128: =I112+I126 -> 321257220.7 | J128: 59244238.43 | K128: 0.2208263347 | L128: 769069.0164 | M128: 17720471.59 | N128: 0 | P128: =$A112&"+"&$A126 -> 112+126 | R128: =($E112*R112+$E126*R126)/$E128 -> 0.102033777 | S128: 0.05926654009 | T128: 0.07054499769 | U128: 0 | V128: 0 | W128: 0.2631020909 | X128: 0 | Y128: 0 | Z128: 0 | AA128: 0 | AB128: 0.09848697204 | AC128: 0.28934695 | AD128: 0.0977842489 | AE128: 0 | AF128: 0.003952871241 | AG128: 0.01548155222 | AH128: 0 | AI128: 0 | AK128: =AK112+AK126 -> 398991000 | AL128: =AL112+AL126 -> 92504193.98 | AM128: =AM112+AM126 -> 104975366.3 | AN128: =AN112+AN126 -> 201511439.7 | AO128: =AO112+AO126 -> 0 | AQ128: =$A112&"+"&$A126 -> 112+126 | AS128: =AS112+AS126 -> 92504193.98 | AT128: 59760205.73 | AU128: 25891897.3 | AV128: 0 | AW128: 306473.7159 | AX128: 6545617.239 | AY128: 0 | BA128: =BA112+BA126 -> 104975366.3 | BB128: 69855426.38 | BC128: 24691835.74 | BD128: 0 | BE128: 384639.4991 | BF128: 10043464.73 | BG128: 0 | BI128: =BI112+BI126 -> 201511439.7 | BJ128: 191641588.6 | BK128: 8660505.398 | BL128: 0.2208263347 | BM128: 77955.8014 | BN128: 1131389.624 | BO128: 0
A129: 129 | D129: Rate of Return | E129: =-E430/E128 -> 0.05071542967 | H129: =IF(H128,-H430/H128,0) -> 0.05071542957 | I129: 0.03445319703 | J129: 0.1359289938 | K129: =IF(K128,-K430/K128,0) -> -0.09217092357 | L129: 0.1109752341 | M129: 0.05802917365 | N129: 0 | P129: ="-"&$A430&"/"&$A128 -> -430/128 | AI129: 0 | AK129: =IF(AK128<>0,-AK430/AK128,0) -> 0.05071542967 | AL129: =IF(AL128<>0,-AL430/AL128,0) -> -0.1017532108 | AM129: =IF(AM128<>0,-AM430/AM128,0) -> -0.0833091956 | AN129: =IF(AN128<>0,-AN430/AN128,0) -> -0.1769695792 | AO129: =IF(AO128<>0,-AO430/AO128,0) -> 0 | AQ129: ="-"&$A430&"/"&$A128 -> -430/128
A130: 130 | E130: =E128/1000-PROFORMA!AP376 -> 0 | AI130: 0
A131: 131 | AI131: 0
A132: 132 | C132: U | D132: Underground Storage | E132: =SUMIF($C$7:$C$128,$C132,E$7:E$128) -> 25915000 | F132: ="sum where Func = "&$C132&" ("&A$7&"-"&A$128&")" -> sum where Func = U (7-128) | H132: =SUMIF($C$7:$C$128,$C132,H$7:H$128) -> 25915000 | I132: 17609337.97 | J132: 7629477.92 | K132: 0 | L132: 134509.9645 | M132: 541674.1479 | N132: 0 | P132: =H$1&$A$7&":"&H$1&$A$128&", col "&C$1&"= T" -> H7:H128, col C= T | R132: =SUM(IF($C$7:$C$128=$C132,$E$7:$E$128*R$7:R$128))/$E132 -> 0.13 | S132: =SUM(IF($C$7:$C$128=$C132,$E$7:$E$128*S$7:S$128))/$E132 -> 0.87 | T132: =SUM(IF($C$7:$C$128=$C132,$E$7:$E$128*T$7:T$128))/$E132 -> 0 | U132: =SUM(IF($C$7:$C$128=$C132,$E$7:$E$128*U$7:U$128))/$E132 -> 0 | V132: =SUM(IF($C$7:$C$128=$C132,$E$7:$E$128*V$7:V$128))/$E132 -> 0 | W132: =SUM(IF($C$7:$C$128=$C132,$E$7:$E$128*W$7:W$128))/$E132 -> 0 | X132: =SUM(IF($C$7:$C$128=$C132,$E$7:$E$128*X$7:X$128))/$E132 -> 0 | Y132: =SUM(IF($C$7:$C$128=$C132,$E$7:$E$128*Y$7:Y$128))/$E132 -> 0 | Z132: =SUM(IF($C$7:$C$128=$C132,$E$7:$E$128*Z$7:Z$128))/$E132 -> 0 | AA132: =SUM(IF($C$7:$C$128=$C132,$E$7:$E$128*AA$7:AA$128))/$E132 -> 0 | AB132: =SUM(IF($C$7:$C$128=$C132,$E$7:$E$128*AB$7:AB$128))/$E132 -> 0 | AC132: =SUM(IF($C$7:$C$128=$C132,$E$7:$E$128*AC$7:AC$128))/$E132 -> 0 | AD132: =SUM(IF($C$7:$C$128=$C132,$E$7:$E$128*AD$7:AD$128))/$E132 -> 0 | AE132: =SUM(IF($C$7:$C$128=$C132,$E$7:$E$128*AE$7:AE$128))/$E132 -> 0 | AF132: =SUM(IF($C$7:$C$128=$C132,$E$7:$E$128*AF$7:AF$128))/$E132 -> 0 | AG132: =SUM(IF($C$7:$C$128=$C132,$E$7:$E$128*AG$7:AG$128))/$E132 -> 0 | AH132: =SUM(IF($C$7:$C$128=$C132,$E$7:$E$128*AH$7:AH$128))/$E132 -> 0 | AI132: 0 | AK132: =SUMIF($C$7:$C$128,$C132,AK$7:AK$128) -> 25915000 | AL132: 25915000 | AM132: 0 | AN132: 0 | AO132: 0 | AQ132: =E$1&$A132&"* """ -> E132* " | AS132: =SUM(AT132:AY132) -> 25915000 | AT132: =SUMIF($C$7:$C$128,$C132,AT$7:AT$128) -> 17609337.97 | AU132: 7629477.92 | AV132: 0 | AW132: 134509.9645 | AX132: 541674.1479 | AY132: 0 | BA132: =SUM(BB132:BG132) -> 0 | BB132: =SUMIF($C$7:$C$128,$C132,BB$7:BB$128) -> 0 | BC132: 0 | BD132: 0 | BE132: 0 | BF132: 0 | BG132: 0 | BI132: =SUM(BJ132:BO132) -> 0 | BJ132: =SUMIF($C$7:$C$128,$C132,BJ$7:BJ$128) -> 0 | BK132: 0 | BL132: 0 | BM132: 0 | BN132: 0 | BO132: 0
A133: 133 | C133: D | D133: Distribution | E133: =SUMIF($C$7:$C$128,$C133,E$7:E$128) -> 347511000 | F133: ="sum where Func = "&$C133&" ("&A$7&"-"&A$128&")" -> sum where Func = D (7-128) | H133: 347511000 | I133: 274613070.5 | J133: 53894438.96 | K133: 0.2384532247 | L133: 668783.3976 | M133: 18334706.9 | N133: 0 | P133: =H$1&$A$7&":"&H$1&$A$128&", col "&C$1&"= D" -> H7:H128, col C= D | R133: =SUM(IF($C$7:$C$128=$C133,$E$7:$E$128*R$7:R$128))/$E133 -> 0.1140254975 | S133: =SUM(IF($C$7:$C$128=$C133,$E$7:$E$128*S$7:S$128))/$E133 -> 0 | T133: =SUM(IF($C$7:$C$128=$C133,$E$7:$E$128*T$7:T$128))/$E133 -> 0.08749927141 | U133: =SUM(IF($C$7:$C$128=$C133,$E$7:$E$128*U$7:U$128))/$E133 -> 0 | V133: =SUM(IF($C$7:$C$128=$C133,$E$7:$E$128*V$7:V$128))/$E133 -> 0 | W133: =SUM(IF($C$7:$C$128=$C133,$E$7:$E$128*W$7:W$128))/$E133 -> 0.3247167815 | X133: =SUM(IF($C$7:$C$128=$C133,$E$7:$E$128*X$7:X$128))/$E133 -> 0 | Y133: =SUM(IF($C$7:$C$128=$C133,$E$7:$E$128*Y$7:Y$128))/$E133 -> 0 | Z133: =SUM(IF($C$7:$C$128=$C133,$E$7:$E$128*Z$7:Z$128))/$E133 -> 0 | AA133: =SUM(IF($C$7:$C$128=$C133,$E$7:$E$128*AA$7:AA$128))/$E133 -> 0 | AB133: =SUM(IF($C$7:$C$128=$C133,$E$7:$E$128*AB$7:AB$128))/$E133 -> 0 | AC133: =SUM(IF($C$7:$C$128=$C133,$E$7:$E$128*AC$7:AC$128))/$E133 -> 0.3587284226 | AD133: =SUM(IF($C$7:$C$128=$C133,$E$7:$E$128*AD$7:AD$128))/$E133 -> 0.1118550799 | AE133: =SUM(IF($C$7:$C$128=$C133,$E$7:$E$128*AE$7:AE$128))/$E133 -> 0 | AF133: =SUM(IF($C$7:$C$128=$C133,$E$7:$E$128*AF$7:AF$128))/$E133 -> 0.004803672577 | AG133: =SUM(IF($C$7:$C$128=$C133,$E$7:$E$128*AG$7:AG$128))/$E133 -> -0.001628725422 | AH133: =SUM(IF($C$7:$C$128=$C133,$E$7:$E$128*AH$7:AH$128))/$E133 -> 0 | AI133: 0 | AK133: 347511000 | AL133: 70032073.96 | AM133: 112842653.4 | AN133: 164636272.6 | AO133: 0 | AQ133: =E$1&$A133&"* """ -> E133* " | AS133: =SUM(AT133:AY133) -> 70032073.96 | AT133: 44293813.01 | AU133: 19190878.67 | AV133: 0 | AW133: 176287.3752 | AX133: 6371094.916 | AY133: 0 | BA133: =SUM(BB133:BG133) -> 112842653.4 | BB133: 75090680.26 | BC133: 26542343.79 | BD133: 0 | BE133: 413465.9702 | BF133: 10796163.42 | BG133: 0 | BI133: =SUM(BJ133:BO133) -> 164636272.6 | BJ133: 155228577.2 | BK133: 8161216.505 | BL133: 0.2384532247 | BM133: 79030.05212 | BN133: 1167448.564 | BO133: 0
A134: 134 | C134: M | D134: DSM | E134: =SUMIF($C$7:$C$128,$C134,E$7:E$128) -> 0 | F134: ="sum where Func = "&$C134&" ("&A$7&"-"&A$128&")" -> sum where Func = M (7-128) | H134: 0 | I134: 0 | J134: 0 | K134: 0 | L134: 0 | M134: 0 | N134: 0 | P134: =H$1&$A$7&":"&H$1&$A$128&", col "&C$1&"= D" -> H7:H128, col C= D | R134: =IF($E134,SUM(IF($C$7:$C$128=$C134,$E$7:$E$128*R$7:R$128))/$E134,0) -> 0 | S134: =IF($E134,SUM(IF($C$7:$C$128=$C134,$E$7:$E$128*S$7:S$128))/$E134,0) -> 0 | T134: =IF($E134,SUM(IF($C$7:$C$128=$C134,$E$7:$E$128*T$7:T$128))/$E134,0) -> 0 | U134: =IF($E134,SUM(IF($C$7:$C$128=$C134,$E$7:$E$128*U$7:U$128))/$E134,0) -> 0 | V134: =IF($E134,SUM(IF($C$7:$C$128=$C134,$E$7:$E$128*V$7:V$128))/$E134,0) -> 0 | W134: =IF($E134,SUM(IF($C$7:$C$128=$C134,$E$7:$E$128*W$7:W$128))/$E134,0) -> 0 | X134: =IF($E134,SUM(IF($C$7:$C$128=$C134,$E$7:$E$128*X$7:X$128))/$E134,0) -> 0 | Y134: =IF($E134,SUM(IF($C$7:$C$128=$C134,$E$7:$E$128*Y$7:Y$128))/$E134,0) -> 0 | Z134: =IF($E134,SUM(IF($C$7:$C$128=$C134,$E$7:$E$128*Z$7:Z$128))/$E134,0) -> 0 | AA134: =IF($E134,SUM(IF($C$7:$C$128=$C134,$E$7:$E$128*AA$7:AA$128))/$E134,0) -> 0 | AB134: =IF($E134,SUM(IF($C$7:$C$128=$C134,$E$7:$E$128*AB$7:AB$128))/$E134,0) -> 0 | AC134: =IF($E134,SUM(IF($C$7:$C$128=$C134,$E$7:$E$128*AC$7:AC$128))/$E134,0) -> 0 | AD134: =IF($E134,SUM(IF($C$7:$C$128=$C134,$E$7:$E$128*AD$7:AD$128))/$E134,0) -> 0 | AE134: =IF($E134,SUM(IF($C$7:$C$128=$C134,$E$7:$E$128*AE$7:AE$128))/$E134,0) -> 0 | AF134: =IF($E134,SUM(IF($C$7:$C$128=$C134,$E$7:$E$128*AF$7:AF$128))/$E134,0) -> 0 | AG134: =IF($E134,SUM(IF($C$7:$C$128=$C134,$E$7:$E$128*AG$7:AG$128))/$E134,0) -> 0 | AH134: =IF($E134,SUM(IF($C$7:$C$128=$C134,$E$7:$E$128*AH$7:AH$128))/$E134,0) -> 0 | AI134: 0 | AK134: 0 | AL134: 0 | AM134: 0 | AN134: 0 | AO134: 0 | AQ134: =E$1&$A134&"* """ -> E134* " | AS134: =SUM(AT134:AY134) -> 0 | AT134: 0 | AU134: 0 | AV134: 0 | AW134: 0 | AX134: 0 | AY134: 0 | BA134: =SUM(BB134:BG134) -> 0 | BB134: 0 | BC134: 0 | BD134: 0 | BE134: 0 | BF134: 0 | BG134: 0 | BI134: =SUM(BJ134:BO134) -> 0 | BJ134: 0 | BK134: 0 | BL134: 0 | BM134: 0 | BN134: 0 | BO134: 0
A135: =RowHdr -> 135 | C135: O | D135: Common | E135: =SUMIF($C$7:$C$128,$C135,E$7:E$128) -> 115453000 | F135: ="sum where Func = "&$C135&" ("&A$7&"-"&A$128&")" -> sum where Func = O (7-128) | H135: 115453000 | I135: 101412489.4 | J135: 11000288.5 | K135: 0.03675564996 | L135: 136538.7183 | M135: 2903683.299 | N135: 0 | P135: =H$1&$A$7&":"&H$1&$A$128&", col "&C$1&"= O" -> H7:H128, col C= O | R135: =SUM(IF($C$7:$C$128=$C135,$E$7:$E$128*R$7:R$128))/$E135 -> 0.05984593485 | S135: =SUM(IF($C$7:$C$128=$C135,$E$7:$E$128*S$7:S$128))/$E135 -> 0.04729885852 | T135: =SUM(IF($C$7:$C$128=$C135,$E$7:$E$128*T$7:T$128))/$E135 -> 0.0367113743 | U135: =SUM(IF($C$7:$C$128=$C135,$E$7:$E$128*U$7:U$128))/$E135 -> 0 | V135: =SUM(IF($C$7:$C$128=$C135,$E$7:$E$128*V$7:V$128))/$E135 -> 0 | W135: =SUM(IF($C$7:$C$128=$C135,$E$7:$E$128*W$7:W$128))/$E135 -> 0.141228517 | X135: =SUM(IF($C$7:$C$128=$C135,$E$7:$E$128*X$7:X$128))/$E135 -> 0 | Y135: =SUM(IF($C$7:$C$128=$C135,$E$7:$E$128*Y$7:Y$128))/$E135 -> 0 | Z135: =SUM(IF($C$7:$C$128=$C135,$E$7:$E$128*Z$7:Z$128))/$E135 -> 0 | AA135: =SUM(IF($C$7:$C$128=$C135,$E$7:$E$128*AA$7:AA$128))/$E135 -> 0 | AB135: =SUM(IF($C$7:$C$128=$C135,$E$7:$E$128*AB$7:AB$128))/$E135 -> 0.4146688755 | AC135: =SUM(IF($C$7:$C$128=$C135,$E$7:$E$128*AC$7:AC$128))/$E135 -> 0.1664370573 | AD135: =SUM(IF($C$7:$C$128=$C135,$E$7:$E$128*AD$7:AD$128))/$E135 -> 0.07237227719 | AE135: =SUM(IF($C$7:$C$128=$C135,$E$7:$E$128*AE$7:AE$128))/$E135 -> 0 | AF135: =SUM(IF($C$7:$C$128=$C135,$E$7:$E$128*AF$7:AF$128))/$E135 -> 0.003032386616 | AG135: =SUM(IF($C$7:$C$128=$C135,$E$7:$E$128*AG$7:AG$128))/$E135 -> 0.0584047188 | AH135: =SUM(IF($C$7:$C$128=$C135,$E$7:$E$128*AH$7:AH$128))/$E135 -> 0 | AI135: 0 | AK135: 115453000 | AL135: 16608626.13 | AM135: 16305255.97 | AN135: 82539117.91 | AO135: 0 | AQ135: =E$1&$A135&"* """ -> E135* " | AS135: =SUM(AT135:AY135) -> 16608626.13 | AT135: 10771236.3 | AU135: 4666780.186 | AV135: 0 | AW135: 59688.01671 | AX135: 1110921.626 | AY135: 0 | BA135: =SUM(BB135:BG135) -> 16305255.97 | BB135: 10850265.61 | BC135: 3835249.316 | BD135: 0 | BE135: 59743.97334 | BF135: 1559997.064 | BG135: 0 | BI135: =SUM(BJ135:BO135) -> 82539117.91 | BJ135: 79790987.54 | BK135: 2498258.995 | BL135: 0.03675564996 | BM135: 17106.72824 | BN135: 232764.6092 | BO135: 0
A136: 136 | C136: A | D136: Allocated | E136: =SUMIF($C$7:$C$128,$C136,E$7:E$128) -> -89888000 | F136: ="sum where Func = "&$C136&" ("&A$7&"-"&A$128&")" -> sum where Func = A (7-128) | H136: -89888000 | I136: -72377677.19 | J136: -13279966.95 | K136: -0.05438253992 | L136: -170763.064 | M136: -4059592.75 | N136: 0 | P136: =H$1&$A$7&":"&H$1&$A$128&", col "&C$1&"= O" -> H7:H128, col C= O | R136: =SUM(IF($C$7:$C$128=$C136,$E$7:$E$128*R$7:R$128))/$E136 -> 0.1022705886 | S136: =SUM(IF($C$7:$C$128=$C136,$E$7:$E$128*S$7:S$128))/$E136 -> 0.04850512878 | T136: =SUM(IF($C$7:$C$128=$C136,$E$7:$E$128*T$7:T$128))/$E136 -> 0.07229639586 | U136: =SUM(IF($C$7:$C$128=$C136,$E$7:$E$128*U$7:U$128))/$E136 -> 0 | V136: =SUM(IF($C$7:$C$128=$C136,$E$7:$E$128*V$7:V$128))/$E136 -> 0 | W136: =SUM(IF($C$7:$C$128=$C136,$E$7:$E$128*W$7:W$128))/$E136 -> 0.2689184659 | X136: =SUM(IF($C$7:$C$128=$C136,$E$7:$E$128*X$7:X$128))/$E136 -> 0 | Y136: =SUM(IF($C$7:$C$128=$C136,$E$7:$E$128*Y$7:Y$128))/$E136 -> 0 | Z136: =SUM(IF($C$7:$C$128=$C136,$E$7:$E$128*Z$7:Z$128))/$E136 -> 0 | AA136: =SUM(IF($C$7:$C$128=$C136,$E$7:$E$128*AA$7:AA$128))/$E136 -> 0 | AB136: =SUM(IF($C$7:$C$128=$C136,$E$7:$E$128*AB$7:AB$128))/$E136 -> 0.09544488936 | AC136: =SUM(IF($C$7:$C$128=$C136,$E$7:$E$128*AC$7:AC$128))/$E136 -> 0.3162925145 | AD136: =SUM(IF($C$7:$C$128=$C136,$E$7:$E$128*AD$7:AD$128))/$E136 -> 0.09135181473 | AE136: =SUM(IF($C$7:$C$128=$C136,$E$7:$E$128*AE$7:AE$128))/$E136 -> 0 | AF136: =SUM(IF($C$7:$C$128=$C136,$E$7:$E$128*AF$7:AF$128))/$E136 -> 0.004920202291 | AG136: =SUM(IF($C$7:$C$128=$C136,$E$7:$E$128*AG$7:AG$128))/$E136 -> 0 | AH136: =SUM(IF($C$7:$C$128=$C136,$E$7:$E$128*AH$7:AH$128))/$E136 -> 0 | AI136: 0 | AK136: -89888000 | AL136: -20051506.11 | AM136: -24172543.06 | AN136: -45663950.83 | AO136: 0 | AQ136: =E$1&$A136&"* """ -> E136* " | AS136: =SUM(AT136:AY136) -> -20051506.11 | AT136: -12914181.54 | AU136: -5595239.476 | AV136: 0 | AW136: -64011.64054 | AX136: -1478073.45 | AY136: 0 | BA136: =SUM(BB136:BG136) -> -24172543.06 | BB136: -16085519.5 | BC136: -5685757.367 | BD136: 0 | BE136: -88570.44446 | BF136: -2312695.751 | BG136: 0 | BI136: =SUM(BJ136:BO136) -> -45663950.83 | BJ136: -43377976.14 | BK136: -1998970.102 | BL136: -0.05438253992 | BM136: -18180.97896 | BN136: -268823.5491 | BO136: 0
A137: 137 | D137: Total Rate Base | E137: =SUM(E132:E136) -> 398991000 | H137: =SUM(H132:H136) -> 398991000 | I137: 321257220.7 | J137: 59244238.43 | K137: 0.2208263347 | L137: 769069.0164 | M137: 17720471.59 | N137: 0 | P137: =A132&":"&$A135 -> 132:135 | AI137: 0 | AK137: =SUM(AK132:AK136) -> 398991000 | AL137: =SUM(AL132:AL136) -> 92504193.98 | AM137: =SUM(AM132:AM136) -> 104975366.3 | AN137: =SUM(AN132:AN136) -> 201511439.7 | AO137: =SUM(AO132:AO136) -> 0 | AQ137: =A132&":"&$A135 -> 132:135 | AS137: =IF(ROUND(SUM(AS132:AS136),3)<>ROUND(SUM(AT137:AY137),3),#VALUE!,SUM(AS132:AS136)) -> 92504193.98 | AT137: =SUM(AT132:AT136) -> 59760205.73 | AU137: 25891897.3 | AV137: 0 | AW137: 306473.7159 | AX137: 6545617.239 | AY137: 0 | BA137: =IF(ROUND(SUM(BA132:BA136),3)<>ROUND(SUM(BB137:BG137),3),#VALUE!,SUM(BA132:BA136)) -> 104975366.3 | BB137: =SUM(BB132:BB136) -> 69855426.38 | BC137: 24691835.74 | BD137: 0 | BE137: 384639.4991 | BF137: 10043464.73 | BG137: 0 | BI137: =IF(ROUND(SUM(BI132:BI136),3)<>ROUND(SUM(BJ137:BO137),3),#VALUE!,SUM(BI132:BI136)) -> 201511439.7 | BJ137: =SUM(BJ132:BJ136) -> 191641588.6 | BK137: 8660505.398 | BL137: 0.2208263347 | BM137: 77955.8014 | BN137: 1131389.624 | BO137: 0
A138: 138 | H138: =H137-$E137 -> 0 | AI138: 0 | AK138: =AK137-$E137 -> 0
A139: 139 | D139: Allocated Rate Base - ADFIT | AI139: 0
A140: 140 | D140: Underground Storage | E140: =$E$136*$E$23/$E$57 -> -3940103.352 | H140: =SUM(I140:N140) -> -3940103.352 | I140: =I$136*IF(I$57,I$23/I$57,0) -> -2677314.742 | J140: -1159981.923 | K140: 0 | L140: -20450.82624 | M140: -82355.86053 | N140: 0 | AI140: 0 | AK140: =SUM(AL140:AQ140) -> -3940103.352 | AL140: =AL$136*IF(AL$57,AL$23/AL$57,0) -> -3940103.352 | AM140: =AM$136*IF(AM$57,AM$23/AM$57,0) -> 0 | AN140: =AN$136*IF(AN$57,AN$23/AN$57,0) -> 0 | AO140: =AO$136*IF(AO$57,AO$23/AO$57,0) -> 0 | AS140: =SUM(AT140:AY140) -> -3940103.352 | AT140: =AT$136*IF(AT$57,AT$23/AT$57,0) -> -2677314.742 | AU140: -1159981.923 | AV140: 0 | AW140: -20450.82624 | AX140: -82355.86053 | AY140: 0 | BA140: =SUM(BB140:BG140) -> 0 | BB140: =BB$136*IF(BB$57,BB$23/BB$57,0) -> 0 | BC140: 0 | BD140: 0 | BE140: 0 | BF140: 0 | BG140: 0 | BI140: =SUM(BJ140:BO140) -> 0 | BJ140: =BJ$136*IF(BJ$57,BJ$23/BJ$57,0) -> 0 | BK140: 0 | BL140: 0 | BM140: 0 | BN140: 0 | BO140: 0
A141: 141 | D141: Distribution | E141: =$E$136*$E$40/$E$57 -> -67101417.17 | H141: =SUM(I141:N141) -> -67101417.17 | I141: =I$136*IF(I$57,I$40/I$57,0) -> -53232721.42 | J141: -10253247.76 | K141: -0.04821351839 | L141: -127223.4235 | M141: -3488224.51 | N141: 0 | AI141: =IF(SUM(R141:AH141)<>0,(ROUND(SUM(R141:AH141),8)<>1)+0,0) -> 0 | AK141: =SUM(AL141:AQ141) -> -67101417.17 | AL141: =AL$136*IF(AL$57,AL$40/AL$57,0) -> -13303737.64 | AM141: =AM$136*IF(AM$57,AM$40/AM$57,0) -> -21436307.27 | AN141: =AN$136*IF(AN$57,AN$40/AN$57,0) -> -32361372.26 | AO141: =AO$136*IF(AO$57,AO$40/AO$57,0) -> 0 | AS141: =SUM(AT141:AY141) -> -13303737.64 | AT141: =AT$136*IF(AT$57,AT$40/AT$57,0) -> -8415820.533 | AU141: -3646265.24 | AV141: 0 | AW141: -33431.3072 | AX141: -1208220.561 | AY141: 0 | BA141: =SUM(BB141:BG141) -> -21436307.27 | BB141: =BB$136*IF(BB$57,BB$40/BB$57,0) -> -14264702.63 | BC141: -5042152.234 | BD141: 0 | BE141: -78544.6222 | BF141: -2050907.785 | BG141: 0 | BI141: =SUM(BJ141:BO141) -> -32361372.26 | BJ141: =BJ$136*IF(BJ$57,BJ$40/BJ$57,0) -> -30552198.26 | BK141: -1564830.288 | BL141: -0.04821351839 | BM141: -15247.49412 | BN141: -229096.1646 | BO141: 0
A142: 142 | D142: Common | E142: =$E$136*SUM($E$12,$E$55)/$E$57 -> -18846479.48 | H142: =SUM(I142:N142) -> -18846479.48 | I142: =I$136*IF(I$57,SUM(I$12,I$55)/I$57,0) -> -16467641.02 | J142: -1866737.261 | K142: -0.006169021531 | L142: -23088.81421 | M142: -489012.3801 | N142: 0 | AI142: 0 | AK142: =SUM(AL142:AQ142) -> -18846479.48 | AL142: =AL$136*IF(AL$57,SUM(AL$12,AL$55)/AL$57,0) -> -2807665.118 | AM142: =AM$136*IF(AM$57,SUM(AM$12,AM$55)/AM$57,0) -> -2736235.792 | AN142: =AN$136*IF(AN$57,SUM(AN$12,AN$55)/AN$57,0) -> -13302578.57 | AO142: =AO$136*IF(AO$57,SUM(AO$12,AO$55)/AO$57,0) -> 0 | AS142: =SUM(AT142:AY142) -> -2807665.118 | AT142: =AT$136*IF(AT$57,SUM(AT$12,AT$55)/AT$57,0) -> -1821046.268 | AU142: -788992.3131 | AV142: 0 | AW142: -10129.50711 | AX142: -187497.0292 | AY142: 0 | BA142: =SUM(BB142:BG142) -> -2736235.792 | BB142: =BB$136*IF(BB$57,SUM(BB$12,BB$55)/BB$57,0) -> -1820816.869 | BC142: -643605.1339 | BD142: 0 | BE142: -10025.82226 | BF142: -261787.9664 | BG142: 0 | BI142: =SUM(BJ142:BO142) -> -13302578.57 | BJ142: =BJ$136*IF(BJ$57,SUM(BJ$12,BJ$55)/BJ$57,0) -> -12825777.88 | BK142: -434139.8139 | BL142: -0.006169021531 | BM142: -2933.484847 | BN142: -39727.38449 | BO142: 0
A143: 143 | D143: Total Allocated Rate Base | E143: =SUM(E140:E142) -> -89888000 | H143: =SUM(H140:H142) -> -89888000 | I143: =SUM(I140:I142) -> -72377677.19 | J143: -13279966.95 | K143: -0.05438253992 | L143: -170763.064 | M143: -4059592.75 | N143: 0 | AI143: 0 | AK143: =SUM(AK140:AK142) -> -89888000 | AL143: =SUM(AL140:AL142) -> -20051506.11 | AM143: =SUM(AM140:AM142) -> -24172543.06 | AN143: =SUM(AN140:AN142) -> -45663950.83 | AO143: =SUM(AO140:AO142) -> 0 | AS143: =SUM(AS140:AS142) -> -20051506.11 | AT143: -12914181.54 | AU143: -5595239.476 | AV143: 0 | AW143: -64011.64054 | AX143: -1478073.45 | AY143: 0 | BA143: =SUM(BA140:BA142) -> -24172543.06 | BB143: -16085519.5 | BC143: -5685757.367 | BD143: 0 | BE143: -88570.44446 | BF143: -2312695.751 | BG143: 0 | BI143: =SUM(BI140:BI142) -> -45663950.83 | BJ143: -43377976.14 | BK143: -1998970.102 | BL143: -0.05438253992 | BM143: -18180.97896 | BN143: -268823.5491 | BO143: 0
A144: 144 | H144: =H143-$E143 -> 0 | AI144: 0
A145: 145 | D145: Rate Base by Function | AI145: 0
A146: 146 | D146: Underground Storage | E146: =E132+E140 -> 21974896.65 | H146: =H132+H140 -> 21974896.65 | I146: 14932023.23 | J146: 6469495.997 | K146: 0 | L146: 114059.1383 | M146: 459318.2874 | N146: 0 | AI146: 0 | AK146: =AK132+AK140 -> 21974896.65 | AL146: 21974896.65 | AM146: 0 | AN146: 0 | AO146: 0 | AS146: =AS132+AS140 -> 21974896.65 | AT146: 14932023.23 | AU146: 6469495.997 | AV146: 0 | AW146: 114059.1383 | AX146: 459318.2874 | AY146: 0 | BA146: =BA132+BA140 -> 0 | BB146: 0 | BC146: 0 | BD146: 0 | BE146: 0 | BF146: 0 | BG146: 0 | BI146: =BI132+BI140 -> 0 | BJ146: 0 | BK146: 0 | BL146: 0 | BM146: 0 | BN146: 0 | BO146: 0
A147: 147 | D147: Distribution | E147: =E133+E141 -> 280409582.8 | H147: 280409582.8 | I147: 221380349.1 | J147: 43641191.2 | K147: 0.1902397063 | L147: 541559.974 | M147: 14846482.39 | N147: 0 | AI147: 0 | AK147: 280409582.8 | AL147: 56728336.32 | AM147: 91406346.17 | AN147: 132274900.3 | AO147: 0 | AS147: =AS133+AS141 -> 56728336.32 | AT147: 35877992.47 | AU147: 15544613.43 | AV147: 0 | AW147: 142856.068 | AX147: 5162874.355 | AY147: 0 | BA147: =BA133+BA141 -> 91406346.17 | BB147: 60825977.63 | BC147: 21500191.55 | BD147: 0 | BE147: 334921.348 | BF147: 8745255.634 | BG147: 0 | BI147: =BI133+BI141 -> 132274900.3 | BJ147: 124676379 | BK147: 6596386.217 | BL147: 0.1902397063 | BM147: 63782.55801 | BN147: 938352.3989 | BO147: 0
A148: 148 | D148: DSM | E148: =E134 -> 0 | H148: =H134 -> 0 | I148: 0 | J148: 0 | K148: 0 | L148: 0 | M148: 0 | N148: 0 | AI148: 0 | AK148: =AK134 -> 0 | AL148: =AL134 -> 0 | AM148: =AM134 -> 0 | AN148: =AN134 -> 0 | AO148: =AO134 -> 0 | AS148: =AS134 -> 0 | AT148: 0 | AU148: 0 | AV148: 0 | AW148: 0 | AX148: 0 | AY148: 0 | BA148: =BA134 -> 0 | BB148: 0 | BC148: 0 | BD148: 0 | BE148: 0 | BF148: 0 | BG148: 0 | BI148: =BI134 -> 0 | BJ148: 0 | BK148: 0 | BL148: 0 | BM148: 0 | BN148: 0 | BO148: 0
A149: 149 | D149: Common | E149: =E135+E142 -> 96606520.52 | H149: =H135+H142 -> 96606520.52 | I149: 84944848.43 | J149: 9133551.236 | K149: 0.03058662843 | L149: 113449.9041 | M149: 2414670.919 | N149: 0 | AI149: 0 | AK149: =AK135+AK142 -> 96606520.52 | AL149: =AL135+AL142 -> 13800961.01 | AM149: =AM135+AM142 -> 13569020.18 | AN149: =AN135+AN142 -> 69236539.33 | AO149: =AO135+AO142 -> 0 | AS149: =AS135+AS142 -> 13800961.01 | AT149: 8950190.03 | AU149: 3877787.873 | AV149: 0 | AW149: 49558.5096 | AX149: 923424.5969 | AY149: 0 | BA149: =BA135+BA142 -> 13569020.18 | BB149: 9029448.745 | BC149: 3191644.182 | BD149: 0 | BE149: 49718.15108 | BF149: 1298209.097 | BG149: 0 | BI149: =BI135+BI142 -> 69236539.33 | BJ149: 66965209.65 | BK149: 2064119.181 | BL149: 0.03058662843 | BM149: 14173.24339 | BN149: 193037.2247 | BO149: 0
A150: 150 | D150: Total Allocated Rate Base | E150: =SUM(E146:E149) -> 398991000 | H150: =SUM(H146:H149) -> 398991000 | I150: 321257220.7 | J150: 59244238.43 | K150: 0.2208263347 | L150: 769069.0164 | M150: 17720471.59 | N150: 0 | AI150: 0 | AK150: =SUM(AK146:AK149) -> 398991000 | AL150: =SUM(AL146:AL149) -> 92504193.98 | AM150: =SUM(AM146:AM149) -> 104975366.3 | AN150: =SUM(AN146:AN149) -> 201511439.7 | AO150: =SUM(AO146:AO149) -> 0 | AS150: =SUM(AS146:AS149) -> 92504193.98 | AT150: 59760205.73 | AU150: 25891897.3 | AV150: 0 | AW150: 306473.7159 | AX150: 6545617.239 | AY150: 0 | BA150: =SUM(BA146:BA149) -> 104975366.3 | BB150: 69855426.38 | BC150: 24691835.74 | BD150: 0 | BE150: 384639.4991 | BF150: 10043464.73 | BG150: 0 | BI150: =SUM(BI146:BI149) -> 201511439.7 | BJ150: 191641588.6 | BK150: 8660505.398 | BL150: 0.2208263347 | BM150: 77955.8014 | BN150: 1131389.624 | BO150: 0
A151: 151 | H151: =H150-$E150 -> 0 | AI151: 0 | AK151: =AK150-$E150 -> 0
A152: 152 | AI152: 0
A153: 153 | D153: Interest Expenses | AI153: 0
A154: 154 | C154: R | D154: Interest Expenses | E154: =PROFORMA!AP405*1000 -> 10254000 | F154: ="as Total Rate Base ("&A$128&")" -> as Total Rate Base (128) | H154: =SUM(I154:N154) -> 10254000 | I154: =$E154*SUMPRODUCT($R154:$AH154,INDEX(AllocFactors,I$4,0)) -> 8256255.258 | J154: 1522566.727 | K154: 0.00567519878 | L154: 19764.9413 | M154: 455413.0688 | N154: 0 | P154: =E$1&$A154&"* Sum["&$R$1&$A154&":"&$AH$1&$A154&"* "&Factors!D$1&Factors!$A$58&":"&Factors!S$1&Factors!$A$64&"]" -> E154* Sum[R154:AH154* D1037:S1043] | R154: =R$128 -> 0.102033777 | S154: 0.05926654009 | T154: 0.07054499769 | U154: 0 | V154: 0 | W154: 0.2631020909 | X154: 0 | Y154: 0 | Z154: 0 | AA154: 0 | AB154: 0.09848697204 | AC154: 0.28934695 | AD154: 0.0977842489 | AE154: 0 | AF154: 0.003952871241 | AG154: 0.01548155222 | AH154: 0 | AI154: 0 | AK154: =SUM(AL154:AO154) -> 10254000 | AL154: =SUMIF($R$4:$AH$4,AL$5,$R154:$AH154)*$E154 -> 2377341.857 | AM154: =SUMIF($R$4:$AH$4,AM$5,$R154:$AH154)*$E154 -> 2697848.84 | AN154: =SUMIF($R$4:$AH$4,AN$5,$R154:$AH154)*$E154 -> 5178809.303 | AO154: =SUMIF($R$4:$AH$4,AO$5,$R154:$AH154)*$E154 -> 0 | AQ154: =E$1&$A154&"*["&R$1&$A154&":"&$AH$1&$A154&" when "&R$1&$A$4&":"&$AH$1&$A$4&" = E,D,C,or R]" -> E154*[R154:AH154 when R4:AH4 = E,D,C,or R]
A155: 155 | H155: =H154-E154 -> 0 | AI155: 0
A156: 156 | D156: Peak-Average Energy | E156: ='Demand - Pk-Avg'!R25 -> 0.3829510778 | H156: =H143-$E143 -> 0 | AI156: 0 | AK156: =AK143-$E143 -> 0
A157: 157 | D157: Peak-Average Demand | E157: ='Demand - Pk-Avg'!R24 -> 0.6170489222
A158: 158
A159: 159
A160: 160
A161: 161
A162: 162
A163: 163
A164: 164
A165: 165
A166: 166
A167: 167 | AS167: COMMODITY | BA167: DEMAND | BI167: CUSTOMER
A168: 168 | E168: Proforma | R168: COMMODITY | S168: COMMODITY | T168: COMMODITY | U168: COMMODITY | V168: COMMODITY | W168: DEMAND | X168: DEMAND | Y168: DEMAND | Z168: DEMAND | AA168: DEMAND | AB168: CUSTOMER | AC168: CUSTOMER | AD168: CUSTOMER | AE168: CUSTOMER | AF168: CUSTOMER | AG168: CUSTOMER | AH168: REVENUE | BR168: Proforma | BS168: COMMODITY | BT168: COMMODITY | BU168: COMMODITY | BV168: COMMODITY | BW168: COMMODITY | BX168: DEMAND | BY168: DEMAND | BZ168: DEMAND | CA168: DEMAND | CB168: DEMAND | CC168: CUSTOMER | CD168: CUSTOMER | CE168: CUSTOMER | CF168: COMMON | CG168: CUSTOMER | CH168: CUSTOMER | CI168: REVENUE | CM168: =MATCH(CM169,Factors!$C$58:$C$64,0) -> 1 | CN168: =MATCH(CN169,Factors!$C$58:$C$64,0) -> 2 | CO168: =MATCH(CO169,Factors!$C$58:$C$64,0) -> 3 | CP168: =MATCH(CP169,Factors!$C$58:$C$64,0) -> 4 | CQ168: =MATCH(CQ169,Factors!$C$58:$C$64,0) -> 5 | CR168: =MATCH(CR169,Factors!$C$58:$C$64,0) -> 6
A169: 169 | B169: Acct | C169: Func | D169: Description | E169: Totals | F169: classif. basis (line) | G169: derived classif. | H169: Total | I169: Sch 101 | J169: Sch 111 | K169: Sch 121 | L169: Sch 131 | M169: Sch 146 | N169: Open | P169: source | R169: Throughput | S169: Sales | T169: Therms - Small Mains | U169: Purchased Gas - Commodity | V169: GTI Expense | W169: Coincident Peak - All | X169: Coincident Peak - Small Mains | Y169: Purchased Gas - Demand | Z169: DA 131 | AA169: DA 146 | AB169: All Customers | AC169: Service Cost | AD169: Meter Cost | AE169: Regulator Cost | AF169: Ind Meas & Reg Cost | AG169: DA 101 | AH169: Revenues From Retail Rates | AK169: Total | AL169: Commodity | AM169: Demand | AN169: Customer | AO169: Revenue | AQ169: source | AS169: Total | AT169: Sch 101 | AU169: Sch 111 | AV169: Sch 121 | AW169: Sch 131 | AX169: Sch 146 | AY169: Open | BA169: Total | BB169: Sch 101 | BC169: Sch 111 | BD169: Sch 121 | BE169: Sch 131 | BF169: Sch 146 | BG169: Open | BI169: Total | BJ169: Sch 101 | BK169: Sch 111 | BL169: Sch 121 | BM169: Sch 131 | BN169: Sch 146 | BO169: Open | BQ169: Description | BR169: Labor Totals | BS169: Throughput | BT169: Sales | BU169: Therms - Small Mains | BV169: Purchased Gas - Commodity | BW169: GTI Expense | BX169: Coincident Peak - All | BY169: Coincident Peak - Small Mains | BZ169: Purchased Gas - Demand | CA169: DA 131 | CB169: DA 146 | CC169: All Customers | CD169: Service Cost | CE169: Meter Cost | CF169: 4-Factor | CG169: Ind Meas & Reg Cost | CH169: DA 101 | CI169: Revenues From Retail Rates | CK169: source | CM169: Sch 101 | CN169: Sch 111 | CO169: Sch 121 | CP169: Sch 131 | CQ169: Sch 146 | CR169: Open
A170: 170 | R170: E01 | S170: E04 | T170: E06 | U170: E07 | V170: E08 | W170: D01 | X170: D02 | Y170: D05 | Z170: D06 | AA170: D07 | AB170: C01 | AC170: C02 | AD170: C03 | AE170: C04 | AF170: C06 | AG170: C10 | AH170: R01 | BS170: E01 | BT170: E04 | BU170: E06 | BV170: E07 | BW170: E08 | BX170: D01 | BY170: D02 | BZ170: D05 | CA170: D06 | CB170: D07 | CC170: C01 | CD170: C02 | CE170: C03 | CF170: C04 | CG170: C06 | CH170: C10 | CI170: R01
A171: 171 | D171: Operation & Maintenance Expenses | BQ171: Operation & Maintenance Expenses
A172: 172 | D172: Purchased Gas Expenses | AI172: =IF(SUM(R172:AH172)<>0,(ROUND(SUM(R172:AH172),8)<>1)+0,0) -> 0 | BQ172: Purchased Gas Expenses
A173: 173 | B173: 804 | C173: P | D173: Proforma Purchased Gas Expense | E173: =PROFORMA!AP28*1000 -> 0 | F173: Input - from PF Gas Costs | H173: =SUM(I173:N173) -> 0 | I173: =$E173*SUMPRODUCT($R173:$AH173,INDEX(AllocFactors,I$4,0)) -> 0 | J173: 0 | K173: 0 | L173: 0 | M173: 0 | N173: 0 | P173: =E$1&$A173&"* Sum["&$R$1&$A173&":"&$AH$1&$A173&"* "&Factors!D$1&Factors!$A$58&":"&Factors!S$1&Factors!$A$64&"]" -> E173* Sum[R173:AH173* D1037:S1043] | R173: 0 | T173: 0 | U173: =ROUND((Factors!D7/(Factors!D7+Factors!D11)),4) -> 0.5 | V173: 0 | W173: 0 | X173: 0 | Y173: =ROUND((Factors!D11/(Factors!D7+Factors!D11)),4) -> 0.5 | Z173: 0 | AA173: 0 | AB173: 0 | AC173: 0 | AD173: 0 | AE173: 0 | AF173: 0 | AG173: 0 | AH173: 0 | AI173: =IF(SUM(R173:AH173)<>0,(ROUND(SUM(R173:AH173),8)<>1)+0,0) -> 0 | AK173: =SUM(AL173:AO173) -> 0 | AL173: =SUMIF($R$4:$AH$4,AL$5,$R173:$AH173)*$E173 -> 0 | AM173: 0 | AN173: 0 | AO173: 0 | AQ173: =E$1&$A173&"*["&R$1&$A173&":"&$AH$1&$A173&" when "&R$1&$A$4&":"&$AH$1&$A$4&" = E,D,C,or R]" -> E173*[R173:AH173 when R4:AH4 = E,D,C,or R] | AS173: =SUM(AT173:AY173) -> 0 | AT173: =$E173*SUMPRODUCT($R173:$V173,INDEX(AllocFactors_E,AT$4,0)) -> 0 | AU173: 0 | AV173: 0 | AW173: 0 | AX173: 0 | AY173: 0 | BA173: =SUM(BB173:BG173) -> 0 | BB173: =$E173*SUMPRODUCT($W173:$AA173,INDEX(AllocFactors_D,BB$4,0)) -> 0 | BC173: 0 | BD173: 0 | BE173: 0 | BF173: 0 | BG173: 0 | BI173: =SUM(BJ173:BO173) -> 0 | BJ173: =$E173*SUMPRODUCT($AB173:$AG173,INDEX(AllocFactors_C,BJ$4,0)) -> 0 | BK173: 0 | BL173: 0 | BM173: 0 | BN173: 0 | BO173: 0 | BQ173: Proforma Purchased Gas Expense | BR173: 0 | BS173: =R173 -> 0 | BT173: 0 | BU173: 0 | BV173: 0.5 | BW173: 0 | BX173: 0 | BY173: 0 | BZ173: 0.5 | CA173: 0 | CB173: 0 | CC173: 0 | CD173: 0 | CE173: 0 | CF173: 0 | CG173: =AF173 -> 0 | CH173: 0 | CI173: 0 | CK173: =F173 -> Input - from PF Gas Costs | CL173: =IF(SUM(BS173:CI173)<>0,(ROUND(SUM(BS173:CI173),4)<>1)+0,0) -> 0 | CM173: =$BR173*SUMPRODUCT($BS173:$CI173,INDEX(AllocFactors,CM$168,0)) -> 0 | CN173: 0 | CO173: 0 | CP173: 0 | CQ173: 0 | CR173: 0
A174: 174 | B174: 813-010 | C174: P | D174: Gas Research Institute Expense | E174: =PROFORMA!AP30 -> 83000 | F174: Input - 100% GTI | H174: =SUM(I174:N174) -> 83000 | I174: 61261.4608 | J174: 21459.7609 | K174: 0 | L174: 278.7782909 | M174: 0 | N174: 0 | P174: =E$1&$A174&"* """ -> E174* " | R174: 0 | S174: 0 | T174: 0 | V174: 1 | W174: 0 | X174: 0 | Z174: 0 | AA174: 0 | AB174: 0 | AC174: 0 | AD174: 0 | AE174: 0 | AF174: 0 | AG174: 0 | AH174: 0 | AI174: 0 | AK174: =SUM(AL174:AO174) -> 83000 | AL174: 83000 | AM174: 0 | AN174: 0 | AO174: 0 | AQ174: =E$1&$A174&"* """ -> E174* " | AS174: =SUM(AT174:AY174) -> 83000 | AT174: 61261.4608 | AU174: 21459.7609 | AV174: 0 | AW174: 278.7782909 | AX174: 0 | AY174: 0 | BA174: =SUM(BB174:BG174) -> 0 | BB174: 0 | BC174: 0 | BD174: 0 | BE174: 0 | BF174: 0 | BG174: 0 | BI174: =SUM(BJ174:BO174) -> 0 | BJ174: 0 | BK174: 0 | BL174: 0 | BM174: 0 | BN174: 0 | BO174: 0 | BQ174: Gas Research Contributions | BR174: 0 | BS174: 0 | BT174: 0 | BU174: 0 | BV174: 0 | BW174: 1 | BX174: 0 | BY174: 0 | BZ174: 0 | CA174: 0 | CB174: 0 | CC174: 0 | CD174: 0 | CE174: 0 | CF174: 0 | CG174: 0 | CH174: 0 | CI174: 0 | CK174: =F174 -> Input - 100% GTI | CL174: 0 | CM174: 0 | CN174: 0 | CO174: 0 | CP174: 0 | CQ174: 0 | CR174: 0
A175: 175 | B175: 813 | C175: P | D175: Other Gas Expenses | E175: =PROFORMA!AP31 -> 916000 | F175: Input - purch vs. sched analysis | H175: =SUM(I175:N175) -> 916000 | I175: 613338.6698 | J175: 265737.0679 | K175: 0 | L175: 4685.023529 | M175: 32239.23876 | N175: 0 | P175: =E$1&$A175&"* """ -> E175* " | R175: ='Acct 813'!E27 -> 0.2189 | S175: ='Acct 813'!E28 -> 0.7811 | T175: 0 | U175: 0 | V175: 0 | W175: 0 | X175: 0 | Y175: 0 | Z175: 0 | AA175: 0 | AB175: 0 | AC175: 0 | AD175: 0 | AE175: 0 | AF175: 0 | AG175: 0 | AH175: 0 | AI175: 0 | AK175: =SUM(AL175:AO175) -> 916000 | AL175: 916000 | AM175: 0 | AN175: 0 | AO175: 0 | AQ175: =E$1&$A175&"* """ -> E175* " | AS175: =SUM(AT175:AY175) -> 916000 | AT175: 613338.6698 | AU175: 265737.0679 | AV175: 0 | AW175: 4685.023529 | AX175: 32239.23876 | AY175: 0 | BA175: =SUM(BB175:BG175) -> 0 | BB175: 0 | BC175: 0 | BD175: 0 | BE175: 0 | BF175: 0 | BG175: 0 | BI175: =SUM(BJ175:BO175) -> 0 | BJ175: 0 | BK175: 0 | BL175: 0 | BM175: 0 | BN175: 0 | BO175: 0 | BQ175: Other Gas Expenses | BR175: 444317 | BS175: 0.2189 | BT175: 0.7811 | BU175: 0 | BV175: 0 | BW175: 0 | BX175: 0 | BY175: 0 | BZ175: 0 | CA175: 0 | CB175: 0 | CC175: 0 | CD175: 0 | CE175: 0 | CF175: 0 | CG175: 0 | CH175: 0 | CI175: 0 | CK175: =F175 -> Input - purch vs. sched analysis | CL175: 0 | CM175: 297507.4211 | CN175: 128899.014 | CO175: 0 | CP175: 2272.527947 | CQ175: 15638.03695 | CR175: 0
A176: 176 | D176: Total Purchased Gas Expenses | E176: =SUM(E172:E175) -> 999000 | H176: =IF(ROUND(SUM(H173:H175),3)<>ROUND(SUM(I176:N176),3),#VALUE!,SUM(H173:H175)) -> 999000 | I176: =SUM(I173:I175) -> 674600.1306 | J176: 287196.8288 | K176: 0 | L176: 4963.80182 | M176: 32239.23876 | N176: 0 | P176: =A173&":"&A175 -> 173:175 | R176: =SUMPRODUCT($E173:$E175,R$173:R$175)/$E176 -> 0.2007131131 | S176: =SUMPRODUCT($E173:$E175,S$173:S$175)/$E176 -> 0.7162038038 | T176: 0 | U176: =SUMPRODUCT($E173:$E175,U$173:U$175)/$E176 -> 0 | V176: 0.08308308308 | W176: 0 | X176: 0 | Y176: 0 | Z176: 0 | AA176: 0 | AB176: 0 | AC176: 0 | AD176: 0 | AE176: 0 | AF176: 0 | AG176: 0 | AH176: 0 | AI176: 0 | AK176: =IF(ROUND(SUM(AK173:AK175),3)<>ROUND(SUM(AL176:AO176),3),#VALUE!,SUM(AK173:AK175)) -> 999000 | AL176: =SUM(AL173:AL175) -> 999000 | AM176: =SUM(AM173:AM175) -> 0 | AN176: =SUM(AN173:AN175) -> 0 | AO176: =SUM(AO173:AO175) -> 0 | AQ176: =$A173&":"&$A175 -> 173:175 | AS176: =IF(ROUND(SUM(AS173:AS175),3)<>ROUND(SUM(AT176:AY176),3),#VALUE!,SUM(AS173:AS175)) -> 999000 | AT176: =SUM(AT173:AT175) -> 674600.1306 | AU176: 287196.8288 | AV176: 0 | AW176: 4963.80182 | AX176: 32239.23876 | AY176: 0 | BA176: =IF(ROUND(SUM(BA173:BA175),3)<>ROUND(SUM(BB176:BG176),3),#VALUE!,SUM(BA173:BA175)) -> 0 | BB176: =SUM(BB173:BB175) -> 0 | BC176: 0 | BD176: 0 | BE176: 0 | BF176: 0 | BG176: 0 | BI176: =IF(ROUND(SUM(BI173:BI175),3)<>ROUND(SUM(BJ176:BO176),3),#VALUE!,SUM(BI173:BI175)) -> 0 | BJ176: =SUM(BJ173:BJ175) -> 0 | BK176: 0 | BL176: 0 | BM176: 0 | BN176: 0 | BO176: 0 | BQ176: Total Purchased Gas Expenses | BR176: =IF(ROUND(SUM(BR173:BR175),3)<>ROUND(SUM(CM176:CR176),3),#VALUE!,SUM(BR173:BR175)) -> 444317 | BS176: =SUMPRODUCT($BR$173:$BR$175,BS$173:BS$175)/$BR$176 -> 0.2189 | BT176: =SUMPRODUCT($BR$173:$BR$175,BT$173:BT$175)/$BR$176 -> 0.7811 | BU176: 0 | BV176: 0 | BW176: 0 | BX176: 0 | BY176: 0 | BZ176: 0 | CA176: 0 | CB176: 0 | CC176: 0 | CD176: 0 | CE176: 0 | CF176: 0 | CG176: 0 | CH176: 0 | CI176: 0 | CL176: 0 | CM176: =SUM(CM173:CM175) -> 297507.4211 | CN176: 128899.014 | CO176: 0 | CP176: 2272.527947 | CQ176: 15638.03695 | CR176: 0
A177: 177 | AI177: 0 | CL177: 0
A178: 178 | D178: Underground Storage Expenses | AI178: 0 | BQ178: Underground Storage Expenses | CL178: 0
A179: 179 | B179: 814-OP | C179: U | D179: Supervision & Engineering | E179: =PROFORMA!AP35 -> 14000 | F179: ="as UG Storage Plant ("&A$23&")" -> as UG Storage Plant (23) | H179: =SUM(I179:N179) -> 14000 | I179: =$E179*SUMPRODUCT($R179:$AH179,INDEX(AllocFactors,I$4,0)) -> 9513.051574 | J179: 4121.65506 | K179: 0 | L179: 72.66600436 | M179: 292.6273614 | N179: 0 | P179: =E$1&$A179&"* Sum["&$R$1&$A179&":"&$AH$1&$A179&"* "&Factors!D$1&Factors!$A$58&":"&Factors!S$1&Factors!$A$64&"]" -> E179* Sum[R179:AH179* D1037:S1043] | R179: =R$23 -> 0.13 | S179: =S$23 -> 0.87 | T179: 0 | U179: 0 | V179: 0 | W179: 0 | X179: 0 | Y179: 0 | Z179: 0 | AA179: 0 | AB179: 0 | AC179: 0 | AD179: 0 | AE179: 0 | AF179: 0 | AG179: 0 | AH179: 0 | AI179: 0 | AK179: =SUM(AL179:AO179) -> 14000 | AL179: =SUMIF($R$4:$AH$4,AL$5,$R179:$AH179)*$E179 -> 14000 | AM179: 0 | AN179: 0 | AO179: 0 | AQ179: =E$1&$A179&"*["&R$1&$A179&":"&$AH$1&$A179&" when "&R$1&$A$4&":"&$AH$1&$A$4&" = E,D,C,or R]" -> E179*[R179:AH179 when R4:AH4 = E,D,C,or R] | AS179: =SUM(AT179:AY179) -> 14000 | AT179: =$E179*SUMPRODUCT($R179:$V179,INDEX(AllocFactors_E,AT$4,0)) -> 9513.051574 | AU179: 4121.65506 | AV179: 0 | AW179: 72.66600436 | AX179: 292.6273614 | AY179: 0 | BA179: =SUM(BB179:BG179) -> 0 | BB179: =$E179*SUMPRODUCT($W179:$AA179,INDEX(AllocFactors_D,BB$4,0)) -> 0 | BC179: 0 | BD179: 0 | BE179: 0 | BF179: 0 | BG179: 0 | BI179: =SUM(BJ179:BO179) -> 0 | BJ179: =$E179*SUMPRODUCT($AB179:$AG179,INDEX(AllocFactors_C,BJ$4,0)) -> 0 | BK179: 0 | BL179: 0 | BM179: 0 | BN179: 0 | BO179: 0 | BQ179: Supervision & Engineering | BR179: 7944 | BS179: =R179 -> 0.13 | BT179: =S179 -> 0.87 | BU179: =T179 -> 0 | BV179: =U179 -> 0 | BW179: =V179 -> 0 | BX179: =W179 -> 0 | BY179: =X179 -> 0 | BZ179: =Y179 -> 0 | CA179: =Z179 -> 0 | CB179: =AA179 -> 0 | CC179: =AB179 -> 0 | CD179: =AC179 -> 0 | CE179: =AD179 -> 0 | CF179: =AE179 -> 0 | CG179: =AF179 -> 0 | CH179: =AG179 -> 0 | CI179: =AH179 -> 0 | CK179: =F179 -> as UG Storage Plant (23) | CL179: 0 | CM179: =$BR179*SUMPRODUCT($BS179:$CI179,INDEX(AllocFactors,CM$168,0)) -> 5397.977265 | CN179: 2338.744843 | CO179: 0 | CP179: 41.23276705 | CQ179: 166.0451256 | CR179: 0
A180: 180 | B180: 815-OP | C180: U | D180: Maps & Records | E180: =PROFORMA!AP36 -> 0 | F180: ="as UG Storage Plant ("&A$23&")" -> as UG Storage Plant (23) | H180: 0 | I180: 0 | J180: 0 | K180: 0 | L180: 0 | M180: 0 | N180: 0 | P180: =E$1&$A180&"* """ -> E180* " | R180: 0.13 | S180: 0.87 | T180: 0 | U180: 0 | V180: 0 | W180: 0 | X180: 0 | Y180: 0 | Z180: 0 | AA180: 0 | AB180: 0 | AC180: 0 | AD180: 0 | AE180: 0 | AF180: 0 | AG180: 0 | AH180: 0 | AI180: 0 | AK180: =SUM(AL180:AO180) -> 0 | AL180: 0 | AM180: 0 | AN180: 0 | AO180: 0 | AQ180: =E$1&$A180&"* """ -> E180* " | AS180: 0 | AT180: 0 | AU180: 0 | AV180: 0 | AW180: 0 | AX180: 0 | AY180: 0 | BA180: =SUM(BB180:BG180) -> 0 | BB180: 0 | BC180: 0 | BD180: 0 | BE180: 0 | BF180: 0 | BG180: 0 | BI180: 0 | BJ180: 0 | BK180: 0 | BL180: 0 | BM180: 0 | BN180: 0 | BO180: 0 | BQ180: Maps & Records | BR180: 0 | BS180: 0.13 | BT180: 0.87 | BU180: 0 | BV180: 0 | BW180: 0 | BX180: 0 | BY180: 0 | BZ180: 0 | CA180: 0 | CB180: 0 | CC180: 0 | CD180: 0 | CE180: 0 | CF180: 0 | CG180: 0 | CH180: 0 | CI180: 0 | CK180: as UG Storage Plant (23) | CL180: 0 | CM180: 0 | CN180: 0 | CO180: 0 | CP180: 0 | CQ180: 0 | CR180: 0
A181: 181 | B181: 816-OP | C181: U | D181: Wells Expenses | E181: =PROFORMA!AP37 -> 0 | F181: as UG Storage Plant (23) | H181: 0 | I181: 0 | J181: 0 | K181: 0 | L181: 0 | M181: 0 | N181: 0 | P181: =E$1&$A181&"* """ -> E181* " | R181: 0.13 | S181: 0.87 | T181: 0 | U181: 0 | V181: 0 | W181: 0 | X181: 0 | Y181: 0 | Z181: 0 | AA181: 0 | AB181: 0 | AC181: 0 | AD181: 0 | AE181: 0 | AF181: 0 | AG181: 0 | AH181: 0 | AI181: 0 | AK181: =SUM(AL181:AO181) -> 0 | AL181: 0 | AM181: 0 | AN181: 0 | AO181: 0 | AQ181: =E$1&$A181&"* """ -> E181* " | AS181: 0 | AT181: 0 | AU181: 0 | AV181: 0 | AW181: 0 | AX181: 0 | AY181: 0 | BA181: =SUM(BB181:BG181) -> 0 | BB181: 0 | BC181: 0 | BD181: 0 | BE181: 0 | BF181: 0 | BG181: 0 | BI181: 0 | BJ181: 0 | BK181: 0 | BL181: 0 | BM181: 0 | BN181: 0 | BO181: 0 | BQ181: Wells Expenses | BR181: 0 | BS181: 0.13 | BT181: 0.87 | BU181: 0 | BV181: 0 | BW181: 0 | BX181: 0 | BY181: 0 | BZ181: 0 | CA181: 0 | CB181: 0 | CC181: 0 | CD181: 0 | CE181: 0 | CF181: 0 | CG181: 0 | CH181: 0 | CI181: 0 | CK181: as UG Storage Plant (23) | CL181: 0 | CM181: 0 | CN181: 0 | CO181: 0 | CP181: 0 | CQ181: 0 | CR181: 0
A182: 182 | B182: 817-OP | C182: U | D182: Lines Expenses | E182: =PROFORMA!AP38 -> 0 | F182: as UG Storage Plant (23) | H182: =SUM(I182:N182) -> 0 | I182: 0 | J182: 0 | K182: 0 | L182: 0 | M182: 0 | N182: 0 | R182: 0.13 | S182: 0.87 | T182: 0 | U182: 0 | V182: 0 | W182: 0 | X182: 0 | Y182: 0 | Z182: 0 | AA182: 0 | AB182: 0 | AC182: 0 | AD182: 0 | AE182: 0 | AF182: 0 | AG182: 0 | AH182: 0 | AI182: 0 | AK182: =SUM(AL182:AO182) -> 0 | AL182: 0 | AM182: 0 | AN182: 0 | AO182: 0 | AQ182: =E$1&$A182&"* """ -> E182* " | AS182: 0 | AT182: 0 | AU182: 0 | AV182: 0 | AW182: 0 | AX182: 0 | AY182: 0 | BA182: =SUM(BB182:BG182) -> 0 | BB182: 0 | BC182: 0 | BD182: 0 | BE182: 0 | BF182: 0 | BG182: 0 | BI182: 0 | BJ182: 0 | BK182: 0 | BL182: 0 | BM182: 0 | BN182: 0 | BO182: 0 | BQ182: Lines Expenses | BR182: 0 | BS182: 0.13 | BT182: 0.87 | BU182: 0 | BV182: 0 | BW182: 0 | BX182: 0 | BY182: 0 | BZ182: 0 | CA182: 0 | CB182: 0 | CC182: 0 | CD182: 0 | CE182: 0 | CF182: 0 | CG182: 0 | CH182: 0 | CI182: 0 | CK182: as UG Storage Plant (23) | CL182: 0 | CM182: 0 | CN182: 0 | CO182: 0 | CP182: 0 | CQ182: 0 | CR182: 0
A183: 183 | B183: 818-OP | C183: U | D183: Compressor Station Expenses | E183: =PROFORMA!AP39 -> 0 | F183: as UG Storage Plant (23) | H183: 0 | I183: 0 | J183: 0 | K183: 0 | L183: 0 | M183: 0 | N183: 0 | R183: 0.13 | S183: 0.87 | T183: 0 | U183: 0 | V183: 0 | W183: 0 | X183: 0 | Y183: 0 | Z183: 0 | AA183: 0 | AB183: 0 | AC183: 0 | AD183: 0 | AE183: 0 | AF183: 0 | AG183: 0 | AH183: 0 | AI183: 0 | AK183: 0 | AL183: 0 | AM183: 0 | AN183: 0 | AO183: 0 | AQ183: E183* " | AS183: 0 | AT183: 0 | AU183: 0 | AV183: 0 | AW183: 0 | AX183: 0 | AY183: 0 | BA183: 0 | BB183: 0 | BC183: 0 | BD183: 0 | BE183: 0 | BF183: 0 | BG183: 0 | BI183: 0 | BJ183: 0 | BK183: 0 | BL183: 0 | BM183: 0 | BN183: 0 | BO183: 0 | BQ183: Compressor Station Expenses | BR183: 0 | BS183: 0.13 | BT183: 0.87 | BU183: 0 | BV183: 0 | BW183: 0 | BX183: 0 | BY183: 0 | BZ183: 0 | CA183: 0 | CB183: 0 | CC183: 0 | CD183: 0 | CE183: 0 | CF183: 0 | CG183: 0 | CH183: 0 | CI183: 0 | CK183: as UG Storage Plant (23) | CL183: 0 | CM183: 0 | CN183: 0 | CO183: 0 | CP183: 0 | CQ183: 0 | CR183: 0
A184: 184 | B184: 819-OP | C184: U | D184: Compressor Station Fuel & Power | E184: =PROFORMA!AP40 -> 0 | F184: as UG Storage Plant (23) | H184: 0 | I184: 0 | J184: 0 | K184: 0 | L184: 0 | M184: 0 | N184: 0 | R184: 0.13 | S184: 0.87 | T184: 0 | U184: 0 | V184: 0 | W184: 0 | X184: 0 | Y184: 0 | Z184: 0 | AA184: 0 | AB184: 0 | AC184: 0 | AD184: 0 | AE184: 0 | AF184: 0 | AG184: 0 | AH184: 0 | AI184: 0 | AK184: 0 | AL184: 0 | AM184: 0 | AN184: 0 | AO184: 0 | AQ184: E184* " | AS184: 0 | AT184: 0 | AU184: 0 | AV184: 0 | AW184: 0 | AX184: 0 | AY184: 0 | BA184: 0 | BB184: 0 | BC184: 0 | BD184: 0 | BE184: 0 | BF184: 0 | BG184: 0 | BI184: 0 | BJ184: 0 | BK184: 0 | BL184: 0 | BM184: 0 | BN184: 0 | BO184: 0 | BQ184: Compressor Station Fuel & Power | BR184: 0 | BS184: 0.13 | BT184: 0.87 | BU184: 0 | BV184: 0 | BW184: 0 | BX184: 0 | BY184: 0 | BZ184: 0 | CA184: 0 | CB184: 0 | CC184: 0 | CD184: 0 | CE184: 0 | CF184: 0 | CG184: 0 | CH184: 0 | CI184: 0 | CK184: as UG Storage Plant (23) | CL184: 0 | CM184: 0 | CN184: 0 | CO184: 0 | CP184: 0 | CQ184: 0 | CR184: 0
A185: 185 | B185: 820-OP | C185: U | D185: Measuring & Regulator Station | E185: =PROFORMA!AP41 -> 0 | F185: as UG Storage Plant (23) | H185: 0 | I185: 0 | J185: 0 | K185: 0 | L185: 0 | M185: 0 | N185: 0 | R185: 0.13 | S185: 0.87 | T185: 0 | U185: 0 | V185: 0 | W185: 0 | X185: 0 | Y185: 0 | Z185: 0 | AA185: 0 | AB185: 0 | AC185: 0 | AD185: 0 | AE185: 0 | AF185: 0 | AG185: 0 | AH185: 0 | AI185: 0 | AK185: 0 | AL185: 0 | AM185: 0 | AN185: 0 | AO185: 0 | AQ185: E185* " | AS185: 0 | AT185: 0 | AU185: 0 | AV185: 0 | AW185: 0 | AX185: 0 | AY185: 0 | BA185: 0 | BB185: 0 | BC185: 0 | BD185: 0 | BE185: 0 | BF185: 0 | BG185: 0 | BI185: 0 | BJ185: 0 | BK185: 0 | BL185: 0 | BM185: 0 | BN185: 0 | BO185: 0 | BQ185: Measuring & Regulator Station | BR185: 0 | BS185: 0.13 | BT185: 0.87 | BU185: 0 | BV185: 0 | BW185: 0 | BX185: 0 | BY185: 0 | BZ185: 0 | CA185: 0 | CB185: 0 | CC185: 0 | CD185: 0 | CE185: 0 | CF185: 0 | CG185: 0 | CH185: 0 | CI185: 0 | CK185: as UG Storage Plant (23) | CL185: 0 | CM185: 0 | CN185: 0 | CO185: 0 | CP185: 0 | CQ185: 0 | CR185: 0
A186: 186 | B186: 821-OP | C186: U | D186: Purification Expenses | E186: =PROFORMA!AP42 -> 0 | F186: as UG Storage Plant (23) | H186: 0 | I186: 0 | J186: 0 | K186: 0 | L186: 0 | M186: 0 | N186: 0 | R186: 0.13 | S186: 0.87 | T186: 0 | U186: 0 | V186: 0 | W186: 0 | X186: 0 | Y186: 0 | Z186: 0 | AA186: 0 | AB186: 0 | AC186: 0 | AD186: 0 | AE186: 0 | AF186: 0 | AG186: 0 | AH186: 0 | AI186: 0 | AK186: 0 | AL186: 0 | AM186: 0 | AN186: 0 | AO186: 0 | AQ186: E186* " | AS186: 0 | AT186: 0 | AU186: 0 | AV186: 0 | AW186: 0 | AX186: 0 | AY186: 0 | BA186: 0 | BB186: 0 | BC186: 0 | BD186: 0 | BE186: 0 | BF186: 0 | BG186: 0 | BI186: 0 | BJ186: 0 | BK186: 0 | BL186: 0 | BM186: 0 | BN186: 0 | BO186: 0 | BQ186: Purification Expenses | BR186: 0 | BS186: 0.13 | BT186: 0.87 | BU186: 0 | BV186: 0 | BW186: 0 | BX186: 0 | BY186: 0 | BZ186: 0 | CA186: 0 | CB186: 0 | CC186: 0 | CD186: 0 | CE186: 0 | CF186: 0 | CG186: 0 | CH186: 0 | CI186: 0 | CK186: as UG Storage Plant (23) | CL186: 0 | CM186: 0 | CN186: 0 | CO186: 0 | CP186: 0 | CQ186: 0 | CR186: 0
A187: 187 | B187: 824-OP | C187: U | D187: Other Expenses | E187: =PROFORMA!AP43 -> 548000 | F187: as UG Storage Plant (23) | H187: 548000 | I187: 372368.0188 | J187: 161333.3552 | K187: 0 | L187: 2844.355028 | M187: 11454.271 | N187: 0 | P187: =E$1&$A187&"* """ -> E187* " | R187: 0.13 | S187: 0.87 | T187: 0 | U187: 0 | V187: 0 | W187: 0 | X187: 0 | Y187: 0 | Z187: 0 | AA187: 0 | AB187: 0 | AC187: 0 | AD187: 0 | AE187: 0 | AF187: 0 | AG187: 0 | AH187: 0 | AI187: 0 | AK187: 548000 | AL187: 548000 | AM187: 0 | AN187: 0 | AO187: 0 | AQ187: E187* " | AS187: 548000 | AT187: 372368.0188 | AU187: 161333.3552 | AV187: 0 | AW187: 2844.355028 | AX187: 11454.271 | AY187: 0 | BA187: 0 | BB187: 0 | BC187: 0 | BD187: 0 | BE187: 0 | BF187: 0 | BG187: 0 | BI187: 0 | BJ187: 0 | BK187: 0 | BL187: 0 | BM187: 0 | BN187: 0 | BO187: 0 | BQ187: Other Expenses | BR187: 0 | BS187: 0.13 | BT187: 0.87 | BU187: 0 | BV187: 0 | BW187: 0 | BX187: 0 | BY187: 0 | BZ187: 0 | CA187: 0 | CB187: 0 | CC187: 0 | CD187: 0 | CE187: 0 | CF187: 0 | CG187: 0 | CH187: 0 | CI187: 0 | CK187: as UG Storage Plant (23) | CL187: 0 | CM187: 0 | CN187: 0 | CO187: 0 | CP187: 0 | CQ187: 0 | CR187: 0
A188: 188 | B188: 825-OP | C188: U | D188: Storage Well Royalties & Rents | E188: =PROFORMA!AP44 -> 0 | F188: as UG Storage Plant (23) | H188: 0 | I188: 0 | J188: 0 | K188: 0 | L188: 0 | M188: 0 | N188: 0 | P188: =E$1&$A188&"* """ -> E188* " | R188: 0.13 | S188: 0.87 | T188: 0 | U188: 0 | V188: 0 | W188: 0 | X188: 0 | Y188: 0 | Z188: 0 | AA188: 0 | AB188: 0 | AC188: 0 | AD188: 0 | AE188: 0 | AF188: 0 | AG188: 0 | AH188: 0 | AI188: 0 | AK188: 0 | AL188: 0 | AM188: 0 | AN188: 0 | AO188: 0 | AQ188: E188* " | AS188: 0 | AT188: 0 | AU188: 0 | AV188: 0 | AW188: 0 | AX188: 0 | AY188: 0 | BA188: 0 | BB188: 0 | BC188: 0 | BD188: 0 | BE188: 0 | BF188: 0 | BG188: 0 | BI188: 0 | BJ188: 0 | BK188: 0 | BL188: 0 | BM188: 0 | BN188: 0 | BO188: 0 | BQ188: Storage Well Royalties & Rents | BR188: 0 | BS188: 0.13 | BT188: 0.87 | BU188: 0 | BV188: 0 | BW188: 0 | BX188: 0 | BY188: 0 | BZ188: 0 | CA188: 0 | CB188: 0 | CC188: 0 | CD188: 0 | CE188: 0 | CF188: 0 | CG188: 0 | CH188: 0 | CI188: 0 | CK188: as UG Storage Plant (23) | CL188: 0 | CM188: 0 | CN188: 0 | CO188: 0 | CP188: 0 | CQ188: 0 | CR188: 0
A189: 189 | B189: 826-OP | C189: U | D189: Rents | E189: =PROFORMA!AP45 -> 0 | F189: as UG Storage Plant (23) | H189: 0 | I189: 0 | J189: 0 | K189: 0 | L189: 0 | M189: 0 | N189: 0 | P189: =E$1&$A189&"* """ -> E189* " | R189: 0.13 | S189: 0.87 | T189: 0 | U189: 0 | V189: 0 | W189: 0 | X189: 0 | Y189: 0 | Z189: 0 | AA189: 0 | AB189: 0 | AC189: 0 | AD189: 0 | AE189: 0 | AF189: 0 | AG189: 0 | AH189: 0 | AI189: 0 | AK189: 0 | AL189: 0 | AM189: 0 | AN189: 0 | AO189: 0 | AQ189: E189* " | AS189: 0 | AT189: 0 | AU189: 0 | AV189: 0 | AW189: 0 | AX189: 0 | AY189: 0 | BA189: 0 | BB189: 0 | BC189: 0 | BD189: 0 | BE189: 0 | BF189: 0 | BG189: 0 | BI189: 0 | BJ189: 0 | BK189: 0 | BL189: 0 | BM189: 0 | BN189: 0 | BO189: 0 | BQ189: Rents | BR189: 0 | BS189: 0.13 | BT189: 0.87 | BU189: 0 | BV189: 0 | BW189: 0 | BX189: 0 | BY189: 0 | BZ189: 0 | CA189: 0 | CB189: 0 | CC189: 0 | CD189: 0 | CE189: 0 | CF189: 0 | CG189: 0 | CH189: 0 | CI189: 0 | CK189: as UG Storage Plant (23) | CL189: 0 | CM189: 0 | CN189: 0 | CO189: 0 | CP189: 0 | CQ189: 0 | CR189: 0
A190: 190 | D190: Total Underground Storage Operation | E190: =SUM(E178:E189) -> 562000 | H190: =IF(ROUND(SUM(H179:H189),3)<>ROUND(SUM(I190:N190),3),#VALUE!,SUM(H179:H189)) -> 562000 | I190: =SUM(I179:I189) -> 381881.0703 | J190: 165455.0103 | K190: 0 | L190: 2917.021032 | M190: 11746.89836 | N190: 0 | P190: =$A179&":"&$A189 -> 179:189 | R190: =SUMPRODUCT($E$179:$E$189,R$179:R$189)/$E190 -> 0.13 | S190: 0.87 | T190: 0 | U190: 0 | V190: 0 | W190: 0 | X190: 0 | Y190: 0 | Z190: 0 | AA190: 0 | AB190: 0 | AC190: 0 | AD190: 0 | AE190: 0 | AF190: 0 | AG190: 0 | AH190: 0 | AI190: 0 | AK190: =IF(ROUND(SUM(AK179:AK189),3)<>ROUND(SUM(AL190:AO190),3),#VALUE!,SUM(AK179:AK189)) -> 562000 | AL190: =SUM(AL179:AL189) -> 562000 | AM190: =SUM(AM179:AM189) -> 0 | AN190: =SUM(AN179:AN189) -> 0 | AO190: =SUM(AO179:AO189) -> 0 | AQ190: =$A179&":"&$A189 -> 179:189 | AS190: =IF(ROUND(SUM(AS179:AS189),3)<>ROUND(SUM(AT190:AY190),3),#VALUE!,SUM(AS179:AS189)) -> 562000 | AT190: =SUM(AT179:AT189) -> 381881.0703 | AU190: 165455.0103 | AV190: 0 | AW190: 2917.021032 | AX190: 11746.89836 | AY190: 0 | BA190: =IF(ROUND(SUM(BA179:BA189),3)<>ROUND(SUM(BB190:BG190),3),#VALUE!,SUM(BA179:BA189)) -> 0 | BB190: =SUM(BB179:BB189) -> 0 | BC190: 0 | BD190: 0 | BE190: 0 | BF190: 0 | BG190: 0 | BI190: =IF(ROUND(SUM(BI179:BI189),3)<>ROUND(SUM(BJ190:BO190),3),#VALUE!,SUM(BI179:BI189)) -> 0 | BJ190: =SUM(BJ179:BJ189) -> 0 | BK190: 0 | BL190: 0 | BM190: 0 | BN190: 0 | BO190: 0 | BQ190: Total Underground Storage Operation | BR190: =IF(ROUND(SUM(BR179:BR189),3)<>ROUND(SUM(CM190:CR190),3),#VALUE!,SUM(BR179:BR189)) -> 7944 | BS190: =SUMPRODUCT($BR$179:$BR$189,BS$179:BS$189)/$BR$190 -> 0.13 | BT190: =SUMPRODUCT($BR$179:$BR$189,BT$179:BT$189)/$BR$190 -> 0.87 | BU190: 0 | BV190: 0 | BW190: 0 | BX190: 0 | BY190: 0 | BZ190: 0 | CA190: 0 | CB190: 0 | CC190: 0 | CD190: 0 | CE190: 0 | CF190: 0 | CG190: 0 | CH190: 0 | CI190: 0 | CL190: 0 | CM190: =SUM(CM179:CM189) -> 5397.977265 | CN190: 2338.744843 | CO190: 0 | CP190: 41.23276705 | CQ190: 166.0451256 | CR190: 0
A191: 191 | B191: 830-MT | C191: U | D191: Supervision & Engineering | E191: =PROFORMA!AP47 -> 0 | F191: as UG Storage Plant (23) | H191: =SUM(I191:N191) -> 0 | I191: =$E191*SUMPRODUCT($R191:$AH191,INDEX(AllocFactors,I$4,0)) -> 0 | J191: 0 | K191: 0 | L191: 0 | M191: 0 | N191: 0 | P191: =E$1&$A191&"* Sum["&$R$1&$A191&":"&$AH$1&$A191&"* "&Factors!D$1&Factors!$A$58&":"&Factors!S$1&Factors!$A$64&"]" -> E191* Sum[R191:AH191* D1037:S1043] | R191: =R$23 -> 0.13 | S191: 0.87 | T191: 0 | U191: 0 | V191: 0 | W191: 0 | X191: 0 | Y191: 0 | Z191: 0 | AA191: 0 | AB191: 0 | AC191: 0 | AD191: 0 | AE191: 0 | AF191: 0 | AG191: 0 | AH191: 0 | AI191: 0 | AK191: =SUM(AL191:AO191) -> 0 | AL191: =SUMIF($R$4:$AH$4,AL$5,$R191:$AH191)*$E191 -> 0 | AM191: 0 | AN191: 0 | AO191: 0 | AQ191: =E$1&$A191&"*["&R$1&$A191&":"&$AH$1&$A191&" when "&R$1&$A$4&":"&$AH$1&$A$4&" = E,D,C,or R]" -> E191*[R191:AH191 when R4:AH4 = E,D,C,or R] | AS191: =SUM(AT191:AY191) -> 0 | AT191: =$E191*SUMPRODUCT($R191:$V191,INDEX(AllocFactors_E,AT$4,0)) -> 0 | AU191: 0 | AV191: 0 | AW191: 0 | AX191: 0 | AY191: 0 | BA191: =SUM(BB191:BG191) -> 0 | BB191: =$E191*SUMPRODUCT($W191:$AA191,INDEX(AllocFactors_D,BB$4,0)) -> 0 | BC191: 0 | BD191: 0 | BE191: 0 | BF191: 0 | BG191: 0 | BI191: =SUM(BJ191:BO191) -> 0 | BJ191: =$E191*SUMPRODUCT($AB191:$AG191,INDEX(AllocFactors_C,BJ$4,0)) -> 0 | BK191: 0 | BL191: 0 | BM191: 0 | BN191: 0 | BO191: 0 | BQ191: Supervision & Engineering | BR191: 0 | BS191: =R191 -> 0.13 | BT191: =S191 -> 0.87 | BU191: =T191 -> 0 | BV191: =U191 -> 0 | BW191: =V191 -> 0 | BX191: =W191 -> 0 | BY191: =X191 -> 0 | BZ191: =Y191 -> 0 | CA191: =Z191 -> 0 | CB191: =AA191 -> 0 | CC191: =AB191 -> 0 | CD191: =AC191 -> 0 | CE191: =AD191 -> 0 | CF191: =AE191 -> 0 | CG191: =AF191 -> 0 | CH191: =AG191 -> 0 | CI191: =AH191 -> 0 | CK191: =F191 -> as UG Storage Plant (23) | CL191: 0 | CM191: =$BR191*SUMPRODUCT($BS191:$CI191,INDEX(AllocFactors,CM$168,0)) -> 0 | CN191: 0 | CO191: 0 | CP191: 0 | CQ191: 0 | CR191: 0
A192: 192 | B192: 831-MT | C192: U | D192: Maps & Records | E192: =PROFORMA!AP48 -> 0 | F192: as UG Storage Plant (23) | H192: 0 | I192: 0 | J192: 0 | K192: 0 | L192: 0 | M192: 0 | N192: 0 | R192: =R$23 -> 0.13 | S192: 0.87 | T192: 0 | U192: 0 | V192: 0 | W192: 0 | X192: 0 | Y192: 0 | Z192: 0 | AA192: 0 | AB192: 0 | AC192: 0 | AD192: 0 | AE192: 0 | AF192: 0 | AG192: 0 | AH192: 0 | AI192: 0 | AK192: =SUM(AL192:AO192) -> 0 | AL192: 0 | AM192: 0 | AN192: 0 | AO192: 0 | AQ192: =E$1&$A192&"* """ -> E192* " | AS192: =SUM(AT192:AY192) -> 0 | AT192: 0 | AU192: 0 | AV192: 0 | AW192: 0 | AX192: 0 | AY192: 0 | BA192: =SUM(BB192:BG192) -> 0 | BB192: 0 | BC192: 0 | BD192: 0 | BE192: 0 | BF192: 0 | BG192: 0 | BI192: 0 | BJ192: 0 | BK192: 0 | BL192: 0 | BM192: 0 | BN192: 0 | BO192: 0 | BQ192: Maps & Records | BR192: 0 | BS192: 0.13 | BT192: 0.87 | BU192: 0 | BV192: 0 | BW192: 0 | BX192: 0 | BY192: 0 | BZ192: 0 | CA192: 0 | CB192: 0 | CC192: 0 | CD192: 0 | CE192: 0 | CF192: 0 | CG192: 0 | CH192: 0 | CI192: 0 | CK192: as UG Storage Plant (23) | CL192: 0 | CM192: 0 | CN192: 0 | CO192: 0 | CP192: 0 | CQ192: 0 | CR192: 0
A193: 193 | B193: 832-MT | C193: U | D193: Wells Expenses | E193: =PROFORMA!AP49 -> 0 | F193: as UG Storage Plant (23) | H193: 0 | I193: 0 | J193: 0 | K193: 0 | L193: 0 | M193: 0 | N193: 0 | R193: =R$23 -> 0.13 | S193: 0.87 | T193: 0 | U193: 0 | V193: 0 | W193: 0 | X193: 0 | Y193: 0 | Z193: 0 | AA193: 0 | AB193: 0 | AC193: 0 | AD193: 0 | AE193: 0 | AF193: 0 | AG193: 0 | AH193: 0 | AI193: 0 | AK193: 0 | AL193: 0 | AM193: 0 | AN193: 0 | AO193: 0 | AQ193: E193* " | AS193: 0 | AT193: 0 | AU193: 0 | AV193: 0 | AW193: 0 | AX193: 0 | AY193: 0 | BA193: 0 | BB193: 0 | BC193: 0 | BD193: 0 | BE193: 0 | BF193: 0 | BG193: 0 | BI193: 0 | BJ193: 0 | BK193: 0 | BL193: 0 | BM193: 0 | BN193: 0 | BO193: 0 | BQ193: Wells Expenses | BR193: 0 | BS193: 0.13 | BT193: 0.87 | BU193: 0 | BV193: 0 | BW193: 0 | BX193: 0 | BY193: 0 | BZ193: 0 | CA193: 0 | CB193: 0 | CC193: 0 | CD193: 0 | CE193: 0 | CF193: 0 | CG193: 0 | CH193: 0 | CI193: 0 | CK193: as UG Storage Plant (23) | CL193: 0 | CM193: 0 | CN193: 0 | CO193: 0 | CP193: 0 | CQ193: 0 | CR193: 0
A194: 194 | B194: 833-MT | C194: U | D194: Lines Expenses | E194: =PROFORMA!AP50 -> 0 | F194: as UG Storage Plant (23) | H194: 0 | I194: 0 | J194: 0 | K194: 0 | L194: 0 | M194: 0 | N194: 0 | R194: =R$23 -> 0.13 | S194: 0.87 | T194: 0 | U194: 0 | V194: =V$23 -> 0 | W194: 0 | X194: 0 | Y194: 0 | Z194: 0 | AA194: 0 | AB194: 0 | AC194: 0 | AD194: 0 | AE194: 0 | AF194: 0 | AG194: 0 | AH194: 0 | AI194: 0 | AK194: 0 | AL194: 0 | AM194: 0 | AN194: 0 | AO194: 0 | AQ194: E194* " | AS194: 0 | AT194: 0 | AU194: 0 | AV194: 0 | AW194: 0 | AX194: 0 | AY194: 0 | BA194: 0 | BB194: 0 | BC194: 0 | BD194: 0 | BE194: 0 | BF194: 0 | BG194: 0 | BI194: 0 | BJ194: 0 | BK194: 0 | BL194: 0 | BM194: 0 | BN194: 0 | BO194: 0 | BQ194: Lines Expenses | BR194: 0 | BS194: 0.13 | BT194: 0.87 | BU194: 0 | BV194: 0 | BW194: 0 | BX194: 0 | BY194: 0 | BZ194: 0 | CA194: 0 | CB194: 0 | CC194: 0 | CD194: 0 | CE194: 0 | CF194: 0 | CG194: 0 | CH194: 0 | CI194: 0 | CK194: as UG Storage Plant (23) | CL194: 0 | CM194: 0 | CN194: 0 | CO194: 0 | CP194: 0 | CQ194: 0 | CR194: 0
A195: 195 | B195: 834-MT | C195: U | D195: Compressor Station Expenses | E195: =PROFORMA!AP51 -> 0 | F195: as UG Storage Plant (23) | H195: 0 | I195: 0 | J195: 0 | K195: 0 | L195: 0 | M195: 0 | N195: 0 | P195: =E$1&$A195&"* """ -> E195* " | R195: =R$23 -> 0.13 | S195: =S$23 -> 0.87 | T195: =T$23 -> 0 | U195: =U$23 -> 0 | V195: 0 | W195: 0 | X195: 0 | Y195: 0 | Z195: 0 | AA195: 0 | AB195: 0 | AC195: 0 | AD195: 0 | AE195: 0 | AF195: 0 | AG195: 0 | AH195: 0 | AI195: 0 | AK195: 0 | AL195: 0 | AM195: 0 | AN195: 0 | AO195: 0 | AQ195: E195* " | AS195: 0 | AT195: 0 | AU195: 0 | AV195: 0 | AW195: 0 | AX195: 0 | AY195: 0 | BA195: 0 | BB195: 0 | BC195: 0 | BD195: 0 | BE195: 0 | BF195: 0 | BG195: 0 | BI195: 0 | BJ195: 0 | BK195: 0 | BL195: 0 | BM195: 0 | BN195: 0 | BO195: 0 | BQ195: Compressor Station Expenses | BR195: 0 | BS195: 0.13 | BT195: 0.87 | BU195: 0 | BV195: 0 | BW195: 0 | BX195: 0 | BY195: 0 | BZ195: 0 | CA195: 0 | CB195: 0 | CC195: 0 | CD195: 0 | CE195: 0 | CF195: 0 | CG195: 0 | CH195: 0 | CI195: 0 | CK195: as UG Storage Plant (23) | CL195: 0 | CM195: 0 | CN195: 0 | CO195: 0 | CP195: 0 | CQ195: 0 | CR195: 0
A196: 196 | B196: 835-MT | C196: U | D196: Compressor Station Fuel & Power | E196: =PROFORMA!AP52 -> 0 | F196: as UG Storage Plant (23) | H196: 0 | I196: 0 | J196: 0 | K196: 0 | L196: 0 | M196: 0 | N196: 0 | P196: =E$1&$A196&"* """ -> E196* " | R196: =R$23 -> 0.13 | S196: 0.87 | T196: 0 | U196: 0 | V196: 0 | W196: 0 | X196: 0 | Y196: 0 | Z196: 0 | AA196: 0 | AB196: 0 | AC196: 0 | AD196: 0 | AE196: 0 | AF196: =AF$23 -> 0 | AG196: 0 | AH196: 0 | AI196: 0 | AK196: 0 | AL196: 0 | AM196: 0 | AN196: 0 | AO196: 0 | AQ196: E196* " | AS196: 0 | AT196: 0 | AU196: 0 | AV196: 0 | AW196: 0 | AX196: 0 | AY196: 0 | BA196: 0 | BB196: 0 | BC196: 0 | BD196: 0 | BE196: 0 | BF196: 0 | BG196: 0 | BI196: 0 | BJ196: 0 | BK196: 0 | BL196: 0 | BM196: 0 | BN196: 0 | BO196: 0 | BQ196: Compressor Station Fuel & Power | BR196: 0 | BS196: 0.13 | BT196: 0.87 | BU196: 0 | BV196: 0 | BW196: 0 | BX196: 0 | BY196: 0 | BZ196: 0 | CA196: 0 | CB196: 0 | CC196: 0 | CD196: 0 | CE196: 0 | CF196: 0 | CG196: 0 | CH196: 0 | CI196: 0 | CK196: as UG Storage Plant (23) | CL196: 0 | CM196: 0 | CN196: 0 | CO196: 0 | CP196: 0 | CQ196: 0 | CR196: 0
A197: 197 | B197: 836-MT | C197: U | D197: Measuring and Regulator Station Expenses | E197: =PROFORMA!AP53 -> 0 | F197: as UG Storage Plant (23) | H197: 0 | I197: 0 | J197: 0 | K197: 0 | L197: 0 | M197: 0 | N197: 0 | P197: =E$1&$A197&"* """ -> E197* " | R197: 0.13 | S197: 0.87 | T197: 0 | U197: 0 | V197: 0 | W197: 0 | X197: 0 | Y197: 0 | Z197: 0 | AA197: 0 | AB197: 0 | AC197: 0 | AD197: 0 | AE197: 0 | AF197: 0 | AG197: 0 | AH197: 0 | AI197: 0 | AK197: 0 | AL197: 0 | AM197: 0 | AN197: 0 | AO197: 0 | AQ197: E197* " | AS197: 0 | AT197: 0 | AU197: 0 | AV197: 0 | AW197: 0 | AX197: 0 | AY197: 0 | BA197: 0 | BB197: 0 | BC197: 0 | BD197: 0 | BE197: 0 | BF197: 0 | BG197: 0 | BI197: 0 | BJ197: 0 | BK197: 0 | BL197: 0 | BM197: 0 | BN197: 0 | BO197: 0 | BQ197: Measuring and Regulator Station Expenses | BR197: 0 | BS197: 0.13 | BT197: 0.87 | BU197: 0 | BV197: 0 | BW197: 0 | BX197: 0 | BY197: 0 | BZ197: 0 | CA197: 0 | CB197: 0 | CC197: 0 | CD197: 0 | CE197: 0 | CF197: 0 | CG197: 0 | CH197: 0 | CI197: 0 | CK197: as UG Storage Plant (23) | CL197: 0 | CM197: 0 | CN197: 0 | CO197: 0 | CP197: 0 | CQ197: 0 | CR197: 0
A198: 198 | B198: 837-MT | C198: U | D198: Other Equipment | E198: =PROFORMA!AP54 -> 970000 | F198: as UG Storage Plant (23) | H198: 970000 | I198: 659118.5734 | J198: 285571.8149 | K198: 0 | L198: 5034.716017 | M198: 20274.89575 | N198: 0 | P198: =E$1&$A198&"* """ -> E198* " | R198: 0.13 | S198: 0.87 | T198: 0 | U198: 0 | V198: 0 | W198: 0 | X198: 0 | Y198: 0 | Z198: 0 | AA198: 0 | AB198: 0 | AC198: 0 | AD198: 0 | AE198: 0 | AF198: 0 | AG198: 0 | AH198: 0 | AI198: 0 | AK198: 970000 | AL198: 970000 | AM198: 0 | AN198: 0 | AO198: 0 | AQ198: E198* " | AS198: 970000 | AT198: 659118.5734 | AU198: 285571.8149 | AV198: 0 | AW198: 5034.716017 | AX198: 20274.89575 | AY198: 0 | BA198: 0 | BB198: 0 | BC198: 0 | BD198: 0 | BE198: 0 | BF198: 0 | BG198: 0 | BI198: 0 | BJ198: 0 | BK198: 0 | BL198: 0 | BM198: 0 | BN198: 0 | BO198: 0 | BQ198: Other Equipment | BR198: 0 | BS198: 0.13 | BT198: 0.87 | BU198: 0 | BV198: 0 | BW198: 0 | BX198: 0 | BY198: 0 | BZ198: 0 | CA198: 0 | CB198: 0 | CC198: 0 | CD198: 0 | CE198: 0 | CF198: 0 | CG198: 0 | CH198: 0 | CI198: 0 | CK198: as UG Storage Plant (23) | CL198: 0 | CM198: 0 | CN198: 0 | CO198: 0 | CP198: 0 | CQ198: 0 | CR198: 0
A199: 199 | D199: Total Underground Storage Maintenance | E199: =SUM(E191:E198) -> 970000 | H199: =IF(ROUND(SUM(H191:H198),3)<>ROUND(SUM(I199:N199),3),#VALUE!,SUM(H191:H198)) -> 970000 | I199: =SUM(I191:I198) -> 659118.5734 | J199: 285571.8149 | K199: 0 | L199: 5034.716017 | M199: 20274.89575 | N199: 0 | P199: =$A191&":"&$A198 -> 191:198 | R199: =SUMPRODUCT($E$191:$E$198,R$191:R$198)/$E199 -> 0.13 | S199: 0.87 | T199: 0 | U199: 0 | V199: 0 | W199: 0 | X199: 0 | Y199: 0 | Z199: 0 | AA199: 0 | AB199: 0 | AC199: 0 | AD199: 0 | AE199: 0 | AF199: 0 | AG199: 0 | AH199: 0 | AI199: 0 | AK199: =IF(ROUND(SUM(AK191:AK198),3)<>ROUND(SUM(AL199:AO199),3),#VALUE!,SUM(AK191:AK198)) -> 970000 | AL199: =SUM(AL191:AL198) -> 970000 | AM199: =SUM(AM191:AM198) -> 0 | AN199: =SUM(AN191:AN198) -> 0 | AO199: =SUM(AO191:AO198) -> 0 | AQ199: =$A191&":"&$A198 -> 191:198 | AS199: =IF(ROUND(SUM(AS191:AS198),3)<>ROUND(SUM(AT199:AY199),3),#VALUE!,SUM(AS191:AS198)) -> 970000 | AT199: =SUM(AT191:AT198) -> 659118.5734 | AU199: 285571.8149 | AV199: 0 | AW199: 5034.716017 | AX199: 20274.89575 | AY199: 0 | BA199: =IF(ROUND(SUM(BA191:BA198),3)<>ROUND(SUM(BB199:BG199),3),#VALUE!,SUM(BA191:BA198)) -> 0 | BB199: =SUM(BB191:BB198) -> 0 | BC199: 0 | BD199: 0 | BE199: 0 | BF199: 0 | BG199: 0 | BI199: =IF(ROUND(SUM(BI191:BI198),3)<>ROUND(SUM(BJ199:BO199),3),#VALUE!,SUM(BI191:BI198)) -> 0 | BJ199: =SUM(BJ191:BJ198) -> 0 | BK199: 0 | BL199: 0 | BM199: 0 | BN199: 0 | BO199: 0 | BQ199: Total Underground Storage Maintenance | BR199: =IF(ROUND(SUM(BR191:BR198),3)<>ROUND(SUM(CM199:CR199),3),#VALUE!,SUM(BR191:BR198)) -> 0 | BS199: =IF(SUM($BR$191:$BR$198)=0,0,SUMPRODUCT($BR$191:$BR$198,BS$191:BS$198)/$BR$199) -> 0 | BT199: =IF(SUM($BR$191:$BR$198)=0,0,SUMPRODUCT($BR$191:$BR$198,BT$191:BT$198)/$BR$199) -> 0 | BU199: 0 | BV199: 0 | BW199: 0 | BX199: 0 | BY199: 0 | BZ199: 0 | CA199: 0 | CB199: 0 | CC199: 0 | CD199: 0 | CE199: 0 | CF199: 0 | CG199: 0 | CH199: 0 | CI199: 0 | CL199: 0 | CM199: =SUM(CM191:CM198) -> 0 | CN199: 0 | CO199: 0 | CP199: 0 | CQ199: 0 | CR199: 0
A200: =RowHdr -> 200 | D200: Total Underground Storage Expenses | E200: =E190+E199 -> 1532000 | H200: =H190+H199 -> 1532000 | I200: 1040999.644 | J200: 451026.8251 | K200: 0 | L200: 7951.737049 | M200: 32021.79412 | N200: 0 | P200: =$A190&"+"&$A199 -> 190+199 | R200: =($E$190*R$190+$E$199*R$199)/SUM($E190,$E199) -> 0.13 | S200: 0.87 | T200: 0 | U200: =($E$190*U$190+$E$199*U$199)/SUM($E190,$E199) -> 0 | V200: =($E$190*V$190+$E$199*V$199)/SUM($E190,$E199) -> 0 | W200: 0 | X200: 0 | Y200: =($E$190*Y$190+$E$199*Y$199)/SUM($E190,$E199) -> 0 | Z200: 0 | AA200: 0 | AB200: 0 | AC200: 0 | AD200: 0 | AE200: 0 | AF200: 0 | AG200: =($E$190*AG$190+$E$199*AG$199)/SUM($E190,$E199) -> 0 | AH200: 0 | AI200: 0 | AK200: =AK190+AK199 -> 1532000 | AL200: =AL190+AL199 -> 1532000 | AM200: =AM190+AM199 -> 0 | AN200: =AN190+AN199 -> 0 | AO200: =AO190+AO199 -> 0 | AQ200: =$A190&"+"&$A199 -> 190+199 | AS200: =AS190+AS199 -> 1532000 | AT200: 1040999.644 | AU200: 451026.8251 | AV200: 0 | AW200: 7951.737049 | AX200: 32021.79412 | AY200: 0 | BA200: =BA190+BA199 -> 0 | BB200: 0 | BC200: 0 | BD200: 0 | BE200: 0 | BF200: 0 | BG200: 0 | BI200: =BI190+BI199 -> 0 | BJ200: 0 | BK200: 0 | BL200: 0 | BM200: 0 | BN200: 0 | BO200: 0 | BQ200: Total Underground Storage Expenses | BR200: =BR190+BR199 -> 7944 | BS200: =($BR$190*BS$190+$BR$199*BS$199)/($BR$190+$BR$199) -> 0.13 | BT200: =($BR$190*BT$190+$BR$199*BT$199)/($BR$190+$BR$199) -> 0.87 | BU200: 0 | BV200: 0 | BW200: 0 | BX200: 0 | BY200: 0 | BZ200: 0 | CA200: 0 | CB200: 0 | CC200: 0 | CD200: 0 | CE200: 0 | CF200: 0 | CG200: 0 | CH200: 0 | CI200: 0 | CL200: 0 | CM200: =CM190+CM199 -> 5397.977265 | CN200: 2338.744843 | CO200: 0 | CP200: 41.23276705 | CQ200: 166.0451256 | CR200: 0
A201: 201 | AI201: 0 | CL201: 0
A202: 202 | D202: Distribution Expenses | AI202: 0 | BQ202: Distribution Expenses | CL202: 0
A203: 203 | B203: 870-OP | C203: D | D203: Supervision & Engineering | E203: =PROFORMA!AP70 -> 1466000 | F203: ="as Distrib Plant ("&A$40&")" -> as Distrib Plant (40) | G203: all oth Dist Exp (S04) | H203: =SUM(I203:N203) -> 1466000 | I203: =$E203*SUMPRODUCT($R203:$AH203,INDEX(AllocFactors,I$4,0)) -> 1163003.3 | J203: 224008.1038 | K203: 0.001053346128 | L203: 2779.517136 | M203: 76209.07795 | N203: 0 | P203: =E$1&$A203&"* Sum["&$R$1&$A203&":"&$AH$1&$A203&"* "&Factors!D$1&Factors!$A$58&":"&Factors!S$1&Factors!$A$64&"]" -> E203* Sum[R203:AH203* D1037:S1043] | R203: =R$40 -> 0.1119878704 | S203: =S$40 -> 0 | T203: =T$40 -> 0.0862752692 | U203: 0 | V203: 0 | W203: 0.3194613195 | X203: 0 | Y203: 0 | Z203: =Z$40 -> 0 | AA203: 0 | AB203: =AB$40 -> 0 | AC203: 0.3756369252 | AD203: 0.1009331436 | AE203: =AE$40 -> 0 | AF203: 0.005705471983 | AG203: 0 | AH203: 0 | AI203: 0 | AK203: =SUM(AL203:AO203) -> 1466000 | AL203: =SUMIF($R$4:$AH$4,AL$5,$R203:$AH203)*$E203 -> 290653.7627 | AM203: 468330.2944 | AN203: 707015.9429 | AO203: 0 | AQ203: =E$1&$A203&"*["&R$1&$A203&":"&$AH$1&$A203&" when "&R$1&$A$4&":"&$AH$1&$A$4&" = E,D,C,or R]" -> E203*[R203:AH203 when R4:AH4 = E,D,C,or R] | AS203: =SUM(AT203:AY203) -> 290653.7627 | AT203: =$E203*SUMPRODUCT($R203:$V203,INDEX(AllocFactors_E,AT$4,0)) -> 183864.8634 | AU203: 79661.87702 | AV203: 0 | AW203: 730.3913751 | AX203: 26396.6309 | AY203: 0 | BA203: =SUM(BB203:BG203) -> 468330.2944 | BB203: =$E203*SUMPRODUCT($W203:$AA203,INDEX(AllocFactors_D,BB$4,0)) -> 311648.4709 | BC203: 110158.5553 | BD203: 0 | BE203: 1716.005727 | BF203: 44807.26249 | BG203: 0 | BI203: =SUM(BJ203:BO203) -> 707015.9429 | BJ203: =$E203*SUMPRODUCT($AB203:$AG203,INDEX(AllocFactors_C,BJ$4,0)) -> 667489.9658 | BK203: 34187.67143 | BL203: 0.001053346128 | BM203: 333.1200341 | BN203: 5005.184562 | BO203: 0 | BQ203: Supervision & Engineering | BR203: 814373 | BS203: =R203 -> 0.1119878704 | BT203: =S203 -> 0 | BU203: =T203 -> 0.0862752692 | BV203: =U203 -> 0 | BW203: =V203 -> 0 | BX203: =W203 -> 0.3194613195 | BY203: =X203 -> 0 | BZ203: =Y203 -> 0 | CA203: =Z203 -> 0 | CB203: =AA203 -> 0 | CC203: =AB203 -> 0 | CD203: =AC203 -> 0.3756369252 | CE203: =AD203 -> 0.1009331436 | CF203: =AE203 -> 0 | CG203: =AF203 -> 0.005705471983 | CH203: =AG203 -> 0 | CI203: =AH203 -> 0 | CK203: =F203 -> as Distrib Plant (40) | CL203: 0 | CM203: =$BR203*SUMPRODUCT($BS203:$CI203,INDEX(AllocFactors,CM$168,0)) -> 646056.2664 | CN203: 124438.0297 | CO203: 0.0005851409593 | CP203: 1544.040729 | CQ203: 42334.66264 | CR203: 0
... 242 more rows

Sheet Summary
A1: =ColHdr -> A | B1: =ColHdr -> B | C1: C | D1: D | E1: E | F1: F | G1: G | H1: H | I1: I | J1: J | K1: K | L1: L
A2: =Pg1Row+ROW(A2) -> 447
A3: 448
A4: 449 | C4: Total | D4: Sch 101 | E4: Sch 111 | F4: Sch 121 | G4: Sch 132 | H4: Sch 146 | I4: Open | K4: source
A5: 450 | B5: Plant In Service
A6: 451 | B6: Underground Storage Plant | C6: =Detail!H23 -> 29042000 | D6: =Detail!I23 -> 19734145.99 | E6: =Detail!J23 -> 8550079.018 | F6: =Detail!K23 -> 0 | G6: =Detail!L23 -> 150740.4356 | H6: =Detail!M23 -> 607034.5592 | I6: =Detail!N23 -> 0 | K6: =Detail!A$23 -> 23
A7: 452 | B7: Distribution Plant | C7: =Detail!H40 -> 494596000 | D7: =Detail!I40 -> 392371610 | E7: =Detail!J40 -> 75575383.42 | F7: =Detail!K40 -> 0.3553757036 | G7: =Detail!L40 -> 937747.6518 | H7: =Detail!M40 -> 25711258.61 | I7: =Detail!N40 -> 0 | K7: =Detail!A$40 -> 40
A8: 453 | B8: Intangible Plant | C8: =Detail!H12 -> 33135000 | D8: =Detail!I12 -> 28799770.72 | E8: =Detail!J12 -> 3384134.369 | F8: =Detail!K12 -> 0.01158929827 | G8: =Detail!L12 -> 41868.28826 | H8: =Detail!M12 -> 909226.6117 | I8: =Detail!N12 -> 0 | K8: =Detail!A$12 -> 12
A9: 454 | B9: General Plant | C9: =Detail!H55 -> 105780000 | D9: =Detail!I55 -> 92581113.95 | E9: =Detail!J55 -> 10375348.24 | F9: =Detail!K55 -> 0.03388177376 | G9: =Detail!L55 -> 128316.4207 | H9: =Detail!M55 -> 2695221.362 | I9: =Detail!N55 -> 0 | K9: =Detail!A$55 -> 55
A10: 455 | B10: Total Plant In Service | C10: =Detail!H57 -> 662553000 | D10: =Detail!I57 -> 533486640.6 | E10: =Detail!J57 -> 97884945.04 | F10: =Detail!K57 -> 0.4008467757 | G10: =Detail!L57 -> 1258672.796 | H10: =Detail!M57 -> 29922741.14 | I10: =Detail!N57 -> 0 | K10: =Detail!A57 -> 57
A11: 456 | C11: =ABS(ROUND(SUM(C6:C9)-C10,0)) -> 0 | D11: 0 | E11: 0 | F11: 0 | G11: 0 | H11: 0 | I11: 0
A12: 457 | B12: Accum Depreciation
A13: 458 | B13: Underground Storage Plant | C13: =Detail!H70 -> -11482000 | D13: =Detail!I70 -> -7802061.298 | E13: =Detail!J70 -> -3380345.957 | F13: =Detail!K70 -> 0 | G13: =Detail!L70 -> -59596.50444 | H13: =Detail!M70 -> -239996.2402 | I13: =Detail!N70 -> 0 | K13: =Detail!A$70 -> 70
A14: 459 | B14: Distribution Plant | C14: =Detail!H86 -> -148333000 | D14: =Detail!I86 -> -118631617.2 | E14: =Detail!J86 -> -21958127.75 | F14: =Detail!K86 -> -0.118225869 | G14: =Detail!L86 -> -272403.5749 | H14: =Detail!M86 -> -7470851.346 | I14: =Detail!N86 -> 0 | K14: =Detail!A$86 -> 86
A15: 460 | B15: Intangible Plant | C15: =Detail!H108 -> -10461000 | D15: =Detail!I108 -> -9103536.255 | E15: =Detail!J108 -> -1060914.361 | F15: =Detail!K108 -> -0.003604363459 | G15: =Detail!L108 -> -13124.74624 | H15: =Detail!M108 -> -283424.6343 | I15: =Detail!N108 -> 0 | K15: =Detail!A$108 -> 108
A16: 461 | B16: General Plant | C16: =Detail!H101 -> -24728000 | D16: =Detail!I101 -> -21642520.19 | E16: =Detail!J101 -> -2425426.462 | F16: =Detail!K101 -> -0.007920481201 | G16: =Detail!L101 -> -29996.29847 | H16: =Detail!M101 -> -630057.0414 | I16: =Detail!N101 -> 0 | K16: =Detail!A$101 -> 101
A17: 462 | B17: Total Accumulated Depreciation | C17: =Detail!H110 -> -195004000 | D17: =Detail!I110 -> -157179735 | E17: =Detail!J110 -> -28824814.53 | F17: =Detail!K110 -> -0.1297507137 | G17: =Detail!L110 -> -375121.124 | H17: =Detail!M110 -> -8624329.261 | I17: =Detail!N110 -> 0 | K17: =Detail!A110 -> 110
A18: 463 | C18: =ABS(ROUND(SUM(C13:C16)-C17,0)) -> 0 | D18: 0 | E18: 0 | F18: 0 | G18: 0 | H18: 0 | I18: 0
A19: 464 | B19: Net Plant | C19: =C10+C17 -> 467549000 | D19: 376306905.7 | E19: 69060130.51 | F19: 0.271096062 | G19: 883551.6724 | H19: 21298411.88 | I19: 0 | K19: =A10&"+"&A17 -> 455+462
A20: 465 | B20: Accumulated Deferred FIT | C20: =Detail!H117 -> -89888000 | D20: =Detail!I117 -> -72377677.19 | E20: =Detail!J117 -> -13279966.95 | F20: =Detail!K117 -> -0.05438253992 | G20: =Detail!L117 -> -170763.064 | H20: =Detail!M117 -> -4059592.75 | I20: =Detail!N117 -> 0 | K20: =Detail!A$117 -> 117
A21: 466 | B21: Miscellaneous Rate Base | C21: =Detail!H126-C20 -> 21330000 | D21: =Detail!I126-D20 -> 17327992.26 | E21: =Detail!J126-E20 -> 3464074.862 | F21: =Detail!K126-F20 -> 0.004112812682 | G21: =Detail!L126-G20 -> 56280.40797 | H21: =Detail!M126-H20 -> 481652.4664 | I21: =Detail!N126-I20 -> 0 | K21: =Detail!A$126&"-"&A20 -> 126-465
A22: 467 | B22: Total Rate Base | C22: =IF(ROUND(Detail!H128,3)<>ROUND(SUM(D22:I22),3),#VALUE!,SUM(D22:I22)) -> 398991000 | D22: =Detail!I128 -> 321257220.7 | E22: =Detail!J128 -> 59244238.43 | F22: =Detail!K128 -> 0.2208263347 | G22: =Detail!L128 -> 769069.0164 | H22: =Detail!M128 -> 17720471.59 | I22: =Detail!N128 -> 0 | K22: =Detail!A128 -> 128
A23: 468 | C23: =ABS(ROUND(SUM(C19:C21)-C22,0)) -> 0 | D23: 0 | E23: 0 | F23: 0 | G23: 0 | H23: 0 | I23: 0
A24: 469 | B24: Revenue From Retail Rates | C24: =-Detail!H417 -> 91987000 | D24: =-Detail!I417 -> 71131815.8 | E24: =-Detail!J417 -> 17418556.98 | F24: =-Detail!K417 -> 0 | G24: =-Detail!L417 -> 201030.0187 | H24: =-Detail!M417 -> 3235597.207 | I24: =-Detail!N417 -> 0 | K24: =Detail!A$417 -> 417
A25: 470 | B25: Other Operating Revenues | C25: =C26-C24 -> 2053000 | D25: =D26-D24 -> 1691771.597 | E25: 259781.3285 | F25: 0.001308432499 | G25: 2948.773715 | H25: =H26-H24 -> 98498.29928 | I25: 0 | K25: =A26&"-"&A24 -> 471-469
A26: 471 | B26: Total Revenues | C26: =-Detail!H428 -> 94040000 | D26: =-Detail!I428 -> 72823587.39 | E26: =-Detail!J428 -> 17678338.31 | F26: =-Detail!K428 -> 0.001308432499 | G26: =-Detail!L428 -> 203978.7925 | H26: =-Detail!M428 -> 3334095.506 | I26: =-Detail!N428 -> 0 | K26: =Detail!A$428 -> 428
A27: 472 | C27: =ABS(ROUND(C24+C25-C26,0)) -> 0 | D27: =ABS(ROUND(D24+D25-D26,0)) -> 0 | E27: 0 | F27: 0 | G27: 0 | H27: 0 | I27: 0
A28: 473 | B28: Operating Expenses
A29: 474 | B29: Purchased Gas Costs | C29: =Detail!H176 -> 999000 | D29: =Detail!I176 -> 674600.1306 | E29: =Detail!J176 -> 287196.8288 | F29: =Detail!K176 -> 0 | G29: =Detail!L176 -> 4963.80182 | H29: =Detail!M176 -> 32239.23876 | I29: =Detail!N176 -> 0 | K29: =Detail!A$176 -> 176
A30: 475 | B30: Underground Storage Expenses | C30: =Detail!H200 -> 1532000 | D30: =Detail!I200 -> 1040999.644 | E30: =Detail!J200 -> 451026.8251 | F30: =Detail!K200 -> 0 | G30: =Detail!L200 -> 7951.737049 | H30: =Detail!M200 -> 32021.79412 | I30: =Detail!N200 -> 0 | K30: =Detail!A$200 -> 200
A31: 476 | B31: Distribution Expenses | C31: =Detail!H224 -> 12998000 | D31: =Detail!I224 -> 10781868.42 | E31: =Detail!J224 -> 1669638.95 | F31: =Detail!K224 -> 0.007374795377 | G31: =Detail!L224 -> 20599.34321 | H31: =Detail!M224 -> 525893.2798 | I31: =Detail!N224 -> 0 | K31: =Detail!A$224 -> 224
A32: 477 | B32: Customer Accounting Expenses | C32: =Detail!H232 -> 7097000 | D32: =Detail!I232 -> 6880848.499 | E32: =Detail!J232 -> 199687.3981 | F32: =Detail!K232 -> 0 | G32: =Detail!L232 -> 944.5225417 | H32: =Detail!M232 -> 15519.58048 | I32: =Detail!N232 -> 0 | K32: =Detail!A$232 -> 232
A33: 478 | B33: Customer Information Expenses | C33: =Detail!H240 -> 1259000 | D33: =Detail!I240 -> 1235218.094 | E33: =Detail!J240 -> 23461.25147 | F33: =Detail!K240 -> 0 | G33: =Detail!L240 -> 15.26928179 | H33: =Detail!M240 -> 305.3856358 | I33: =Detail!N240 -> 0 | K33: =Detail!A$240 -> 240
A34: 479 | B34: Sales Expenses | C34: =Detail!H247 -> 1000 | D34: =Detail!I247 -> 981.1104794 | E34: =Detail!J247 -> 18.6348304 | F34: =Detail!K247 -> 0 | G34: =Detail!L247 -> 0.01212810309 | H34: =Detail!M247 -> 0.2425620618 | I34: =Detail!N247 -> 0 | K34: =Detail!A$247 -> 247
A35: 480 | B35: Admin & General Expenses | C35: =Detail!H338 -> 15631000.04 | D35: =Detail!I338 -> 13645283.85 | E35: =Detail!J338 -> 1561671.216 | F35: =Detail!K338 -> 0.005006011665 | G35: =Detail!L338 -> 19291.12814 | H35: =Detail!M338 -> 404753.8404 | I35: =Detail!N338 -> 0 | K35: =Detail!A$338 -> 338
A36: 481 | B36: Total O&M Expenses | C36: =Detail!H340 -> 39517000.04 | D36: =Detail!I340 -> 34259799.75 | E36: =Detail!J340 -> 4192701.104 | F36: =Detail!K340 -> 0.01238080704 | G36: =Detail!L340 -> 53765.81417 | H36: =Detail!M340 -> 1010733.362 | I36: =Detail!N340 -> 0 | K36: =Detail!A$340 -> 340
A37: 482 | C37: =ABS(ROUND(SUM(C29:C35)-C36,0)) -> 0 | D37: 0 | E37: 0 | F37: 0 | G37: 0 | H37: 0 | I37: 0
A38: 483 | B38: Taxes Other Than Income Taxes | C38: =Detail!H348 -> 7929000 | D38: =Detail!I348 -> 6186443.233 | E38: =Detail!J348 -> 1384189.258 | F38: =Detail!K348 -> 0.002826646431 | G38: =Detail!L348 -> 16949.82495 | H38: =Detail!M348 -> 341417.6816 | I38: =Detail!N348 -> 0 | K38: =Detail!A$348 -> 348
A39: 484 | B39: Depreciation Expense
A40: 485 | B40: Underground Storage Plant Depreciation | C40: =Detail!H360 -> 426000 | D40: =Detail!I360 -> 289468.5693 | E40: =Detail!J360 -> 125416.0754 | F40: =Detail!K360 -> 0 | G40: =Detail!L360 -> 2211.122704 | H40: =Detail!M360 -> 8904.232568 | I40: =Detail!N360 -> 0 | K40: =Detail!A$360 -> 360
A41: 486 | B41: Distribution Plant Depreciation | C41: =Detail!H376 -> 11827000 | D41: =Detail!I376 -> 9443538.048 | E41: =Detail!J376 -> 1771252.614 | F41: =Detail!K376 -> 0.008090198791 | G41: =Detail!L376 -> 21878.37554 | H41: =Detail!M376 -> 590330.955 | I41: =Detail!N376 -> 0 | K41: =Detail!A$376 -> 376
A42: 487 | B42: General Plant Depreciation | C42: =Detail!H389 -> 5584000 | D42: =Detail!I389 -> 4887246.552 | E42: =Detail!J389 -> 547702.2552 | F42: =Detail!K389 -> 0.001788578414 | G42: =Detail!L389 -> 6773.670763 | H42: =Detail!M389 -> 142277.5202 | I42: =Detail!N389 -> 0 | K42: =Detail!A$389 -> 389
A43: 488 | B43: Amortization Expense | C43: =Detail!H399 -> 6690000 | D43: =Detail!I399 -> 6172598.605 | E43: =Detail!J399 -> 405412.6787 | F43: =Detail!K399 -> 0.001353553023 | G43: =Detail!L399 -> 5014.753106 | H43: =Detail!M399 -> 106973.9622 | I43: =Detail!N399 -> 0 | K43: =Detail!A$399 -> 399
A44: 489 | B44: Total Depreciation Expense | C44: =Detail!H401 -> 24527000 | D44: =Detail!I401 -> 20792851.77 | E44: =Detail!J401 -> 2849783.623 | F44: =Detail!K401 -> 0.01123233023 | G44: =Detail!L401 -> 35877.92211 | H44: =Detail!M401 -> 848486.6699 | I44: =Detail!N401 -> 0 | K44: =Detail!A$401 -> 401
A45: 490 | B45: Income Tax | C45: =SUM(Detail!H408:H411) -> 1832000 | D45: =SUM(Detail!I408:I411) -> 516154.3179 | E45: =SUM(Detail!J408:J411) -> 1198654.6 | F45: =SUM(Detail!K408:K411) -> -0.004777583981 | G45: =SUM(Detail!L408:L411) -> 12037.61713 | H45: =SUM(Detail!M408:M411) -> 105153.4694 | I45: =SUM(Detail!N408:N411) -> 0 | K45: =Detail!A$408&":"&Detail!A$411 -> 408:411
A46: 491 | B46: Total Operating Expenses | C46: =Detail!H414 -> 73805000.04 | D46: =Detail!I414 -> 61755249.07 | E46: =Detail!J414 -> 9625328.585 | F46: =Detail!K414 -> 0.02166219972 | G46: =Detail!L414 -> 118631.1784 | H46: =Detail!M414 -> 2305791.183 | I46: =Detail!N414 -> 0 | K46: =Detail!A$414 -> 414
A47: 492 | I47: 0
A48: 493 | B48: Net Operating Income | C48: =IF(ROUND(-Detail!H430,3)<>ROUND(SUM(D48:I48),3),#VALUE!,SUM(D48:I48)) -> 20234999.96 | D48: =-Detail!I430 -> 11068338.32 | E48: =-Detail!J430 -> 8053009.721 | F48: =-Detail!K430 -> -0.02035376722 | G48: =-Detail!L430 -> 85347.6141 | H48: =-Detail!M430 -> 1028304.323 | I48: =-Detail!N430 -> 0 | K48: =Detail!A$430 -> 430
A49: 494 | B49: Rate of Return | C49: =Detail!H129 -> 0.05071542957 | D49: =Detail!I129 -> 0.03445319703 | E49: =Detail!J129 -> 0.1359289938 | F49: 0 | G49: =Detail!L129 -> 0.1109752341 | H49: =Detail!M129 -> 0.05802917365 | I49: =Detail!N129 -> 0 | K49: =Detail!A$129 -> 129
A50: 495 | B50: Return Ratio | C50: =C49/$C49 -> 1 | D50: =D49/$C49 -> 0.6793434921 | E50: 2.680229567 | F50: 0 | G50: 2.188194697 | H50: =H49/$C49 -> 1.144211419 | I50: 0 | K50: ="% of "&C$1&$A49 -> % of C494
A51: 496
A52: 497 | B52: Interest Expense | C52: =Detail!H154 -> 10254000 | D52: =Detail!I154 -> 8256255.258 | E52: =Detail!J154 -> 1522566.727 | F52: =Detail!K154 -> 0.00567519878 | G52: =Detail!L154 -> 19764.9413 | H52: =Detail!M154 -> 455413.0688 | I52: =Detail!N154 -> 0 | K52: =Detail!A$154 -> 154
A53: 498 | B53: Income Tax / Net Oper Income | C53: =C45/C48 -> 0.09053619983
A54: 499
A55: 500
A56: 501 | B56: Proposed Rate Revenue Increase | C56: =SUM(D56:I56) -> 12935000 | D56: 10003000 | E56: =2406000+43000 -> 2449000 | F56: 0 | G56: 28000 | H56: 455000 | I56: 0 | K56: input from Miller "ROR" tab
A57: 502 | B57: Proposed Misc Revenue Increase | C57: =ROUND(SUM(D57:I57),-3) -> 0 | D57: 0 | E57: 0 | F57: 0 | G57: 0 | H57: 0 | I57: 0 | K57: input
A58: 503 | B58: Total Revenue Increase | C58: =C56+C57 -> 12935000 | D58: =D56+D57 -> 10003000 | E58: 2449000 | F58: 0 | G58: 28000 | H58: 455000 | I58: 0 | K58: =A56&"+"&A57 -> 501+502
A59: 504
A60: 505 | B60: allocated Misc Rev increase | C60: =C57 -> 0 | D60: =$C60*D61 -> 0 | E60: 0 | F60: 0 | G60: 0 | H60: 0 | I60: 0 | K60: =C$1&A60&" * "&A61 -> C505 * 506
A61: 506 | B61: allocation basis - Dist Plant | C61: =SUM(D61:H61) -> 1 | D61: =Detail!I421/Detail!$H421 -> 0.7933173943 | E61: =Detail!J421/Detail!$H421 -> 0.1528022536 | F61: =Detail!K421/Detail!$H421 -> 7.185171405e-10 | G61: =Detail!L421/Detail!$H421 -> 0.001895987132 | H61: =Detail!M421/Detail!$H421 -> 0.05198436422 | I61: =Detail!N421/Detail!$H421 -> 0 | K61: ="% of "&Detail!H$1&Detail!A421 -> % of H421
A62: 507
A63: 508 | B63: Proposed Rate Revenue | C63: =C24+C56 -> 104922000 | D63: =D24+D56 -> 81134815.8 | E63: 19867556.98 | F63: 0 | G63: =G24+G56 -> 229030.0187 | H63: =H24+H56 -> 3690597.207 | I63: 0 | K63: =A24&"+"&A56 -> 469+501
A64: 509
A65: 510 | B65: Present Return b4 conversion items | C65: =SUM(D65:I65) -> 26406999.96 | D65: =-(Detail!I428+Detail!I403)+D91 -> 14940532.96 | E65: =-(Detail!J428+Detail!J403)+E91 -> 10073481.94 | F65: =-(Detail!K428+Detail!K403)+F91 -> -0.0251313512 | G65: =-(Detail!L428+Detail!L403)+G91 -> 106869.9441 | H65: =-(Detail!M428+Detail!M403)+H91 -> 1286115.145 | I65: =-(Detail!N428+Detail!N403)+I91 -> 0 | K65: ="-"&Detail!A428&"-"&Detail!A403&"+"&A91 -> -428-403+536
A66: 511
A67: 512
A68: 513 | B68: present conversion items, new spread
A69: 514 | B69: Uncollectibles | C69: =Detail!$E230 -> 395000 | D69: =$C69*D$63/$C$63 -> 305448.3544 | E69: =$C69*E$63/$C$63 -> 74795.41951 | F69: 0 | G69: 862.2296316 | H69: 13893.99646 | I69: 0 | K69: =Detail!A230&" * % of "&A$63 -> 230 * % of 508
A70: =Pg1Row+ROW(A70) -> 515 | B70: Commission Fees | C70: =Detail!$E315 -> 203000 | D70: =$C70*D$63/$C$63 -> 156977.2555 | E70: 38439.16497 | F70: 0 | G70: 443.1205448 | H70: 7140.45894 | I70: 0 | K70: =Detail!A315&" * % of "&A$63 -> 315 * % of 508
A71: 516 | B71: Washington ExciseTax | C71: =Detail!$E347 -> 3742000 | D71: =$C71*D$63/$C$63 -> 2893639.854 | E71: 708568.2527 | F71: 0 | G71: 8168.261472 | H71: 131623.6323 | I71: 0 | K71: =Detail!A347&" * % of "&A$63 -> 347 * % of 508
A72: 517 | B72: incremental conversion items, new spread
A73: 518 | B73: Uncollectibles | C73: =ROUND($C$58*$L73,-3) -> 49000 | D73: =$C73*D$63/$C$63 -> 37891.06168 | E73: 9278.41913 | F73: 0 | G73: 106.9601315 | H73: 1723.559055 | I73: 0 | K73: =C$1&$A$56&"*"&L$1&$A73&" * % of "&A$63 -> C501*L518 * % of 508 | L73: 0.003781
A74: 519 | B74: Commission Fees | C74: =ROUND($C$58*$L74,-3) -> 26000 | D74: 20105.4613 | E74: 4923.242803 | F74: 0 | G74: 56.7543555 | H74: 914.5415392 | I74: 0 | K74: =C$1&$A$56&"*"&L$1&$A74&" * % of "&A$63 -> C501*L519 * % of 508 | L74: 0.002
A75: 520 | B75: Washington ExciseTax | C75: =ROUND($C$58*$L75,-3) -> 496000 | D75: 383550.3387 | E75: 93920.32425 | F75: 0 | G75: 1082.698474 | H75: 17446.63859 | I75: 0 | K75: =C$1&$A$56&"*"&L$1&$A75&" * % of "&A$63 -> C501*L520 * % of 508 | L75: 0.038374
A76: 521 | B76: less: Interest Expense | C76: =Detail!H154 -> 10254000 | D76: =Detail!I154 -> 8256255.258 | E76: =Detail!J154 -> 1522566.727 | F76: =Detail!K154 -> 0.00567519878 | G76: =Detail!L154 -> 19764.9413 | H76: =Detail!M154 -> 455413.0688 | I76: =Detail!N154 -> 0 | K76: =Detail!A154 -> 154
A77: 522 | B77: Proposed Return b4 Tax, new spread | C77: =C56+C60+C65-SUM(C69:C76) -> 24176999.96 | D77: 12889665.37 | E77: 10069990.39 | F77: -0.03080654998 | G77: 104384.9782 | H77: 1112959.249 | I77: 0 | K77: =A56&"+"&A60&"+"&A65&"+"&A69&":"&A75 -> 501+505+510+514:520 | L77: 0.200727
A78: 523 | B78: less: FIT--present | C78: =Detail!$E409 -> 1726000 | D78: =$C78*D$77/$C$77 -> 920195.3291 | E78: =$C78*E$77/$C$77 -> 718898.2687 | F78: -0.002199284665 | G78: 7452.060745 | H78: =$C78*H$77/$C$77 -> 79454.34371 | I78: 0 | K78: =Detail!E$1&Detail!A409&" * % of "&A77 -> E409 * % of 522
A79: 524 | B79: less: FIT--incremental | C79: =ROUND($C$58*$L77,-3) -> 2596000 | D79: =$C79*D$77/$C$77 -> 1384024.956 | E79: 1081262.981 | F79: -0.003307846461 | G79: 11208.31384 | H79: 119503.7522 | I79: 0 | K79: =C$1&A$58&"*"&L$1&A$77&"* % of "&A$77 -> C503*L522* % of 522
A80: 525 | B80: less: DFIT, SIT, ITC--present | C80: =Detail!E412-C78 -> 106000 | D80: =$C80*D$77/$C$77 -> 56512.57525 | E80: 44150.18336 | F80: -0.0001350661498 | G80: 457.6584235 | H80: 4879.583101 | I80: 0 | K80: =Detail!E$1&Detail!A412&" - "&C$1&A78&"* % of "&A77 -> E412 - C523* % of 522 | M80: =1-L73-L74-L75-L77 -> 0.755118
A81: 526 | B81: addback: Interest Expense | C81: =Detail!H154 -> 10254000 | D81: =Detail!I154 -> 8256255.258 | E81: =Detail!J154 -> 1522566.727 | F81: =Detail!K154 -> 0.00567519878 | G81: =Detail!L154 -> 19764.9413 | H81: =Detail!M154 -> 455413.0688 | I81: =Detail!N154 -> 0 | K81: =Detail!A154 -> 154
A82: 527 | B82: Proposed Return | C82: =IF(ROUND(C77-C78-C79-C80+C81,0)<>ROUND(SUM(D82:I82),0),#VALUE!,ROUND(SUM(D82:I82),0)) -> 30003000 | D82: =D77-D78-D79-D80+D81 -> 18785187.77 | E82: 9748245.683 | F82: -0.01948915393 | G82: 105031.8865 | H82: 1364534.639 | I82: 0 | K82: =A77&" - "&A78&":"&A80&" + "&A81 -> 522 - 523:525 + 526
A83: 528 | B83: Proposed Rate of Return | C83: =IF(C22,C82/C22,0) -> 0.0751971849 | D83: 0.05847397835 | E83: 0.1645433538 | F83: 0 | G83: 0.1365701702 | H83: =IF(H22,H82/H22,0) -> 0.07700329148 | I83: 0 | K83: =A82&" / "&A22 -> 527 / 467
A84: 529 | B84: Proposed Return Ratio | C84: =C83/$C83 -> 1 | D84: 0.777608609 | E84: 2.188158426 | F84: 0 | G84: 1.816160677 | H84: 1.024018274 | I84: 0 | K84: ="% of "&C$1&$A83 -> % of C528
A85: 530
A86: 531 | B86: Rate Revenues at Uniform Present Rates | C86: =C129 -> 91987000 | D86: 77621276.59 | E86: 11147649.4 | F86: 0.03919378124 | G86: 143463.6836 | H86: 3074610.29 | I86: 0 | K86: =A129 -> 574
A87: 532 | B87: Rate Change to get to Uniform Present Rates | C87: =SUM(D87:J87) -> -2.150773071e-08 | D87: =D86-D24 -> 6489460.794 | E87: -6270907.581 | F87: 0.03919378124 | G87: -57566.33511 | H87: -160986.9166 | I87: 0 | K87: =A86&"-"&A24 -> 531-469
A88: 533 | B88: % Change to get to Uniform Rates | C88: =IF(C86,C87/C86,0) -> -2.338127204e-16 | D88: 0.08360414926 | E88: -0.5625318269 | F88: 1 | G88: -0.401260679 | H88: -0.05236010466 | I88: 0 | K88: =A87&"/"&A86 -> 532/531
A89: 534
A90: 535
A91: 536 | B91: Revenue Related Op Exp., current | C91: =SUMIF(Detail!$C$170:$C$405,$L91,Detail!H$170:H$405) -> 4340000 | D91: =SUMIF(Detail!$C$170:$C$405,$L91,Detail!I$170:I$405) -> 3356040.316 | E91: =SUMIF(Detail!$C$170:$C$405,$L91,Detail!J$170:J$405) -> 821817.6186 | F91: =SUMIF(Detail!$C$170:$C$405,$L91,Detail!K$170:K$405) -> 0 | G91: =SUMIF(Detail!$C$170:$C$405,$L91,Detail!L$170:L$405) -> 9484.712855 | H91: =SUMIF(Detail!$C$170:$C$405,$L91,Detail!M$170:M$405) -> 152657.3524 | I91: =SUMIF(Detail!$C$170:$C$405,$L91,Detail!N$170:N$405) -> 0 | K91: =Detail!A$170&":"&Detail!A$405&", col "&Detail!C$1&"= " -> 170:405, col C= | L91: R
A92: 537 | B92: Rate Rev. excl Rev. Conversion Items, current | C92: =C24-C91 -> 87647000 | D92: =D24-D91 -> 67775775.48 | E92: 16596739.36 | F92: 0 | G92: 191545.3059 | H92: 3082939.854 | I92: 0 | K92: =A24&" - "&A91 -> 469 - 536
A93: 538 | B93: Revenue Conversion Item Ratio, current | C93: =IF(C92,C91/C92,0) -> 0.04951681176 | D93: 0.04951681176 | E93: 0.04951681176 | F93: 0 | G93: 0.04951681176 | H93: 0.04951681176 | I93: 0 | K93: =A91&"/"&A92 -> 536/537
A94: 539
A95: 540 | B95: Adj. Revenue Conversion Items | C95: =SUM(C69:C71,C73:C75) -> 4911000 | D95: =SUM(D69:D71,D73:D75) -> 3797612.325 | E95: 929924.8234 | F95: 0 | G95: 10720.02461 | H95: 172742.8269 | I95: 0 | K95: =A69&":"&A71&" + "&A73&":"&A75 -> 514:516 + 518:520
A96: 541 | B96: Adj. Rate Rev. excl Conversion Items | C96: =C63-C95 -> 100011000 | D96: =D63-D95 -> 77337203.47 | E96: 18937632.15 | F96: 0 | G96: 218309.9941 | H96: 3517854.38 | I96: 0 | K96: =A63&" - "&A95 -> 508 - 540
A97: 542 | B97: Adj. Revenue Conversion Ratio | C97: =IF(C96,C95/C96,0) -> 0.04910459849 | D97: =IF(D96,D95/D96,0) -> 0.04910459849 | E97: 0.04910459849 | F97: 0 | G97: 0.04910459849 | H97: 0.04910459849 | I97: 0 | K97: =A95&"/"&A96 -> 540/541
A98: 543 | B98: Adj. Income Tax Items | C98: =SUM(C78:C80) -> 4428000 | D98: =SUM(D78:D80) -> 2360732.86 | E98: 1844311.433 | F98: -0.005642197276 | G98: 19118.03301 | H98: 203837.679 | I98: 0 | K98: =A78&":"&A80 -> 523:525
A99: 544 | B99: Adj. Return | C99: =C83*C22 -> 30003000 | D99: 18785187.77 | E99: 9748245.683 | F99: 0 | G99: 105031.8865 | H99: 1364534.639 | I99: 0 | K99: =A83&" * "&A22 -> 528 * 467
A100: 545 | B100: Adj. Income Tax Ratio | C100: =IF(C99,C98/C99,0) -> 0.1475852415 | D100: =IF(D99,D98/D99,0) -> 0.1256699102 | E100: 0.1891941887 | F100: 0 | G100: 0.1820212286 | H100: 0.149382561 | I100: 0 | K100: =A98&"/"&A99 -> 543/544
A101: 546 | B101: Adj. Income Tax Items - Uniform | C101: =C98 -> 4428000 | D101: =$C101*D$82/$C$82 -> 2772416.473 | E101: 1438697.193 | F101: -0.002876311488 | G101: 15501.15633 | H101: 201385.1742 | I101: 0 | K101: =C$1&A98&" * % of "&A82 -> C543 * % of 527
A102: 547
A103: 548
A104: 549
A105: 550 | B105: SUMMARY BY FUNCTION WITH MARGIN ANALYSIS
A106: 551
A107: 552 | C107: Total | D107: Sch 101 | E107: Sch 111 | F107: Sch 121 | G107: Sch 131 | H107: Sch 146 | I107: Open
A108: 553 | B108: Functional Cost Components at Current Rates
A109: 554 | B109: Production | C109: =SUM(D109:I109) -> 1048467.295 | D109: =D281 -> 708004.1783 | E109: 301417.9001 | F109: 0 | G109: 5209.59346 | H109: 33835.62307 | I109: 0 | K109: =A281 -> 726
A110: 555 | B110: Underground Storage | C110: =SUM(D110:I110) -> 4180242.007 | D110: =D290 -> 2269867.381 | E110: 1798920.877 | F110: 0 | G110: 28180.08505 | H110: 83273.66361 | I110: 0 | K110: =A290 -> 735
A111: 556 | B111: Distribution | C111: =SUM(D111:I111) -> 53535057.99 | D111: =D301 -> 39813404.97 | E111: 11300473.46 | F111: 0.01314467069 | G111: 121380.7341 | H111: 2299798.814 | I111: 0 | K111: =A301 -> 746
A112: 557 | B112: Common | C112: =SUM(D112:I112) -> 33223232.73 | D112: =D310 -> 28340539.27 | E112: 4017744.738 | F112: 0.007209096527 | G112: 46259.6061 | H112: 818689.1064 | I112: 0 | K112: =A310 -> 755
A113: 558 | B113: Total Current Rate Revenue | C113: =IF(ROUND(SUM(C109:C112),3)<>ROUND(SUM(D113:I113),3),#VALUE!,SUM(D113:I113)) -> 91987000.02 | D113: =SUM(D109:D112) -> 71131815.8 | E113: 17418556.98 | F113: 0.02035376722 | G113: 201030.0187 | H113: =SUM(H109:H112) -> 3235597.207 | I113: 0 | K113: =A109&":"&A112 -> 554:557
A114: 559 | B114: Exclude Cost of Gas w / Revenue Exp. | C114: =SUM(D114:I114) -> 0 | D114: =SUM(D$276:D$277)*(1+D$93) -> 0 | E114: 0 | F114: 0 | G114: 0 | H114: 0 | I114: 0 | K114: =A276&":"&A277&"*(1+"&A93&")" -> 721:722*(1+538)
A115: 560 | B115: Total Margin Revenue at Current Rates | C115: =C113-C114 -> 91987000.02 | D115: =D113-D114 -> 71131815.8 | E115: 17418556.98 | F115: 0.02035376722 | G115: 201030.0187 | H115: 3235597.207 | I115: 0 | K115: =A113&"-"&A114 -> 558-559
A116: 561 | C116: =ABS(ROUND(C113-Detail!$E$433,0)) -> 0
A117: 562 | B117: Margin per Therm at Current Rates
A118: 563 | B118: Production | C118: =IF(C$177,(C109-C114)/C$177,0) -> 0.004734254826 | D118: 0.00548900104 | E118: 0.005393550389 | F118: 0 | G118: 0.005287494111 | H118: 0.0009502270245 | I118: 0 | K118: ="("&A109&"-"&A114&")/"&A$177 -> (554-559)/622
A119: 564 | B119: Underground Storage | C119: =IF(C$177,C110/C$177,0) -> 0.0188754871 | D119: 0.01759778373 | E119: 0.03218976177 | F119: 0 | G119: 0.02860147051 | H119: 0.002338626524 | I119: 0 | K119: =A110&"/"&A$177 -> 555/622
A120: 565 | B120: Distribution | C120: 0.2417324869 | D120: 0.3086645926 | E120: 0.2022098655 | F120: 0 | G120: 0.1231957775 | H120: 0.06458669252 | I120: 0 | K120: =A111&"/"&A$177 -> 556/622
A121: 566 | B121: Common | C121: 0.1500163626 | D121: 0.2197179823 | E121: 0.07189323756 | F121: 0 | G121: 0.04695134019 | H121: 0.02299175966 | I121: 0 | K121: =A112&"/"&A$177 -> 557/622
A122: 567 | B122: Total Curr. Margin Melded Rate per Therm | C122: =IF(C$177,C115/C$177,0) -> 0.4153585915 | D122: 0.5514693597 | E122: 0.3116864152 | F122: 0 | G122: 0.2040360823 | H122: 0.09086730572 | I122: 0 | K122: =A115&"/"&A$177 -> 560/622
A123: 568
A124: 569 | B124: Functional Cost Components at Uniform Current Return
A125: 570 | B125: Production | C125: =SUM(D125:I125) -> 1048467.295 | D125: =D$109 -> 708004.1783 | E125: 301417.9001 | F125: 0 | G125: 5209.59346 | H125: 33835.62307 | I125: 0 | K125: =A109 -> 554
A126: 571 | B126: Underground Storage | C126: =SUM(D126:I126) -> 3784375.757 | D126: =D319 -> 2571497.268 | E126: 1114135.106 | F126: 0 | G126: 19642.53323 | H126: 79100.84945 | I126: 0 | K126: =A319 -> 764
A127: 572 | B127: Distribution | C127: =SUM(D127:I127) -> 53212221.6 | D127: =D326 -> 44285332.77 | E127: 6681123.396 | F127: 0.0291577829 | G127: 80843.90028 | H127: 2164921.51 | I127: 0 | K127: =A326 -> 771
A128: 573 | B128: Common | C128: =SUM(D128:I128) -> 33941935.34 | D128: =D333 -> 30056442.37 | E128: 3050972.995 | F128: 0.01003599834 | G128: 37767.65667 | H128: 796752.3073 | I128: 0 | K128: =A333 -> 778
A129: 574 | B129: Total Uniform Current Cost | C129: =IF(ROUND(SUM(C125:C128),3)<>ROUND(SUM(D129:I129),3),#VALUE!,SUM(D129:I129)) -> 91987000 | D129: =SUM(D125:D128) -> 77621276.59 | E129: 11147649.4 | F129: 0.03919378124 | G129: 143463.6836 | H129: 3074610.29 | I129: 0 | K129: =A125&":"&A128 -> 570:573
A130: 575 | B130: Exclude Cost of Gas w / Revenue Exp. | C130: =SUM(D130:I130) -> 0 | D130: =SUM(D$276:D$277)*(1+D$93) -> 0 | E130: 0 | F130: 0 | G130: 0 | H130: 0 | I130: 0 | K130: =A276&":"&A277&"*(1+"&A93&")" -> 721:722*(1+538)
A131: 576 | B131: Total Uniform Current Margin | C131: =C129-C130 -> 91987000 | D131: 77621276.59 | E131: 11147649.4 | F131: 0.03919378124 | G131: 143463.6836 | H131: 3074610.29 | I131: 0 | K131: =A129&"-"&A130 -> 574-575
A132: 577 | C132: =ABS(ROUND(C129-Detail!$E$433,0)) -> 0
A133: 578 | B133: Margin per Therm at Uniform Current Return
A134: =Pg1Row+ROW(A134) -> 579 | B134: Production | C134: =IF(C$177,(C125-C130)/C$177,0) -> 0.004734254826 | D134: 0.00548900104 | E134: 0.005393550389 | F134: 0 | G134: 0.005287494111 | H134: 0.0009502270245 | I134: 0 | K134: ="("&A125&"-"&A130&")/"&A$177 -> (570-575)/622
A135: 580 | B135: Underground Storage | C135: =IF(C$177,C126/C$177,0) -> 0.01708799052 | D135: 0.01993625406 | E135: 0.01993625406 | F135: 0 | G135: 0.01993625406 | H135: 0.002221438767 | I135: 0 | K135: =A126&"/"&A$177 -> 571/622
A136: 581 | B136: Distribution | C136: 0.2402747498 | D136: 0.3433344676 | E136: 0.1195515451 | F136: 0 | G136: 0.08205278395 | H136: 0.06079884861 | I136: 0 | K136: =A127&"/"&A$177 -> 572/622
A137: 582 | B137: Common | C137: 0.1532615962 | D137: 0.2330210026 | E137: 0.05459389299 | F137: 0 | G137: 0.03833240803 | H137: 0.02237569477 | I137: 0 | K137: =A128&"/"&A$177 -> 573/622
A138: 583 | B138: Total Curr. Uniform Margin @ Melded Rate | C138: =IF(C$177,C131/C$177,0) -> 0.4153585914 | D138: =IF(D$177,D131/D$177,0) -> 0.6017807252 | E138: 0.1994752426 | F138: 0 | G138: 0.1456089402 | H138: 0.08634620917 | I138: 0 | K138: =A131&"/"&A$177 -> 576/622
A139: 584
A140: 585 | B140: Margin to Cost Ratio at Current Rates | C140: =IF(C131,C115/C131,0) -> 1 | D140: 0.9163958507 | E140: 1.562531827 | F140: 0.5193111402 | G140: 1.401260679 | H140: 1.052360105 | I140: 0 | K140: =A115&"/"&A131 -> 560/576
A141: 586
A142: 587
A143: 588 | B143: Functional Cost Components at Proposed Rates
A144: 589 | B144: Production | C144: =SUM(D144:I144) -> 1048055.494 | D144: =D342 -> 707726.0992 | E144: 301299.5138 | F144: 0 | G144: 5207.547315 | H144: 33822.33363 | I144: 0 | K144: =A$342 -> 787
A145: 590 | B145: Underground Storage | C145: =SUM(D145:I145) -> 4929007.663 | D145: =D349 -> 2735213.471 | E145: 2066393.248 | F145: 0 | G145: 32333.35278 | H145: 95067.59085 | I145: 0 | K145: =A349 -> 794
A146: 591 | B146: Distribution | C146: =SUM(D146:I146) -> 62637507.26 | D146: =D356 -> 46710149.49 | E146: 13105085.95 | F146: 0.01726051211 | G146: 141105.5892 | H146: 2681166.219 | I146: 0 | K146: =A356 -> 801
A147: 592 | B147: Common | C147: =SUM(D147:I147) -> 36307429.6 | D147: =D363 -> 30981726.74 | E147: 4394778.264 | F147: 0.007870839095 | G147: 50383.52949 | H147: 880541.0632 | I147: 0 | K147: =A363 -> 808
A148: 593 | B148: Total Proposed Rate Revenue | C148: =IF(ROUND(SUM(C144:C147),3)<>ROUND(SUM(D148:I148),3),#VALUE!,SUM(D148:I148)) -> 104922000 | D148: =SUM(D144:D147) -> 81134815.8 | E148: 19867556.98 | F148: 0.0251313512 | G148: 229030.0187 | H148: 3690597.207 | I148: 0 | K148: =A144&":"&A147 -> 589:592
A149: 594 | B149: Exclude Cost of Gas w / Revenue Exp. | C149: =SUM(D149:I149) -> 0 | D149: =SUM(D$276:D$277)*(1+D$97) -> 0 | E149: 0 | F149: 0 | G149: 0 | H149: 0 | I149: 0 | K149: =A276&":"&A277&"*(1+"&A97&")" -> 721:722*(1+542)
A150: 595 | B150: Total Margin Revenue at Proposed Rates | C150: =C148-C149 -> 104922000 | D150: 81134815.8 | E150: 19867556.98 | F150: 0.0251313512 | G150: 229030.0187 | H150: 3690597.207 | I150: 0 | K150: =A148&"-"&A149 -> 593-594
A151: 596
A152: 597 | B152: Margin per Therm at Proposed Rates
A153: 598 | B153: Production | C153: =IF(C$177,(C144-C149)/C$177,0) -> 0.004732395378 | D153: =IF(D$177,(D144-D149)/D$177,0) -> 0.005486845153 | E153: 0.005391431992 | F153: 0 | G153: 0.005285417369 | H153: 0.0009498538088 | I153: 0 | K153: ="("&A144&"-"&A$149&")/"&A$177 -> (589-594)/622
A154: 599 | B154: Underground Storage | C154: =IF(C$177,C145/C$177,0) -> 0.02225646754 | D154: 0.02120550986 | E154: 0.03697589328 | F154: 0 | G154: 0.03281684333 | H154: 0.00266984278 | I154: 0 | K154: =A145&"/"&A$177 -> 590/622
A155: 600 | B155: Distribution | C155: 0.282833735 | D155: 0.3621335395 | E155: 0.2345014726 | F155: 0 | G155: 0.1432155844 | H155: 0.07529687256 | I155: 0 | K155: =A146&"/"&A$177 -> 591/622
A156: 601 | B156: Common | C156: 0.1639427617 | D156: 0.2401945292 | E156: 0.07863984856 | F156: 0 | G156: 0.05113692988 | H156: 0.02472878695 | I156: 0 | K156: =A147&"/"&A$177 -> 592/622
A157: 602 | B157: Total Proposed Margin @ Melded Rates | C157: =IF(C$177,C150/C$177,0) -> 0.4737653596 | D157: =IF(D$177,D150/D$177,0) -> 0.6290204237 | E157: 0.3555086464 | F157: 0 | G157: 0.2324547749 | H157: 0.1036453561 | I157: 0 | K157: =A148&"/"&A$177 -> 593/622
A158: 603
A159: 604 | B159: Functional Cost Components at Uniform Proposed Return
A160: 605 | B160: Production | C160: =SUM(D160:I160) -> 1048055.494 | D160: =D373 -> 707726.0992 | E160: 301299.5138 | F160: 0 | G160: 5207.547315 | H160: 33822.33363 | I160: 0 | K160: =A373 -> 818
A161: 606 | B161: Underground Storage | C161: =SUM(D161:I161) -> 4497289.526 | D161: =D380 -> 3055924.8 | E161: 1324019.724 | F161: 0 | G161: 23342.86145 | H161: 94002.14053 | I161: 0 | K161: =A380 -> 825
A162: 607 | B162: Distribution | C162: =SUM(D162:I162) -> 62307389.39 | D162: =D387 -> 51464976.41 | E162: 8097266.961 | F162: 0.03533099112 | G162: 98418.16995 | H162: 2646727.813 | I162: 0 | K162: =A387 -> 832
A163: 608 | B163: Common | C163: =SUM(D163:I163) -> 37069265.64 | D163: =D394 -> 32806179.78 | E163: 3346704.871 | F163: 0.01102642262 | G163: 41441.05987 | H163: 874939.9104 | I163: 0 | K163: =A394 -> 839
A164: 609 | B164: Total Uniform Proposed Cost | C164: =IF(ROUND(SUM(C160:C163),3)<>ROUND(SUM(D164:I164),3),#VALUE!,SUM(D164:I164)) -> 104922000 | D164: =SUM(D160:D163) -> 88034807.09 | E164: 13069291.07 | F164: 0.04635741374 | G164: 168409.6386 | H164: 3649492.198 | I164: 0 | K164: =A160&":"&A163 -> 605:608
A165: 610 | B165: Exclude Cost of Gas w / Revenue Exp. | C165: =SUM(D165:I165) -> 0 | D165: =SUM(D$368:D$369)*(1+$C$97) -> 0 | E165: 0 | F165: 0 | G165: 0 | H165: 0 | I165: 0 | K165: =A368&":"&A369&"*(1+"&A97&")" -> 813:814*(1+542)
A166: 611 | B166: Total Uniform Proposed Margin | C166: =C164-C165 -> 104922000 | D166: 88034807.09 | E166: 13069291.07 | F166: 0.04635741374 | G166: 168409.6386 | H166: 3649492.198 | I166: 0 | K166: =A164&"-"&A165 -> 609-610
A167: 612
A168: 613 | B168: Margin per Therm at Uniform Proposed Return
A169: 614 | B169: Production | C169: =IF(C$177,(C160-C165)/C$177,0) -> 0.004732395378 | D169: 0.005486845153 | E169: 0.005391431992 | F169: 0 | G169: 0.005285417369 | H169: 0.0009498538088 | I169: 0 | K169: ="("&A160&"-"&A$165&")/"&A$177 -> (605-610)/622
A170: 615 | B170: Underground Storage | C170: =IF(C$177,C161/C$177,0) -> 0.02030708516 | D170: 0.02369191443 | E170: 0.02369191443 | F170: 0 | G170: 0.02369191443 | H170: 0.002639921071 | I170: 0 | K170: =A161&"/"&A$177 -> 606/622
A171: 616 | B171: Distribution | C171: =IF(C$177,C162/C$177,0) -> 0.281343119 | D171: 0.3989966693 | E171: 0.144891917 | F171: 0 | G171: 0.09988984706 | H171: 0.07432971721 | I171: 0 | K171: =A162&"/"&A$177 -> 607/622
A172: 617 | B172: Common | C172: =IF(C$177,C163/C$177,0) -> 0.1673827601 | D172: 0.2543391133 | E172: 0.05988569808 | F172: 0 | G172: 0.04206074077 | H172: 0.02457148627 | I172: 0 | K172: =A163&"/"&A$177 -> 608/622
A173: 618 | B173: Total Prop. Uniform Margin @ Melded Rates | C173: =IF(C$177,C166/C$177,0) -> 0.4737653597 | D173: =IF(D$177,D166/D$177,0) -> 0.6825145422 | E173: 0.2338609615 | F173: 0 | G173: 0.1709279196 | H173: 0.1024909784 | I173: 0 | K173: =A164&"/"&A$177 -> 609/622
A174: 619
A175: 620 | B175: Margin to Cost Ratio at Proposed Rates | C175: =IF(C166,C150/C166,0) -> 0.9999999998 | D175: 0.9216220093 | E175: 1.520170977 | F175: 0.5421215114 | G175: 1.359957902 | H175: 1.011263213 | I175: 0 | K175: =A150&"/"&A166 -> 595/611
A176: 621
A177: 622 | B177: Throughput Therms | C177: =SUM(D177:I177) -> 221464060 | D177: =Factors!E41 -> 128985980 | E177: =Factors!F41 -> 55884877 | F177: =Factors!G41 -> 0 | G177: =Factors!H41 -> 985267 | H177: =Factors!I41 -> 35607936 | I177: =Factors!J41 -> 0 | K177: =Factors!A41 -> 1020
A178: 623 | B178: Peak Therms | C178: =SUM(D178:I178) -> 1584408.256 | D178: =Factors!E42 -> 1054337.966 | E178: =Factors!F42 -> 372677.4172 | F178: =Factors!G42 -> 0 | G178: =Factors!H42 -> 5805.419111 | H178: =Factors!I42 -> 151587.4533 | I178: =Factors!J42 -> 0 | K178: =Factors!A42 -> 1021
A179: 624 | B179: Number of Customers (Annualized) | C179: =SUM(D179:I179) -> 1978875.01 | D179: =Factors!E43 -> 1941495 | E179: =Factors!F43 -> 36876 | F179: =Factors!G43 -> 0.01 | G179: =Factors!H43 -> 24 | H179: =Factors!I43 -> 480 | I179: =Factors!J43 -> 0 | K179: =Factors!A43 -> 1022
A180: 625
A181: 626
A182: 627
A183: 628 | B183: SUMMARY BY CLASSIFICATION WITH UNIT COST ANALYSIS
A184: 629
A185: 630 | C185: Total | D185: Sch 101 | E185: Sch 111 | F185: Sch 121 | G185: Sch 131 | H185: Sch 146 | I185: Open
A186: 631 | B186: Cost by Classification at Curr. Return by Schedule
A187: 632 | B187: Commodity | C187: =SUM(D187:I187) -> 19135183.56 | D187: =D410 -> 10161826.76 | E187: 7661048.563 | F187: 0 | G187: 85171.21809 | H187: 1227137.02 | I187: 0 | K187: =A410 -> 855
A188: 633 | B188: Demand | C188: =SUM(D188:I188) -> 18798753.16 | D188: =D419 -> 10218386.3 | E188: 6724269.857 | F188: 0 | G188: 92825.52738 | H188: 1763271.48 | I188: 0 | K188: =A419 -> 864
A189: 634 | B189: Customer | C189: =SUM(D189:I189) -> 54053063.25 | D189: =D428 -> 50751602.69 | E189: 3033238.558 | F189: 0.02035376722 | G189: 23033.27328 | H189: 245188.7062 | I189: 0 | K189: =A428 -> 873
A190: 635 | B190: Total Current Rate Revenue | C190: =IF(ROUND(SUM(C187:C189),3)<>ROUND(SUM(D190:I190),3),#VALUE!,SUM(D190:I190)) -> 91986999.98 | D190: =SUM(D186:D189) -> 71131815.76 | E190: 17418556.98 | F190: 0.02035376722 | G190: 201030.0187 | H190: 3235597.207 | I190: 0 | K190: =A186&":"&A189 -> 631:634
A191: 636
A192: 637 | B192: Revenue per Therm at Current Rates
A193: 638 | B193: Commodity | C193: =IF(C$177,C187/C$177,0) -> 0.08640311012 | D193: =IF(D$177,D187/D$177,0) -> 0.07878241311 | E193: 0.1370862561 | F193: 0 | G193: 0.08644480947 | H193: 0.0344624586 | I193: 0 | K193: =A187&"/"&A$177 -> 632/622
A194: 639 | B194: Demand | C194: =IF(C$177,C188/C$177,0) -> 0.08488399049 | D194: 0.07922090678 | E194: 0.1203236048 | F194: 0 | G194: 0.09421357599 | H194: 0.0495190589 | I194: 0 | K194: =A188&"/"&A$177 -> 633/622
A195: 640 | B195: Customer | C195: =IF(C$177,C189/C$177,0) -> 0.2440714907 | D195: 0.3934660394 | E195: 0.05427655425 | F195: 0 | G195: 0.02337769689 | H195: 0.006885788218 | I195: 0 | K195: =A189&"/"&A$177 -> 634/622
A196: 641 | B196: Total Revenue per Therm at Current Rates | C196: 0.4153585913 | D196: 0.5514693593 | E196: 0.3116864152 | F196: 0 | G196: 0.2040360823 | H196: 0.09086730572 | I196: 0 | K196: =A190&"/"&A$177 -> 635/622
A197: 642
A198: =Pg1Row+ROW(A198) -> 643 | B198: Cost per Unit at Current Rates
A199: 644 | B199: Commodity | C199: =C193 -> 0.08640311012 | D199: =D193 -> 0.07878241311 | E199: 0.1370862561 | F199: 0 | G199: 0.08644480947 | H199: 0.0344624586 | I199: 0 | K199: =A193 -> 638
A200: 645 | B200: Demand | C200: =IF(C$178,C188/C$178,0) -> 11.86484171 | D200: 9.691755987 | E200: 18.04313743 | F200: 0 | G200: 15.98946185 | H200: 11.63204106 | I200: 0 | K200: =A188&"/"&A$178 -> 633/623
... 334 more rows

Sheet Factors
A1: =ColHdr -> A | B1: =ColHdr -> B | C1: C | D1: D | E1: E | F1: F | G1: G | H1: H | I1: I | J1: J | K1: K | L1: L | M1: M | N1: N | O1: O | P1: P | Q1: Q | R1: R | S1: S | T1: T
A2: =Pg2Row+ROW(A2) -> 981 | E2: 1 | F2: 2 | G2: 3 | H2: 4 | I2: 5 | J2: 6
A3: 982 | B3: Allocation Factor | C3: Abbrev | D3: Total | E3: Sch 101 | F3: Sch 111 | G3: Sch 121 | H3: Sch 131 | I3: Sch 146 | J3: Open | K3: allocation basis
A4: 983 | B4: Throughput - All Schedules | C4: E01 | D4: =SUM(E4:J4) -> 221464060 | E4: =E$41 -> 128985980 | F4: 55884877 | G4: 0 | H4: 985267 | I4: 35607936 | J4: 0 | K4: =K41 -> Input from Proforma Revenue Study
A5: 984 | B5: Sales - Excludes 146 | C5: E04 | D5: =SUM(E5:J5) -> 185856124 | E5: =E$41 -> 128985980 | F5: =F$41 -> 55884877 | G5: =G$41 -> 0 | H5: =H$41 -> 985267 | I5: 0 | J5: =J$41 -> 0 | K5: same as Throughput, less Transport
A6: 985 | B6: Throughput - Excludes 132 & 146 | C6: E06 | D6: 184870857 | E6: =E$41 -> 128985980 | F6: =F$41 -> 55884877 | G6: =G$41 -> 0 | H6: 0 | I6: 0 | J6: =J$41 -> 0 | K6: same as Throughput, less Transport & Interruptible
A7: 986 | B7: Purchased Gas - Commodity | C7: E07 | D7: =SUM(E7:J7) -> 0.04 | E7: 0.04 | F7: 0 | G7: 0 | H7: 0 | I7: 0 | J7: 0 | K7: - not used -
A8: 987 | B8: GTI Expense | C8: E08 | D8: =SUM(E8:J8) -> 82135.53862 | E8: =GTI!E9 -> 60623.4106 | F8: =GTI!E10 -> 21236.25326 | G8: =+GTI!E11 -> 0 | H8: =GTI!E12 -> 275.87476 | I8: 0 | J8: 0 | K8: Input GTI Contributions
A9: 988 | B9: Coincident Peak - All | C9: D01 | D9: 1584408.256 | E9: =E$42 -> 1054337.966 | F9: 372677.4172 | G9: 0 | H9: 5805.419111 | I9: 151587.4533 | J9: 0 | K9: Input from Peak Study
A10: 989 | B10: Coincident Peak - Small Mains | C10: D02 | D10: 1427015.384 | E10: =E$9 -> 1054337.966 | F10: =F$9 -> 372677.4172 | G10: =G$9 -> 0 | H10: 0 | I10: 0 | J10: =J$9 -> 0 | K10: - not used -
A11: 990 | B11: Purchased Gas - Demand | C11: D05 | D11: =SUM(E11:J11) -> 0.04 | E11: 0.04 | F11: 0 | G11: 0 | H11: 0 | I11: 0 | J11: 0 | K11: - not used -
A12: 991 | B12: DA 132 | C12: D06 | D12: 100 | F12: 0 | G12: 0 | H12: 100 | I12: 0 | J12: 0 | K12: Direct Assignment Schedule 131/132
A13: 992 | B13: DA 146 | C13: D07 | D13: 100 | E13: 0 | F13: 0 | G13: 0 | H13: 0 | I13: 100 | J13: 0 | K13: Direct Assignment Schedule 146
A14: 993 | B14: All Customers | C14: C01 | D14: 1978875 | E14: =E$43*E46 -> 1941495 | F14: 36876 | G14: 0 | H14: 24 | I14: 480 | J14: 0 | K14: Unweighted Customers | R14: Corporate Cost Allocator (4-Factor)
A15: 994 | B15: Service Cost | C15: C02 | D15: 1985953.459 | E15: =E$43*E47 -> 1941495 | F15: =F$43*F47 -> 36876 | G15: 0.003798725591 | H15: 88.11329974 | I15: =I$43*I47 -> 7494.342176 | J15: 0 | K15: Wtd Avg Service Cost
A16: 995 | B16: Meter Cost | C16: C03 | D16: 2224657.401 | E16: 1941495 | F16: 253454.2908 | G16: 0 | H16: 2832.508919 | I16: 26875.60103 | J16: 0 | K16: Weighted Average Meter Cost
A17: 996 | B17: Regulator Cost | C17: C04 | D17: 1978875 | E17: =E43*E49 -> 1941495 | F17: =F43*F49 -> 36876 | G17: =G43*G49 -> 0 | H17: =H43*H49 -> 24 | I17: =I43*I49 -> 480 | J17: 0 | K17: - not used - | S17: Total | T17: Sch 101 | U17: Sch 111 | V17: Sch 121 | W17: Sch 131 | X17: Sch 146
A18: 997 | B18: Ind Meas & Reg Cost | C18: C06 | D18: 43415.10246 | E18: =E$43*E51 -> 0 | F18: =F$43*F51 -> 36876 | G18: 0 | H18: 624.3704452 | I18: 5914.732011 | J18: 0 | K18: Direct Assigned to Handbilled Customers | R18: Net UG/Dist Plant | S18: =Detail!H42+Detail!H88 -> 363823000 | T18: =Detail!I42+Detail!I88 -> 285672077.4 | U18: =Detail!J42+Detail!J88 -> 58786988.73 | V18: =Detail!K42+Detail!K88 -> 0.2371498346 | W18: =Detail!L42+Detail!L88 -> 756488.0081 | X18: =Detail!M42+Detail!M88 -> 18607445.58
A19: 998 | B19: DA 101 | C19: C10 | D19: =SUM(E19:J19) -> 100 | E19: 100 | F19: 0 | G19: 0 | H19: 0 | I19: 0 | J19: 0 | K19: Direct Assigned to Residential | R19: O&M (less PG/Uncoll/Labor) | S19: =Detail!H250-Detail!CL250 -> 13843789.6 | T19: =Detail!I250-Detail!CM250 -> 11832592.88 | U19: =Detail!J250-Detail!CN250 -> 1636852.543 | V19: =Detail!K250-Detail!CO250 -> 0.004383818805 | W19: =Detail!L250-Detail!CP250 -> 22410.46878 | X19: =Detail!M250-Detail!CQ250 -> 351933.7011
A20: 999 | B20: Revenues From Retail Rates | C20: R01 | D20: =SUM(E20:J20) -> 91987449 | E20: 71132163 | F20: =17111395+307247 -> 17418642 | G20: 0 | H20: 201031 | I20: 3235613 | J20: 0 | K20: Input Revenue From Rates | R20: O&M Labor | S20: =Detail!CL250 -> 9564210.4 | T20: =Detail!CM250 -> 8415215.488 | U20: =Detail!CN250 -> 897920.8196 | V20: =Detail!CO250 -> 0.002990976572 | W20: =Detail!CP250 -> 10922.19896 | X20: =Detail!CQ250 -> 240151.8907
A21: 1000 | R21: Customers | S21: =D14 -> 1978875 | T21: 1941495 | U21: 36876 | V21: 0 | W21: 24 | X21: 480
A22: 1001 | B22: Throughput | C22: E01 | D22: =SUM(E22:J22) -> 1 | E22: =E4/$D4 -> 0.5824239834 | F22: =F4/$D4 -> 0.2523428722 | G22: 0 | H22: 0.004448879877 | I22: 0.1607842645 | J22: 0
A23: 1002 | B23: Sales | C23: E04 | D23: =SUM(E23:J23) -> 1 | E23: 0.694009846 | F23: 0.3006889189 | G23: 0 | H23: 0.005301235056 | I23: 0 | J23: 0
A24: 1003 | B24: Therms - Small Mains | C24: E06 | D24: 1 | E24: 0.6977085631 | F24: 0.3022914369 | G24: 0 | H24: 0 | I24: 0 | J24: 0 | R24: Net UG/Dist Plant | S24: =SUM(T24:X24) -> 1 | T24: =T18/$S$18 -> 0.7851952115 | U24: =U18/$S$18 -> 0.1615812874 | V24: =V18/$S$18 -> 6.518274947e-10 | W24: =W18/$S$18 -> 0.002079274834 | X24: =X18/$S$18 -> 0.05114422557
A25: 1004 | B25: Purchased Gas - Commodity | C25: E07 | D25: 1 | E25: 1 | F25: 0 | G25: 0 | H25: 0 | I25: 0 | J25: 0 | R25: O&M (less PG/Uncoll/Labor) | S25: =SUM(T25:X25) -> 1 | T25: =T19/$S$19 -> 0.8547220974 | U25: =U19/$S$19 -> 0.1182373173 | V25: =V19/$S$19 -> 3.166632065e-10 | W25: =W19/$S$19 -> 0.00161881027 | X25: =X19/$S$19 -> 0.02542177477
A26: 1005 | B26: GTI Expense | C26: E08 | D26: 1 | E26: 0.7380898892 | F26: 0.2585513362 | G26: 0 | H26: 0.003358774589 | I26: 0 | J26: 0 | R26: O&M Labor | S26: =SUM(T26:X26) -> 1 | T26: =T20/$S$20 -> 0.8798651573 | U26: =U20/$S$20 -> 0.09388342393 | V26: =V20/$S$20 -> 3.127259279e-10 | W26: =W20/$S$20 -> 0.00114198648 | X26: =X20/$S$20 -> 0.025109432
A27: 1006 | B27: Coincident Peak - All | C27: D01 | D27: 1 | E27: 0.6654458928 | F27: 0.2352155234 | G27: 0 | H27: 0.003664092944 | I27: 0.09567449089 | J27: 0 | R27: Customers | S27: =SUM(T27:X27) -> 1 | T27: =T21/$S$21 -> 0.9811104794 | U27: =U21/$S$21 -> 0.0186348304 | V27: =V21/$S$21 -> 0 | W27: =W21/$S$21 -> 1.212810309e-05 | X27: =X21/$S$21 -> 0.0002425620618
A28: 1007 | B28: Coincident Peak - Small Mains | C28: D02 | D28: 1 | E28: 0.7388413458 | F28: 0.2611586542 | G28: 0 | H28: 0 | I28: 0 | J28: 0
A29: 1008 | B29: Purchased Gas - Demand | C29: D05 | D29: 1 | E29: 1 | F29: 0 | G29: 0 | H29: 0 | I29: 0 | J29: 0 | R29: Average | S29: =SUM(T29:X29) -> 1 | T29: =AVERAGE(T24:T27) -> 0.8752232364 | U29: =AVERAGE(U24:U27) -> 0.09808421475 | V29: =AVERAGE(V24:V27) -> 3.203041573e-10 | W29: =AVERAGE(W24:W27) -> 0.001213049922 | X29: =AVERAGE(X24:X27) -> 0.0254794986
A30: 1009 | B30: DA 131/132 | C30: D06 | D30: 1 | E30: 0 | F30: 0 | G30: 0 | H30: 1 | I30: 0 | J30: 0
A31: 1010 | B31: DA 146 | C31: D07 | D31: 1 | E31: 0 | F31: 0 | G31: 0 | H31: 0 | I31: 1 | J31: 0 | R31: Corporate Cost Allocator | S31: =SUM(T31:X31) -> 1000 | T31: =T29*1000 -> 875.2232364 | U31: =U29*1000 -> 98.08421475 | V31: =V29*1000 -> 3.203041573e-07 | W31: =W29*1000 -> 1.213049922 | X31: =X29*1000 -> 25.4794986
A32: 1011 | B32: All Customers | C32: C01 | D32: 1 | E32: =E14/$D14 -> 0.9811104794 | F32: 0.0186348304 | G32: 0 | H32: 1.212810309e-05 | I32: 0.0002425620618 | J32: 0
A33: 1012 | B33: Service Cost | C33: C02 | D33: 1 | E33: =E15/$D15 -> 0.9776135442 | F33: 0.01856841097 | G33: 1.912796885e-09 | H33: 4.436826016e-05 | I33: 0.003773674625 | J33: 0
A34: 1013 | B34: Meter Cost | C34: C03 | D34: 1 | E34: 0.8727164009 | F34: 0.1139295834 | G34: 0 | H34: 0.001273233766 | I34: 0.01208078198 | J34: 0 | R34: ** 4-Factor consists of multiple functions so is calculated in the detail tab
A35: 1014 | B35: Regulator Cost | C35: C04 | D35: 1 | E35: 0.9811104794 | F35: 0.0186348304 | G35: 0 | H35: 1.212810309e-05 | I35: 0.0002425620618 | J35: 0
A36: 1015 | B36: Ind Meas & Reg Cost | C36: C06 | D36: 1 | E36: =E18/$D18 -> 0 | F36: 0.849381849 | G36: 0 | H36: 0.0143814113 | I36: 0.1362367397 | J36: 0
A37: 1016 | B37: DA 101 | C37: C10 | D37: 1 | E37: =E19/$D19 -> 1 | F37: 0 | G37: 0 | H37: 0 | I37: 0 | J37: 0
A38: 1017 | B38: Revenues From Retail Rates | C38: R01 | D38: 1 | E38: =E20/$D20 -> 0.7732811788 | F38: 0.1893588983 | G38: 0 | H38: 0.002185417708 | I38: 0.03517450517 | J38: 0
A39: 1018
A40: 1019
A41: 1020 | C41: Throughput Therms | E41: 128985980 | F41: =54329806+1555071 -> 55884877 | G41: 0 | H41: 985267 | I41: 35607936 | J41: 0 | K41: Input from Proforma Revenue Study
A42: 1021 | C42: Peak Therms | E42: ='Demand - Pk-Avg'!Q8 -> 1054337.966 | F42: ='Demand - Pk-Avg'!Q9 -> 372677.4172 | G42: ='Demand - Pk-Avg'!Q10 -> 0 | H42: ='Demand - Pk-Avg'!Q13 -> 5805.419111 | I42: ='Demand - Pk-Avg'!Q16 -> 151587.4533 | J42: 0 | K42: Input from Peak Study
A43: 1022 | C43: No. of Cust. Bills--Annual | E43: 1941495 | F43: =36840+36 -> 36876 | G43: 0.01 | H43: 24 | I43: 480 | K43: Input from Proforma Revenue Study
A44: 1023
A45: 1024 | C45: Customer Weightings
A46: 1025 | C46: All Customers | E46: 1 | F46: 1 | G46: 0 | H46: 1 | I46: 1
A47: 1026 | C47: Service Cost | E47: ='Typical Service Cost'!D20 -> 1 | F47: ='Typical Service Cost'!F20 -> 1 | G47: ='Typical Service Cost'!H20 -> 0.3798725591 | H47: ='Typical Service Cost'!J20 -> 3.671387489 | I47: ='Typical Service Cost'!L20 -> 15.61321287 | K47: Input from Typical Service Cost Study
A48: 1027 | C48: Meter Cost | E48: ='Average Meter Type'!G15 -> 1 | F48: ='Average Meter Type'!G23 -> 6.87315031 | G48: ='Average Meter Type'!G31 -> 0 | H48: ='Average Meter Type'!G39 -> 118.021205 | I48: ='Average Meter Type'!G47 -> 55.99083549 | K48: Input from Meter Cost Study
A49: 1028 | C49: Regulator Cost | E49: 1 | F49: 1 | G49: 0 | H49: 1 | I49: 1
A50: 1029 | C50: Installations Cost | E50: 1 | F50: 1 | G50: 0 | H50: 1 | I50: 1
A51: 1030 | C51: Ind Meas & Reg Cost | E51: ='Industrial Meter Installations'!G15 -> 0 | F51: ='Industrial Meter Installations'!G23 -> 1 | G51: ='Industrial Meter Installations'!G31 -> 0 | H51: ='Industrial Meter Installations'!G39 -> 26.01543522 | I51: ='Industrial Meter Installations'!G47 -> 12.32235836 | K51: Input from Meter Cost Study
A52: 1031
A53: 1032
A54: 1033
A55: 1034
A56: 1035
A57: 1036 | D57: E01 | E57: E04 | F57: E06 | G57: E07 | H57: E08 | I57: D01 | J57: D02 | K57: D05 | L57: D06 | M57: D07 | N57: C01 | O57: C02 | P57: C03 | Q57: C04 | R57: C06 | S57: C10 | T57: R01
A58: 1037 | C58: Sch 101 | D58: =INDEX($E$22:$J$38,COLUMN(D57)-COLUMN($C57),ROW(C58)-ROW(C$57)) -> 0.5824239834 | E58: =INDEX($E$22:$J$38,COLUMN(E57)-COLUMN($C57),ROW(D58)-ROW(D$57)) -> 0.694009846 | F58: =INDEX($E$22:$J$38,COLUMN(F57)-COLUMN($C57),ROW(E58)-ROW(E$57)) -> 0.6977085631 | G58: 1 | H58: 0.7380898892 | I58: 0.6654458928 | J58: 0.7388413458 | K58: 1 | L58: 0 | M58: 0 | N58: =INDEX($E$22:$J$38,COLUMN(N57)-COLUMN($C57),ROW(M58)-ROW(M$57)) -> 0.9811104794 | O58: =INDEX($E$22:$J$38,COLUMN(O57)-COLUMN($C57),ROW(N58)-ROW(N$57)) -> 0.9776135442 | P58: 0.8727164009 | Q58: 0.9811104794 | R58: 0 | S58: 1 | T58: 0.7732811788
A59: 1038 | C59: Sch 111 | D59: 0.2523428722 | E59: 0.3006889189 | F59: 0.3022914369 | G59: 0 | H59: 0.2585513362 | I59: 0.2352155234 | J59: 0.2611586542 | K59: 0 | L59: 0 | M59: 0 | N59: 0.0186348304 | O59: 0.01856841097 | P59: 0.1139295834 | Q59: 0.0186348304 | R59: 0.849381849 | S59: 0 | T59: 0.1893588983
A60: 1039 | C60: Sch 121 | D60: 0 | E60: 0 | F60: 0 | G60: 0 | H60: 0 | I60: 0 | J60: 0 | K60: 0 | L60: 0 | M60: 0 | N60: 0 | O60: 1.912796885e-09 | P60: 0 | Q60: 0 | R60: 0 | S60: 0 | T60: 0
A61: 1040 | C61: Sch 131 | D61: 0.004448879877 | E61: 0.005301235056 | F61: 0 | G61: 0 | H61: 0.003358774589 | I61: 0.003664092944 | J61: 0 | K61: 0 | L61: 1 | M61: 0 | N61: 1.212810309e-05 | O61: 4.436826016e-05 | P61: 0.001273233766 | Q61: 1.212810309e-05 | R61: 0.0143814113 | S61: 0 | T61: 0.002185417708
A62: 1041 | C62: Sch 146 | D62: 0.1607842645 | E62: 0 | F62: 0 | G62: 0 | H62: 0 | I62: 0.09567449089 | J62: 0 | K62: 0 | L62: 0 | M62: 1 | N62: 0.0002425620618 | O62: 0.003773674625 | P62: 0.01208078198 | Q62: 0.0002425620618 | R62: 0.1362367397 | S62: 0 | T62: 0.03517450517
A63: 1042 | C63: Open | D63: 0 | E63: 0 | F63: 0 | G63: 0 | H63: 0 | I63: 0 | J63: 0 | K63: 0 | L63: 0 | M63: 0 | N63: 0 | O63: 0 | P63: 0 | Q63: 0 | R63: 0 | S63: 0 | T63: 0
A64: 1043
A65: 1044 | D65: range name: AllocFactors_E | I65: range name: AllocFactors_D | N65: range name: AllocFactors_C
A66: 1045 | D66: all 3 ranges + R01, range name: AllocFactors
A67: 1046 | B67: Allocated Dollars - Rate Base
A68: =Pg2Row+ROW(A68) -> 1047 | B68: Throughput | C68: E01 | D68: =Detail!$E$128*INDEX(Detail!$R$128:$AH$128,$A68-$A$67) -> 40710558.71 | E68: =$D68*INDEX(AllocFactors,E$2,$A68-$A$67) -> 23710805.77 | F68: =$D68*INDEX(AllocFactors,F$2,$A68-$A$67) -> 10273019.32 | G68: 0 | H68: 181116.3854 | I68: 6545617.239 | J68: 0
A69: 1048 | B69: Sales | C69: E04 | D69: =Detail!$E$128*INDEX(Detail!$R$128:$AH$128,$A69-$A$67) -> 23646816.1 | E69: =$D69*INDEX(AllocFactors,E$2,$A69-$A$67) -> 16411123.2 | F69: 7110335.568 | G69: 0 | H69: 125357.3305 | I69: 0 | J69: 0
A70: 1049 | B70: Therms - Small Mains | C70: E06 | D70: =Detail!$E$128*INDEX(Detail!$R$128:$AH$128,$A70-$A$67) -> 28146819.17 | E70: 19638276.76 | F70: 8508542.412 | G70: 0 | H70: 0 | I70: 0 | J70: 0
A71: 1050 | B71: Purchased Gas - Commodity | C71: E07 | D71: =Detail!$E$128*INDEX(Detail!$R$128:$AH$128,$A71-$A$67) -> 0 | E71: 0 | F71: 0 | G71: 0 | H71: 0 | I71: 0 | J71: 0
A72: 1051 | B72: GTI Expense | C72: E08 | D72: =Detail!$E$128*INDEX(Detail!$R$128:$AH$128,$A72-$A$67) -> 0 | E72: 0 | F72: 0 | G72: 0 | H72: 0 | I72: 0 | J72: 0
A73: 1052 | B73: Coincident Peak - All | C73: D01 | D73: =Detail!$E$128*INDEX(Detail!$R$128:$AH$128,$A73-$A$67) -> 104975366.3 | E73: 69855426.38 | F73: 24691835.74 | G73: 0 | H73: 384639.4991 | I73: 10043464.73 | J73: 0
A74: 1053 | B74: Coincident Peak - Small Mains | C74: D02 | D74: =Detail!$E$128*INDEX(Detail!$R$128:$AH$128,$A74-$A$67) -> 0 | E74: 0 | F74: 0 | G74: 0 | H74: 0 | I74: 0 | J74: 0
A75: 1054 | B75: Purchased Gas - Demand | C75: D05 | D75: =Detail!$E$128*INDEX(Detail!$R$128:$AH$128,$A75-$A$67) -> 0 | E75: 0 | F75: 0 | G75: 0 | H75: 0 | I75: 0 | J75: 0
A76: 1055 | B76: DA 131 | C76: D06 | D76: =Detail!$E$128*INDEX(Detail!$R$128:$AH$128,$A76-$A$67) -> 0 | E76: 0 | F76: 0 | G76: 0 | H76: 0 | I76: 0 | J76: 0
A77: 1056 | B77: DA 146 | C77: D07 | D77: =Detail!$E$128*INDEX(Detail!$R$128:$AH$128,$A77-$A$67) -> 0 | E77: 0 | F77: 0 | G77: 0 | H77: 0 | I77: 0 | J77: 0
A78: 1057 | B78: All Customers | C78: C01 | D78: =Detail!$E$128*INDEX(Detail!$R$128:$AH$128,$A78-$A$67) -> 39295415.46 | E78: =$D78*INDEX(AllocFactors,E$2,$A78-$A$67) -> 38553143.9 | F78: 732263.4025 | G78: 0 | H78: 476.5788496 | I78: 9531.576993 | J78: 0
A79: 1058 | B79: Service Cost | C79: C02 | D79: =Detail!$E$128*INDEX(Detail!$R$128:$AH$128,$A79-$A$67) -> 115446828.9 | E79: 112862383.6 | F79: 2143664.164 | G79: 0.2208263347 | H79: 5122.174939 | I79: 435658.7688 | J79: 0
A80: 1059 | B80: Meter Cost | C80: C03 | D80: =Detail!$E$128*INDEX(Detail!$R$128:$AH$128,$A80-$A$67) -> 39015035.25 | E80: 34049061.15 | F80: 4444966.712 | G80: 0 | H80: 49675.26025 | I80: 471332.1348 | J80: 0
A81: 1060 | B81: Regulator Cost | C81: C04 | D81: =Detail!$E$128*INDEX(Detail!$R$128:$AH$128,$A81-$A$67) -> 0 | E81: 0 | F81: 0 | G81: 0 | H81: 0 | I81: 0 | J81: 0
A82: 1061 | B82: Ind Meas & Reg Cost | C82: C06 | D82: =Detail!$E$128*INDEX(Detail!$R$128:$AH$128,$A82-$A$67) -> 1577160.049 | E82: 0 | F82: 1339611.119 | G82: 0 | H82: 22681.78736 | I82: 214867.1431 | J82: 0
A83: 1062 | B83: DA 101 | C83: C10 | D83: =Detail!$E$128*INDEX(Detail!$R$128:$AH$128,$A83-$A$67) -> 6177000 | E83: 6177000 | F83: 0 | G83: 0 | H83: 0 | I83: 0 | J83: 0
A84: 1063 | B84: Revenues From Retail Rates | C84: R01 | D84: =Detail!$E$128*INDEX(Detail!$R$128:$AH$128,$A84-$A$67) -> 0 | E84: 0 | F84: 0 | G84: 0 | H84: 0 | I84: 0 | J84: 0
A85: 1064
A86: 1065 | B86: Total | D86: =IF(ROUND(SUM(D68:D85),3)<>ROUND(SUM(E86:J86),3),#VALUE!,SUM(E86:J86)) -> 398991000 | E86: =SUM(E68:E85) -> 321257220.7 | F86: 59244238.43 | G86: 0.2208263347 | H86: 769069.0164 | I86: 17720471.59 | J86: 0
A87: 1066
A88: 1067 | B88: Allocated Dollars - Pre-tax Operating Expenses
A89: 1068 | B89: Throughput | C89: E01 | D89: =Detail!$E$403*INDEX(Detail!$R$403:$AH$403,$A89-$A$88) -> 4869031.052 | E89: =$D89*INDEX(AllocFactors,E$2,$A89-$A$88) -> 2835840.46 | F89: 1228665.281 | G89: 0 | H89: 21661.73427 | I89: 782863.5765 | J89: 0
A90: 1069 | B90: Sales | C90: E04 | D90: =Detail!$E$403*INDEX(Detail!$R$403:$AH$403,$A90-$A$88) -> 3888315.008 | E90: 2698528.9 | F90: 1169173.236 | G90: 0 | H90: 20612.87183 | I90: 0 | J90: 0
A91: 1070 | B91: Therms - Small Mains | C91: E06 | D91: =Detail!$E$403*INDEX(Detail!$R$403:$AH$403,$A91-$A$88) -> 2974665.023 | E91: 2075449.259 | F91: 899215.764 | G91: 0 | H91: 0 | I91: 0 | J91: 0
A92: 1071 | B92: Purchased Gas - Commodity | C92: E07 | D92: =Detail!$E$403*INDEX(Detail!$R$403:$AH$403,$A92-$A$88) -> 0 | E92: 0 | F92: 0 | G92: 0 | H92: 0 | I92: 0 | J92: 0
A93: 1072 | B93: GTI Expense | C93: E08 | D93: =Detail!$E$403*INDEX(Detail!$R$403:$AH$403,$A93-$A$88) -> 83000 | E93: 61261.4608 | F93: 21459.7609 | G93: 0 | H93: 278.7782909 | I93: 0 | J93: 0
A94: 1073 | B94: Coincident Peak - All | C94: D01 | D94: =Detail!$E$403*INDEX(Detail!$R$403:$AH$403,$A94-$A$88) -> 11467651.36 | E94: 7631101.5 | F94: 2697369.617 | G94: 0 | H94: 42018.54044 | I94: 1097161.706 | J94: 0
A95: 1074 | B95: Coincident Peak - Small Mains | C95: D02 | D95: =Detail!$E$403*INDEX(Detail!$R$403:$AH$403,$A95-$A$88) -> 0 | E95: 0 | F95: 0 | G95: 0 | H95: 0 | I95: 0 | J95: 0
A96: 1075 | B96: Purchased Gas - Demand | C96: D05 | D96: =Detail!$E$403*INDEX(Detail!$R$403:$AH$403,$A96-$A$88) -> 0 | E96: 0 | F96: 0 | G96: 0 | H96: 0 | I96: 0 | J96: 0
A97: 1076 | B97: DA 131 | C97: D06 | D97: =Detail!$E$403*INDEX(Detail!$R$403:$AH$403,$A97-$A$88) -> 0 | E97: 0 | F97: 0 | G97: 0 | H97: 0 | I97: 0 | J97: 0
A98: 1077 | B98: DA 146 | C98: D07 | D98: =Detail!$E$403*INDEX(Detail!$R$403:$AH$403,$A98-$A$88) -> 0 | E98: 0 | F98: 0 | G98: 0 | H98: 0 | I98: 0 | J98: 0
A99: 1078 | B99: All Customers | C99: C01 | D99: =Detail!$E$403*INDEX(Detail!$R$403:$AH$403,$A99-$A$88) -> 21274927.82 | E99: =$D99*INDEX(AllocFactors,E$2,$A99-$A$88) -> 20873054.64 | F99: =$D99*INDEX(AllocFactors,F$2,$A99-$A$88) -> 396454.6717 | G99: 0 | H99: 258.0245179 | I99: 5160.490357 | J99: 0
A100: 1079 | B100: Service Cost | C100: C02 | D100: =Detail!$E$403*INDEX(Detail!$R$403:$AH$403,$A100-$A$88) -> 13822577.77 | E100: 13513139.24 | F100: 256663.3047 | G100: 0.0264397837 | H100: 613.2837265 | I100: 52161.91098 | J100: 0
A101: 1080 | B101: Meter Cost | C101: C03 | D101: =Detail!$E$403*INDEX(Detail!$R$403:$AH$403,$A101-$A$88) -> 6373982.351 | E101: 5562678.937 | F101: 726185.1537 | G101: 0 | H101: 8115.56955 | I101: 77002.69111 | J101: 0
A102: 1081 | B102: Regulator Cost | C102: C04 | D102: =Detail!$E$403*INDEX(Detail!$R$403:$AH$403,$A102-$A$88) -> 0 | E102: 0 | F102: 0 | G102: 0 | H102: 0 | I102: 0 | J102: 0
A103: 1082 | B103: Ind Meas & Reg Cost | C103: C06 | D103: =Detail!$E$403*INDEX(Detail!$R$403:$AH$403,$A103-$A$88) -> 246849.6087 | E103: 0 | F103: 209669.5771 | G103: 0 | H103: 3550.045753 | I103: 33629.98588 | J103: 0
A104: 1083 | B104: DA 101 | C104: C10 | D104: =Detail!$E$403*INDEX(Detail!$R$403:$AH$403,$A104-$A$88) -> 2632000 | E104: 2632000 | F104: 0 | G104: 0 | H104: 0 | I104: 0 | J104: 0
A105: 1084 | B105: Revenues From Retail Rates | C105: R01 | D105: =Detail!$E$403*INDEX(Detail!$R$403:$AH$403,$A105-$A$88) -> 4340000 | E105: 3356040.316 | F105: 821817.6186 | G105: 0 | H105: 9484.712855 | I105: 152657.3524 | J105: 0
A106: 1085
A107: 1086 | B107: Total | D107: =IF(ROUND(SUM(D89:D106),3)<>ROUND(SUM(E107:J107),3),#VALUE!,SUM(E107:J107)) -> 71973000 | E107: =SUM(E89:E106) -> 61239094.71 | F107: 8426673.985 | G107: 0.0264397837 | H107: 106593.5612 | I107: 2200637.713 | J107: 0
A108: 1087
A109: 1088
A110: 1089
A111: 1090
A112: 1091
A113: 1092
A114: 1093

Sheet Avg Cust Unit Costs
B1: WASHINGTON GAS
B2: Meter, Services, Meter Reading & Billing Costs by Schedule at Proposed Rate of Return
C4: Total | D4: Sch 101 | E4: Sch 111 | F4: Sch 121 | G4: Sch 131 | H4: Sch 146
A5: 380 | B5: Services | C5: =SUM(D5:H5) -> 185334000 | D5: =SUMIF(Detail!$B$26:$B$39,'Avg Cust Unit Costs'!$A$5,Detail!BJ26:BJ39) -> 181185028.6 | E5: =SUMIF(Detail!$B$26:$B$39,'Avg Cust Unit Costs'!$A$5,Detail!BK26:BK39) -> 3441357.879 | F5: =SUMIF(Detail!$B$26:$B$39,'Avg Cust Unit Costs'!$A$5,Detail!BL26:BL39) -> 0.3545062979 | G5: =SUMIF(Detail!$B$26:$B$39,'Avg Cust Unit Costs'!$A$5,Detail!BM26:BM39) -> 8222.947128 | H5: =SUMIF(Detail!$B$26:$B$39,'Avg Cust Unit Costs'!$A$5,Detail!BN26:BN39) -> 699390.213 | J5: =C5-Detail!E33 -> 0
A6: 380 | B6: Services Accum. Depr. | C6: =SUM(D6:H6) -> -61747000 | D6: =SUMIF(Detail!$B$73:$B$85,'Avg Cust Unit Costs'!$A$6,Detail!BJ73:BJ85) -> -60364703.52 | E6: =SUMIF(Detail!$B$73:$B$85,'Avg Cust Unit Costs'!$A$6,Detail!BK73:BK85) -> -1146543.672 | F6: =SUMIF(Detail!$B$73:$B$85,'Avg Cust Unit Costs'!$A$6,Detail!BL73:BL85) -> -0.1181094693 | G6: =SUMIF(Detail!$B$73:$B$85,'Avg Cust Unit Costs'!$A$6,Detail!BM73:BM85) -> -2739.60696 | H6: =SUMIF(Detail!$B$73:$B$85,'Avg Cust Unit Costs'!$A$6,Detail!BN73:BN85) -> -233013.0871 | J6: =C6-Detail!E79 -> 0
B7: Total Services | C7: =SUM(C5:C6) -> 123587000 | D7: 120820325.1 | E7: 2294814.207 | F7: 0.2363968286 | G7: 5483.340168 | H7: 466377.1259
A9: 381 | B9: Meters | C9: =SUM(D9:H9) -> 49799000 | D9: =SUMIF(Detail!$B$26:$B$39,'Avg Cust Unit Costs'!$A$9,Detail!BJ26:BJ39) -> 43460404.05 | E9: =SUMIF(Detail!$B$26:$B$39,'Avg Cust Unit Costs'!$A$9,Detail!BK26:BK39) -> 5673579.322 | F9: =SUMIF(Detail!$B$26:$B$39,'Avg Cust Unit Costs'!$A$9,Detail!BL26:BL39) -> 0 | G9: =SUMIF(Detail!$B$26:$B$39,'Avg Cust Unit Costs'!$A$9,Detail!BM26:BM39) -> 63405.76829 | H9: =SUMIF(Detail!$B$26:$B$39,'Avg Cust Unit Costs'!$A$9,Detail!BN26:BN39) -> 601610.8617 | J9: =C9-Detail!E34 -> 0
A10: 381 | B10: Meters Accum. Depr. | C10: =SUM(D10:H10) -> -11217000 | D10: =SUMIF(Detail!$B$73:$B$85,'Avg Cust Unit Costs'!$A$10,Detail!BJ73:BJ85) -> -9789259.869 | E10: =SUMIF(Detail!$B$73:$B$85,'Avg Cust Unit Costs'!$A$10,Detail!BK73:BK85) -> -1277948.137 | F10: =SUMIF(Detail!$B$73:$B$85,'Avg Cust Unit Costs'!$A$10,Detail!BL73:BL85) -> 0 | G10: =SUMIF(Detail!$B$73:$B$85,'Avg Cust Unit Costs'!$A$10,Detail!BM73:BM85) -> -14281.86315 | H10: =SUMIF(Detail!$B$73:$B$85,'Avg Cust Unit Costs'!$A$10,Detail!BN73:BN85) -> -135510.1314 | J10: =C10-Detail!E80 -> 0
B11: Total Meters | C11: =SUM(C9:C10) -> 38582000 | D11: 33671144.18 | E11: 4395631.186 | F11: 0 | G11: 49123.90514 | H11: 466100.7303
B13: Total Rate Base | C13: =C7+C11 -> 162169000 | D13: 154491469.3 | E13: 6690445.392 | F13: 0.2363968286 | G13: 54607.24531 | H13: 932477.8562
B15: Return on Rate Base @ 7.52% | C15: =C13*$M$15 -> 12195108.8 | D15: =D13*$I$15 -> 11617758.49 | E15: =E13*$I$15 -> 503121.4935 | F15: =F13*$I$15 -> 0.01777704151 | G15: =G13*$I$15 -> 4106.464847 | H15: =H13*$I$15 -> 70122.33478 | I15: 0.0752 | M15: ='[1]RR SUMMARY'!$N$15 -> 0.0752
B16: Tax Benefit of Interest Expense | C16: =SUM(D16:H16) -> -1458710.155 | D16: =(D13*$I$16)*-0.35 -> -1389650.766 | E16: =(E13*$I$16)*-0.35 -> -60180.5563 | F16: =(F13*$I$16)*-0.35 -> -0.002126389474 | G16: =(G13*$I$16)*-0.35 -> -491.1921716 | H16: =(H13*$I$16)*-0.35 -> -8387.638316 | I16: 0.0257 | M16: ='[1]RR SUMMARY'!$P$12 -> 0.0257
B17: Revenue Conversion Factor | C17: =1-SUM(Summary!L73:L77) -> 0.755118 | D17: =$C$17 -> 0.755118 | E17: =$C$17 -> 0.755118 | F17: =$C$17 -> 0.755118 | G17: =$C$17 -> 0.755118 | H17: =$C$17 -> 0.755118
B18: Rate Base Revenue Requirement | C18: =(C15+C16)/C17 -> 14218173.38 | D18: 13545045.57 | E18: 586585.0598 | F18: 0.02072610114 | G18: 4787.692355 | H18: 81755.03228
A21: 380 | B21: Services Depr Exp | C21: =SUM(D21:H21) -> 4222000 | D21: =SUMIF(Detail!$B$170:$B$404,'Avg Cust Unit Costs'!$A$21,Detail!BJ170:BJ404) -> 4127484.384 | E21: =SUMIF(Detail!$B$170:$B$404,'Avg Cust Unit Costs'!$A$21,Detail!BK170:BK404) -> 78395.83112 | F21: =SUMIF(Detail!$B$170:$B$404,'Avg Cust Unit Costs'!$A$21,Detail!BL170:BL404) -> 0.008075828448 | G21: =SUMIF(Detail!$B$170:$B$404,'Avg Cust Unit Costs'!$A$21,Detail!BM170:BM404) -> 187.3227944 | H21: =SUMIF(Detail!$B$170:$B$404,'Avg Cust Unit Costs'!$A$21,Detail!BN170:BN404) -> 15932.45427 | J21: =C21-Detail!E369 -> 0
A22: 381 | B22: Meters Depr Exp | C22: 1734000 | D22: =SUMIF(Detail!$B$170:$B$404,'Avg Cust Unit Costs'!$A$22,Detail!BJ170:BJ404) -> 1513290.239 | E22: =SUMIF(Detail!$B$170:$B$404,'Avg Cust Unit Costs'!$A$22,Detail!BK170:BK404) -> 197553.8976 | F22: =SUMIF(Detail!$B$170:$B$404,'Avg Cust Unit Costs'!$A$22,Detail!BL170:BL404) -> 0 | G22: =SUMIF(Detail!$B$170:$B$404,'Avg Cust Unit Costs'!$A$22,Detail!BM170:BM404) -> 2207.787349 | H22: =SUMIF(Detail!$B$170:$B$404,'Avg Cust Unit Costs'!$A$22,Detail!BN170:BN404) -> 20948.07595 | J22: =C22-Detail!E370 -> 0
A23: 892-MT | B23: Services Exp | C23: 1144000 | D23: =SUMIF(Detail!$B$170:$B$404,'Avg Cust Unit Costs'!$A$23,Detail!BJ170:BJ404) -> 1118389.895 | E23: =SUMIF(Detail!$B$170:$B$404,'Avg Cust Unit Costs'!$A$23,Detail!BK170:BK404) -> 21242.26215 | F23: =SUMIF(Detail!$B$170:$B$404,'Avg Cust Unit Costs'!$A$23,Detail!BL170:BL404) -> 0.002188239636 | G23: =SUMIF(Detail!$B$170:$B$404,'Avg Cust Unit Costs'!$A$23,Detail!BM170:BM404) -> 50.75728962 | H23: =SUMIF(Detail!$B$170:$B$404,'Avg Cust Unit Costs'!$A$23,Detail!BN170:BN404) -> 4317.083771 | J23: =C23-Detail!E220 -> 0
A24: 893-MT | B24: Meters Exp | C24: 1411000 | D24: =SUMIF(Detail!$B$170:$B$404,'Avg Cust Unit Costs'!$A$24,Detail!BJ170:BJ404) -> 1231402.842 | E24: =SUMIF(Detail!$B$170:$B$404,'Avg Cust Unit Costs'!$A$24,Detail!BK170:BK404) -> 160754.6421 | F24: =SUMIF(Detail!$B$170:$B$404,'Avg Cust Unit Costs'!$A$24,Detail!BL170:BL404) -> 0 | G24: =SUMIF(Detail!$B$170:$B$404,'Avg Cust Unit Costs'!$A$24,Detail!BM170:BM404) -> 1796.532843 | H24: =SUMIF(Detail!$B$170:$B$404,'Avg Cust Unit Costs'!$A$24,Detail!BN170:BN404) -> 17045.98337 | J24: =C24-Detail!E221 -> 0
A25: 902-OP | B25: Meter Reading | C25: 1942000 | D25: =SUMIF(Detail!$B$170:$B$404,'Avg Cust Unit Costs'!$A$25,Detail!BJ170:BJ404) -> 1905316.551 | E25: =SUMIF(Detail!$B$170:$B$404,'Avg Cust Unit Costs'!$A$25,Detail!BK170:BK404) -> 36188.84063 | F25: =SUMIF(Detail!$B$170:$B$404,'Avg Cust Unit Costs'!$A$25,Detail!BL170:BL404) -> 0 | G25: =SUMIF(Detail!$B$170:$B$404,'Avg Cust Unit Costs'!$A$25,Detail!BM170:BM404) -> 23.5527762 | H25: =SUMIF(Detail!$B$170:$B$404,'Avg Cust Unit Costs'!$A$25,Detail!BN170:BN404) -> 471.055524 | J25: =C25-Detail!E228 -> 0
A26: 903-OP | B26: Billing Exp | C26: 4535000 | D26: =SUMIF(Detail!$B$170:$B$404,'Avg Cust Unit Costs'!$A$26,Detail!BJ170:BJ404) -> 4449336.024 | E26: =SUMIF(Detail!$B$170:$B$404,'Avg Cust Unit Costs'!$A$26,Detail!BK170:BK404) -> 84508.95585 | F26: =SUMIF(Detail!$B$170:$B$404,'Avg Cust Unit Costs'!$A$26,Detail!BL170:BL404) -> 0 | G26: =SUMIF(Detail!$B$170:$B$404,'Avg Cust Unit Costs'!$A$26,Detail!BM170:BM404) -> 55.00094751 | H26: =SUMIF(Detail!$B$170:$B$404,'Avg Cust Unit Costs'!$A$26,Detail!BN170:BN404) -> 1100.01895 | J26: =C26-Detail!E229 -> 0
B27: Total Expenses | C27: =SUM(C21:C26) -> 14988000 | D27: 14345219.93 | E27: 578644.4295 | F27: 0.01026406808 | G27: 4320.954 | H27: 59814.67183
B28: Revenue Conversion Factor | C28: =1-Summary!L73-Summary!L74-Summary!L75 -> 0.955845 | D28: =$C$28 -> 0.955845 | E28: =$C$28 -> 0.955845 | F28: =$C$28 -> 0.955845 | G28: =$C$28 -> 0.955845 | H28: =$C$28 -> 0.955845
B29: Expense Revenue Requirement | C29: =C27/C28 -> 15680366.59 | D29: =D27/D28 -> 15007893.47 | E29: 605374.7516 | F29: 0.01073821392 | G29: 4520.559296 | H29: 62577.79434
B31: Total Customer Costs | C31: =C18+C29 -> 29898539.96 | D31: 28552939.04 | E31: 1191959.811 | F31: 0.03146431506 | G31: 9308.251651 | H31: 144332.8266
B33: Total Customers Bills | C33: =SUM(D33:H33) -> 1978875.01 | D33: =Factors!E43 -> 1941495 | E33: =Factors!F43 -> 36876 | F33: =Factors!G43 -> 0.01 | G33: =Factors!H43 -> 24 | H33: =Factors!I43 -> 480 | J33: =SUM(Factors!E43:I43)-'Avg Cust Unit Costs'!C33 -> 0
B35: Avg Unit Cost | C35: =C31/C33 -> 15.10885721 | D35: =D31/D33 -> 14.70667658 | E35: 32.3234573 | F35: 3.146431506 | G35: 387.8438188 | H35: 300.6933888
B37: Fixed Costs Per Customer
B39: Total Customer Related Costs | C39: =SUM(D39:H39) -> 63520166.17 | D39: =Summary!D243 -> 60831582.94 | E39: =Summary!E243 -> 2397258.208 | F39: =Summary!F243 -> 0.04635741374 | G39: =Summary!G243 -> 19725.70252 | H39: =Summary!H243 -> 271599.2783
B40: Customer Related Unit Cost per Month | C40: =C39/C33 -> 32.09912999 | D40: 31.33234077 | E40: 65.00862913 | F40: 4.635741374 | G40: 821.9042718 | H40: 565.8318297
B42: Other Non-Gas Costs | C42: =Summary!C166-C39 -> 41401833.87 | D42: =Summary!D166-D39 -> 27203224.15 | E42: =Summary!E166-E39 -> 10672032.86 | F42: =Summary!F166-F39 -> 0 | G42: =Summary!G166-G39 -> 148683.9361 | H42: =Summary!H166-H39 -> 3377892.92
B43: Other Non-Gas Unit Cost per Month | C43: =C42/C33 -> 20.92190445 | D43: 14.01148298 | E43: 289.4032124 | F43: 0 | G43: 6195.164003 | H43: 7037.276916
B45: Total Fixed Unit Cost per Month | C45: =C40+C43 -> 53.02103443 | D45: 45.34382375 | E45: 354.4118416 | F45: 4.635741374 | G45: 7017.068275 | H45: 7603.108745

Sheet Acerno_Cache_XXXXX (hidden)

Sheet PROFORMA
A1: 1 | B1: Proforma | I1: Natural Gas Utility
A2: 2 | B2: Pro Forma Results of Operations
A3: 3 | B3: Company Base Case
A4: 4
A5: 5 | F5: 1 | G5: =F5+0.01 -> 1.01 | H5: =G5+0.01 -> 1.02 | I5: =H5+0.01 -> 1.03 | J5: =I5+0.01 -> 1.04 | K5: 2.01 | L5: 2.02 | M5: 2.03 | N5: 2.04 | O5: 2.05 | P5: 2.06 | Q5: 2.07 | R5: 2.08 | S5: 2.09 | T5: 2.1 | U5: 2.11 | V5: 2.12 | W5: 2.13 | X5: 2.14 | Y5: 2.15 | Z5: 3.01 | AA5: 3.02 | AB5: 3.03 | AC5: =AB5+0.01 -> 3.04 | AD5: =AC5+0.01 -> 3.05 | AE5: =AD5+0.01 -> 3.06 | AF5: 3.07 | AG5: =AF5+0.01 -> 3.08 | AH5: =AG5+0.01 -> 3.09 | AI5: 3.1 | AJ5: 3.11 | AK5: 3.12 | AM5: =ColHdr -> (am) | AN5: =ColHdr -> (an) | AO5: =ColHdr -> (ao) | AP5: =ColHdr -> (ap)
A6: 6 | E6: Notes | F6: Per Results | G6: Deferred FIT | H6: Deferred Debits | I6: Working | J6: Remove | K6: Eliminate | L6: Restate | M6: Uncollectible | N6: Regulatory | O6: Injuries & | P6: FIT/DFIT | Q6: Office Space | R6: Restate | S6: Net Gains/ | T6: Weather Normalization | U6: Eliminate | V6: Misc. Restating | W6: Restating | X6: Restate | Y6: Restate | Z6: Pro Forma Revenue | AA6: Pro Forma | AB6: Pro Forma | AC6: Pro Forma | AD6: Pro Forma | AE6: Pro Forma | AF6: Pro Forma | AG6: Pro Forma | AH6: Pro Forma | AI6: Pro Forma | AJ6: Pro Forma | AK6: Pro Forma | AM6: Net Total | AN6: Total | AO6: check | AP6: Total
A7: 7 | B7: Account | C7: Description | F7: Report | G7: Rate Base | H7: and Credits | I7: Capital | J7: AMI Rate Base | K7: B & O Taxes | L7: Property Taxes | M7: Expense | N7: Expense | O7: Damages | P7: Expense | Q7: Charges to Subs | R7: Excise Tax | S7: Losses | T7: Gas Cost Adjust | U7: Adder Schedules | V7: Adjustments | W7: Incentives | X7: Debt Int | Y7: 2018 Rate Base | Z7: Normalization | AA7: LEAP Deferral Amort | AB7: Non-Exec Labor | AC7: Exec Labor | AD7: Empl. Benefits | AE7: Incentive Adj | AF7: ISIT | AG7: Property Tax | AH7: Depreciation Exp | AI7: 2019 Threshhold Cap Add | AJ7: O&M Offsets | AK7: Fee Free | AM7: of All | AP7: $000's | AQ7: Case
A8: 8 | F8: Adj G-ROO | G8: G-DFIT | H8: G-DDC | I8: G-WC | J8: G-AMI | K8: G-EBO | L8: G-RPT | M8: G-UE | N8: G-RE | O8: G-ID | P8: G-FIT | Q8: G-OSC | R8: G-RET | S8: G-NGL | T8: G-WNGC | U8: G-EAS | V8: G-MR | W8: G-RI | X8: G-DI | Y8: G-EOP18 | Z8: G-PREV | AA8: G-PLEAP | AB8: G-PLN | AC8: G-PLE | AD8: G-PEB | AE8: G-RI | AF8: G-PIS | AG8: G-PPT | AH8: G-PDEP | AI8: G-PCAP19 | AJ8: G-POFF | AK8: G-PFEE | AM8: Adjustments | AP8: in bold | AQ8: Pro Forma
A9: 9 | B9: Operation & Maintenance Expenses | AQ9: Total | AR9: Diff
A10: 10 | C10: Purchased Gas Expenses
A11: 11 | B11: 804/805-000 | C11: Gas Purchases | F11: 90669000 | T11: 2651000 | U11: -41801000 | Z11: -51519000 | AM11: =SUM(G11:AK11) -> -90669000 | AN11: =F11+AM11 -> 0 | AP11: =ROUND(AN11/1000,0)*1000 -> 0
A12: 12 | B12: 804-001 | C12: Pipeline Demand Costs | U12: =-F12 -> 0 | AM12: 0 | AN12: 0 | AP12: 0
A13: 13 | B13: 804-002 | C13: Transport Variable Charges | U13: 0 | AM13: 0 | AN13: 0 | AP13: 0
A14: 14 | B14: 804-017 | C14: Transaction Fees | U14: 0 | AM14: 0 | AN14: 0 | AP14: 0
A15: 15 | B15: 804-730 | C15: Gas Costs - Intracompany LDC Gas | U15: 0 | AM15: 0 | AN15: 0 | AP15: 0
A16: 16 | B16: 804-170 | C16: Gas Transaction Fees | U16: 0 | AM16: 0 | AN16: 0 | AP16: 0
A17: 17 | B17: 804-600 | C17: Gas Purchases - Financial | U17: 0 | AM17: 0 | AN17: 0 | AP17: 0
A18: 18 | B18: 804-700 | C18: Off System Gas Purchases - Bookout | U18: 0 | AM18: 0 | AN18: 0 | AP18: 0
A19: 19 | B19: 804-711 | C19: Off System Bookout Offset | U19: 0 | AM19: 0 | AN19: 0 | AP19: 0
A20: 20 | B20: 804-010 | C20: Gas Costs - Fixed Hedge | U20: 0 | AM20: 0 | AN20: 0 | AP20: 0
A21: 21 | B21: 805-110 | C21: Gas Exp - Rate Amortizations | U21: 0 | AM21: 0 | AN21: 0 | AP21: 0
A22: 22 | B22: 805-120 | C22: Gas Expense - Rate Deferrals | U22: 0 | AM22: 0 | AN22: 0 | AP22: 0
A23: 23 | B23: 805-980 | C23: Gas Expense - Estimated Amortizations | U23: 0 | AM23: 0 | AN23: 0 | AP23: 0
A24: 24 | B24: 805-990 | C24: Gas Expense - Estimated Deferrals | U24: 0 | AM24: 0 | AN24: 0 | AP24: 0
A25: 25 | B25: Open | C25: Open | U25: 0 | AM25: 0 | AN25: 0 | AP25: 0
A26: 26 | B26: 808-xxx | C26: Net Natural Gas Storage Transactions | F26: =376000-668000 -> -292000 | U26: 292000 | AM26: 292000 | AN26: 0 | AP26: =ROUND(AN26/1000,0)*1000 -> 0
A27: 27 | B27: 804.xx | C27: Proforma Purchased Gas Expense | AM27: 0 | AN27: 0 | AP27: 0
A28: 28 | C28: Total Purchased Gas Cost | F28: =SUM(F11:F27) -> 90377000 | G28: 0 | H28: 0 | I28: 0 | J28: =SUM(J11:J27) -> 0 | K28: =SUM(K11:K27) -> 0 | L28: =SUM(L11:L27) -> 0 | M28: 0 | N28: 0 | O28: 0 | P28: 0 | Q28: =SUM(Q11:Q27) -> 0 | R28: =SUM(R11:R27) -> 0 | S28: =SUM(S11:S27) -> 0 | T28: =SUM(T11:T27) -> 2651000 | U28: =SUM(U11:U27) -> -41509000 | V28: 0 | W28: =SUM(W11:W27) -> 0 | X28: =SUM(X11:X27) -> 0 | Y28: =SUM(Y11:Y27) -> 0 | Z28: =SUM(Z11:Z27) -> -51519000 | AA28: =SUM(AA11:AA27) -> 0 | AB28: 0 | AC28: 0 | AD28: 0 | AE28: 0 | AF28: 0 | AG28: =SUM(AG11:AG27) -> 0 | AH28: 0 | AI28: 0 | AJ28: =SUM(AJ11:AJ27) -> 0 | AK28: =SUM(AK11:AK27) -> 0 | AM28: =SUM(AM11:AM27) -> -90377000 | AN28: =SUM(AN11:AN27) -> 0 | AO28: =IF(ROUND(SUM(F28:AK28),0)=ROUND(AN28,0),"ok","crossfoot error") -> ok | AP28: =SUM(AP11:AP27)/1000 -> 0
A29: 29 | B29: 811-00 | C29: Gas Used for Products Extraction | F29: 0 | AM29: =SUM(G29:AK29) -> 0 | AN29: =F29+AM29 -> 0 | AP29: =ROUND(AN29/1000,0)*1000 -> 0
A30: 30 | B30: 813-010 | C30: GTI Expenses | F30: 79000 | T30: 4000 | AM30: =SUM(G30:AK30) -> 4000 | AN30: =F30+AM30 -> 83000 | AP30: =ROUND(AN30/1000,0)*1000 -> 83000
A31: 31 | B31: 813-xxx | C31: Other Gas Expenses | F31: 876000 | AB31: 16000 | AD31: 24000 | AM31: =SUM(G31:AK31) -> 40000 | AN31: =F31+AM31 -> 916000 | AP31: =ROUND(AN31/1000,0)*1000 -> 916000
A32: 32 | C32: Total Purchased Gas Expenses | F32: =SUM(F28:F31) -> 91332000 | G32: =SUM(G28:G31) -> 0 | H32: 0 | I32: 0 | J32: =SUM(J28:J31) -> 0 | K32: =SUM(K28:K31) -> 0 | L32: =SUM(L28:L31) -> 0 | M32: 0 | N32: 0 | O32: 0 | P32: 0 | Q32: =SUM(Q28:Q31) -> 0 | R32: =SUM(R28:R31) -> 0 | S32: =SUM(S28:S31) -> 0 | T32: =SUM(T28:T31) -> 2655000 | U32: =SUM(U28:U31) -> -41509000 | V32: 0 | W32: =SUM(W28:W31) -> 0 | X32: =SUM(X28:X31) -> 0 | Y32: =SUM(Y28:Y31) -> 0 | Z32: =SUM(Z28:Z31) -> -51519000 | AA32: =SUM(AA28:AA31) -> 0 | AB32: 16000 | AC32: 0 | AD32: 24000 | AE32: 0 | AF32: 0 | AG32: =SUM(AG28:AG31) -> 0 | AH32: 0 | AI32: 0 | AJ32: =SUM(AJ28:AJ31) -> 0 | AK32: =SUM(AK28:AK31) -> 0 | AM32: =SUM(AM28:AM31) -> -90333000 | AN32: =SUM(AN28:AN31) -> 999000 | AO32: =IF(ROUND(SUM(F32:AK32),0)=ROUND(AN32,0),"ok","crossfoot error") -> ok | AP32: =AP28+SUM(AP29:AP31)/1000 -> 999 | AQ32: ='[1]ADJ DETAIL INPUT'!$AN$24 -> 999 | AR32: =AP32-AQ32 -> 0
A33: 33
A34: 34 | C34: Underground Storage Expenses
A35: 35 | B35: 814-OP | C35: Supervision & Engineering | F35: 14000 | AM35: =SUM(G35:AK35) -> 0 | AN35: =F35+AM35 -> 14000 | AP35: =ROUND(AN35/1000,0)*1000 -> 14000
A36: 36 | B36: 815-OP | C36: Maps & Records | F36: 0 | AM36: 0 | AN36: 0
A37: 37 | B37: 816-OP | C37: Wells Expenses | F37: 0 | AM37: 0 | AN37: 0
A38: 38 | B38: 817-OP | C38: Lines Expenses | F38: 0 | AM38: 0 | AN38: 0
A39: 39 | B39: 818-OP | C39: Compressor Station Expenses | F39: 0 | AM39: 0 | AN39: 0
A40: 40 | B40: 819-OP | C40: Compressor Station Fuel & Power | F40: 0 | AM40: 0 | AN40: 0
A41: 41 | B41: 820-OP | C41: Measuring & Regulator Station | F41: 0 | AM41: 0 | AN41: 0
A42: 42 | B42: 821-OP | C42: Purification Expenses | F42: 0 | AM42: 0 | AN42: 0
A43: 43 | B43: 824-OP | C43: Other Expenses | F43: 548000 | AM43: 0 | AN43: 548000 | AP43: =ROUND(AN43/1000,0)*1000 -> 548000
A44: 44 | B44: 825-OP | C44: Storage Well Royalties & Rents | F44: 0 | AM44: 0 | AN44: 0
A45: 45 | B45: 826-OP | C45: Rents | F45: 0 | AM45: 0 | AN45: 0
A46: 46
A47: 47 | B47: 830-MT | C47: Supervision & Engineering | F47: 0 | AM47: =SUM(G47:AK47) -> 0 | AN47: =F47+AM47 -> 0
A48: 48 | B48: 831-MT | C48: Maps & Records | F48: 0 | AM48: 0 | AN48: 0
A49: 49 | B49: 832-MT | C49: Wells Expenses | F49: 0 | AM49: 0 | AN49: 0
A50: 50 | B50: 833-MT | C50: Lines Expenses | F50: 0 | AM50: 0 | AN50: 0
A51: 51 | B51: 834-MT | C51: Compressor Station Expenses | F51: 0 | AM51: 0 | AN51: 0
A52: 52 | B52: 835-MT | C52: Compressor Station Fuel & Power | F52: 0 | AM52: 0 | AN52: 0
A53: 53 | B53: 836-MT | C53: Measuring and Regulator Station Expenses | F53: 0 | AM53: 0 | AN53: 0
A54: 54 | B54: 837-MT | C54: Other Equipment | F54: 971000 | AM54: 0 | AN54: 971000 | AP54: =ROUND(AN54/1000,0)*1000-1000 -> 970000
A55: 55 | C55: Total Underground Storage Expenses | F55: =SUM(F35:F54) -> 1533000 | G55: 0 | H55: 0 | I55: 0 | J55: =SUM(J35:J54) -> 0 | K55: =SUM(K35:K54) -> 0 | L55: =SUM(L35:L54) -> 0 | M55: 0 | N55: 0 | O55: 0 | P55: 0 | Q55: =SUM(Q35:Q54) -> 0 | R55: =SUM(R35:R54) -> 0 | S55: =SUM(S35:S54) -> 0 | T55: =SUM(T35:T54) -> 0 | U55: =SUM(U35:U54) -> 0 | V55: 0 | W55: =SUM(W35:W54) -> 0 | X55: =SUM(X35:X54) -> 0 | Y55: =SUM(Y35:Y54) -> 0 | Z55: =SUM(Z35:Z54) -> 0 | AA55: =SUM(AA35:AA54) -> 0 | AB55: 0 | AC55: 0 | AD55: 0 | AE55: 0 | AF55: 0 | AG55: =SUM(AG35:AG54) -> 0 | AH55: 0 | AI55: 0 | AJ55: =SUM(AJ35:AJ54) -> 0 | AK55: =SUM(AK35:AK54) -> 0 | AM55: =SUM(AM35:AM54) -> 0 | AN55: =SUM(AN35:AN54) -> 1533000 | AO55: =IF(ROUND(SUM(F55:AK55),0)=ROUND(AN55,0),"ok","crossfoot error") -> ok | AP55: =SUM(AP35:AP54)/1000 -> 1532 | AQ55: ='[1]ADJ DETAIL INPUT'!$AN$27 -> 1532 | AR55: =AP55-AQ55 -> 0
A56: 56
A57: 57
A58: 59
A59: 60
A60: 61 | B60: =$B$1 -> Proforma | I60: =$I$1 -> Natural Gas Utility | AD60: Natural Gas Utility
A61: 62 | B61: =$B$2 -> Pro Forma Results of Operations | E61: Operation and Maintenance Expenses | P61: =$E61 -> Operation and Maintenance Expenses | AD61: =$E61 -> Operation and Maintenance Expenses
A62: 63 | B62: =$B$3 -> Company Base Case
A63: 64
A64: 65 | F64: =F5 -> 1 | G64: 1.01 | H64: 1.02 | I64: 1.03 | J64: =J5 -> 1.04 | K64: =K5 -> 2.01 | L64: 2.02 | M64: 2.03 | N64: 2.04 | O64: 2.05 | P64: 2.06 | Q64: =Q5 -> 2.07 | R64: 2.08 | S64: 2.09 | T64: =T5 -> 2.1 | U64: 2.11 | V64: 2.12 | W64: =W5 -> 2.13 | X64: 2.14 | Y64: =Y5 -> 2.15 | Z64: 3.01 | AA64: =AA5 -> 3.02 | AB64: 3.03 | AC64: 3.04 | AD64: 3.05 | AE64: 3.06 | AF64: =AF5 -> 3.07 | AG64: 3.08 | AH64: 3.09 | AI64: 3.1 | AJ64: =AJ5 -> 3.11 | AK64: 3.12 | AM64: =AM$5 -> (am) | AN64: =AN$5 -> (an) | AO64: =AO$5 -> (ao) | AP64: =AP$5 -> (ap)
A65: 66 | B65: =IF(ISBLANK(B$6),"",B$6) ->  | C65: =IF(ISBLANK(C$6),"",C$6) ->  | D65: =IF(ISBLANK(D$6),"",D$6) ->  | E65: =IF(ISBLANK(E$6),"",E$6) -> Notes | F65: Balance | G65: =G6 -> Deferred FIT | H65: Deferred Debits | I65: Working | J65: =J6 -> Remove | K65: Eliminate | L65: Restate | M65: Uncollectible | N65: Regulatory | O65: Injuries & | P65: FIT/DFIT | Q65: Office Space | R65: Restate | S65: Net Gains/ | T65: Weather Normalization | U65: Eliminate | V65: Misc. Restating | W65: Restating | X65: Restate | Y65: =Y6 -> Restate | Z65: Pro Forma Revenue | AA65: =AA6 -> Pro Forma | AB65: Pro Forma | AC65: Pro Forma | AD65: Pro Forma | AE65: Pro Forma | AF65: Pro Forma | AG65: Pro Forma | AH65: Pro Forma | AI65: Pro Forma | AJ65: Pro Forma | AK65: Pro Forma | AM65: =IF(ISBLANK(AM$6),"",AM$6) -> Net Total | AN65: =IF(ISBLANK(AN$6),"",AN$6) -> Total | AO65: =IF(ISBLANK(AO$6),"",AO$6) -> check | AP65: =IF(ISBLANK(AP$6),"",AP$6) -> Total
A66: 67 | B66: =IF(ISBLANK(B$7),"",B$7) -> Account | C66: =IF(ISBLANK(C$7),"",C$7) -> Description | E66: =IF(ISBLANK(E$7),"",E$7) ->  | F66: per Books | G66: =G7 -> Rate Base | H66: and Credits | I66: Capital | J66: =J7 -> AMI Rate Base | K66: B & O Taxes | L66: Property Taxes | M66: Expense | N66: Expense | O66: Damages | P66: Expense | Q66: Charges to Subs | R66: Excise Tax | S66: Losses | T66: Gas Cost Adjust | U66: Adder Schedules | V66: Adjustments | W66: Incentives | X66: Debt Int | Y66: =Y7 -> 2018 Rate Base | Z66: Normalization | AA66: =AA7 -> LEAP Deferral Amort | AB66: Non-Exec Labor | AC66: Exec Labor | AD66: Empl. Benefits | AE66: Incentive Adj | AF66: ISIT | AG66: Property Tax | AH66: Depreciation Exp | AI66: 2019 Threshhold Cap Add | AJ66: O&M Offsets | AK66: Fee Free | AM66: =IF(ISBLANK(AM$7),"",AM$7) -> of All | AN66: =IF(ISBLANK(AN$7),"",AN$7) ->  | AO66: =IF(ISBLANK(AO$7),"",AO$7) ->  | AP66: =IF(ISBLANK(AP$7),"",AP$7) -> $000's
A67: 68 | B67: =IF(ISBLANK(B$8),"",B$8) ->  | C67: =IF(ISBLANK(C$8),"",C$8) ->  | D67: =IF(ISBLANK(D$8),"",D$8) ->  | E67: =IF(ISBLANK(E$8),"",E$8) ->  | G67: =G8 -> G-DFIT | H67: G-DDC | I67: G-WC | J67: =J8 -> G-AMI | K67: G-EBO | L67: G-RPT | M67: G-UE | N67: G-RE | O67: G-ID | P67: G-FIT | Q67: G-OSC | R67: G-RET | S67: G-NGL | T67: G-WNGC | U67: G-EAS | V67: G-MR | W67: G-RI | X67: G-DI | Y67: =Y8 -> G-EOP18 | Z67: G-PREV | AA67: =AA8 -> G-PLEAP | AB67: G-PLN | AC67: G-PLE | AD67: G-PEB | AE67: G-RI | AF67: G-PIS | AG67: G-PPT | AH67: G-PDEP | AI67: G-PCAP19 | AJ67: G-POFF | AK67: G-PFEE | AM67: =IF(ISBLANK(AM$8),"",AM$8) -> Adjustments | AN67: =IF(ISBLANK(AN$8),"",AN$8) ->  | AO67: =IF(ISBLANK(AO$8),"",AO$8) ->  | AP67: =IF(ISBLANK(AP$8),"",AP$8) -> in bold
A68: 69 | C68: Distribution Expenses
A69: 70 | C69: Operation Expense
A70: 71 | B70: 870-OP | C70: Supervision & Engineering | F70: 1405000 | V70: -5000 | AB70: 29000 | AD70: =ROUND(F70/($F$81+$F$92)*328000,-3) -> 37000 | AM70: =SUM(G70:AK70) -> 61000 | AN70: =F70+AM70 -> 1466000 | AP70: =ROUND(AN70/1000,0)*1000 -> 1466000
A71: 72 | B71: 871-OP | C71: Distribution Load Dispatching | F71: 0 | AD71: =ROUND(F71/($F$81+$F$92)*328000,-3) -> 0 | AM71: 0 | AN71: 0 | AP71: 0
A72: 73 | B72: 872-OP | C72: Compressor Station Labor & Expenses | F72: 0 | AD72: 0 | AM72: 0 | AN72: 0 | AP72: 0
A73: 74 | B73: 874-OP | C73: Mains & Services Expense | F73: 3093000 | AB73: 79000 | AD73: =ROUND(F73/($F$81+$F$92)*328000,-3) -> 82000 | AM73: 161000 | AN73: 3254000 | AP73: =ROUND(AN73/1000,0)*1000+1000 -> 3255000
A74: 75 | B74: 875-OP | C74: Measuring & Regulating Stations-General | F74: 96000 | AB74: 3000 | AD74: =ROUND(F74/($F$81+$F$92)*328000,-3) -> 3000 | AM74: 6000 | AN74: 102000 | AP74: 102000
A75: 76 | B75: 876-OP | C75: Measuring & Regulating Stations-Industrial | F75: 13000 | AB75: 0 | AD75: 0 | AM75: 0 | AN75: 13000 | AP75: 13000
A76: 77 | B76: 877-OP | C76: Measuring & Regulating Stations-City Gate | F76: 62000 | AB76: 2000 | AD76: 2000 | AM76: 4000 | AN76: 66000 | AP76: 66000
A77: 78 | B77: 878-OP | C77: Meters & House Regulators Expenses | F77: 324000 | AB77: 0 | AD77: 9000 | AM77: 9000 | AN77: 333000 | AP77: 333000
A78: 79 | B78: 879-OP | C78: Customer Installations | F78: 1426000 | AB78: 59000 | AD78: 38000 | AM78: 97000 | AN78: 1523000 | AP78: 1523000
A79: 80 | B79: 880-OP | C79: Other Distribution Expense | F79: 2095000 | V79: -3000 | AB79: 74000 | AD79: 56000 | AM79: 127000 | AN79: 2222000 | AP79: 2222000
A80: 81 | B80: 881-OP | C80: Rents | F80: 31000 | AB80: 0 | AD80: =ROUND(F80/($F$81+$F$92)*328000,-3) -> 1000 | AM80: 1000 | AN80: 32000 | AP80: 32000
A81: 82 | C81: Total Distribution Operation Expense | F81: =SUM(F70:F80) -> 8545000 | G81: 0 | H81: 0 | I81: 0 | J81: =SUM(J70:J80) -> 0 | K81: =SUM(K70:K80) -> 0 | L81: =SUM(L70:L80) -> 0 | M81: 0 | N81: 0 | O81: 0 | P81: 0 | Q81: =SUM(Q70:Q80) -> 0 | R81: =SUM(R70:R80) -> 0 | S81: =SUM(S70:S80) -> 0 | T81: =SUM(T70:T80) -> 0 | U81: =SUM(U70:U80) -> 0 | V81: -8000 | W81: =SUM(W70:W80) -> 0 | X81: =SUM(X70:X80) -> 0 | Y81: =SUM(Y70:Y80) -> 0 | Z81: =SUM(Z70:Z80) -> 0 | AA81: =SUM(AA70:AA80) -> 0 | AB81: 246000 | AC81: 0 | AD81: =SUM(AD70:AD80) -> 228000 | AE81: 0 | AF81: 0 | AG81: =SUM(AG70:AG80) -> 0 | AH81: 0 | AI81: 0 | AJ81: =SUM(AJ70:AJ80) -> 0 | AK81: =SUM(AK70:AK80) -> 0 | AM81: =SUM(AM70:AM80) -> 466000 | AN81: =SUM(AN70:AN80) -> 9011000 | AO81: =IF(ROUND(SUM(F81:AK81),0)=ROUND(AN81,0),"ok","crossfoot error") -> ok
A82: 83 | C82: Maintenance Expense
A83: 84 | B83: 885-MT | C83: Supervision & Engineering | F83: 95000 | AB83: 4000 | AD83: =ROUND(F83/($F$81+$F$92)*328000,-3) -> 3000 | AM83: =SUM(G83:AK83) -> 7000 | AN83: =F83+AM83 -> 102000 | AP83: =ROUND(AN83/1000,0)*1000 -> 102000
A84: 85 | B84: 887-MT | C84: Mains | F84: 785000 | AB84: 28000 | AD84: =ROUND(F84/($F$81+$F$92)*328000,-3) -> 21000 | AM84: 49000 | AN84: 834000 | AP84: 834000
A85: 86 | B85: 888-MT | C85: Compressor Station Equipment | F85: 0 | AB85: 0 | AD85: 0 | AM85: 0 | AN85: 0 | AP85: 0
A86: 87 | B86: 889-MT | C86: Measuring & Regulating Stations-General | F86: 211000 | AB86: 5000 | AD86: 6000 | AM86: 11000 | AN86: 222000 | AP86: 222000
A87: 88 | B87: 890-MT | C87: Measuring & Regulating Stations-Industrial | F87: 55000 | AB87: 1000 | AD87: 1000 | AM87: 2000 | AN87: 57000 | AP87: 57000
A88: 89 | B88: 891-MT | C88: Measuring & Regulating Stations-City Gate | F88: 38000 | AB88: 1000 | AD88: 1000 | AM88: 2000 | AN88: 40000 | AP88: 40000
A89: 90 | B89: 892-MT | C89: Services | F89: 1087000 | AB89: 29000 | AD89: 29000 | AM89: 58000 | AN89: 1145000 | AP89: =ROUND(AN89/1000,0)*1000-1000 -> 1144000
A90: 91 | B90: 893-MT | C90: Meters & House Regulators | F90: 1332000 | AB90: 44000 | AD90: 35000 | AM90: 79000 | AN90: 1411000 | AP90: 1411000
A91: 92 | B91: 894-MT | C91: Other Equipment | F91: 168000 | AB91: 4000 | AD91: 4000 | AM91: 8000 | AN91: 176000 | AP91: 176000
A92: 93 | C92: Total Distribution Maintenance Expense | F92: =SUM(F83:F87)+ SUM(F88:F91) -> 3771000 | G92: 0 | H92: 0 | I92: 0 | J92: =SUM(J83:J87)+ SUM(J88:J91) -> 0 | K92: =SUM(K83:K87)+ SUM(K88:K91) -> 0 | L92: =SUM(L83:L87)+ SUM(L88:L91) -> 0 | M92: 0 | N92: 0 | O92: 0 | P92: 0 | Q92: =SUM(Q83:Q87)+ SUM(Q88:Q91) -> 0 | R92: =SUM(R83:R87)+ SUM(R88:R91) -> 0 | S92: =SUM(S83:S87)+ SUM(S88:S91) -> 0 | T92: =SUM(T83:T87)+ SUM(T88:T91) -> 0 | U92: =SUM(U83:U87)+ SUM(U88:U91) -> 0 | V92: 0 | W92: =SUM(W83:W87)+ SUM(W88:W91) -> 0 | X92: =SUM(X83:X87)+ SUM(X88:X91) -> 0 | Y92: =SUM(Y83:Y87)+ SUM(Y88:Y91) -> 0 | Z92: =SUM(Z83:Z87)+ SUM(Z88:Z91) -> 0 | AA92: =SUM(AA83:AA87)+ SUM(AA88:AA91) -> 0 | AB92: =SUM(AB83:AB91) -> 116000 | AC92: =SUM(AC83:AC87)+ SUM(AC88:AC91) -> 0 | AD92: 100000 | AE92: 0 | AF92: 0 | AG92: =SUM(AG83:AG87)+ SUM(AG88:AG91) -> 0 | AH92: 0 | AI92: 0 | AJ92: =SUM(AJ83:AJ87)+ SUM(AJ88:AJ91) -> 0 | AK92: =SUM(AK83:AK87)+ SUM(AK88:AK91) -> 0 | AM92: =SUM(AM83:AM87)+ SUM(AM88:AM91) -> 216000 | AN92: =SUM(AN83:AN87)+ SUM(AN88:AN91) -> 3987000 | AO92: =IF(ROUND(SUM(F92:AK92),0)=ROUND(AN92,0),"ok","crossfoot error") -> ok
A93: 94
A94: 95 | C94: Total Distribution Expense | F94: =F81+F92 -> 12316000 | G94: =G81+G92 -> 0 | H94: 0 | I94: 0 | J94: =J81+J92 -> 0 | K94: =K81+K92 -> 0 | L94: =L81+L92 -> 0 | M94: 0 | N94: 0 | O94: 0 | P94: 0 | Q94: =Q81+Q92 -> 0 | R94: =R81+R92 -> 0 | S94: =S81+S92 -> 0 | T94: =T81+T92 -> 0 | U94: =U81+U92 -> 0 | V94: -8000 | W94: =W81+W92 -> 0 | X94: 0 | Y94: 0 | Z94: 0 | AA94: 0 | AB94: 362000 | AC94: 0 | AD94: 328000 | AE94: 0 | AF94: 0 | AG94: =AG81+AG92 -> 0 | AH94: 0 | AI94: 0 | AJ94: =AJ81+AJ92 -> 0 | AK94: =AK81+AK92 -> 0 | AM94: =AM81+AM92 -> 682000 | AN94: =AN81+AN92 -> 12998000 | AO94: =IF(ROUND(SUM(F94:AK94),0)=ROUND(AN94,0),"ok","crossfoot error") -> ok | AP94: =SUM(AP70:AP91)/1000 -> 12998 | AQ94: ='[1]ADJ DETAIL INPUT'!$AN$33 -> 12998 | AR94: =AP94-AQ94 -> 0
A95: 96
A96: 97 | C96: Customer Accounting Expenses
A97: 98 | B97: 901-OP | C97: Supervision | F97: 78000 | AB97: 2000 | AD97: =ROUND((F97/$F$102)*176000,-3) -> 2000 | AM97: =SUM(G97:AK97) -> 4000 | AN97: =F97+AM97 -> 82000 | AP97: =ROUND(AN97/1000,0)*1000 -> 82000
A98: 99 | B98: 902-OP | C98: Meter Reading | F98: 1829000 | AB98: 69000 | AD98: =ROUND((F98/$F$102)*176000,-3) -> 44000 | AM98: =SUM(G98:AK98) -> 113000 | AN98: =F98+AM98 -> 1942000 | AP98: =ROUND(AN98/1000,0)*1000 -> 1942000
A99: 100 | B99: 903-OP | C99: Customer Records & Collection | F99: 4328000 | AB99: 70000 | AD99: =ROUND((F99/$F$102)*176000,-3)+1000 -> 106000 | AK99: 31000 | AM99: =SUM(G99:AK99) -> 207000 | AN99: =F99+AM99 -> 4535000 | AP99: =ROUND(AN99/1000,0)*1000 -> 4535000
A100: 101 | B100: 904-OP | C100: Uncollectible Accounts | F100: 871000 | M100: -320000 | T100: 24000 | U100: 19000 | Z100: -220000 | AD100: 21000 | AM100: =SUM(G100:AK100) -> -476000 | AN100: =F100+AM100 -> 395000 | AP100: =ROUND(AN100/1000,0)*1000 -> 395000
A101: 102 | B101: 905-OP | C101: Misc Customer Accounts Expenses | F101: 128000 | H101: 10000 | AB101: 2000 | AD101: 3000 | AM101: =SUM(G101:AK101) -> 15000 | AN101: =F101+AM101 -> 143000 | AP101: =ROUND(AN101/1000,0)*1000 -> 143000
A102: 103 | C102: Total Customer Accounting Expenses | F102: =SUM(F97:F101) -> 7234000 | G102: 0 | H102: 10000 | I102: 0 | J102: =SUM(J97:J101) -> 0 | K102: =SUM(K97:K101) -> 0 | L102: =SUM(L97:L101) -> 0 | M102: -320000 | N102: 0 | O102: 0 | P102: 0 | Q102: =SUM(Q97:Q101) -> 0 | R102: =SUM(R97:R101) -> 0 | S102: =SUM(S97:S101) -> 0 | T102: =SUM(T97:T101) -> 24000 | U102: =SUM(U97:U101) -> 19000 | V102: 0 | W102: =SUM(W97:W101) -> 0 | X102: =SUM(X97:X101) -> 0 | Y102: =SUM(Y97:Y101) -> 0 | Z102: =SUM(Z97:Z101) -> -220000 | AA102: =SUM(AA97:AA101) -> 0 | AB102: 143000 | AC102: 0 | AD102: 176000 | AE102: 0 | AF102: 0 | AG102: =SUM(AG97:AG101) -> 0 | AH102: 0 | AI102: 0 | AJ102: =SUM(AJ97:AJ101) -> 0 | AK102: =SUM(AK97:AK101) -> 31000 | AM102: =SUM(AM97:AM101) -> -137000 | AN102: =SUM(AN97:AN101) -> 7097000 | AO102: =IF(ROUND(SUM(F102:AK102),0)=ROUND(AN102,0),"ok","crossfoot error") -> ok | AP102: =SUM(AP97:AP101)/1000 -> 7097 | AQ102: ='[1]ADJ DETAIL INPUT'!$AN$38 -> 7097 | AR102: =AP102-AQ102 -> 0
A103: 104
A104: 105 | C104: Customer Information Expense
A105: 106 | B105: 907-OP | C105: Supervision | F105: 0 | AM105: =SUM(G105:AK105) -> 0 | AN105: =F105+AM105 -> 0 | AP105: =ROUND(AN105/1000,0)*1000 -> 0
A106: 107 | B106: 908-OP | C106: Customer Assistance Expenses | F106: 7341000 | T106: 0 | U106: -6860000 | AB106: 7000 | AD106: =ROUND((F106/$F$109)*16000,-3) -> 15000 | AM106: =SUM(G106:AK106) -> -6838000 | AN106: =F106+AM106 -> 503000 | AP106: =ROUND(AN106/1000,0)*1000 -> 503000
A107: 108 | B107: 909-OP | C107: Advertising | F107: 593000 | V107: -1000 | AB107: 3000 | AD107: =ROUND((F107/$F$109)*16000,-3) -> 1000 | AM107: =SUM(G107:AK107) -> 3000 | AN107: =F107+AM107 -> 596000 | AP107: =ROUND(AN107/1000,0)*1000 -> 596000
A108: 109 | B108: 910-OP | C108: Misc Customer Service & Info Expense | F108: 159000 | AB108: 1000 | AD108: 0 | AM108: =SUM(G108:AK108) -> 1000 | AN108: =F108+AM108 -> 160000 | AP108: =ROUND(AN108/1000,0)*1000 -> 160000
A109: 110 | C109: Total Customer Information Expense | F109: =SUM(F105:F108) -> 8093000 | G109: 0 | H109: 0 | I109: 0 | J109: =SUM(J105:J108) -> 0 | K109: =SUM(K105:K108) -> 0 | L109: =SUM(L105:L108) -> 0 | M109: 0 | N109: 0 | O109: 0 | P109: 0 | Q109: =SUM(Q105:Q108) -> 0 | R109: =SUM(R105:R108) -> 0 | S109: =SUM(S105:S108) -> 0 | T109: =SUM(T105:T108) -> 0 | U109: =SUM(U105:U108) -> -6860000 | V109: -1000 | W109: =SUM(W105:W108) -> 0 | X109: =SUM(X105:X108) -> 0 | Y109: =SUM(Y105:Y108) -> 0 | Z109: =SUM(Z105:Z108) -> 0 | AA109: =SUM(AA105:AA108) -> 0 | AB109: 11000 | AC109: 0 | AD109: 16000 | AE109: 0 | AF109: 0 | AG109: =SUM(AG105:AG108) -> 0 | AH109: 0 | AI109: 0 | AJ109: =SUM(AJ105:AJ108) -> 0 | AK109: =SUM(AK105:AK108) -> 0 | AM109: =SUM(AM105:AM108) -> -6834000 | AN109: =SUM(AN105:AN108) -> 1259000 | AO109: =IF(ROUND(SUM(F109:AK109),0)=ROUND(AN109,0),"ok","crossfoot error") -> ok | AP109: =SUM(AP105:AP108)/1000 -> 1259 | AQ109: ='[1]ADJ DETAIL INPUT'!$AN$39 -> 1259 | AR109: =AP109-AQ109 -> 0
A110: 111
A111: 112 | C111: Sales Expenses
A112: 113 | B112: 911-OP | C112: Supervision | F112: 0 | AM112: =SUM(G112:AK112)+501 -> 501 | AN112: =F112+AM112 -> 501 | AP112: =ROUND(AN112/1000,0)*1000 -> 1000
A113: 114 | B113: 912-OP | C113: Demonstrating & Selling Expenses | F113: 0 | AM113: =SUM(G113:AK113) -> 0 | AN113: =F113+AM113 -> 0 | AP113: =ROUND(AN113/1000,0)*1000 -> 0
A114: 115 | B114: 913-OP | C114: Advertising Expenses | F114: 0 | AM114: =SUM(G114:AK114) -> 0 | AN114: =F114+AM114 -> 0 | AP114: =ROUND(AN114/1000,0)*1000 -> 0
A115: 116 | B115: 916-OP | C115: Misc Sales Expenses | F115: 0 | AM115: =SUM(G115:AK115) -> 0 | AN115: =F115+AM115 -> 0 | AP115: =ROUND(AN115/1000,0)*1000 -> 0
A116: 117 | C116: Total Sales Expenses | F116: =SUM(F112:F115) -> 0 | G116: 0 | H116: 0 | I116: 0 | J116: =SUM(J112:J115) -> 0 | K116: =SUM(K112:K115) -> 0 | L116: =SUM(L112:L115) -> 0 | M116: 0 | N116: 0 | O116: 0 | P116: 0 | Q116: =SUM(Q112:Q115) -> 0 | R116: =SUM(R112:R115) -> 0 | S116: =SUM(S112:S115) -> 0 | T116: =SUM(T112:T115) -> 0 | U116: =SUM(U112:U115) -> 0 | V116: 0 | W116: =SUM(W112:W115) -> 0 | X116: =SUM(X112:X115) -> 0 | Y116: =SUM(Y112:Y115) -> 0 | Z116: =SUM(Z112:Z115) -> 0 | AA116: =SUM(AA112:AA115) -> 0 | AB116: 0 | AC116: 0 | AD116: 0 | AE116: 0 | AF116: 0 | AG116: =SUM(AG112:AG115) -> 0 | AH116: 0 | AI116: 0 | AJ116: =SUM(AJ112:AJ115) -> 0 | AK116: =SUM(AK112:AK115) -> 0 | AM116: =SUM(AM112:AM115) -> 501 | AN116: =SUM(AN112:AN115) -> 501 | AO116: =IF(ROUND(SUM(F116:AK116),0)=ROUND(AN116,0),"ok","crossfoot error") -> crossfoot error | AP116: =SUM(AP112:AP115)/1000 -> 1 | AQ116: ='[1]ADJ DETAIL INPUT'!$AN$40 -> 0 | AR116: =AP116-AQ116 -> 1
A117: 118
A118: 119 | C118: Subtotal Expenses | F118: =F116+F109+F102+F94+F55+F32 -> 120508000 | G118: 0 | H118: 10000 | I118: 0 | J118: =J116+J109+J102+J94+J55+J32 -> 0 | K118: =K116+K109+K102+K94+K55+K32 -> 0 | L118: =L116+L109+L102+L94+L55+L32 -> 0 | M118: -320000 | N118: 0 | O118: 0 | P118: 0 | Q118: =Q116+Q109+Q102+Q94+Q55+Q32 -> 0 | R118: =R116+R109+R102+R94+R55+R32 -> 0 | S118: =S116+S109+S102+S94+S55+S32 -> 0 | T118: =T116+T109+T102+T94+T55+T32 -> 2679000 | U118: =U116+U109+U102+U94+U55+U32 -> -48350000 | V118: -9000 | W118: =W116+W109+W102+W94+W55+W32 -> 0 | X118: =X116+X109+X102+X94+X55+X32 -> 0 | Y118: =Y116+Y109+Y102+Y94+Y55+Y32 -> 0 | Z118: =Z116+Z109+Z102+Z94+Z55+Z32 -> -51739000 | AA118: =AA116+AA109+AA102+AA94+AA55+AA32 -> 0 | AB118: 532000 | AC118: 0 | AD118: 544000 | AE118: 0 | AF118: 0 | AG118: =AG116+AG109+AG102+AG94+AG55+AG32 -> 0 | AH118: 0 | AI118: 0 | AJ118: =AJ116+AJ109+AJ102+AJ94+AJ55+AJ32 -> 0 | AK118: =AK116+AK109+AK102+AK94+AK55+AK32 -> 31000 | AM118: =AM116+AM109+AM102+AM94+AM55+AM32 -> -96621499 | AN118: =AN116+AN109+AN102+AN94+AN55+AN32 -> 23886501 | AO118: =IF(ROUND(SUM(F118:AK118),0)=ROUND(AN118,0),"ok","crossfoot error") -> crossfoot error | AP118: =AP116+AP109+AP102+AP94+AP55+AP32 -> 23886
A119: 120 | B119: =$B$1 -> Proforma | I119: =$I$1 -> Natural Gas Utility | AD119: Natural Gas Utility
A120: 121 | B120: =$B$2 -> Pro Forma Results of Operations | E120: Admin, & General, Other Taxes & Depreciation Expense | P120: =E120 -> Admin, & General, Other Taxes & Depreciation Expense | AD120: =P120 -> Admin, & General, Other Taxes & Depreciation Expense
A121: 122 | B121: =$B$3 -> Company Base Case
A122: 123
A123: 124 | F123: =F5 -> 1 | G123: 1.01 | H123: 1.02 | I123: 1.03 | J123: =J5 -> 1.04 | K123: =K5 -> 2.01 | L123: =L5 -> 2.02 | M123: 2.03 | N123: 2.04 | O123: 2.05 | P123: 2.06 | Q123: =Q5 -> 2.07 | R123: =R5 -> 2.08 | S123: =S5 -> 2.09 | T123: =T5 -> 2.1 | U123: =U5 -> 2.11 | V123: 2.12 | W123: =W5 -> 2.13 | X123: =X5 -> 2.14 | Y123: =Y5 -> 2.15 | Z123: =Z5 -> 3.01 | AA123: =AA5 -> 3.02 | AB123: 3.03 | AC123: 3.04 | AD123: 3.05 | AE123: 3.06 | AF123: =AF5 -> 3.07 | AG123: =AG5 -> 3.08 | AH123: 3.09 | AI123: 3.1 | AJ123: =AJ5 -> 3.11 | AK123: =AK5 -> 3.12 | AM123: =AM$5 -> (am) | AN123: =AN$5 -> (an) | AO123: =AO$5 -> (ao) | AP123: =AP$5 -> (ap)
A124: 125 | B124: =IF(ISBLANK(B$6),"",B$6) ->  | C124: =IF(ISBLANK(C$6),"",C$6) ->  | D124: =IF(ISBLANK(D$6),"",D$6) ->  | E124: =IF(ISBLANK(E$6),"",E$6) -> Notes | F124: Balance | G124: =IF(ISBLANK(G$6),"",G$6) -> Deferred FIT | H124: Deferred Debits | I124: Working | J124: Remove | K124: Eliminate | L124: Restate | M124: Uncollectible | N124: Regulatory | O124: Injuries & | P124: FIT/DFIT | Q124: Office Space | R124: Restate | S124: Net Gains/ | T124: =IF(ISBLANK(T$6),"",T$6) -> Weather Normalization | U124: =IF(ISBLANK(U$6),"",U$6) -> Eliminate | V124: Misc. Restating | W124: Restating | X124: Restate | Y124: Restate | Z124: Pro Forma Revenue | AA124: Pro Forma | AB124: Pro Forma | AC124: Pro Forma | AD124: Pro Forma | AE124: Pro Forma | AF124: Pro Forma | AG124: Pro Forma | AH124: Pro Forma | AI124: Pro Forma | AJ124: Pro Forma | AK124: Pro Forma | AM124: =IF(ISBLANK(AM$6),"",AM$6) -> Net Total | AN124: =IF(ISBLANK(AN$6),"",AN$6) -> Total | AO124: =IF(ISBLANK(AO$6),"",AO$6) -> check | AP124: =IF(ISBLANK(AP$6),"",AP$6) -> Total
A125: 126 | B125: =IF(ISBLANK(B$7),"",B$7) -> Account | C125: =IF(ISBLANK(C$7),"",C$7) -> Description | E125: =IF(ISBLANK(E$7),"",E$7) ->  | F125: per Books | G125: =IF(ISBLANK(G$7),"",G$7) -> Rate Base | H125: and Credits | I125: Capital | J125: AMI Rate Base | K125: B & O Taxes | L125: Property Taxes | M125: Expense | N125: Expense | O125: Damages | P125: Expense | Q125: Charges to Subs | R125: Excise Tax | S125: Losses | T125: =IF(ISBLANK(T$7),"",T$7) -> Gas Cost Adjust | U125: =IF(ISBLANK(U$7),"",U$7) -> Adder Schedules | V125: Adjustments | W125: Incentives | X125: Debt Int | Y125: 2018 Rate Base | Z125: Normalization | AA125: LEAP Deferral Amort | AB125: Non-Exec Labor | AC125: Exec Labor | AD125: Empl. Benefits | AE125: Incentive Adj | AF125: ISIT | AG125: Property Tax | AH125: Depreciation Exp | AI125: 2019 Threshhold Cap Add | AJ125: O&M Offsets | AK125: Fee Free | AM125: =IF(ISBLANK(AM$7),"",AM$7) -> of All | AN125: =IF(ISBLANK(AN$7),"",AN$7) ->  | AO125: =IF(ISBLANK(AO$7),"",AO$7) ->  | AP125: =IF(ISBLANK(AP$7),"",AP$7) -> $000's
A126: 127 | B126: =IF(ISBLANK(B$8),"",B$8) ->  | C126: =IF(ISBLANK(C$8),"",C$8) ->  | D126: =IF(ISBLANK(D$8),"",D$8) ->  | E126: =IF(ISBLANK(E$8),"",E$8) ->  | G126: =IF(ISBLANK(G$8),"",G$8) -> G-DFIT | H126: G-DDC | I126: G-WC | J126: G-AMI | K126: G-EBO | L126: G-RPT | M126: G-UE | N126: G-RE | O126: G-ID | P126: G-FIT | Q126: G-OSC | R126: G-RET | S126: G-NGL | T126: =IF(ISBLANK(T$8),"",T$8) -> G-WNGC | U126: =IF(ISBLANK(U$8),"",U$8) -> G-EAS | V126: G-MR | W126: G-RI | X126: G-DI | Y126: G-EOP18 | Z126: G-PREV | AA126: G-PLEAP | AB126: G-PLN | AC126: G-PLE | AD126: G-PEB | AE126: G-RI | AF126: G-PIS | AG126: G-PPT | AH126: G-PDEP | AI126: G-PCAP19 | AJ126: G-POFF | AK126: G-PFEE | AM126: =IF(ISBLANK(AM$8),"",AM$8) -> Adjustments | AN126: =IF(ISBLANK(AN$8),"",AN$8) ->  | AO126: =IF(ISBLANK(AO$8),"",AO$8) ->  | AP126: =IF(ISBLANK(AP$8),"",AP$8) -> in bold
A127: 128 | C127: Administrative & General Expenses | AO127: =AO$9 -> 0
A128: 129 | B128: 920-OP | C128: Admin. & General Salaries | F128: =6924000-1000 -> 6923000 | V128: -235000 | W128: -72000 | AB128: =127000+45000 -> 172000 | AC128: 102000 | AE128: 11000 | AM128: =SUM(G128:AK128) -> -22000 | AN128: =F128+AM128 -> 6901000 | AP128: =ROUND(AN128/1000,0)*1000 -> 6901000
A129: 130 | B129: 921-OP | C129: Office Supplies & Expenses | F129: 967000 | Q129: -17000 | V129: -2000 | AB129: 3000 | AM129: -16000 | AN129: 951000 | AP129: =ROUND(AN129/1000,0)*1000 -> 951000
A130: 131 | B130: 922-OP | C130: Admin. Expenses Transferred - Credit | F130: -14000 | AM130: 0 | AN130: -14000 | AP130: -14000
A131: 132 | B131: 923-OP | C131: Outside Services Employed | F131: 1893000 | AM131: 0 | AN131: 1893000 | AP131: 1893000
A132: 133 | B132: 924-OP | C132: Property Insurance Premium | F132: 223000 | AM132: 0 | AN132: 223000 | AP132: 223000
A133: 134 | B133: 925-OP | C133: Injuries & Damages | F133: 607000 | O133: 54000 | V133: -11000 | AB133: 3000 | AM133: 46000 | AN133: 653000 | AP133: 653000
A134: 135 | B134: 926-OP | C134: Employee Pension & Benefits | F134: 367000 | AD134: 256000 | AM134: 256000 | AN134: 623000 | AP134: 623000
A135: 136 | B135: 927-OP | C135: Franchise Requirements | F135: 0 | AM135: 0 | AN135: 0 | AP135: 0
A136: 137 | B136: 928-OP | C136: Regulatory Commission Expenses | F136: 729000 | N136: -50000 | T136: 13000 | U136: 10000 | V136: -2000 | Z136: -116000 | AB136: 7000 | AM136: -138000 | AN136: 591000 | AP136: 591000
A137: 138 | B137: 930-OP | C137: Miscellaneous & General Expense | F137: 797000 | V137: -119000 | AB137: 2000 | AF137: 582000 | AM137: 465000 | AN137: 1262000 | AP137: =ROUND(AN137/1000,0)*1000 -> 1262000
A138: 139 | B138: 931-OP | C138: Rents | F138: 103000 | AM138: 0 | AN138: 103000 | AP138: 103000
A139: 140 | B139: 935-MT | C139: Maintenance of General Plant | F139: 2450000 | V139: -2000 | AB139: 11000 | AJ139: -14000 | AM139: -5000 | AN139: 2445000 | AP139: 2445000
A140: 141 | C140: Total Administrative & General Expenses | F140: =SUM(F128:F139) -> 15045000 | G140: 0 | H140: 0 | I140: 0 | J140: =SUM(J128:J139) -> 0 | K140: =SUM(K128:K139) -> 0 | L140: =SUM(L128:L139) -> 0 | M140: 0 | N140: -50000 | O140: 54000 | P140: 0 | Q140: =SUM(Q128:Q139) -> -17000 | R140: =SUM(R128:R139) -> 0 | S140: =SUM(S128:S139) -> 0 | T140: =SUM(T128:T139) -> 13000 | U140: =SUM(U128:U139) -> 10000 | V140: -371000 | W140: =SUM(W128:W139) -> -72000 | X140: =SUM(X128:X139) -> 0 | Y140: =SUM(Y128:Y139) -> 0 | Z140: =SUM(Z128:Z139) -> -116000 | AA140: =SUM(AA128:AA139) -> 0 | AB140: 198000 | AC140: 102000 | AD140: 256000 | AE140: 11000 | AF140: 582000 | AG140: =SUM(AG128:AG139) -> 0 | AH140: 0 | AI140: 0 | AJ140: =SUM(AJ128:AJ139) -> -14000 | AK140: =SUM(AK128:AK139) -> 0 | AM140: =SUM(AM128:AM139) -> 586000 | AN140: =SUM(AN128:AN139) -> 15631000 | AO140: =IF(ROUND(SUM(F140:AK140),0)=ROUND(AN140,0),"ok","crossfoot error") -> ok | AP140: =SUM(AP128:AP139)/1000 -> 15631 | AQ140: ='[1]ADJ DETAIL INPUT'!$AN$43 -> 15631 | AR140: =AP140-AQ140 -> 0
A141: 142
A142: 143 | C142: Total Operating & Maintenance Expenses | F142: =F140+F118 -> 135553000 | G142: 0 | H142: 10000 | I142: 0 | J142: =J140+J118 -> 0 | K142: =K140+K118 -> 0 | L142: =L140+L118 -> 0 | M142: -320000 | N142: -50000 | O142: 54000 | P142: 0 | Q142: =Q140+Q118 -> -17000 | R142: =R140+R118 -> 0 | S142: =S140+S118 -> 0 | T142: =T140+T118 -> 2692000 | U142: =U140+U118 -> -48340000 | V142: -380000 | W142: =W140+W118 -> -72000 | X142: =X140+X118 -> 0 | Y142: =Y140+Y118 -> 0 | Z142: =Z140+Z118 -> -51855000 | AA142: =AA140+AA118 -> 0 | AB142: 730000 | AC142: 102000 | AD142: 800000 | AE142: 11000 | AF142: 582000 | AG142: =AG140+AG118 -> 0 | AH142: 0 | AI142: 0 | AJ142: =AJ140+AJ118 -> -14000 | AK142: =AK140+AK118 -> 31000 | AM142: =AM140+AM118 -> -96035499 | AN142: =AN140+AN118 -> 39517501 | AO142: =IF(ROUND(SUM(F142:AK142),0)=ROUND(AN142,0),"ok","crossfoot error") -> crossfoot error | AP142: =AP140+AP118 -> 39517 | AQ142: ='[1]ADJ DETAIL INPUT'!$AN$24+'[1]ADJ DETAIL INPUT'!$AN$27+'[1]ADJ DETAIL INPUT'!$AN$33+'[1]ADJ DETAIL INPUT'!$AN$38+'[1]ADJ DETAIL INPUT'!$AN$39+'[1]ADJ DETAIL INPUT'!$AN$40+'[1]ADJ DETAIL INPUT'!$AN$43 -> 39516 | AR142: =AP142-AQ142 -> 1
A143: 144
A144: 145 | B144: Taxes Other Than Income Taxes
A145: 146 | C145: Property Related
A146: 147 | C146: -Production | F146: 0 | AM146: =SUM(G146:AK146) -> 0 | AN146: =F146+AM146 -> 0
A147: 148 | C147: -Underground Storage | F147: 302000 | L147: -78000 | AG147: 29000 | AM147: =SUM(G147:AK147) -> -49000 | AN147: =F147+AM147 -> 253000 | AP147: =ROUND(AN147/1000,0) -> 253 | AQ147: ='[1]ADJ DETAIL INPUT'!$AN$29 -> 253 | AR147: =AP147-AQ147 -> 0
A148: 149 | C148: -Distribution | F148: =3398000+9000 -> 3407000 | L148: 80000 | Z148: 0 | AG148: 447000 | AM148: =SUM(G148:AK148) -> 527000 | AN148: =F148+AM148 -> 3934000 | AP148: =ROUND(AN148/1000,0) -> 3934 | AR148: =AP148-AQ148 -> 3934 | AS148: =AR148+AR153 -> 1
A149: 150 | C149: -Administrative & General | F149: 0 | AM149: =SUM(G149:AK149) -> 0 | AN149: =F149+AM149 -> 0 | AP149: =ROUND(AN149/1000,0) -> 0 | AQ149: ='[1]ADJ DETAIL INPUT'!$AN$46 -> 0 | AR149: =AP149-AQ149 -> 0
A150: 151 | C150: Total Property Related | F150: =SUM(F146:F149) -> 3709000 | G150: 0 | H150: 0 | I150: 0 | J150: =SUM(J146:J149) -> 0 | K150: =SUM(K146:K149) -> 0 | L150: =SUM(L146:L149) -> 2000 | M150: 0 | N150: 0 | O150: 0 | P150: 0 | Q150: =SUM(Q146:Q149) -> 0 | R150: =SUM(R146:R149) -> 0 | S150: =SUM(S146:S149) -> 0 | T150: =SUM(T146:T149) -> 0 | U150: =SUM(U146:U149) -> 0 | V150: 0 | W150: =SUM(W146:W149) -> 0 | X150: =SUM(X146:X149) -> 0 | Y150: =SUM(Y146:Y149) -> 0 | Z150: =SUM(Z146:Z149) -> 0 | AA150: =SUM(AA146:AA149) -> 0 | AB150: 0 | AC150: 0 | AD150: 0 | AE150: 0 | AF150: 0 | AG150: =SUM(AG146:AG149) -> 476000 | AH150: 0 | AI150: 0 | AJ150: =SUM(AJ146:AJ149) -> 0 | AK150: =SUM(AK146:AK149) -> 0 | AM150: =SUM(AM146:AM149) -> 478000 | AN150: =SUM(AN146:AN149) -> 4187000 | AO150: =IF(ROUND(SUM(F150:AK150),0)=ROUND(AN150,0),"ok","crossfoot error") -> ok | AP150: =SUM(AP146:AP149) -> 4187
A151: 152
A152: 153 | C152: State Excise
A153: 154 | C153: -Distribution | F153: 5538000 | R153: 0 | T153: 240000 | U153: 194000 | Z153: -2230000 | AM153: =SUM(G153:AK153) -> -1796000 | AN153: =F153+AM153 -> 3742000 | AP153: =ROUND(AN153/1000,0) -> 3742 | AQ153: ='[1]ADJ DETAIL INPUT'!$AN$35 -> 7675 | AR153: =AP153-AQ153 -> -3933 | AS153: =AR153+AR148 -> 1
A154: 155
A155: 156 | C155: Business & Occupation
A156: 157 | C156: -Distribution | F156: =5193000-9000 -> 5184000 | K156: -5184000 | AM156: =SUM(G156:AK156) -> -5184000 | AN156: =F156+AM156 -> 0 | AP156: =ROUND(AN156/1000,0) -> 0
A157: 158 | C157: -Open | AM157: =SUM(G157:AK157) -> 0 | AN157: =F157+AM157 -> 0 | AP157: =ROUND(AN157/1000,0) -> 0
A158: 159 | C158: -Open | AM158: =SUM(G158:AK158) -> 0 | AN158: =F158+AM158 -> 0 | AP158: =ROUND(AN158/1000,0) -> 0
A159: 160 | C159: Total Business & Occupation | F159: =SUM(F156:F158) -> 5184000 | G159: 0 | H159: 0 | I159: 0 | J159: =SUM(J156:J158) -> 0 | K159: =SUM(K156:K158) -> -5184000 | L159: =SUM(L156:L158) -> 0 | M159: 0 | N159: 0 | O159: 0 | P159: 0 | Q159: =SUM(Q156:Q158) -> 0 | R159: =SUM(R156:R158) -> 0 | S159: =SUM(S156:S158) -> 0 | T159: =SUM(T156:T158) -> 0 | U159: =SUM(U156:U158) -> 0 | V159: 0 | W159: =SUM(W156:W158) -> 0 | X159: =SUM(X156:X158) -> 0 | Y159: =SUM(Y156:Y158) -> 0 | Z159: =SUM(Z156:Z158) -> 0 | AA159: =SUM(AA156:AA158) -> 0 | AB159: 0 | AC159: 0 | AD159: 0 | AE159: 0 | AF159: 0 | AG159: =SUM(AG156:AG158) -> 0 | AH159: 0 | AI159: 0 | AJ159: =SUM(AJ156:AJ158) -> 0 | AK159: =SUM(AK156:AK158) -> 0 | AM159: =SUM(AM156:AM158) -> -5184000 | AN159: =SUM(AN156:AN158) -> 0 | AO159: =IF(ROUND(SUM(F159:AK159),0)=ROUND(AN159,0),"ok","crossfoot error") -> ok | AP159: =SUM(AP156:AP158) -> 0
A160: 161
A161: 162 | C161: Miscellaneous
A162: 163 | C162: -Distribution | F162: 0 | AM162: =SUM(G162:AK162) -> 0 | AN162: =F162+AM162 -> 0
A163: 164
A164: 165 | C164: Total Taxes Other Than Income Taxes | F164: =F162+F159+F153+F150 -> 14431000 | G164: 0 | H164: 0 | I164: 0 | J164: =J162+J159+J153+J150 -> 0 | K164: =K162+K159+K153+K150 -> -5184000 | L164: =L162+L159+L153+L150 -> 2000 | M164: 0 | N164: 0 | O164: 0 | P164: 0 | Q164: =Q162+Q159+Q153+Q150 -> 0 | R164: =R162+R159+R153+R150 -> 0 | S164: =S162+S159+S153+S150 -> 0 | T164: =T162+T159+T153+T150 -> 240000 | U164: =U162+U159+U153+U150 -> 194000 | V164: 0 | W164: =W162+W159+W153+W150 -> 0 | X164: =X162+X159+X153+X150 -> 0 | Y164: =Y162+Y159+Y153+Y150 -> 0 | Z164: =Z162+Z159+Z153+Z150 -> -2230000 | AA164: =AA162+AA159+AA153+AA150 -> 0 | AB164: 0 | AC164: 0 | AD164: 0 | AE164: 0 | AF164: 0 | AG164: =AG162+AG159+AG153+AG150 -> 476000 | AH164: 0 | AI164: 0 | AJ164: =AJ162+AJ159+AJ153+AJ150 -> 0 | AK164: =AK162+AK159+AK153+AK150 -> 0 | AM164: =AM162+AM159+AM153+AM150 -> -6502000 | AN164: =AN162+AN159+AN153+AN150 -> 7929000 | AO164: =IF(ROUND(SUM(F164:AK164),0)=ROUND(AN164,0),"ok","crossfoot error") -> ok | AP164: =AP162+AP159+AP153+AP150 -> 7929 | AQ164: ='[1]ADJ DETAIL INPUT'!$AN$29+'[1]ADJ DETAIL INPUT'!$AN$35+'[1]ADJ DETAIL INPUT'!$AN$46 -> 7928 | AR164: =AP164-AQ164 -> 1
A165: 166
A166: 167 | B166: Depreciation Expense
A167: 168 | C167: Underground Storage Plant Depreciation Expense
A168: 169 | B168: 350 | C168: Land & Land Rights Depr. Exp. | F168: 1000 | AH168: =ROUND((F168/$F$176)*-244000,-3) -> 0 | AM168: =SUM(G168:AK168) -> 0 | AN168: =F168+AM168 -> 1000 | AP168: =ROUND(AN168/1000,0)*1000 -> 1000
A169: 170 | B169: 351 | C169: Structures & Improvements Depr. Exp. | F169: 26000 | Y169: 2000 | AH169: =ROUND((F169/$F$176)*-244000,-3) -> -10000 | AM169: -8000 | AN169: 18000 | AP169: 18000
A170: 171 | B170: 352 | C170: Wells Depr. Exp. | F170: 126000 | Y170: 3000 | AH170: -49000 | AM170: -46000 | AN170: 80000 | AP170: 80000
A171: 172 | B171: 353 | C171: Lines Depr. Exp. | F171: 11000 | AH171: -4000 | AM171: -4000 | AN171: 7000 | AP171: 7000
A172: 173 | B172: 354 | C172: Compressor Station Equip. Depr. Exp. | F172: 164000 | Y172: 2000 | AH172: -64000 | AM172: -62000 | AN172: 102000 | AP172: =ROUND(AN172/1000,0)*1000-1000 -> 101000
A173: 174 | B173: 355 | C173: Measuring & Regulating Equip. Depr. Exp. | F173: 255000 | Y173: 34000 | AH173: -99000 | AM173: -65000 | AN173: 190000 | AP173: =ROUND(AN173/1000,0)*1000+1000 -> 191000
A174: 175 | B174: 356 | C174: Purification Equipment Depr. Exp. | F174: 4000 | AH174: -2000 | AM174: -2000 | AN174: 2000 | AP174: 2000
A175: 176 | B175: 357 | C175: Other Equipment Depr. Exp. | F175: 40000 | Y175: 2000 | AH175: -16000 | AM175: -14000 | AN175: 26000 | AP175: 26000
A176: 177 | C176: Total Underground Storage Plant Depr. Exp. | F176: =SUM(F168:F175) -> 627000 | G176: 0 | H176: 0 | I176: 0 | J176: =SUM(J168:J175) -> 0 | K176: =SUM(K168:K175) -> 0 | L176: =SUM(L168:L175) -> 0 | M176: 0 | N176: 0 | O176: 0 | P176: 0 | Q176: =SUM(Q168:Q175) -> 0 | R176: =SUM(R168:R175) -> 0 | S176: =SUM(S168:S175) -> 0 | T176: =SUM(T168:T175) -> 0 | U176: =SUM(U168:U175) -> 0 | V176: 0 | W176: =SUM(W168:W175) -> 0 | X176: =SUM(X168:X175) -> 0 | Y176: =SUM(Y168:Y175) -> 43000 | Z176: =SUM(Z168:Z175) -> 0 | AA176: =SUM(AA168:AA175) -> 0 | AB176: 0 | AC176: 0 | AD176: 0 | AE176: 0 | AF176: 0 | AG176: =SUM(AG168:AG175) -> 0 | AH176: -244000 | AI176: 0 | AJ176: =SUM(AJ168:AJ175) -> 0 | AK176: =SUM(AK168:AK175) -> 0 | AM176: =SUM(AM168:AM175) -> -201000 | AN176: =SUM(AN168:AN175) -> 426000 | AO176: =IF(ROUND(SUM(F176:AK176),0)=ROUND(AN176,0),"ok","crossfoot error") -> ok | AP176: =SUM(AP168:AP175)/1000 -> 426 | AQ176: ='[1]ADJ DETAIL INPUT'!$AN$28 -> 426 | AR176: =AP176-AQ176 -> 0
A177: 178
A178: 179 | B178: =$B$1 -> Proforma | I178: =$I$1 -> Natural Gas Utility
A179: 180 | B179: =$B$2 -> Pro Forma Results of Operations | E179: Depreciation Expense & Income Tax | P179: =E179 -> Depreciation Expense & Income Tax | AD179: =E179 -> Depreciation Expense & Income Tax
A180: 181 | B180: =$B$3 -> Company Base Case
A181: 182
A182: 183 | F182: =F5 -> 1 | G182: 1.01 | H182: 1.02 | I182: 1.03 | J182: =J5 -> 1.04 | K182: =K5 -> 2.01 | L182: =L5 -> 2.02 | M182: 2.03 | N182: 2.04 | O182: 2.05 | P182: 2.06 | Q182: =Q5 -> 2.07 | R182: =R5 -> 2.08 | S182: =S5 -> 2.09 | T182: =T5 -> 2.1 | U182: =U5 -> 2.11 | V182: 2.12 | W182: =W5 -> 2.13 | X182: =X5 -> 2.14 | Y182: =Y5 -> 2.15 | Z182: =Z5 -> 3.01 | AA182: =AA5 -> 3.02 | AB182: 3.03 | AC182: 3.04 | AD182: 3.05 | AE182: 3.06 | AF182: =AF5 -> 3.07 | AG182: =AG5 -> 3.08 | AH182: 3.09 | AI182: 3.1 | AJ182: =AJ5 -> 3.11 | AK182: =AK5 -> 3.12 | AM182: =AM$5 -> (am) | AN182: =AN$5 -> (an) | AO182: =AO$5 -> (ao) | AP182: =AP$5 -> (ap)
A183: 184 | B183: =IF(ISBLANK(B$6),"",B$6) ->  | C183: =IF(ISBLANK(C$6),"",C$6) ->  | D183: =IF(ISBLANK(D$6),"",D$6) ->  | E183: =IF(ISBLANK(E$6),"",E$6) -> Notes | F183: Balance | G183: =IF(ISBLANK(G$6),"",G$6) -> Deferred FIT | H183: Deferred Debits | I183: Working | J183: Remove | K183: Eliminate | L183: Restate | M183: Uncollectible | N183: Regulatory | O183: Injuries & | P183: FIT/DFIT | Q183: Office Space | R183: Restate | S183: Net Gains/ | T183: =IF(ISBLANK(T$6),"",T$6) -> Weather Normalization | U183: =IF(ISBLANK(U$6),"",U$6) -> Eliminate | V183: Misc. Restating | W183: Restating | X183: Restate | Y183: Restate | Z183: Pro Forma Revenue | AA183: Pro Forma | AB183: Pro Forma | AC183: Pro Forma | AD183: Pro Forma | AE183: Pro Forma | AF183: Pro Forma | AG183: Pro Forma | AH183: Pro Forma | AI183: Pro Forma | AJ183: Pro Forma | AK183: Pro Forma | AM183: =IF(ISBLANK(AM$6),"",AM$6) -> Net Total | AN183: =IF(ISBLANK(AN$6),"",AN$6) -> Total | AO183: =IF(ISBLANK(AO$6),"",AO$6) -> check | AP183: =IF(ISBLANK(AP$6),"",AP$6) -> Total
A184: 185 | B184: =IF(ISBLANK(B$7),"",B$7) -> Account | C184: =IF(ISBLANK(C$7),"",C$7) -> Description | E184: =IF(ISBLANK(E$7),"",E$7) ->  | F184: per Books | G184: =IF(ISBLANK(G$7),"",G$7) -> Rate Base | H184: and Credits | I184: Capital | J184: AMI Rate Base | K184: B & O Taxes | L184: Property Taxes | M184: Expense | N184: Expense | O184: Damages | P184: Expense | Q184: Charges to Subs | R184: Excise Tax | S184: Losses | T184: =IF(ISBLANK(T$7),"",T$7) -> Gas Cost Adjust | U184: =IF(ISBLANK(U$7),"",U$7) -> Adder Schedules | V184: Adjustments | W184: Incentives | X184: Debt Int | Y184: 2018 Rate Base | Z184: Normalization | AA184: LEAP Deferral Amort | AB184: Non-Exec Labor | AC184: Exec Labor | AD184: Empl. Benefits | AE184: Incentive Adj | AF184: ISIT | AG184: Property Tax | AH184: Depreciation Exp | AI184: 2019 Threshhold Cap Add | AJ184: O&M Offsets | AK184: Fee Free | AM184: =IF(ISBLANK(AM$7),"",AM$7) -> of All | AN184: =IF(ISBLANK(AN$7),"",AN$7) ->  | AO184: =IF(ISBLANK(AO$7),"",AO$7) ->  | AP184: =IF(ISBLANK(AP$7),"",AP$7) -> $000's
A185: 186 | B185: =IF(ISBLANK(B$8),"",B$8) ->  | C185: =IF(ISBLANK(C$8),"",C$8) ->  | D185: =IF(ISBLANK(D$8),"",D$8) ->  | E185: =IF(ISBLANK(E$8),"",E$8) ->  | G185: =IF(ISBLANK(G$8),"",G$8) -> G-DFIT | H185: G-DDC | I185: G-WC | J185: G-AMI | K185: G-EBO | L185: G-RPT | M185: G-UE | N185: G-RE | O185: G-ID | P185: G-FIT | Q185: G-OSC | R185: G-RET | S185: G-NGL | T185: =IF(ISBLANK(T$8),"",T$8) -> G-WNGC | U185: =IF(ISBLANK(U$8),"",U$8) -> G-EAS | V185: G-MR | W185: G-RI | X185: G-DI | Y185: G-EOP18 | Z185: G-PREV | AA185: G-PLEAP | AB185: G-PLN | AC185: G-PLE | AD185: G-PEB | AE185: G-RI | AF185: G-PIS | AG185: G-PPT | AH185: G-PDEP | AI185: G-PCAP19 | AJ185: G-POFF | AK185: G-PFEE | AM185: =IF(ISBLANK(AM$8),"",AM$8) -> Adjustments | AN185: =IF(ISBLANK(AN$8),"",AN$8) ->  | AO185: =IF(ISBLANK(AO$8),"",AO$8) ->  | AP185: =IF(ISBLANK(AP$8),"",AP$8) -> in bold
A186: 187 | C186: Distribution Plant Depreciation Expense
A187: 188 | B187: 374 | C187: Land & Land Rights Depr. Exp. | F187: 4000 | Y187: 2000 | AH187: =ROUND((F187/$F$200)*-731000,-3) -> 0 | AI187: =ROUND((F187/$F$200)*347000,-3) -> 0 | AM187: =SUM(G187:AK187) -> 2000 | AN187: =F187+AM187 -> 6000 | AP187: =ROUND(AN187/1000,0)*1000 -> 6000
A188: 189 | B188: 375 | C188: Structures & Improvements Depr. Exp. | F188: 12000 | Y188: 3000 | AH188: =ROUND((F188/$F$200)*-731000,-3) -> -1000 | AI188: =ROUND((F188/$F$200)*347000,-3) -> 0 | AM188: 2000 | AN188: 14000 | AP188: 14000
A189: 190 | B189: 376-All | C189: Mains Depr. Exp. | E189: =E268 -> 1 | F189: 5422000 | Y189: 366000 | AH189: -340000 | AI189: 162000 | AM189: 188000 | AN189: 5610000 | AP189: =ROUND(AN189/1000,0)*1000+2000 -> 5612000
A190: 191 | B190: 376 | C190: Mains Depr. Exp. | E190: =E269 -> 0 | F190: =ROUND($E$188*E190,-3) -> 0 | AH190: 0 | AI190: 0 | AM190: 0 | AN190: 0 | AP190: 0
A191: 192 | B191: 378 | C191: Meas & Reg Station Equip-Gen Depr. Exp. | F191: 137000 | Y191: 6000 | AH191: -9000 | AI191: 4000 | AM191: 1000 | AN191: 138000 | AP191: 138000
A192: 193 | B192: 379 | C192: Meas & Reg Station Equip-City Gate Depr. Exp. | F192: 61000 | Y192: -7000 | AH192: -4000 | AI192: 2000 | AM192: -9000 | AN192: 52000 | AP192: 52000
A193: 194 | B193: 380 | C193: Services Depr. Exp. | F193: 4091000 | Y193: 266000 | AH193: -257000 | AI193: 122000 | AM193: 131000 | AN193: 4222000 | AP193: =ROUND(AN193/1000,0)*1000 -> 4222000
A194: 195 | B194: 381 | C194: Meters Depr. Exp. | F194: 1865000 | Y194: -70000 | AH194: -117000 | AI194: 56000 | AM194: -131000 | AN194: 1734000 | AP194: =ROUND(AN194/1000,0)*1000 -> 1734000
A195: 196 | B195: 382 | C195: Meter Installations Depr. Exp. | AH195: 0 | AI195: 0 | AM195: 0 | AN195: 0 | AP195: 0
A196: 197 | B196: 383 | C196: House Regulators Depr. Exp. | AH196: 0 | AI196: 0 | AM196: 0 | AN196: 0 | AP196: 0
A197: 198 | B197: 384 | C197: House Regulator Installations Depr. Exp. | AH197: 0 | AI197: 0 | AM197: 0 | AN197: 0 | AP197: 0
A198: 199 | B198: 385 | C198: Industrial Meas & Reg Station Equip. Depr. Exp. | F198: 50000 | Y198: 1000 | AH198: -3000 | AI198: 1000 | AM198: -1000 | AN198: 49000 | AP198: 49000
A199: 200 | B199: 387 | C199: Other Equipment Depr. Exp. | F199: 0 | AH199: 0 | AI199: 0 | AM199: 0 | AN199: 0 | AP199: 0
A200: 201 | C200: Total Distribution Plant Depreciation Expense | F200: =SUM(F187:F199) -> 11642000 | G200: 0 | H200: 0 | I200: 0 | J200: =SUM(J187:J199) -> 0 | K200: =SUM(K187:K199) -> 0 | L200: =SUM(L187:L199) -> 0 | M200: 0 | N200: 0 | O200: 0 | P200: 0 | Q200: =SUM(Q187:Q199) -> 0 | R200: =SUM(R187:R199) -> 0 | S200: =SUM(S187:S199) -> 0 | T200: =SUM(T187:T199) -> 0 | U200: =SUM(U187:U199) -> 0 | V200: 0 | W200: =SUM(W187:W199) -> 0 | X200: =SUM(X187:X199) -> 0 | Y200: =SUM(Y187:Y199) -> 567000 | Z200: =SUM(Z187:Z199) -> 0 | AA200: =SUM(AA187:AA199) -> 0 | AB200: 0 | AC200: 0 | AD200: 0 | AE200: 0 | AF200: 0 | AG200: =SUM(AG187:AG199) -> 0 | AH200: -731000 | AI200: 347000 | AJ200: =SUM(AJ187:AJ199) -> 0 | AK200: =SUM(AK187:AK199) -> 0 | AM200: =SUM(AM187:AM199) -> 183000 | AN200: =SUM(AN187:AN199) -> 11825000 | AO200: =IF(ROUND(SUM(F200:AK200),0)=ROUND(AN200,0),"ok","crossfoot error") -> ok | AP200: =SUM(AP187:AP199)/1000 -> 11827 | AQ200: ='[1]ADJ DETAIL INPUT'!$AN$34 -> 11812 | AR200: =AP200-AQ200 -> 15 | AS200: =AR200+AR213+AR224 -> -2105
... 213 more rows

Sheet Mains Allocator
B1: Avista
B2: Distribution Mains Allocation
I5: GEN SERVICE | J5: LRG GEN SVC | K5: EX LRG GEN SVC | L5: INTERRUPTIBLE | M5: TRANSPORT | N5: S.C.
B6: Line | C6: Item | D6: Amount | G6: Percent | H6: Allocator | I6: SCHEDULE 101 | J6: SCH. 111&112 | K6: SCH. 121&122 | L6: SCH. 131&132 | M6: SCHEDULE 146 | N6: SCHEDULE 148 | O6: Check
C8: Peak | E8: Percentage | F8: Allocator | G8: =1-G12 -> 0.6170489222
B9: 1 | C9: Peak Related Costs | D9: =D$21*G8 -> 153863616.9 | E9: =D9/D21 -> 0.6170489222 | F9: D01 | H9: Peak | I9: =$D9*I$28 -> 102387911.9 | J9: =$D9*J$28 -> 36191111.19 | K9: =$D9*K$28 -> 0 | L9: =$D9*L$28 -> 563770.5931 | M9: =$D9*M$28 -> 14720823.22 | O9: =SUM(I9:M9)-D9 -> 0
C12: Average | G12: ='Demand - Pk-Avg'!R25 -> 0.3829510778
B13: =B9+1 -> 2 | C13: Average Related Costs | D13: =D$21*G12 -> 95490383.06
B15: =B13+1 -> 3 | C15: Large Mains (=> 4") | D15: =D13-D16-D17-D18 -> 35311443.23 | E15: =D15/D21 -> 0.1416116976 | F15: E01 | H15: Volume | I15: =$D15*I$31 -> 20566231.43 | J15: =$D15*J$31 -> 8910591.009 | K15: 0 | L15: =$D15*L$31 -> 157096.3692 | M15: 5677524.429 | O15: =SUM(I15:M15)-D15 -> 0
B16: =B15+1 -> 4 | C16: Medium Mains (2-3") | D16: =($D$21*$G$12*('Mains - Weighted Cost'!D58))*G16 -> 17611929.85 | E16: =(D16/D21) -> 0.07063022792 | F16: E01 | G16: =1-G17 -> 0.333 | H16: Volume | I16: =$D16*I$31 -> 10257610.34 | J16: 4444244.965 | K16: =$D16*K$31 -> 0 | L16: 78353.36032 | M16: 2831721.188 | O16: =SUM(I16:M16)-D16 -> 0
B17: =B16+1 -> 5 | C17: Medium Mains (2-3") | D17: =($D$21*$G$12*('Mains - Weighted Cost'!D58))*G17 -> 35276748.38 | E17: =(D17/D21) -> 0.1414725586 | F17: E06 | G17: 0.667 | H17: Volume Less 132, 146 | I17: =$D17*I$37 -> 24612889.43 | J17: 10663858.96 | K17: 0 | L17: 0 | M17: 0 | N17: 0
B18: =B17+1 -> 6 | C18: Small Mains (< 2") | D18: =D21*G12*('Mains - Weighted Cost'!D57) -> 7290261.585 | E18: =D18/D21 -> 0.0292365937 | F18: E06 | H18: Volume Less 132, 146 | I18: 5086477.935 | J18: 2203783.65 | K18: 0 | L18: 0 | M18: 0 | N18: 0 | O18: =SUM(I18:M18)-D18 -> 0
B19: =B18+1 -> 7 | C19: Total Average Related Costs | D19: =SUM(D15:D18) -> 95490383.06 | E19: =SUM(E9:E18) -> 1 | I19: =SUM(I15:I18) -> 60523209.13 | J19: 26222478.58 | K19: 0 | L19: 235449.7295 | M19: 8509245.617 | N19: 0 | O19: =SUM(I19:M19)-D19 -> 0
B21: =B19+1 -> 8 | C21: Total (MAINS) | D21: =Detail!E28 -> 249354000 | I21: =SUM(I19,I9) -> 162911121.1 | J21: =SUM(J19,J9) -> 62413589.77 | K21: =SUM(K19,K9) -> 0 | L21: =SUM(L19,L9) -> 799220.3227 | M21: =SUM(M19,M9) -> 23230068.83 | O21: =SUM(I21:M21)-D21 -> 0
B22: =B21+1 -> 9 | C22: Percent | D22: =SUM(I22:M22) -> 1 | I22: =I21/$D21 -> 0.653332696 | J22: =J21/$D21 -> 0.2503011372 | K22: =K21/$D21 -> 0 | L22: =L21/$D21 -> 0.003205163433 | M22: =M21/$D21 -> 0.09316100337 | O22: =SUM(I22:M22)-D22 -> 0
H23: Current Method | I23: =Detail!I28/Detail!$H$28 -> 0.653332696 | J23: =Detail!J28/Detail!$H$28 -> 0.2503011372 | K23: =Detail!K28/Detail!$H$28 -> 0 | L23: =Detail!L28/Detail!$H$28 -> 0.003205163433 | M23: =Detail!M28/Detail!$H$28 -> 0.09316100337
H24: Difference | I24: =I22-I23 -> 0 | J24: =J22-J23 -> 0 | K24: =K22-K23 -> 0 | L24: =L22-L23 -> 0 | M24: =M22-M23 -> 0 | O24: =SUM(I24:M24) -> 0
C26: Allocators
B27: =B22+1 -> 10 | C27: Peak | D27: =SUM(I27:M27) -> 1584408.256 | F27: D01 | I27: =Factors!E9 -> 1054337.966 | J27: =Factors!F9 -> 372677.4172 | K27: =Factors!G9 -> 0 | L27: =Factors!H9 -> 5805.419111 | M27: =Factors!I9 -> 151587.4533 | O27: =SUM(I27:M27)-D27 -> 0
B28: =B27+1 -> 11 | C28: Percent | D28: =SUM(I28:M28) -> 1 | I28: =I27/$D27 -> 0.6654458928 | J28: =J27/$D27 -> 0.2352155234 | K28: =K27/$D27 -> 0 | L28: =L27/$D27 -> 0.003664092944 | M28: =M27/$D27 -> 0.09567449089 | O28: =SUM(I28:M28)-D28 -> 0
B30: =B28+1 -> 12 | C30: Total Annual Volume | D30: =SUM(I30:M30) -> 221464060 | F30: E01 | I30: =Factors!E4 -> 128985980 | J30: =Factors!F4 -> 55884877 | K30: =Factors!G4 -> 0 | L30: =Factors!H4 -> 985267 | M30: =Factors!I4 -> 35607936 | O30: =SUM(I30:M30)-D30 -> 0
